Workbook

Sheet Introduction
C4: Joint Monitoring Programme for Water Supply, Sanitation and Hygiene
C6: Estimates on household water, sanitation and hygiene by wealth quintile and sub-national region in
C7: =+Water!B5 -> Ethiopia
C9: Updated May 2021
C11: Follow the links below to find the following information:
C13: JMP Estimates
C14: WASH status and trends by wealth quintile (customized quintiles made without water and sanitation assets)
C15: Water
C16: Sanitation
C17: Hygiene
C19: Data inputs
C20: customized wealth quintiles and subnational data:
C21: =IF(INDIRECT(CONCATENATE("Water","!B105"))=0,"",INDIRECT(CONCATENATE("Water","!B105"))) -> DHS00
C22: =IF(INDIRECT(CONCATENATE("Water","!B106"))=0,"",INDIRECT(CONCATENATE("Water","!B106"))) -> DHS05
C23: =IF(INDIRECT(CONCATENATE("Water","!B107"))=0,"",INDIRECT(CONCATENATE("Water","!B107"))) -> DHS11
C24: =IF(INDIRECT(CONCATENATE("Water","!B108"))=0,"",INDIRECT(CONCATENATE("Water","!B108"))) -> DHS16
C25: =IF(INDIRECT(CONCATENATE("Water","!B109"))=0,"",INDIRECT(CONCATENATE("Water","!B109"))) -> 
C26: =IF(INDIRECT(CONCATENATE("Water","!B110"))=0,"",INDIRECT(CONCATENATE("Water","!B110"))) -> 
C27: =IF(INDIRECT(CONCATENATE("Water","!B111"))=0,"",INDIRECT(CONCATENATE("Water","!B111"))) -> 
C28: =IF(INDIRECT(CONCATENATE("Water","!B112"))=0,"",INDIRECT(CONCATENATE("Water","!B112"))) -> 
C29: =IF(INDIRECT(CONCATENATE("Water","!B113"))=0,"",INDIRECT(CONCATENATE("Water","!B113"))) -> 
C30: =IF(INDIRECT(CONCATENATE("Water","!B114"))=0,"",INDIRECT(CONCATENATE("Water","!B114"))) -> 
C31: =IF(INDIRECT(CONCATENATE("Water","!B115"))=0,"",INDIRECT(CONCATENATE("Water","!B115"))) -> 
C32: =IF(INDIRECT(CONCATENATE("Water","!B116"))=0,"",INDIRECT(CONCATENATE("Water","!B116"))) -> 
L55: =+IF(ISNUMBER(M48), "", "Insufficient data to estimate safely managed sanitation services at national level") -> Insufficient data to estimate safely managed sanitation services at national level

Sheet Water
A1: BGD
B4: Summary of trends in use of drinking water by wealth quintile (%)
B5: =IF(ISERROR(INDIRECT(CONCATENATE($B105,"!A2"))),"",INDIRECT(CONCATENATE($B105,"!A2"))) -> Ethiopia
B7: =B118 -> National use of drinking water sources, 2000–2020 | J7: =B218 -> Urban use of drinking water sources, 2000–2020 | R7: =B318 -> Rural use of drinking water sources, 2000–2020
B31: =IF(ISERROR(INDIRECT(CONCATENATE($B105,"!A2"))),"",INDIRECT(CONCATENATE($B105,"!A2"))) -> Ethiopia | F31: Poorest | J31: Poor | N31: Middle | R31: Rich | V31: Richest
F32: Basic | G32: Limited | H32: Unimproved | I32: Surface water | J32: Basic | K32: Limited | L32: Unimproved | M32: Surface water | N32: Basic | O32: Limited | P32: Unimproved | Q32: Surface water | R32: Basic | S32: Limited | T32: Unimproved | U32: Surface water | V32: Basic | W32: Limited | X32: Unimproved | Y32: Surface water
B33: NATIONAL | D33: Estimate | E33: =C99 -> 2000 | F33: =E99 -> 7.998810299 | G33: =F99 -> 5.40398783 | H33: 50.04496655 | I33: 36.55223532 | J33: =J99 -> 7.544159763 | K33: =K99 -> 4.41978418 | L33: 51.49037454 | M33: 36.54568151 | N33: =O99 -> 8.454953798 | O33: =P99 -> 4.63384136 | P33: 52.41509278 | Q33: 34.49611207 | R33: =T99 -> 11.11333363 | S33: =U99 -> 5.169027461 | T33: 47.24132075 | U33: 36.47631816 | V33: =Y99 -> 58.14438297 | W33: =Z99 -> 7.194680534 | X33: 20.24648489 | Y33: 14.41445161
E34: =C100 -> 2020 | F34: =E100 -> 27.59344476 | G34: 18.64210227 | H34: 38.05928015 | I34: 15.70517282 | J34: =J100 -> 35.88131852 | K34: 21.02125206 | L34: 31.64512566 | M34: 11.45230377 | N34: =O100 -> 41.61326684 | O34: 22.80666241 | P34: 26.33810415 | Q34: 9.241966599 | R34: =T100 -> 49.38787876 | S34: 22.97126227 | T34: 19.92038121 | U34: 7.720477758 | V34: =Y100 -> 87.6878643 | W34: 10.85033735 | X34: 1.461798354 | Y34: 0
B36: URBAN | D36: Estimate | E36: =C199 -> 2000 | F36: =E199 -> 48.3169861 | G36: =F199 -> 14.74561143 | H36: 20.37843606 | I36: 16.55896642 | J36: =J199 -> 71.83328208 | K36: =K199 -> 8.411982573 | L36: 12.05875267 | M36: 7.695982675 | N36: =O199 -> 88.3059013 | O36: =P199 -> 5.670270122 | P36: 3.24372785 | Q36: 2.780100728 | R36: =T199 -> 96.18535029 | S36: =U199 -> 2.70702821 | T36: 0.9662951434 | U36: 0.1413263605 | V36: =Y199 -> 98.90112199 | W36: =Z199 -> 1.029205388 | X36: 0.06133693484 | Y36: 0.008335684341
E37: =C200 -> 2020 | F37: =E200 -> 73.62984005 | G37: 22.47071058 | H37: 3.899449367 | I37: 0 | J37: =J200 -> 89.51716016 | K37: 10.48283984 | L37: 0 | M37: 0 | N37: =O200 -> 93.96626822 | O37: 6.033731782 | P37: 0 | Q37: 0 | R37: =T200 -> 97.26265234 | S37: 2.737347662 | T37: 0 | U37: 0 | V37: =Y200 -> 98.97007704 | W37: 1.029922962 | X37: 0 | Y37: 0
B39: RURAL | D39: Estimate | E39: =C299 -> 2000 | F39: =E299 -> 6.303018887 | G39: =F299 -> 4.41981607 | H39: 51.76768766 | I39: 37.50947739 | J39: =J299 -> 7.11468055 | K39: =K299 -> 4.010477606 | L39: 52.90243321 | M39: 35.97240863 | N39: =O299 -> 7.789583918 | O39: =P299 -> 4.669185483 | P39: 51.73332989 | Q39: 35.80790071 | R39: =T299 -> 10.11299347 | S39: =U299 -> 5.342556686 | T39: 50.53656146 | U39: 34.00788839 | V39: =Y299 -> 11.75570358 | W39: =Z299 -> 4.96814822 | X39: 46.67473536 | Y39: 36.60141284
E40: =C300 -> 2020 | F40: =E300 -> 26.82530229 | G40: 18.8104945 | H40: 38.0581986 | I40: 16.30600461 | J40: =J300 -> 33.72570105 | K40: 19.01085619 | L40: 35.30831887 | M40: 11.95512389 | N40: =O300 -> 39.38774559 | O40: 23.60956527 | P40: 26.35086629 | Q40: 10.65182285 | R40: =T300 -> 41.76781473 | S40: 22.06536753 | T40: 25.00302886 | U40: 11.16378888 | V40: =Y300 -> 55.28790301 | W40: 23.36555145 | X40: 17.07009565 | Y40: 4.27644989
A97: NATIONAL | D97: Poorest | I97: Poor | N97: Middle | S97: Rich | X97: Richest
D98: Improved | E98: Basic | F98: Limited | G98: Unimproved | H98: Surface water | I98: Improved | J98: Basic | K98: Limited | L98: Unimproved | M98: Surface water | N98: Improved | O98: Basic | P98: Limited | Q98: Unimproved | R98: Surface water | S98: Improved | T98: Basic | U98: Limited | V98: Unimproved | W98: Surface water | X98: Improved | Y98: Basic | Z98: Limited | AA98: Unimproved | AB98: Surface water
A99: Forecast period: | C99: =MinBase(C105:C116) -> 2000 | D99: =IF((D101+H101)>100,D101*100/(D101+H101),D101) -> 13.40279813 | E99: =D99*AVERAGEIF(E105:E116,">0")/100 -> 7.998810299 | F99: =D99*(100-AVERAGEIF(E105:E116,">0"))/100 -> 5.40398783 | G99: =100-(E99+F99+H99) -> 50.04496655 | H99: =IF((D101+H101)>100,H101*100/(D101+H101),H101) -> 36.55223532 | I99: =IF((I101+M101)>100,I101*100/(I101+M101),I101) -> 11.96394394 | J99: =I99*AVERAGEIF(J105:J116,">0")/100 -> 7.544159763 | K99: =I99*(100-AVERAGEIF(J105:J116,">0"))/100 -> 4.41978418 | L99: =100-(J99+K99+M99) -> 51.49037454 | M99: =IF((I101+M101)>100,M101*100/(I101+M101),M101) -> 36.54568151 | N99: =IF((N101+R101)>100,N101*100/(N101+R101),N101) -> 13.08879516 | O99: =N99*AVERAGEIF(O105:O116,">0")/100 -> 8.454953798 | P99: =N99*(100-AVERAGEIF(O105:O116,">0"))/100 -> 4.63384136 | Q99: =100-(O99+P99+R99) -> 52.41509278 | R99: =IF((N101+R101)>100,R101*100/(N101+R101),R101) -> 34.49611207 | S99: =IF((S101+W101)>100,S101*100/(S101+W101),S101) -> 16.28236109 | T99: =S99*AVERAGEIF(T105:T116,">0")/100 -> 11.11333363 | U99: =S99*(100-AVERAGEIF(T105:T116,">0"))/100 -> 5.169027461 | V99: =100-(T99+U99+W99) -> 47.24132075 | W99: =IF((S101+W101)>100,W101*100/(S101+W101),W101) -> 36.47631816 | X99: =IF((X101+AB101)>100,X101*100/(X101+AB101),X101) -> 65.3390635 | Y99: =X99*AVERAGEIF(Y105:Y116,">0")/100 -> 58.14438297 | Z99: =X99*(100-AVERAGEIF(Y105:Y116,">0"))/100 -> 7.194680534 | AA99: =100-(Y99+Z99+AB99) -> 20.24648489 | AB99: =IF((X101+AB101)>100,AB101*100/(X101+AB101),AB101) -> 14.41445161
C100: =MaxTarget(C105:C116) -> 2020 | D100: =IF((D102+H102)>100,D102*100/(D102+H102),D102) -> 46.23554703 | E100: =D100*AVERAGEIF(E105:E116,">0")/100 -> 27.59344476 | F100: =D100*(100-AVERAGEIF(E105:E116,">0"))/100 -> 18.64210227 | G100: =100-(E100+F100+H100) -> 38.05928015 | H100: =IF((D102+H102)>100,H102*100/(D102+H102),H102) -> 15.70517282 | I100: =IF((I102+M102)>100,I102*100/(I102+M102),I102) -> 56.90257057 | J100: =I100*AVERAGEIF(J105:J116,">0")/100 -> 35.88131852 | K100: =I100*(100-AVERAGEIF(J105:J116,">0"))/100 -> 21.02125206 | L100: =100-(J100+K100+M100) -> 31.64512566 | M100: =IF((I102+M102)>100,M102*100/(I102+M102),M102) -> 11.45230377 | N100: =IF((N102+R102)>100,N102*100/(N102+R102),N102) -> 64.41992925 | O100: =N100*AVERAGEIF(O105:O116,">0")/100 -> 41.61326684 | P100: =N100*(100-AVERAGEIF(O105:O116,">0"))/100 -> 22.80666241 | Q100: =100-(O100+P100+R100) -> 26.33810415 | R100: =IF((N102+R102)>100,R102*100/(N102+R102),R102) -> 9.241966599 | S100: =IF((S102+W102)>100,S102*100/(S102+W102),S102) -> 72.35914103 | T100: =S100*AVERAGEIF(T105:T116,">0")/100 -> 49.38787876 | U100: =S100*(100-AVERAGEIF(T105:T116,">0"))/100 -> 22.97126227 | V100: =100-(T100+U100+W100) -> 19.92038121 | W100: =IF((S102+W102)>100,W102*100/(S102+W102),W102) -> 7.720477758 | X100: =IF((X102+AB102)>100,X102*100/(X102+AB102),X102) -> 98.53820165 | Y100: =X100*AVERAGEIF(Y105:Y116,">0")/100 -> 87.6878643 | Z100: =X100*(100-AVERAGEIF(Y105:Y116,">0"))/100 -> 10.85033735 | AA100: =100-(Y100+Z100+AB100) -> 1.461798354 | AB100: =IF((X102+AB102)>100,AB102*100/(X102+AB102),AB102) -> 0
A101: Regression period: | C101: =MinRegYear(C99,C105:C116) -> 2000 | D101: =IF(MAX(C105:C116)-MIN(C105:C116)<5,AVERAGEIF(C105:C116,">0",D105:D116), IF(FORECAST($C101,D$105:D$116,$C$105:$C$116)<0,0, IF(FORECAST($C101,D$105:D$116,$C$105:$C$116)>100,100, FORECAST($C101,D$105:D$116,$C$105:$C$116)))) -> 13.40279813 | H101: =IF(MAX(C105:C116)-MIN(C105:C116)<5,AVERAGEIF(C105:C116,">0",H105:H116), IF(FORECAST($C101,H$105:H$116,$C$105:$C$116)<0,0, IF(FORECAST($C101,H$105:H$116,$C$105:$C$116)>100,100, FORECAST($C101,H$105:H$116,$C$105:$C$116)))) -> 36.55223532 | I101: =IF(MAX(C105:C116)-MIN(C105:C116)<5,AVERAGEIF(C105:C116,">0",I105:I116), IF(FORECAST($C101,I$105:I$116,$C$105:$C$116)<0,0, IF(FORECAST($C101,I$105:I$116,$C$105:$C$116)>100,100, FORECAST($C101,I$105:I$116,$C$105:$C$116)))) -> 11.96394394 | M101: =IF(MAX(C105:C116)-MIN(C105:C116)<5,AVERAGEIF(C105:C116,">0",M105:M116), IF(FORECAST($C101,M$105:M$116,$C$105:$C$116)<0,0, IF(FORECAST($C101,M$105:M$116,$C$105:$C$116)>100,100, FORECAST($C101,M$105:M$116,$C$105:$C$116)))) -> 36.54568151 | N101: =IF(MAX(C105:C116)-MIN(C105:C116)<5,AVERAGEIF(C105:C116,">0",N105:N116), IF(FORECAST($C101,N$105:N$116,$C$105:$C$116)<0,0, IF(FORECAST($C101,N$105:N$116,$C$105:$C$116)>100,100, FORECAST($C101,N$105:N$116,$C$105:$C$116)))) -> 13.08879516 | R101: =IF(MAX(C105:C116)-MIN(C105:C116)<5,AVERAGEIF(C105:C116,">0",R105:R116), IF(FORECAST($C101,R$105:R$116,$C$105:$C$116)<0,0, IF(FORECAST($C101,R$105:R$116,$C$105:$C$116)>100,100, FORECAST($C101,R$105:R$116,$C$105:$C$116)))) -> 34.49611207 | S101: =IF(MAX(C105:C116)-MIN(C105:C116)<5,AVERAGEIF(C105:C116,">0",S105:S116), IF(FORECAST($C101,S$105:S$116,$C$105:$C$116)<0,0, IF(FORECAST($C101,S$105:S$116,$C$105:$C$116)>100,100, FORECAST($C101,S$105:S$116,$C$105:$C$116)))) -> 16.28236109 | W101: =IF(MAX(C105:C116)-MIN(C105:C116)<5,AVERAGEIF(C105:C116,">0",W105:W116), IF(FORECAST($C101,W$105:W$116,$C$105:$C$116)<0,0, IF(FORECAST($C101,W$105:W$116,$C$105:$C$116)>100,100, FORECAST($C101,W$105:W$116,$C$105:$C$116)))) -> 36.47631816 | X101: =IF(MAX(C105:C116)-MIN(C105:C116)<5,AVERAGEIF(C105:C116,">0",X105:X116), IF(FORECAST($C101,X$105:X$116,$C$105:$C$116)<0,0, IF(FORECAST($C101,X$105:X$116,$C$105:$C$116)>100,100, FORECAST($C101,X$105:X$116,$C$105:$C$116)))) -> 65.3390635 | AB101: =IF(MAX(C105:C116)-MIN(C105:C116)<5,AVERAGEIF(C105:C116,">0",AB105:AB116), IF(FORECAST($C101,AB$105:AB$116,$C$105:$C$116)<0,0, IF(FORECAST($C101,AB$105:AB$116,$C$105:$C$116)>100,100, FORECAST($C101,AB$105:AB$116,$C$105:$C$116)))) -> 14.41445161
C102: =MaxRegYear(C100,C105:C116) -> 2018 | D102: =IF(MAX(C105:C116)-MIN(C105:C116)<5,AVERAGEIF(C105:C116,">0",D105:D116), IF(FORECAST($C102,D$105:D$116,$C$105:$C$116)<0,0, IF(FORECAST($C102,D$105:D$116,$C$105:$C$116)>100,100, FORECAST($C102,D$105:D$116,$C$105:$C$116)))) -> 46.23554703 | H102: =IF(MAX(C105:C116)-MIN(C105:C116)<5,AVERAGEIF(C105:C116,">0",H105:H116), IF(FORECAST($C102,H$105:H$116,$C$105:$C$116)<0,0, IF(FORECAST($C102,H$105:H$116,$C$105:$C$116)>100,100, FORECAST($C102,H$105:H$116,$C$105:$C$116)))) -> 15.70517282 | I102: =IF(MAX(C105:C116)-MIN(C105:C116)<5,AVERAGEIF(C105:C116,">0",I105:I116), IF(FORECAST($C102,I$105:I$116,$C$105:$C$116)<0,0, IF(FORECAST($C102,I$105:I$116,$C$105:$C$116)>100,100, FORECAST($C102,I$105:I$116,$C$105:$C$116)))) -> 56.90257057 | M102: =IF(MAX(C105:C116)-MIN(C105:C116)<5,AVERAGEIF(C105:C116,">0",M105:M116), IF(FORECAST($C102,M$105:M$116,$C$105:$C$116)<0,0, IF(FORECAST($C102,M$105:M$116,$C$105:$C$116)>100,100, FORECAST($C102,M$105:M$116,$C$105:$C$116)))) -> 11.45230377 | N102: =IF(MAX(C105:C116)-MIN(C105:C116)<5,AVERAGEIF(C105:C116,">0",N105:N116), IF(FORECAST($C102,N$105:N$116,$C$105:$C$116)<0,0, IF(FORECAST($C102,N$105:N$116,$C$105:$C$116)>100,100, FORECAST($C102,N$105:N$116,$C$105:$C$116)))) -> 64.41992925 | R102: =IF(MAX(C105:C116)-MIN(C105:C116)<5,AVERAGEIF(C105:C116,">0",R105:R116), IF(FORECAST($C102,R$105:R$116,$C$105:$C$116)<0,0, IF(FORECAST($C102,R$105:R$116,$C$105:$C$116)>100,100, FORECAST($C102,R$105:R$116,$C$105:$C$116)))) -> 9.241966599 | S102: =IF(MAX(C105:C116)-MIN(C105:C116)<5,AVERAGEIF(C105:C116,">0",S105:S116), IF(FORECAST($C102,S$105:S$116,$C$105:$C$116)<0,0, IF(FORECAST($C102,S$105:S$116,$C$105:$C$116)>100,100, FORECAST($C102,S$105:S$116,$C$105:$C$116)))) -> 72.35914103 | W102: =IF(MAX(C105:C116)-MIN(C105:C116)<5,AVERAGEIF(C105:C116,">0",W105:W116), IF(FORECAST($C102,W$105:W$116,$C$105:$C$116)<0,0, IF(FORECAST($C102,W$105:W$116,$C$105:$C$116)>100,100, FORECAST($C102,W$105:W$116,$C$105:$C$116)))) -> 7.720477758 | X102: =IF(MAX(C105:C116)-MIN(C105:C116)<5,AVERAGEIF(C105:C116,">0",X105:X116), IF(FORECAST($C102,X$105:X$116,$C$105:$C$116)<0,0, IF(FORECAST($C102,X$105:X$116,$C$105:$C$116)>100,100, FORECAST($C102,X$105:X$116,$C$105:$C$116)))) -> 98.53820165 | AB102: =IF(MAX(C105:C116)-MIN(C105:C116)<5,AVERAGEIF(C105:C116,">0",AB105:AB116), IF(FORECAST($C102,AB$105:AB$116,$C$105:$C$116)<0,0, IF(FORECAST($C102,AB$105:AB$116,$C$105:$C$116)>100,100, FORECAST($C102,AB$105:AB$116,$C$105:$C$116)))) -> 0
B104: Survey | C104: Year | D104: Improved | E104: % Improved < = 30min | H104: Surface water | I104: Improved | J104: % Improved < = 30min | M104: Surface water | N104: Improved | O104: % Improved < = 30min | R104: Surface water | S104: Improved | T104: % Improved < = 30min | W104: Surface water | X104: Improved | Y104: % Improved < = 30min | AB104: Surface water
B105: DHS00 | C105: 2000 | D105: =IF(ISERROR(INDIRECT(CONCATENATE($B105,"!C16"))),"",INDIRECT(CONCATENATE($B105,"!C16"))) -> 13.36131556 | E105: =IF(ISERROR(INDIRECT(CONCATENATE($B105,"!C23"))),"",INDIRECT(CONCATENATE($B105,"!C23"))) -> N/A | H105: =IF(ISERROR(INDIRECT(CONCATENATE($B105,"!C21"))),"",INDIRECT(CONCATENATE($B105,"!C21"))) -> 37.118599 | I105: =IF(ISERROR(INDIRECT(CONCATENATE($B105,"!D16"))),"",INDIRECT(CONCATENATE($B105,"!D16"))) -> 11.56595582 | J105: =IF(ISERROR(INDIRECT(CONCATENATE($B105,"!D23"))),"",INDIRECT(CONCATENATE($B105,"!D23"))) -> N/A | M105: =IF(ISERROR(INDIRECT(CONCATENATE($B105,"!D21"))),"",INDIRECT(CONCATENATE($B105,"!D21"))) -> 36.45531888 | N105: =IF(ISERROR(INDIRECT(CONCATENATE($B105,"!E16"))),"",INDIRECT(CONCATENATE($B105,"!E16"))) -> 13.13811439 | O105: =IF(ISERROR(INDIRECT(CONCATENATE($B105,"!E23"))),"",INDIRECT(CONCATENATE($B105,"!E23"))) -> N/A | R105: =IF(ISERROR(INDIRECT(CONCATENATE($B105,"!E21"))),"",INDIRECT(CONCATENATE($B105,"!E21"))) -> 34.17205681 | S105: =IF(ISERROR(INDIRECT(CONCATENATE($B105,"!F16"))),"",INDIRECT(CONCATENATE($B105,"!F16"))) -> 16.29845621 | T105: =IF(ISERROR(INDIRECT(CONCATENATE($B105,"!F23"))),"",INDIRECT(CONCATENATE($B105,"!F23"))) -> N/A | W105: =IF(ISERROR(INDIRECT(CONCATENATE($B105,"!F21"))),"",INDIRECT(CONCATENATE($B105,"!F21"))) -> 36.22735084 | X105: =IF(ISERROR(INDIRECT(CONCATENATE($B105,"!G16"))),"",INDIRECT(CONCATENATE($B105,"!G16"))) -> 64.22263404 | Y105: =IF(ISERROR(INDIRECT(CONCATENATE($B105,"!G23"))),"",INDIRECT(CONCATENATE($B105,"!G23"))) -> N/A | AB105: =IF(ISERROR(INDIRECT(CONCATENATE($B105,"!G221"))),"",INDIRECT(CONCATENATE($B105,"!G21"))) -> 14.93626076
B106: DHS05 | D106: 52.6 | E106: 66.6 | H106: 31.7 | I106: 58.3 | J106: 68.1 | M106: 29.5 | N106: 53.4 | O106: 71.9 | R106: 32.1 | S106: 57 | T106: 74.1 | W106: 29 | X106: 79.8 | Y106: 91 | AB106: 12.2
B107: DHS11 | C107: 2011 | D107: 33.6 | E107: 49.1 | H107: 22 | I107: 40.7 | J107: 51.2 | M107: 21.5 | N107: 44.3 | O107: 53.3 | R107: 20.1 | S107: 50.5 | T107: 59.9 | W107: 19.7 | X107: 89.2 | Y107: 85.5 | AB107: 3.6
B108: DHS16 | C108: 2016 | D108: 42.49620217 | E108: 63.34045608 | H108: 19.26751321 | I108: 51.03381596 | J108: 69.87239497 | M108: 14.04165905 | N108: 58.82497222 | O108: 68.59065138 | R108: 11.33506119 | S108: 66.16379697 | T108: 70.76146369 | W108: 10.36784303 | X108: 92.39326369 | Y108: 90.46609892 | AB108: 2.261104739
D111: =IF(ISERROR(INDIRECT(CONCATENATE($B111,"!C16"))),"",INDIRECT(CONCATENATE($B111,"!C16"))) ->  | E111: =IF(ISERROR(INDIRECT(CONCATENATE($B111,"!C23"))),"",INDIRECT(CONCATENATE($B111,"!C23"))) ->  | H111: =IF(ISERROR(INDIRECT(CONCATENATE($B111,"!C21"))),"",INDIRECT(CONCATENATE($B111,"!C21"))) ->  | I111: =IF(ISERROR(INDIRECT(CONCATENATE($B111,"!D16"))),"",INDIRECT(CONCATENATE($B111,"!D16"))) ->  | J111: =IF(ISERROR(INDIRECT(CONCATENATE($B111,"!D23"))),"",INDIRECT(CONCATENATE($B111,"!D23"))) ->  | M111: =IF(ISERROR(INDIRECT(CONCATENATE($B111,"!D21"))),"",INDIRECT(CONCATENATE($B111,"!D21"))) ->  | N111: =IF(ISERROR(INDIRECT(CONCATENATE($B111,"!E16"))),"",INDIRECT(CONCATENATE($B111,"!E16"))) ->  | O111: =IF(ISERROR(INDIRECT(CONCATENATE($B111,"!E23"))),"",INDIRECT(CONCATENATE($B111,"!E23"))) ->  | R111: =IF(ISERROR(INDIRECT(CONCATENATE($B111,"!E21"))),"",INDIRECT(CONCATENATE($B111,"!E21"))) ->  | S111: =IF(ISERROR(INDIRECT(CONCATENATE($B111,"!F16"))),"",INDIRECT(CONCATENATE($B111,"!F16"))) ->  | T111: =IF(ISERROR(INDIRECT(CONCATENATE($B111,"!F23"))),"",INDIRECT(CONCATENATE($B111,"!F23"))) ->  | W111: =IF(ISERROR(INDIRECT(CONCATENATE($B111,"!F21"))),"",INDIRECT(CONCATENATE($B111,"!F21"))) ->  | X111: =IF(ISERROR(INDIRECT(CONCATENATE($B111,"!G16"))),"",INDIRECT(CONCATENATE($B111,"!G16"))) ->  | Y111: =IF(ISERROR(INDIRECT(CONCATENATE($B111,"!G23"))),"",INDIRECT(CONCATENATE($B111,"!G23"))) ->  | AB111: =IF(ISERROR(INDIRECT(CONCATENATE($B111,"!G221"))),"",INDIRECT(CONCATENATE($B111,"!G21"))) -> 
D112: =IF(ISERROR(INDIRECT(CONCATENATE($B112,"!C16"))),"",INDIRECT(CONCATENATE($B112,"!C16"))) ->  | E112: =IF(ISERROR(INDIRECT(CONCATENATE($B112,"!C23"))),"",INDIRECT(CONCATENATE($B112,"!C23"))) ->  | H112: =IF(ISERROR(INDIRECT(CONCATENATE($B112,"!C21"))),"",INDIRECT(CONCATENATE($B112,"!C21"))) ->  | I112: =IF(ISERROR(INDIRECT(CONCATENATE($B112,"!D16"))),"",INDIRECT(CONCATENATE($B112,"!D16"))) ->  | J112: =IF(ISERROR(INDIRECT(CONCATENATE($B112,"!D23"))),"",INDIRECT(CONCATENATE($B112,"!D23"))) ->  | M112: =IF(ISERROR(INDIRECT(CONCATENATE($B112,"!D21"))),"",INDIRECT(CONCATENATE($B112,"!D21"))) ->  | N112: =IF(ISERROR(INDIRECT(CONCATENATE($B112,"!E16"))),"",INDIRECT(CONCATENATE($B112,"!E16"))) ->  | O112: =IF(ISERROR(INDIRECT(CONCATENATE($B112,"!E23"))),"",INDIRECT(CONCATENATE($B112,"!E23"))) ->  | R112: =IF(ISERROR(INDIRECT(CONCATENATE($B112,"!E21"))),"",INDIRECT(CONCATENATE($B112,"!E21"))) ->  | S112: =IF(ISERROR(INDIRECT(CONCATENATE($B112,"!F16"))),"",INDIRECT(CONCATENATE($B112,"!F16"))) ->  | T112: =IF(ISERROR(INDIRECT(CONCATENATE($B112,"!F23"))),"",INDIRECT(CONCATENATE($B112,"!F23"))) ->  | W112: =IF(ISERROR(INDIRECT(CONCATENATE($B112,"!F21"))),"",INDIRECT(CONCATENATE($B112,"!F21"))) ->  | X112: =IF(ISERROR(INDIRECT(CONCATENATE($B112,"!G16"))),"",INDIRECT(CONCATENATE($B112,"!G16"))) ->  | Y112: =IF(ISERROR(INDIRECT(CONCATENATE($B112,"!G23"))),"",INDIRECT(CONCATENATE($B112,"!G23"))) ->  | AB112: =IF(ISERROR(INDIRECT(CONCATENATE($B112,"!G221"))),"",INDIRECT(CONCATENATE($B112,"!G21"))) -> 
B118: =CONCATENATE("National use of drinking water sources, ",C99,"–",C100) -> National use of drinking water sources, 2000–2020 | S118: Data points used for regression
E153: =IF(ISERROR(INDIRECT(CONCATENATE($B153,"!M18"))),"",INDIRECT(CONCATENATE($B153,"!M18"))) ->  | F153: =IF(ISERROR(INDIRECT(CONCATENATE($B153,"!M19"))),"",INDIRECT(CONCATENATE($B153,"!M19"))) ->  | G153: =IF(ISERROR(INDIRECT(CONCATENATE($B153,"!M20"))),"",INDIRECT(CONCATENATE($B153,"!M20"))) ->  | H153: =IF(ISERROR(INDIRECT(CONCATENATE($B153,"!M21"))),"",INDIRECT(CONCATENATE($B153,"!M21"))) ->  | J153: =IF(ISERROR(INDIRECT(CONCATENATE($B153,"!N18"))),"",INDIRECT(CONCATENATE($B153,"!N18"))) ->  | K153: =IF(ISERROR(INDIRECT(CONCATENATE($B153,"!N19"))),"",INDIRECT(CONCATENATE($B153,"!N19"))) ->  | L153: =IF(ISERROR(INDIRECT(CONCATENATE($B153,"!N20"))),"",INDIRECT(CONCATENATE($B153,"!N20"))) ->  | M153: =IF(ISERROR(INDIRECT(CONCATENATE($B153,"!N21"))),"",INDIRECT(CONCATENATE($B153,"!N21"))) ->  | O153: =IF(ISERROR(INDIRECT(CONCATENATE($B153,"!O18"))),"",INDIRECT(CONCATENATE($B153,"!O18"))) ->  | P153: =IF(ISERROR(INDIRECT(CONCATENATE($B153,"!O19"))),"",INDIRECT(CONCATENATE($B153,"!O19"))) ->  | Q153: =IF(ISERROR(INDIRECT(CONCATENATE($B153,"!O20"))),"",INDIRECT(CONCATENATE($B153,"!O20"))) ->  | R153: =IF(ISERROR(INDIRECT(CONCATENATE($B153,"!O21"))),"",INDIRECT(CONCATENATE($B153,"!O21"))) ->  | T153: =IF(ISERROR(INDIRECT(CONCATENATE($B153,"!P18"))),"",INDIRECT(CONCATENATE($B153,"!P18"))) ->  | U153: =IF(ISERROR(INDIRECT(CONCATENATE($B153,"!P19"))),"",INDIRECT(CONCATENATE($B153,"!P19"))) ->  | V153: =IF(ISERROR(INDIRECT(CONCATENATE($B153,"!P20"))),"",INDIRECT(CONCATENATE($B153,"!P20"))) ->  | W153: =IF(ISERROR(INDIRECT(CONCATENATE($B153,"!P21"))),"",INDIRECT(CONCATENATE($B153,"!P21"))) ->  | Y153: =IF(ISERROR(INDIRECT(CONCATENATE($B153,"!Q18"))),"",INDIRECT(CONCATENATE($B153,"!Q18"))) ->  | Z153: =IF(ISERROR(INDIRECT(CONCATENATE($B153,"!Q19"))),"",INDIRECT(CONCATENATE($B153,"!Q19"))) ->  | AA153: =IF(ISERROR(INDIRECT(CONCATENATE($B153,"!Q20"))),"",INDIRECT(CONCATENATE($B153,"!Q20"))) ->  | AB153: =IF(ISERROR(INDIRECT(CONCATENATE($B153,"!Q21"))),"",INDIRECT(CONCATENATE($B153,"!Q1"))) -> 
A197: URBAN | D197: Poorest | I197: Poor | N197: Middle | S197: Rich | X197: Richest
D198: Improved | E198: Basic | F198: Limited | G198: Unimproved | H198: Surface water | I198: Improved | J198: Basic | K198: Limited | L198: Unimproved | M198: Surface water | N198: Improved | O198: Basic | P198: Limited | Q198: Unimproved | R198: Surface water | S198: Improved | T198: Basic | U198: Limited | V198: Unimproved | W198: Surface water | X198: Improved | Y198: Basic | Z198: Limited | AA198: Unimproved | AB198: Surface water
A199: Forecast period: | C199: 2000 | D199: =IF((D201+H201)>100,D201*100/(D201+H201),D201) -> 63.06259752 | E199: =D199*AVERAGEIF(E205:E216,">0")/100 -> 48.3169861 | F199: =D199*(100-AVERAGEIF(E205:E216,">0"))/100 -> 14.74561143 | G199: =100-(E199+F199+H199) -> 20.37843606 | H199: =IF((D201+H201)>100,H201*100/(D201+H201),H201) -> 16.55896642 | I199: =IF((I201+M201)>100,I201*100/(I201+M201),I201) -> 80.24526466 | J199: =I199*AVERAGEIF(J205:J216,">0")/100 -> 71.83328208 | K199: =I199*(100-AVERAGEIF(J205:J216,">0"))/100 -> 8.411982573 | L199: =100-(J199+K199+M199) -> 12.05875267 | M199: =IF((I201+M201)>100,M201*100/(I201+M201),M201) -> 7.695982675 | N199: =IF((N201+R201)>100,N201*100/(N201+R201),N201) -> 93.97617142 | O199: =N199*AVERAGEIF(O205:O216,">0")/100 -> 88.3059013 | P199: =N199*(100-AVERAGEIF(O205:O216,">0"))/100 -> 5.670270122 | Q199: =100-(O199+P199+R199) -> 3.24372785 | R199: =IF((N201+R201)>100,R201*100/(N201+R201),R201) -> 2.780100728 | S199: =IF((S201+W201)>100,S201*100/(S201+W201),S201) -> 98.8923785 | T199: =S199*AVERAGEIF(T205:T216,">0")/100 -> 96.18535029 | U199: =S199*(100-AVERAGEIF(T205:T216,">0"))/100 -> 2.70702821 | V199: =100-(T199+U199+W199) -> 0.9662951434 | W199: =IF((S201+W201)>100,W201*100/(S201+W201),W201) -> 0.1413263605 | X199: =IF((X201+AB201)>100,X201*100/(X201+AB201),X201) -> 99.93032738 | Y199: =X199*AVERAGEIF(Y205:Y216,">0")/100 -> 98.90112199 | Z199: =X199*(100-AVERAGEIF(Y205:Y216,">0"))/100 -> 1.029205388 | AA199: =100-(Y199+Z199+AB199) -> 0.06133693484 | AB199: =IF((X201+AB201)>100,AB201*100/(X201+AB201),AB201) -> 0.008335684341
C200: 2020 | D200: =IF((D202+H202)>100,D202*100/(D202+H202),D202) -> 96.10055063 | E200: =D200*AVERAGEIF(E205:E216,">0")/100 -> 73.62984005 | F200: =D200*(100-AVERAGEIF(E205:E216,">0"))/100 -> 22.47071058 | G200: =100-(E200+F200+H200) -> 3.899449367 | H200: =IF((D202+H202)>100,H202*100/(D202+H202),H202) -> 0 | I200: =IF((I202+M202)>100,I202*100/(I202+M202),I202) -> 100 | J200: =I200*AVERAGEIF(J205:J216,">0")/100 -> 89.51716016 | K200: =I200*(100-AVERAGEIF(J205:J216,">0"))/100 -> 10.48283984 | L200: =100-(J200+K200+M200) -> 0 | M200: =IF((I202+M202)>100,M202*100/(I202+M202),M202) -> 0 | N200: =IF((N202+R202)>100,N202*100/(N202+R202),N202) -> 100 | O200: =N200*AVERAGEIF(O205:O216,">0")/100 -> 93.96626822 | P200: =N200*(100-AVERAGEIF(O205:O216,">0"))/100 -> 6.033731782 | Q200: =100-(O200+P200+R200) -> 0 | R200: =IF((N202+R202)>100,R202*100/(N202+R202),R202) -> 0 | S200: =IF((S202+W202)>100,S202*100/(S202+W202),S202) -> 100 | T200: =S200*AVERAGEIF(T205:T216,">0")/100 -> 97.26265234 | U200: =S200*(100-AVERAGEIF(T205:T216,">0"))/100 -> 2.737347662 | V200: =100-(T200+U200+W200) -> 0 | W200: =IF((S202+W202)>100,W202*100/(S202+W202),W202) -> 0 | X200: =IF((X202+AB202)>100,X202*100/(X202+AB202),X202) -> 100 | Y200: =X200*AVERAGEIF(Y205:Y216,">0")/100 -> 98.97007704 | Z200: =X200*(100-AVERAGEIF(Y205:Y216,">0"))/100 -> 1.029922962 | AA200: =100-(Y200+Z200+AB200) -> 0 | AB200: =IF((X202+AB202)>100,AB202*100/(X202+AB202),AB202) -> 0
A201: Regression period: | C201: =MinRegYear(C199,C205:C216) -> 2000 | D201: =IF(MAX(C205:C216)-MIN(C205:C216)<5,AVERAGEIF(C205:C216,">0",D205:D216), IF(FORECAST($C201,D$205:D$216,$C$205:$C$216)<0,0, IF(FORECAST($C201,D$205:D$216,$C$205:$C$216)>100,100, FORECAST($C201,D$205:D$216,$C$205:$C$216)))) -> 63.06259752 | H201: =IF(MAX(C205:C216)-MIN(C205:C216)<5,AVERAGEIF(C205:C216,">0",H205:H216), IF(FORECAST($C201,H$205:H$216,$C$205:$C$216)<0,0, IF(FORECAST($C201,H$205:H$216,$C$205:$C$216)>100,100, FORECAST($C201,H$205:H$216,$C$205:$C$216)))) -> 16.55896642 | I201: =IF(MAX(C205:C216)-MIN(C205:C216)<5,AVERAGEIF(C205:C216,">0",I205:I216), IF(FORECAST($C201,I$205:I$216,$C$205:$C$216)<0,0, IF(FORECAST($C201,I$205:I$216,$C$205:$C$216)>100,100, FORECAST($C201,I$205:I$216,$C$205:$C$216)))) -> 80.24526466 | M201: =IF(MAX(C205:C216)-MIN(C205:C216)<5,AVERAGEIF(C205:C216,">0",M205:M216), IF(FORECAST($C201,M$205:M$216,$C$205:$C$216)<0,0, IF(FORECAST($C201,M$205:M$216,$C$205:$C$216)>100,100, FORECAST($C201,M$205:M$216,$C$205:$C$216)))) -> 7.695982675 | N201: =IF(MAX(C205:C216)-MIN(C205:C216)<5,AVERAGEIF(C205:C216,">0",N205:N216), IF(FORECAST($C201,N$205:N$216,$C$205:$C$216)<0,0, IF(FORECAST($C201,N$205:N$216,$C$205:$C$216)>100,100, FORECAST($C201,N$205:N$216,$C$205:$C$216)))) -> 93.97617142 | R201: =IF(MAX(C205:C216)-MIN(C205:C216)<5,AVERAGEIF(C205:C216,">0",R205:R216), IF(FORECAST($C201,R$205:R$216,$C$205:$C$216)<0,0, IF(FORECAST($C201,R$205:R$216,$C$205:$C$216)>100,100, FORECAST($C201,R$205:R$216,$C$205:$C$216)))) -> 2.780100728 | S201: =IF(MAX(C205:C216)-MIN(C205:C216)<5,AVERAGEIF(C205:C216,">0",S205:S216), IF(FORECAST($C201,S$205:S$216,$C$205:$C$216)<0,0, IF(FORECAST($C201,S$205:S$216,$C$205:$C$216)>100,100, FORECAST($C201,S$205:S$216,$C$205:$C$216)))) -> 98.8923785 | W201: =IF(MAX(C205:C216)-MIN(C205:C216)<5,AVERAGEIF(C205:C216,">0",W205:W216), IF(FORECAST($C201,W$205:W$216,$C$205:$C$216)<0,0, IF(FORECAST($C201,W$205:W$216,$C$205:$C$216)>100,100, FORECAST($C201,W$205:W$216,$C$205:$C$216)))) -> 0.1413263605 | X201: =IF(MAX(C205:C216)-MIN(C205:C216)<5,AVERAGEIF(C205:C216,">0",X205:X216), IF(FORECAST($C201,X$205:X$216,$C$205:$C$216)<0,0, IF(FORECAST($C201,X$205:X$216,$C$205:$C$216)>100,100, FORECAST($C201,X$205:X$216,$C$205:$C$216)))) -> 99.93032738 | AB201: =IF(MAX(C205:C216)-MIN(C205:C216)<5,AVERAGEIF(C205:C216,">0",AB205:AB216), IF(FORECAST($C201,AB$205:AB$216,$C$205:$C$216)<0,0, IF(FORECAST($C201,AB$205:AB$216,$C$205:$C$216)>100,100, FORECAST($C201,AB$205:AB$216,$C$205:$C$216)))) -> 0.008335684341
C202: =MaxRegYear(C200,C205:C216) -> 2018 | D202: =IF(MAX(C205:C216)-MIN(C205:C216)<5,AVERAGEIF(C205:C216,">0",D205:D216), IF(FORECAST($C202,D$205:D$216,$C$205:$C$216)<0,0, IF(FORECAST($C202,D$205:D$216,$C$205:$C$216)>100,100, FORECAST($C202,D$205:D$216,$C$205:$C$216)))) -> 96.10055063 | H202: =IF(MAX(C205:C216)-MIN(C205:C216)<5,AVERAGEIF(C205:C216,">0",H205:H216), IF(FORECAST($C202,H$205:H$216,$C$205:$C$216)<0,0, IF(FORECAST($C202,H$205:H$216,$C$205:$C$216)>100,100, FORECAST($C202,H$205:H$216,$C$205:$C$216)))) -> 0 | I202: =IF(MAX(C205:C216)-MIN(C205:C216)<5,AVERAGEIF(C205:C216,">0",I205:I216), IF(FORECAST($C202,I$205:I$216,$C$205:$C$216)<0,0, IF(FORECAST($C202,I$205:I$216,$C$205:$C$216)>100,100, FORECAST($C202,I$205:I$216,$C$205:$C$216)))) -> 100 | M202: =IF(MAX(C205:C216)-MIN(C205:C216)<5,AVERAGEIF(C205:C216,">0",M205:M216), IF(FORECAST($C202,M$205:M$216,$C$205:$C$216)<0,0, IF(FORECAST($C202,M$205:M$216,$C$205:$C$216)>100,100, FORECAST($C202,M$205:M$216,$C$205:$C$216)))) -> 0 | N202: =IF(MAX(C205:C216)-MIN(C205:C216)<5,AVERAGEIF(C205:C216,">0",N205:N216), IF(FORECAST($C202,N$205:N$216,$C$205:$C$216)<0,0, IF(FORECAST($C202,N$205:N$216,$C$205:$C$216)>100,100, FORECAST($C202,N$205:N$216,$C$205:$C$216)))) -> 100 | R202: =IF(MAX(C205:C216)-MIN(C205:C216)<5,AVERAGEIF(C205:C216,">0",R205:R216), IF(FORECAST($C202,R$205:R$216,$C$205:$C$216)<0,0, IF(FORECAST($C202,R$205:R$216,$C$205:$C$216)>100,100, FORECAST($C202,R$205:R$216,$C$205:$C$216)))) -> 0 | S202: =IF(MAX(C205:C216)-MIN(C205:C216)<5,AVERAGEIF(C205:C216,">0",S205:S216), IF(FORECAST($C202,S$205:S$216,$C$205:$C$216)<0,0, IF(FORECAST($C202,S$205:S$216,$C$205:$C$216)>100,100, FORECAST($C202,S$205:S$216,$C$205:$C$216)))) -> 100 | W202: =IF(MAX(C205:C216)-MIN(C205:C216)<5,AVERAGEIF(C205:C216,">0",W205:W216), IF(FORECAST($C202,W$205:W$216,$C$205:$C$216)<0,0, IF(FORECAST($C202,W$205:W$216,$C$205:$C$216)>100,100, FORECAST($C202,W$205:W$216,$C$205:$C$216)))) -> 0 | X202: =IF(MAX(C205:C216)-MIN(C205:C216)<5,AVERAGEIF(C205:C216,">0",X205:X216), IF(FORECAST($C202,X$205:X$216,$C$205:$C$216)<0,0, IF(FORECAST($C202,X$205:X$216,$C$205:$C$216)>100,100, FORECAST($C202,X$205:X$216,$C$205:$C$216)))) -> 100 | AB202: =IF(MAX(C205:C216)-MIN(C205:C216)<5,AVERAGEIF(C205:C216,">0",AB205:AB216), IF(FORECAST($C202,AB$205:AB$216,$C$205:$C$216)<0,0, IF(FORECAST($C202,AB$205:AB$216,$C$205:$C$216)>100,100, FORECAST($C202,AB$205:AB$216,$C$205:$C$216)))) -> 0
B204: Survey | C204: Year | D204: Improved | E204: % Improved < = 30min | H204: Surface water | I204: Improved | J204: % Improved < = 30min | M204: Surface water | N204: Improved | O204: % Improved < = 30min | R204: Surface water | S204: Improved | T204: % Improved < = 30min | W204: Surface water | X204: Improved | Y204: % Improved < = 30min | AB204: Surface water
B205: DHS00 | C205: 2000 | D205: =IF(ISERROR(INDIRECT(CONCATENATE($B205,"!H16"))),"",INDIRECT(CONCATENATE($B205,"!H16"))) -> 59.40010769 | E205: =IF(ISERROR(INDIRECT(CONCATENATE($B205,"!H23"))),"",INDIRECT(CONCATENATE($B205,"!H23"))) -> N/A | H205: =IF(ISERROR(INDIRECT(CONCATENATE($B205,"!H21"))),"",INDIRECT(CONCATENATE($B205,"!H21"))) -> 21.22075121 | I205: =IF(ISERROR(INDIRECT(CONCATENATE($B205,"!I16"))),"",INDIRECT(CONCATENATE($B205,"!I16"))) -> 76.45517211 | J205: =IF(ISERROR(INDIRECT(CONCATENATE($B205,"!I23"))),"",INDIRECT(CONCATENATE($B205,"!I23"))) -> N/A | M205: =IF(ISERROR(INDIRECT(CONCATENATE($B205,"!I21"))),"",INDIRECT(CONCATENATE($B205,"!I21"))) -> 11.22325625 | N205: =IF(ISERROR(INDIRECT(CONCATENATE($B205,"!J16"))),"",INDIRECT(CONCATENATE($B205,"!J16"))) -> 92.22459631 | O205: =IF(ISERROR(INDIRECT(CONCATENATE($B205,"!J23"))),"",INDIRECT(CONCATENATE($B205,"!J23"))) -> N/A | R205: =IF(ISERROR(INDIRECT(CONCATENATE($B205,"!J21"))),"",INDIRECT(CONCATENATE($B205,"!J21"))) -> 3.976909004 | S205: =IF(ISERROR(INDIRECT(CONCATENATE($B205,"!K16"))),"",INDIRECT(CONCATENATE($B205,"!K16"))) -> 98.6224736 | T205: =IF(ISERROR(INDIRECT(CONCATENATE($B205,"!K23"))),"",INDIRECT(CONCATENATE($B205,"!K23"))) -> N/A | W205: =IF(ISERROR(INDIRECT(CONCATENATE($B205,"!K21"))),"",INDIRECT(CONCATENATE($B205,"!K21"))) -> 0.1937447661 | X205: =IF(ISERROR(INDIRECT(CONCATENATE($B205,"!L16"))),"",INDIRECT(CONCATENATE($B205,"!L16"))) -> 99.8968373 | Y205: =IF(ISERROR(INDIRECT(CONCATENATE($B205,"!L23"))),"",INDIRECT(CONCATENATE($B205,"!L23"))) -> N/A | AB205: =IF(ISERROR(INDIRECT(CONCATENATE($B205,"!L221"))),"",INDIRECT(CONCATENATE($B205,"!L21"))) -> 0.01210955138
B206: DHS05 | C206: 2005 | D206: 77 | E206: 81.9 | H206: 4.7 | I206: 92.3 | J206: 93.2 | M206: 0.1 | N206: 98.8 | O206: 94.2 | R206: 0 | S206: 99.6 | T206: 97.9 | W206: 0 | X206: 100 | Y206: 99.5 | AB206: 0
B207: DHS11 | C207: 2011 | D207: 84.5 | E207: 70.7 | H207: 4.6 | I207: 93.2 | J207: 87 | M207: 0.7 | N207: 96.7 | O207: 91.8 | R207: 0.7 | S207: 99.8 | T207: 95.7 | W207: 0.1 | X207: 100 | Y207: 98 | AB207: 0
B208: DHS16 | C208: 2016 | D208: 90.08442126 | E208: 77.25250208 | H208: 2.0700509 | I208: 98.80313298 | J208: 88.35148048 | M208: 0.6954102876 | N208: 99.42548732 | O208: 95.89880466 | R208: 0.09216903857 | S208: 99.87532132 | T208: 98.18795701 | W208: 0.003189104001 | X208: 99.99288549 | Y208: 99.41023111 | AB208: 0
B218: =CONCATENATE("Urban use of drinking water sources, ",C199,"–",C200) -> Urban use of drinking water sources, 2000–2020 | S218: Data points used for regression
E253: =IF(ISERROR(INDIRECT(CONCATENATE($B253,"!M18"))),"",INDIRECT(CONCATENATE($B253,"!M18"))) ->  | F253: =IF(ISERROR(INDIRECT(CONCATENATE($B253,"!M19"))),"",INDIRECT(CONCATENATE($B253,"!M19"))) ->  | G253: =IF(ISERROR(INDIRECT(CONCATENATE($B253,"!M20"))),"",INDIRECT(CONCATENATE($B253,"!M20"))) ->  | H253: =IF(ISERROR(INDIRECT(CONCATENATE($B253,"!M21"))),"",INDIRECT(CONCATENATE($B253,"!M21"))) ->  | J253: =IF(ISERROR(INDIRECT(CONCATENATE($B253,"!N18"))),"",INDIRECT(CONCATENATE($B253,"!N18"))) ->  | K253: =IF(ISERROR(INDIRECT(CONCATENATE($B253,"!N19"))),"",INDIRECT(CONCATENATE($B253,"!N19"))) ->  | L253: =IF(ISERROR(INDIRECT(CONCATENATE($B253,"!N20"))),"",INDIRECT(CONCATENATE($B253,"!N20"))) ->  | M253: =IF(ISERROR(INDIRECT(CONCATENATE($B253,"!N21"))),"",INDIRECT(CONCATENATE($B253,"!N21"))) ->  | O253: =IF(ISERROR(INDIRECT(CONCATENATE($B253,"!O18"))),"",INDIRECT(CONCATENATE($B253,"!O18"))) ->  | P253: =IF(ISERROR(INDIRECT(CONCATENATE($B253,"!O19"))),"",INDIRECT(CONCATENATE($B253,"!O19"))) ->  | Q253: =IF(ISERROR(INDIRECT(CONCATENATE($B253,"!O20"))),"",INDIRECT(CONCATENATE($B253,"!O20"))) ->  | R253: =IF(ISERROR(INDIRECT(CONCATENATE($B253,"!O21"))),"",INDIRECT(CONCATENATE($B253,"!O21"))) ->  | T253: =IF(ISERROR(INDIRECT(CONCATENATE($B253,"!P18"))),"",INDIRECT(CONCATENATE($B253,"!P18"))) ->  | U253: =IF(ISERROR(INDIRECT(CONCATENATE($B253,"!P19"))),"",INDIRECT(CONCATENATE($B253,"!P19"))) ->  | V253: =IF(ISERROR(INDIRECT(CONCATENATE($B253,"!P20"))),"",INDIRECT(CONCATENATE($B253,"!P20"))) ->  | W253: =IF(ISERROR(INDIRECT(CONCATENATE($B253,"!P21"))),"",INDIRECT(CONCATENATE($B253,"!P21"))) ->  | Y253: =IF(ISERROR(INDIRECT(CONCATENATE($B253,"!Q18"))),"",INDIRECT(CONCATENATE($B253,"!Q18"))) ->  | Z253: =IF(ISERROR(INDIRECT(CONCATENATE($B253,"!Q19"))),"",INDIRECT(CONCATENATE($B253,"!Q19"))) ->  | AA253: =IF(ISERROR(INDIRECT(CONCATENATE($B253,"!Q20"))),"",INDIRECT(CONCATENATE($B253,"!Q20"))) ->  | AB253: =IF(ISERROR(INDIRECT(CONCATENATE($B253,"!Q21"))),"",INDIRECT(CONCATENATE($B253,"!Q1"))) -> 
E254: =IF(ISERROR(INDIRECT(CONCATENATE($B254,"!M18"))),"",INDIRECT(CONCATENATE($B254,"!M18"))) ->  | F254: =IF(ISERROR(INDIRECT(CONCATENATE($B254,"!M19"))),"",INDIRECT(CONCATENATE($B254,"!M19"))) ->  | G254: =IF(ISERROR(INDIRECT(CONCATENATE($B254,"!M20"))),"",INDIRECT(CONCATENATE($B254,"!M20"))) ->  | H254: =IF(ISERROR(INDIRECT(CONCATENATE($B254,"!M21"))),"",INDIRECT(CONCATENATE($B254,"!M21"))) ->  | J254: =IF(ISERROR(INDIRECT(CONCATENATE($B254,"!N18"))),"",INDIRECT(CONCATENATE($B254,"!N18"))) ->  | K254: =IF(ISERROR(INDIRECT(CONCATENATE($B254,"!N19"))),"",INDIRECT(CONCATENATE($B254,"!N19"))) ->  | L254: =IF(ISERROR(INDIRECT(CONCATENATE($B254,"!N20"))),"",INDIRECT(CONCATENATE($B254,"!N20"))) ->  | M254: =IF(ISERROR(INDIRECT(CONCATENATE($B254,"!N21"))),"",INDIRECT(CONCATENATE($B254,"!N21"))) ->  | O254: =IF(ISERROR(INDIRECT(CONCATENATE($B254,"!O18"))),"",INDIRECT(CONCATENATE($B254,"!O18"))) ->  | P254: =IF(ISERROR(INDIRECT(CONCATENATE($B254,"!O19"))),"",INDIRECT(CONCATENATE($B254,"!O19"))) ->  | Q254: =IF(ISERROR(INDIRECT(CONCATENATE($B254,"!O20"))),"",INDIRECT(CONCATENATE($B254,"!O20"))) ->  | R254: =IF(ISERROR(INDIRECT(CONCATENATE($B254,"!O21"))),"",INDIRECT(CONCATENATE($B254,"!O21"))) ->  | T254: =IF(ISERROR(INDIRECT(CONCATENATE($B254,"!P18"))),"",INDIRECT(CONCATENATE($B254,"!P18"))) ->  | U254: =IF(ISERROR(INDIRECT(CONCATENATE($B254,"!P19"))),"",INDIRECT(CONCATENATE($B254,"!P19"))) ->  | V254: =IF(ISERROR(INDIRECT(CONCATENATE($B254,"!P20"))),"",INDIRECT(CONCATENATE($B254,"!P20"))) ->  | W254: =IF(ISERROR(INDIRECT(CONCATENATE($B254,"!P21"))),"",INDIRECT(CONCATENATE($B254,"!P21"))) ->  | Y254: =IF(ISERROR(INDIRECT(CONCATENATE($B254,"!Q18"))),"",INDIRECT(CONCATENATE($B254,"!Q18"))) ->  | Z254: =IF(ISERROR(INDIRECT(CONCATENATE($B254,"!Q19"))),"",INDIRECT(CONCATENATE($B254,"!Q19"))) ->  | AA254: =IF(ISERROR(INDIRECT(CONCATENATE($B254,"!Q20"))),"",INDIRECT(CONCATENATE($B254,"!Q20"))) ->  | AB254: =IF(ISERROR(INDIRECT(CONCATENATE($B254,"!Q21"))),"",INDIRECT(CONCATENATE($B254,"!Q1"))) -> 
E255: =IF(ISERROR(INDIRECT(CONCATENATE($B255,"!M18"))),"",INDIRECT(CONCATENATE($B255,"!M18"))) ->  | F255: =IF(ISERROR(INDIRECT(CONCATENATE($B255,"!M19"))),"",INDIRECT(CONCATENATE($B255,"!M19"))) ->  | G255: =IF(ISERROR(INDIRECT(CONCATENATE($B255,"!M20"))),"",INDIRECT(CONCATENATE($B255,"!M20"))) ->  | H255: =IF(ISERROR(INDIRECT(CONCATENATE($B255,"!M21"))),"",INDIRECT(CONCATENATE($B255,"!M21"))) ->  | J255: =IF(ISERROR(INDIRECT(CONCATENATE($B255,"!N18"))),"",INDIRECT(CONCATENATE($B255,"!N18"))) ->  | K255: =IF(ISERROR(INDIRECT(CONCATENATE($B255,"!N19"))),"",INDIRECT(CONCATENATE($B255,"!N19"))) ->  | L255: =IF(ISERROR(INDIRECT(CONCATENATE($B255,"!N20"))),"",INDIRECT(CONCATENATE($B255,"!N20"))) ->  | M255: =IF(ISERROR(INDIRECT(CONCATENATE($B255,"!N21"))),"",INDIRECT(CONCATENATE($B255,"!N21"))) ->  | O255: =IF(ISERROR(INDIRECT(CONCATENATE($B255,"!O18"))),"",INDIRECT(CONCATENATE($B255,"!O18"))) ->  | P255: =IF(ISERROR(INDIRECT(CONCATENATE($B255,"!O19"))),"",INDIRECT(CONCATENATE($B255,"!O19"))) ->  | Q255: =IF(ISERROR(INDIRECT(CONCATENATE($B255,"!O20"))),"",INDIRECT(CONCATENATE($B255,"!O20"))) ->  | R255: =IF(ISERROR(INDIRECT(CONCATENATE($B255,"!O21"))),"",INDIRECT(CONCATENATE($B255,"!O21"))) ->  | T255: =IF(ISERROR(INDIRECT(CONCATENATE($B255,"!P18"))),"",INDIRECT(CONCATENATE($B255,"!P18"))) ->  | U255: =IF(ISERROR(INDIRECT(CONCATENATE($B255,"!P19"))),"",INDIRECT(CONCATENATE($B255,"!P19"))) ->  | V255: =IF(ISERROR(INDIRECT(CONCATENATE($B255,"!P20"))),"",INDIRECT(CONCATENATE($B255,"!P20"))) ->  | W255: =IF(ISERROR(INDIRECT(CONCATENATE($B255,"!P21"))),"",INDIRECT(CONCATENATE($B255,"!P21"))) ->  | Y255: =IF(ISERROR(INDIRECT(CONCATENATE($B255,"!Q18"))),"",INDIRECT(CONCATENATE($B255,"!Q18"))) ->  | Z255: =IF(ISERROR(INDIRECT(CONCATENATE($B255,"!Q19"))),"",INDIRECT(CONCATENATE($B255,"!Q19"))) ->  | AA255: =IF(ISERROR(INDIRECT(CONCATENATE($B255,"!Q20"))),"",INDIRECT(CONCATENATE($B255,"!Q20"))) ->  | AB255: =IF(ISERROR(INDIRECT(CONCATENATE($B255,"!Q21"))),"",INDIRECT(CONCATENATE($B255,"!Q1"))) -> 
E256: =IF(ISERROR(INDIRECT(CONCATENATE($B256,"!M18"))),"",INDIRECT(CONCATENATE($B256,"!M18"))) ->  | F256: =IF(ISERROR(INDIRECT(CONCATENATE($B256,"!M19"))),"",INDIRECT(CONCATENATE($B256,"!M19"))) ->  | G256: =IF(ISERROR(INDIRECT(CONCATENATE($B256,"!M20"))),"",INDIRECT(CONCATENATE($B256,"!M20"))) ->  | H256: =IF(ISERROR(INDIRECT(CONCATENATE($B256,"!M21"))),"",INDIRECT(CONCATENATE($B256,"!M21"))) ->  | J256: =IF(ISERROR(INDIRECT(CONCATENATE($B256,"!N18"))),"",INDIRECT(CONCATENATE($B256,"!N18"))) ->  | K256: =IF(ISERROR(INDIRECT(CONCATENATE($B256,"!N19"))),"",INDIRECT(CONCATENATE($B256,"!N19"))) ->  | L256: =IF(ISERROR(INDIRECT(CONCATENATE($B256,"!N20"))),"",INDIRECT(CONCATENATE($B256,"!N20"))) ->  | M256: =IF(ISERROR(INDIRECT(CONCATENATE($B256,"!N21"))),"",INDIRECT(CONCATENATE($B256,"!N21"))) ->  | O256: =IF(ISERROR(INDIRECT(CONCATENATE($B256,"!O18"))),"",INDIRECT(CONCATENATE($B256,"!O18"))) ->  | P256: =IF(ISERROR(INDIRECT(CONCATENATE($B256,"!O19"))),"",INDIRECT(CONCATENATE($B256,"!O19"))) ->  | Q256: =IF(ISERROR(INDIRECT(CONCATENATE($B256,"!O20"))),"",INDIRECT(CONCATENATE($B256,"!O20"))) ->  | R256: =IF(ISERROR(INDIRECT(CONCATENATE($B256,"!O21"))),"",INDIRECT(CONCATENATE($B256,"!O21"))) ->  | T256: =IF(ISERROR(INDIRECT(CONCATENATE($B256,"!P18"))),"",INDIRECT(CONCATENATE($B256,"!P18"))) ->  | U256: =IF(ISERROR(INDIRECT(CONCATENATE($B256,"!P19"))),"",INDIRECT(CONCATENATE($B256,"!P19"))) ->  | V256: =IF(ISERROR(INDIRECT(CONCATENATE($B256,"!P20"))),"",INDIRECT(CONCATENATE($B256,"!P20"))) ->  | W256: =IF(ISERROR(INDIRECT(CONCATENATE($B256,"!P21"))),"",INDIRECT(CONCATENATE($B256,"!P21"))) ->  | Y256: =IF(ISERROR(INDIRECT(CONCATENATE($B256,"!Q18"))),"",INDIRECT(CONCATENATE($B256,"!Q18"))) ->  | Z256: =IF(ISERROR(INDIRECT(CONCATENATE($B256,"!Q19"))),"",INDIRECT(CONCATENATE($B256,"!Q19"))) ->  | AA256: =IF(ISERROR(INDIRECT(CONCATENATE($B256,"!Q20"))),"",INDIRECT(CONCATENATE($B256,"!Q20"))) ->  | AB256: =IF(ISERROR(INDIRECT(CONCATENATE($B256,"!Q21"))),"",INDIRECT(CONCATENATE($B256,"!Q1"))) -> 
E257: =IF(ISERROR(INDIRECT(CONCATENATE($B257,"!M18"))),"",INDIRECT(CONCATENATE($B257,"!M18"))) ->  | F257: =IF(ISERROR(INDIRECT(CONCATENATE($B257,"!M19"))),"",INDIRECT(CONCATENATE($B257,"!M19"))) ->  | G257: =IF(ISERROR(INDIRECT(CONCATENATE($B257,"!M20"))),"",INDIRECT(CONCATENATE($B257,"!M20"))) ->  | H257: =IF(ISERROR(INDIRECT(CONCATENATE($B257,"!M21"))),"",INDIRECT(CONCATENATE($B257,"!M21"))) ->  | J257: =IF(ISERROR(INDIRECT(CONCATENATE($B257,"!N18"))),"",INDIRECT(CONCATENATE($B257,"!N18"))) ->  | K257: =IF(ISERROR(INDIRECT(CONCATENATE($B257,"!N19"))),"",INDIRECT(CONCATENATE($B257,"!N19"))) ->  | L257: =IF(ISERROR(INDIRECT(CONCATENATE($B257,"!N20"))),"",INDIRECT(CONCATENATE($B257,"!N20"))) ->  | M257: =IF(ISERROR(INDIRECT(CONCATENATE($B257,"!N21"))),"",INDIRECT(CONCATENATE($B257,"!N21"))) ->  | O257: =IF(ISERROR(INDIRECT(CONCATENATE($B257,"!O18"))),"",INDIRECT(CONCATENATE($B257,"!O18"))) ->  | P257: =IF(ISERROR(INDIRECT(CONCATENATE($B257,"!O19"))),"",INDIRECT(CONCATENATE($B257,"!O19"))) ->  | Q257: =IF(ISERROR(INDIRECT(CONCATENATE($B257,"!O20"))),"",INDIRECT(CONCATENATE($B257,"!O20"))) ->  | R257: =IF(ISERROR(INDIRECT(CONCATENATE($B257,"!O21"))),"",INDIRECT(CONCATENATE($B257,"!O21"))) ->  | T257: =IF(ISERROR(INDIRECT(CONCATENATE($B257,"!P18"))),"",INDIRECT(CONCATENATE($B257,"!P18"))) ->  | U257: =IF(ISERROR(INDIRECT(CONCATENATE($B257,"!P19"))),"",INDIRECT(CONCATENATE($B257,"!P19"))) ->  | V257: =IF(ISERROR(INDIRECT(CONCATENATE($B257,"!P20"))),"",INDIRECT(CONCATENATE($B257,"!P20"))) ->  | W257: =IF(ISERROR(INDIRECT(CONCATENATE($B257,"!P21"))),"",INDIRECT(CONCATENATE($B257,"!P21"))) ->  | Y257: =IF(ISERROR(INDIRECT(CONCATENATE($B257,"!Q18"))),"",INDIRECT(CONCATENATE($B257,"!Q18"))) ->  | Z257: =IF(ISERROR(INDIRECT(CONCATENATE($B257,"!Q19"))),"",INDIRECT(CONCATENATE($B257,"!Q19"))) ->  | AA257: =IF(ISERROR(INDIRECT(CONCATENATE($B257,"!Q20"))),"",INDIRECT(CONCATENATE($B257,"!Q20"))) ->  | AB257: =IF(ISERROR(INDIRECT(CONCATENATE($B257,"!Q21"))),"",INDIRECT(CONCATENATE($B257,"!Q1"))) -> 
A297: RURAL | D297: Poorest | I297: Poor | N297: Middle | S297: Rich | X297: Richest
D298: Improved | E298: Basic | F298: Limited | G298: Unimproved | H298: Surface water | I298: Improved | J298: Basic | K298: Limited | L298: Unimproved | M298: Surface water | N298: Improved | O298: Basic | P298: Limited | Q298: Unimproved | R298: Surface water | S298: Improved | T298: Basic | U298: Limited | V298: Unimproved | W298: Surface water | X298: Improved | Y298: Basic | Z298: Limited | AA298: Unimproved | AB298: Surface water
A299: Forecast period: | C299: 2000 | D299: =IF((D301+H301)>100,D301*100/(D301+H301),D301) -> 10.72283496 | E299: =D299*AVERAGEIF(E305:E316,">0")/100 -> 6.303018887 | F299: =D299*(100-AVERAGEIF(E305:E316,">0"))/100 -> 4.41981607 | G299: =100-(E299+F299+H299) -> 51.76768766 | H299: =IF((D301+H301)>100,H301*100/(D301+H301),H301) -> 37.50947739 | I299: =IF((I301+M301)>100,I301*100/(I301+M301),I301) -> 11.12515816 | J299: =I299*AVERAGEIF(J305:J316,">0")/100 -> 7.11468055 | K299: =I299*(100-AVERAGEIF(J305:J316,">0"))/100 -> 4.010477606 | L299: =100-(J299+K299+M299) -> 52.90243321 | M299: =IF((I301+M301)>100,M301*100/(I301+M301),M301) -> 35.97240863 | N299: =IF((N301+R301)>100,N301*100/(N301+R301),N301) -> 12.4587694 | O299: =N299*AVERAGEIF(O305:O316,">0")/100 -> 7.789583918 | P299: =N299*(100-AVERAGEIF(O305:O316,">0"))/100 -> 4.669185483 | Q299: =100-(O299+P299+R299) -> 51.73332989 | R299: =IF((N301+R301)>100,R301*100/(N301+R301),R301) -> 35.80790071 | S299: =IF((S301+W301)>100,S301*100/(S301+W301),S301) -> 15.45555016 | T299: =S299*AVERAGEIF(T305:T316,">0")/100 -> 10.11299347 | U299: =S299*(100-AVERAGEIF(T305:T316,">0"))/100 -> 5.342556686 | V299: =100-(T299+U299+W299) -> 50.53656146 | W299: =IF((S301+W301)>100,W301*100/(S301+W301),W301) -> 34.00788839 | X299: =IF((X301+AB301)>100,X301*100/(X301+AB301),X301) -> 16.7238518 | Y299: =X299*AVERAGEIF(Y305:Y316,">0")/100 -> 11.75570358 | Z299: =X299*(100-AVERAGEIF(Y305:Y316,">0"))/100 -> 4.96814822 | AA299: =100-(Y299+Z299+AB299) -> 46.67473536 | AB299: =IF((X301+AB301)>100,AB301*100/(X301+AB301),AB301) -> 36.60141284
C300: 2020 | D300: =IF((D302+H302)>100,D302*100/(D302+H302),D302) -> 45.63579679 | E300: =D300*AVERAGEIF(E305:E316,">0")/100 -> 26.82530229 | F300: =D300*(100-AVERAGEIF(E305:E316,">0"))/100 -> 18.8104945 | G300: =100-(E300+F300+H300) -> 38.0581986 | H300: =IF((D302+H302)>100,H302*100/(D302+H302),H302) -> 16.30600461 | I300: =IF((I302+M302)>100,I302*100/(I302+M302),I302) -> 52.73655724 | J300: =I300*AVERAGEIF(J305:J316,">0")/100 -> 33.72570105 | K300: =I300*(100-AVERAGEIF(J305:J316,">0"))/100 -> 19.01085619 | L300: =100-(J300+K300+M300) -> 35.30831887 | M300: =IF((I302+M302)>100,M302*100/(I302+M302),M302) -> 11.95512389 | N300: =IF((N302+R302)>100,N302*100/(N302+R302),N302) -> 62.99731086 | O300: =N300*AVERAGEIF(O305:O316,">0")/100 -> 39.38774559 | P300: =N300*(100-AVERAGEIF(O305:O316,">0"))/100 -> 23.60956527 | Q300: =100-(O300+P300+R300) -> 26.35086629 | R300: =IF((N302+R302)>100,R302*100/(N302+R302),R302) -> 10.65182285 | S300: =IF((S302+W302)>100,S302*100/(S302+W302),S302) -> 63.83318226 | T300: =S300*AVERAGEIF(T305:T316,">0")/100 -> 41.76781473 | U300: =S300*(100-AVERAGEIF(T305:T316,">0"))/100 -> 22.06536753 | V300: =100-(T300+U300+W300) -> 25.00302886 | W300: =IF((S302+W302)>100,W302*100/(S302+W302),W302) -> 11.16378888 | X300: =IF((X302+AB302)>100,X302*100/(X302+AB302),X302) -> 78.65345446 | Y300: =X300*AVERAGEIF(Y305:Y316,">0")/100 -> 55.28790301 | Z300: =X300*(100-AVERAGEIF(Y305:Y316,">0"))/100 -> 23.36555145 | AA300: =100-(Y300+Z300+AB300) -> 17.07009565 | AB300: =IF((X302+AB302)>100,AB302*100/(X302+AB302),AB302) -> 4.27644989
A301: Regression period: | C301: =MinRegYear(C299,C305:C316) -> 2000 | D301: =IF(MAX(C305:C316)-MIN(C305:C316)<5,AVERAGEIF(C305:C316,">0",D305:D316), IF(FORECAST($C301,D$305:D$316,$C$305:$C$316)<0,0, IF(FORECAST($C301,D$305:D$316,$C$305:$C$316)>100,100, FORECAST($C301,D$305:D$316,$C$305:$C$316)))) -> 10.72283496 | H301: =IF(MAX(C305:C316)-MIN(C305:C316)<5,AVERAGEIF(C305:C316,">0",H305:H316), IF(FORECAST($C301,H$305:H$316,$C$305:$C$316)<0,0, IF(FORECAST($C301,H$305:H$316,$C$305:$C$316)>100,100, FORECAST($C301,H$305:H$316,$C$305:$C$316)))) -> 37.50947739 | I301: =IF(MAX(C305:C316)-MIN(C305:C316)<5,AVERAGEIF(C305:C316,">0",I305:I316), IF(FORECAST($C301,I$305:I$316,$C$305:$C$316)<0,0, IF(FORECAST($C301,I$305:I$316,$C$305:$C$316)>100,100, FORECAST($C301,I$305:I$316,$C$305:$C$316)))) -> 11.12515816 | M301: =IF(MAX(C305:C316)-MIN(C305:C316)<5,AVERAGEIF(C305:C316,">0",M305:M316), IF(FORECAST($C301,M$305:M$316,$C$305:$C$316)<0,0, IF(FORECAST($C301,M$305:M$316,$C$305:$C$316)>100,100, FORECAST($C301,M$305:M$316,$C$305:$C$316)))) -> 35.97240863 | N301: =IF(MAX(C305:C316)-MIN(C305:C316)<5,AVERAGEIF(C305:C316,">0",N305:N316), IF(FORECAST($C301,N$305:N$316,$C$305:$C$316)<0,0, IF(FORECAST($C301,N$305:N$316,$C$305:$C$316)>100,100, FORECAST($C301,N$305:N$316,$C$305:$C$316)))) -> 12.4587694 | R301: =IF(MAX(C305:C316)-MIN(C305:C316)<5,AVERAGEIF(C305:C316,">0",R305:R316), IF(FORECAST($C301,R$305:R$316,$C$305:$C$316)<0,0, IF(FORECAST($C301,R$305:R$316,$C$305:$C$316)>100,100, FORECAST($C301,R$305:R$316,$C$305:$C$316)))) -> 35.80790071 | S301: =IF(MAX(C305:C316)-MIN(C305:C316)<5,AVERAGEIF(C305:C316,">0",S305:S316), IF(FORECAST($C301,S$305:S$316,$C$305:$C$316)<0,0, IF(FORECAST($C301,S$305:S$316,$C$305:$C$316)>100,100, FORECAST($C301,S$305:S$316,$C$305:$C$316)))) -> 15.45555016 | W301: =IF(MAX(C305:C316)-MIN(C305:C316)<5,AVERAGEIF(C305:C316,">0",W305:W316), IF(FORECAST($C301,W$305:W$316,$C$305:$C$316)<0,0, IF(FORECAST($C301,W$305:W$316,$C$305:$C$316)>100,100, FORECAST($C301,W$305:W$316,$C$305:$C$316)))) -> 34.00788839 | X301: =IF(MAX(C305:C316)-MIN(C305:C316)<5,AVERAGEIF(C305:C316,">0",X305:X316), IF(FORECAST($C301,X$305:X$316,$C$305:$C$316)<0,0, IF(FORECAST($C301,X$305:X$316,$C$305:$C$316)>100,100, FORECAST($C301,X$305:X$316,$C$305:$C$316)))) -> 16.7238518 | AB301: =IF(MAX(C305:C316)-MIN(C305:C316)<5,AVERAGEIF(C305:C316,">0",AB305:AB316), IF(FORECAST($C301,AB$305:AB$316,$C$305:$C$316)<0,0, IF(FORECAST($C301,AB$305:AB$316,$C$305:$C$316)>100,100, FORECAST($C301,AB$305:AB$316,$C$305:$C$316)))) -> 36.60141284
C302: =MaxRegYear(C300,C305:C316) -> 2018 | D302: =IF(MAX(C305:C316)-MIN(C305:C316)<5,AVERAGEIF(C305:C316,">0",D305:D316), IF(FORECAST($C302,D$305:D$316,$C$305:$C$316)<0,0, IF(FORECAST($C302,D$305:D$316,$C$305:$C$316)>100,100, FORECAST($C302,D$305:D$316,$C$305:$C$316)))) -> 45.63579679 | H302: =IF(MAX(C305:C316)-MIN(C305:C316)<5,AVERAGEIF(C305:C316,">0",H305:H316), IF(FORECAST($C302,H$305:H$316,$C$305:$C$316)<0,0, IF(FORECAST($C302,H$305:H$316,$C$305:$C$316)>100,100, FORECAST($C302,H$305:H$316,$C$305:$C$316)))) -> 16.30600461 | I302: =IF(MAX(C305:C316)-MIN(C305:C316)<5,AVERAGEIF(C305:C316,">0",I305:I316), IF(FORECAST($C302,I$305:I$316,$C$305:$C$316)<0,0, IF(FORECAST($C302,I$305:I$316,$C$305:$C$316)>100,100, FORECAST($C302,I$305:I$316,$C$305:$C$316)))) -> 52.73655724 | M302: =IF(MAX(C305:C316)-MIN(C305:C316)<5,AVERAGEIF(C305:C316,">0",M305:M316), IF(FORECAST($C302,M$305:M$316,$C$305:$C$316)<0,0, IF(FORECAST($C302,M$305:M$316,$C$305:$C$316)>100,100, FORECAST($C302,M$305:M$316,$C$305:$C$316)))) -> 11.95512389 | N302: =IF(MAX(C305:C316)-MIN(C305:C316)<5,AVERAGEIF(C305:C316,">0",N305:N316), IF(FORECAST($C302,N$305:N$316,$C$305:$C$316)<0,0, IF(FORECAST($C302,N$305:N$316,$C$305:$C$316)>100,100, FORECAST($C302,N$305:N$316,$C$305:$C$316)))) -> 62.99731086 | R302: =IF(MAX(C305:C316)-MIN(C305:C316)<5,AVERAGEIF(C305:C316,">0",R305:R316), IF(FORECAST($C302,R$305:R$316,$C$305:$C$316)<0,0, IF(FORECAST($C302,R$305:R$316,$C$305:$C$316)>100,100, FORECAST($C302,R$305:R$316,$C$305:$C$316)))) -> 10.65182285 | S302: =IF(MAX(C305:C316)-MIN(C305:C316)<5,AVERAGEIF(C305:C316,">0",S305:S316), IF(FORECAST($C302,S$305:S$316,$C$305:$C$316)<0,0, IF(FORECAST($C302,S$305:S$316,$C$305:$C$316)>100,100, FORECAST($C302,S$305:S$316,$C$305:$C$316)))) -> 63.83318226 | W302: =IF(MAX(C305:C316)-MIN(C305:C316)<5,AVERAGEIF(C305:C316,">0",W305:W316), IF(FORECAST($C302,W$305:W$316,$C$305:$C$316)<0,0, IF(FORECAST($C302,W$305:W$316,$C$305:$C$316)>100,100, FORECAST($C302,W$305:W$316,$C$305:$C$316)))) -> 11.16378888 | X302: =IF(MAX(C305:C316)-MIN(C305:C316)<5,AVERAGEIF(C305:C316,">0",X305:X316), IF(FORECAST($C302,X$305:X$316,$C$305:$C$316)<0,0, IF(FORECAST($C302,X$305:X$316,$C$305:$C$316)>100,100, FORECAST($C302,X$305:X$316,$C$305:$C$316)))) -> 78.65345446 | AB302: =IF(MAX(C305:C316)-MIN(C305:C316)<5,AVERAGEIF(C305:C316,">0",AB305:AB316), IF(FORECAST($C302,AB$305:AB$316,$C$305:$C$316)<0,0, IF(FORECAST($C302,AB$305:AB$316,$C$305:$C$316)>100,100, FORECAST($C302,AB$305:AB$316,$C$305:$C$316)))) -> 4.27644989
B304: Survey | C304: Year | D304: Improved | E304: % Improved < = 30min | H304: Surface water | I304: Improved | J304: % Improved < = 30min | M304: Surface water | N304: Improved | O304: % Improved < = 30min | R304: Surface water | S304: Improved | T304: % Improved < = 30min | W304: Surface water | X304: Improved | Y304: % Improved < = 30min | AB304: Surface water
B305: DHS00 | C305: 2000 | D305: =IF(ISERROR(INDIRECT(CONCATENATE($B305,"!M16"))),"",INDIRECT(CONCATENATE($B305,"!M16"))) -> 10.58487679 | E305: =IF(ISERROR(INDIRECT(CONCATENATE($B305,"!M23"))),"",INDIRECT(CONCATENATE($B305,"!M23"))) -> N/A | H305: =IF(ISERROR(INDIRECT(CONCATENATE($B305,"!M21"))),"",INDIRECT(CONCATENATE($B305,"!M21"))) -> 38.15066475 | I305: =IF(ISERROR(INDIRECT(CONCATENATE($B305,"!N16"))),"",INDIRECT(CONCATENATE($B305,"!N16"))) -> 10.92339143 | J305: =IF(ISERROR(INDIRECT(CONCATENATE($B305,"!N23"))),"",INDIRECT(CONCATENATE($B305,"!N23"))) -> N/A | M305: =IF(ISERROR(INDIRECT(CONCATENATE($B305,"!N21"))),"",INDIRECT(CONCATENATE($B305,"!N21"))) -> 35.97090209 | N305: =IF(ISERROR(INDIRECT(CONCATENATE($B305,"!O16"))),"",INDIRECT(CONCATENATE($B305,"!O16"))) -> 12.12859241 | O305: =IF(ISERROR(INDIRECT(CONCATENATE($B305,"!O23"))),"",INDIRECT(CONCATENATE($B305,"!O23"))) -> N/A | R305: =IF(ISERROR(INDIRECT(CONCATENATE($B305,"!O21"))),"",INDIRECT(CONCATENATE($B305,"!O21"))) -> 35.25625759 | S305: =IF(ISERROR(INDIRECT(CONCATENATE($B305,"!P16"))),"",INDIRECT(CONCATENATE($B305,"!P16"))) -> 16.18044349 | T305: =IF(ISERROR(INDIRECT(CONCATENATE($B305,"!P23"))),"",INDIRECT(CONCATENATE($B305,"!P23"))) -> N/A | W305: =IF(ISERROR(INDIRECT(CONCATENATE($B305,"!P21"))),"",INDIRECT(CONCATENATE($B305,"!P21"))) -> 33.64776506 | X305: =IF(ISERROR(INDIRECT(CONCATENATE($B305,"!Q16"))),"",INDIRECT(CONCATENATE($B305,"!Q16"))) -> 16.96438933 | Y305: =IF(ISERROR(INDIRECT(CONCATENATE($B305,"!Q23"))),"",INDIRECT(CONCATENATE($B305,"!Q23"))) -> N/A | AB305: =IF(ISERROR(INDIRECT(CONCATENATE($B305,"!Q221"))),"",INDIRECT(CONCATENATE($B305,"!Q21"))) -> 36.42868435
B306: DHS05 | D306: 51.5 | E306: 65.7 | H306: 32.1 | I306: 57.8 | J306: 69.1 | M306: 30.5 | N306: 54.4 | O306: 70.5 | R306: 30.5 | S306: 55.2 | T306: 72.8 | W306: 30.5 | X306: 59.2 | Y306: 78.9 | AB306: 28.7
B307: DHS11 | C307: 2011 | D307: 32.5 | E307: 47.6 | H307: 22.5 | I307: 37.2 | J307: 52.5 | M307: 21.3 | N307: 44.4 | O307: 49.8 | R307: 22.2 | S307: 42.7 | T307: 56.6 | W307: 21.2 | X307: 53.8 | Y307: 55.3 | AB307: 17.4
B308: DHS16 | C308: 2016 | D308: 41.45307083 | E308: 63.04381894 | H308: 20.07255823 | I308: 47.66918167 | J308: 70.25382672 | M308: 14.62039669 | N308: 56.65552798 | O308: 67.26869962 | R308: 12.23332775 | S308: 60.05265513 | T308: 66.89828837 | W308: 12.90975084 | X308: 72.30157006 | Y308: 76.67911544 | AB308: 7.488109751
B318: =CONCATENATE("Rural use of drinking water sources, ",C299,"–",C300) -> Rural use of drinking water sources, 2000–2020 | S318: Data points used for regression

Sheet Sanitation
B4: Summary of trends in use of sanitation facilities by wealth quintile (%)
B5: =IF(ISERROR(INDIRECT(CONCATENATE($B105,"!A2"))),"",INDIRECT(CONCATENATE($B105,"!A2"))) -> Ethiopia
B7: =B118 -> National use of sanitation facilities, 2000–2020 | J7: =B218 -> Urban use of sanitation facilities, 2000–2020 | R7: =B318 -> Rural use of sanitation facilities, 2000–2020
B31: =IF(ISERROR(INDIRECT(CONCATENATE($B105,"!A2"))),"",INDIRECT(CONCATENATE($B105,"!A2"))) -> Ethiopia | F31: Poorest | J31: Poor | N31: Middle | R31: Rich | V31: Richest
F32: Basic | G32: Limited | H32: Unimproved | I32: Open defecation | J32: Basic | K32: Limited | L32: Unimproved | M32: Open defecation | N32: Basic | O32: Limited | P32: Unimproved | Q32: Open defecation | R32: Basic | S32: Limited | T32: Unimproved | U32: Open defecation | V32: Basic | W32: Limited | X32: Unimproved | Y32: Open defecation
B33: NATIONAL | D33: Estimate | E33: =C99 -> 2000 | F33: =E99 -> 1.147973721 | G33: =F99 -> 0.3303189668 | H33: 5.39465368 | I33: 93.12705363 | J33: =J99 -> 2.160122446 | K33: =K99 -> 0.4889008419 | L33: 6.901796569 | M33: 90.44918014 | N33: =O99 -> 2.528407945 | O33: =P99 -> 0.7711217611 | P33: 8.243561305 | Q33: 88.45690899 | R33: =T99 -> 1.913684665 | S33: =U99 -> 0.5921379864 | T33: 11.77351376 | U33: 85.72066359 | V33: =Y99 -> 12.10887819 | W33: =Z99 -> 15.3663792 | X33: 32.71609155 | Y33: 39.80865106
E34: =C100 -> 2020 | F34: =E100 -> 5.324367045 | G34: 1.53203805 | H34: 50.48933955 | I34: 42.65425536 | J34: =J100 -> 5.562911462 | K34: 1.259054598 | L34: 61.19441117 | M34: 31.98362277 | N34: =O100 -> 6.771767029 | O34: 2.065274683 | P34: 69.14879101 | Q34: 22.01416727 | R34: =T100 -> 8.171524256 | S34: 2.528457278 | T34: 76.98375543 | U34: 12.31626304 | V34: =Y100 -> 21.49376808 | W34: 27.27596939 | X34: 50.980929 | Y34: 0.2493335308
B36: URBAN | D36: Estimate | E36: =C199 -> 2000 | F36: =E199 -> 6.289146361 | G36: =F199 -> 8.576167567 | H36: 35.74863267 | I36: 49.38605341 | J36: =J199 -> 6.596282783 | K36: =K199 -> 16.48752159 | L36: 45.0809384 | M36: 31.83525722 | N36: =O199 -> 10.25640008 | O36: =P199 -> 28.01748856 | P36: 38.46688488 | Q36: 23.25922648 | R36: =T199 -> 20.06568313 | S36: =U199 -> 41.67553942 | T36: 29.45943951 | U36: 8.799337942 | V36: =Y199 -> 50.36673666 | W36: =Z199 -> 34.91222054 | X36: 10.96181323 | Y36: 3.759229563
E37: =C200 -> 2020 | F37: =E200 -> 8.702862141 | G37: 11.86762078 | H37: 57.51828024 | I37: 21.91123684 | J37: =J200 -> 8.292112133 | K37: 20.72627605 | L37: 64.97789981 | M37: 6.003712009 | N37: =O200 -> 13.67412731 | O37: 37.35372084 | P37: 48.16522896 | Q37: 0.8069228934 | R37: =T200 -> 22.48255536 | S37: 46.69527652 | T37: 30.82216812 | U37: 0 | V37: =Y200 -> 52.25339443 | W37: 36.21997673 | X37: 11.52662884 | Y37: 0
B39: RURAL | D39: Estimate | E39: =C299 -> 2000 | F39: =E299 -> 1.145401565 | G39: =F299 -> 0.3460746412 | H39: 3.113774858 | I39: 95.39474894 | J39: =J299 -> 2.016211223 | K39: =K299 -> 0.371566954 | L39: 6.253059474 | M39: 91.35916235 | N39: =O299 -> 2.406897318 | O39: =P299 -> 0.5818598376 | P39: 7.869500552 | Q39: 89.14174229 | R39: =T299 -> 2.308043986 | S39: =U299 -> 0.6187840501 | T39: 11.05120396 | U39: 86.02196801 | V39: =Y299 -> 2.866207564 | W39: =Z299 -> 1.101504005 | X39: 16.32010907 | Y39: 79.71217936
E40: =C300 -> 2020 | F40: =E300 -> 5.006423195 | G40: 1.512653871 | H40: 49.88880231 | I40: 43.59212062 | J40: =J300 -> 5.262571394 | K40: 0.969837684 | L40: 60.3416772 | M40: 33.42591372 | N40: =O300 -> 6.705953037 | O40: 1.621143003 | P40: 65.89202341 | Q40: 25.78088055 | R40: =T300 -> 6.965401816 | S40: 1.867416553 | T40: 73.48656329 | U40: 17.68061834 | V40: =Y300 -> 10.33216499 | W40: 3.970724681 | X40: 78.8888339 | Y40: 6.808276429
A97: NATIONAL | D97: Poorest | I97: Poor | N97: Middle | S97: Rich | X97: Richest
D98: Improved | E98: Basic | F98: Limited | G98: Unimproved | H98: Open defecation | I98: Improved | J98: Basic | K98: Limited | L98: Unimproved | M98: Open defecation | N98: Improved | O98: Basic | P98: Limited | Q98: Unimproved | R98: Open defecation | S98: Improved | T98: Basic | U98: Limited | V98: Unimproved | W98: Open defecation | X98: Improved | Y98: Basic | Z98: Limited | AA98: Unimproved | AB98: Open defecation
A99: Forecast period: | C99: 2000 | D99: =IF((D101+H101)>100,D101*100/(D101+H101),D101) -> 1.478292688 | E99: =D99*AVERAGEIF(E105:E116,">0")/100 -> 1.147973721 | F99: =D99*(100-AVERAGEIF(E105:E116,">0"))/100 -> 0.3303189668 | G99: =100-(E99+F99+H99) -> 5.39465368 | H99: =IF((D101+H101)>100,H101*100/(D101+H101),H101) -> 93.12705363 | I99: =IF((I101+M101)>100,I101*100/(I101+M101),I101) -> 2.649023288 | J99: =I99*AVERAGEIF(J105:J116,">0")/100 -> 2.160122446 | K99: =I99*(100-AVERAGEIF(J105:J116,">0"))/100 -> 0.4889008419 | L99: =100-(J99+K99+M99) -> 6.901796569 | M99: =IF((I101+M101)>100,M101*100/(I101+M101),M101) -> 90.44918014 | N99: =IF((N101+R101)>100,N101*100/(N101+R101),N101) -> 3.299529706 | O99: =N99*AVERAGEIF(O105:O116,">0")/100 -> 2.528407945 | P99: =N99*(100-AVERAGEIF(O105:O116,">0"))/100 -> 0.7711217611 | Q99: =100-(O99+P99+R99) -> 8.243561305 | R99: =IF((N101+R101)>100,R101*100/(N101+R101),R101) -> 88.45690899 | S99: =IF((S101+W101)>100,S101*100/(S101+W101),S101) -> 2.505822651 | T99: =S99*AVERAGEIF(T105:T116,">0")/100 -> 1.913684665 | U99: =S99*(100-AVERAGEIF(T105:T116,">0"))/100 -> 0.5921379864 | V99: =100-(T99+U99+W99) -> 11.77351376 | W99: =IF((S101+W101)>100,W101*100/(S101+W101),W101) -> 85.72066359 | X99: =IF((X101+AB101)>100,X101*100/(X101+AB101),X101) -> 27.47525739 | Y99: =X99*AVERAGEIF(Y105:Y116,">0")/100 -> 12.10887819 | Z99: =X99*(100-AVERAGEIF(Y105:Y116,">0"))/100 -> 15.3663792 | AA99: =100-(Y99+Z99+AB99) -> 32.71609155 | AB99: =IF((X101+AB101)>100,AB101*100/(X101+AB101),AB101) -> 39.80865106
C100: 2020 | D100: =IF((D102+H102)>100,D102*100/(D102+H102),D102) -> 6.856405095 | E100: =D100*AVERAGEIF(E105:E116,">0")/100 -> 5.324367045 | F100: =D100*(100-AVERAGEIF(E105:E116,">0"))/100 -> 1.53203805 | G100: =100-(E100+F100+H100) -> 50.48933955 | H100: =IF((D102+H102)>100,H102*100/(D102+H102),H102) -> 42.65425536 | I100: =IF((I102+M102)>100,I102*100/(I102+M102),I102) -> 6.82196606 | J100: =I100*AVERAGEIF(J105:J116,">0")/100 -> 5.562911462 | K100: =I100*(100-AVERAGEIF(J105:J116,">0"))/100 -> 1.259054598 | L100: =100-(J100+K100+M100) -> 61.19441117 | M100: =IF((I102+M102)>100,M102*100/(I102+M102),M102) -> 31.98362277 | N100: =IF((N102+R102)>100,N102*100/(N102+R102),N102) -> 8.837041711 | O100: =N100*AVERAGEIF(O105:O116,">0")/100 -> 6.771767029 | P100: =N100*(100-AVERAGEIF(O105:O116,">0"))/100 -> 2.065274683 | Q100: =100-(O100+P100+R100) -> 69.14879101 | R100: =IF((N102+R102)>100,R102*100/(N102+R102),R102) -> 22.01416727 | S100: =IF((S102+W102)>100,S102*100/(S102+W102),S102) -> 10.69998153 | T100: =S100*AVERAGEIF(T105:T116,">0")/100 -> 8.171524256 | U100: =S100*(100-AVERAGEIF(T105:T116,">0"))/100 -> 2.528457278 | V100: =100-(T100+U100+W100) -> 76.98375543 | W100: =IF((S102+W102)>100,W102*100/(S102+W102),W102) -> 12.31626304 | X100: =IF((X102+AB102)>100,X102*100/(X102+AB102),X102) -> 48.76973747 | Y100: =X100*AVERAGEIF(Y105:Y116,">0")/100 -> 21.49376808 | Z100: =X100*(100-AVERAGEIF(Y105:Y116,">0"))/100 -> 27.27596939 | AA100: =100-(Y100+Z100+AB100) -> 50.980929 | AB100: =IF((X102+AB102)>100,AB102*100/(X102+AB102),AB102) -> 0.2493335308
A101: Regression period: | C101: =MinRegYear(C99,C105:C116) -> 2000 | D101: =IF(MAX(C105:C116)-MIN(C105:C116)<5,AVERAGEIF(C105:C116,">0",D105:D116), IF(FORECAST($C101,D$105:D$116,$C$105:$C$116)<0,0, IF(FORECAST($C101,D$105:D$116,$C$105:$C$116)>100,100, FORECAST($C101,D$105:D$116,$C$105:$C$116)))) -> 1.478292688 | H101: =IF(MAX(C105:C116)-MIN(C105:C116)<5,AVERAGEIF(C105:C116,">0",H105:H116), IF(FORECAST($C101,H$105:H$116,$C$105:$C$116)<0,0, IF(FORECAST($C101,H$105:H$116,$C$105:$C$116)>100,100, FORECAST($C101,H$105:H$116,$C$105:$C$116)))) -> 93.12705363 | I101: =IF(MAX(C105:C116)-MIN(C105:C116)<5,AVERAGEIF(C105:C116,">0",I105:I116), IF(FORECAST($C101,I$105:I$116,$C$105:$C$116)<0,0, IF(FORECAST($C101,I$105:I$116,$C$105:$C$116)>100,100, FORECAST($C101,I$105:I$116,$C$105:$C$116)))) -> 2.649023288 | M101: =IF(MAX(C105:C116)-MIN(C105:C116)<5,AVERAGEIF(C105:C116,">0",M105:M116), IF(FORECAST($C101,M$105:M$116,$C$105:$C$116)<0,0, IF(FORECAST($C101,M$105:M$116,$C$105:$C$116)>100,100, FORECAST($C101,M$105:M$116,$C$105:$C$116)))) -> 90.44918014 | N101: =IF(MAX(C105:C116)-MIN(C105:C116)<5,AVERAGEIF(C105:C116,">0",N105:N116), IF(FORECAST($C101,N$105:N$116,$C$105:$C$116)<0,0, IF(FORECAST($C101,N$105:N$116,$C$105:$C$116)>100,100, FORECAST($C101,N$105:N$116,$C$105:$C$116)))) -> 3.299529706 | R101: =IF(MAX(C105:C116)-MIN(C105:C116)<5,AVERAGEIF(C105:C116,">0",R105:R116), IF(FORECAST($C101,R$105:R$116,$C$105:$C$116)<0,0, IF(FORECAST($C101,R$105:R$116,$C$105:$C$116)>100,100, FORECAST($C101,R$105:R$116,$C$105:$C$116)))) -> 88.45690899 | S101: =IF(MAX(C105:C116)-MIN(C105:C116)<5,AVERAGEIF(C105:C116,">0",S105:S116), IF(FORECAST($C101,S$105:S$116,$C$105:$C$116)<0,0, IF(FORECAST($C101,S$105:S$116,$C$105:$C$116)>100,100, FORECAST($C101,S$105:S$116,$C$105:$C$116)))) -> 2.505822651 | W101: =IF(MAX(C105:C116)-MIN(C105:C116)<5,AVERAGEIF(C105:C116,">0",W105:W116), IF(FORECAST($C101,W$105:W$116,$C$105:$C$116)<0,0, IF(FORECAST($C101,W$105:W$116,$C$105:$C$116)>100,100, FORECAST($C101,W$105:W$116,$C$105:$C$116)))) -> 85.72066359 | X101: =IF(MAX(C105:C116)-MIN(C105:C116)<5,AVERAGEIF(C105:C116,">0",X105:X116), IF(FORECAST($C101,X$105:X$116,$C$105:$C$116)<0,0, IF(FORECAST($C101,X$105:X$116,$C$105:$C$116)>100,100, FORECAST($C101,X$105:X$116,$C$105:$C$116)))) -> 27.47525739 | AB101: =IF(MAX(C105:C116)-MIN(C105:C116)<5,AVERAGEIF(C105:C116,">0",AB105:AB116), IF(FORECAST($C101,AB$105:AB$116,$C$105:$C$116)<0,0, IF(FORECAST($C101,AB$105:AB$116,$C$105:$C$116)>100,100, FORECAST($C101,AB$105:AB$116,$C$105:$C$116)))) -> 39.80865106
C102: =MaxRegYear(C100,C105:C116) -> 2018 | D102: =IF(MAX(C105:C116)-MIN(C105:C116)<5,AVERAGEIF(C105:C116,">0",D105:D116), IF(FORECAST($C102,D$105:D$116,$C$105:$C$116)<0,0, IF(FORECAST($C102,D$105:D$116,$C$105:$C$116)>100,100, FORECAST($C102,D$105:D$116,$C$105:$C$116)))) -> 6.856405095 | H102: =IF(MAX(C105:C116)-MIN(C105:C116)<5,AVERAGEIF(C105:C116,">0",H105:H116), IF(FORECAST($C102,H$105:H$116,$C$105:$C$116)<0,0, IF(FORECAST($C102,H$105:H$116,$C$105:$C$116)>100,100, FORECAST($C102,H$105:H$116,$C$105:$C$116)))) -> 42.65425536 | I102: =IF(MAX(C105:C116)-MIN(C105:C116)<5,AVERAGEIF(C105:C116,">0",I105:I116), IF(FORECAST($C102,I$105:I$116,$C$105:$C$116)<0,0, IF(FORECAST($C102,I$105:I$116,$C$105:$C$116)>100,100, FORECAST($C102,I$105:I$116,$C$105:$C$116)))) -> 6.82196606 | M102: =IF(MAX(C105:C116)-MIN(C105:C116)<5,AVERAGEIF(C105:C116,">0",M105:M116), IF(FORECAST($C102,M$105:M$116,$C$105:$C$116)<0,0, IF(FORECAST($C102,M$105:M$116,$C$105:$C$116)>100,100, FORECAST($C102,M$105:M$116,$C$105:$C$116)))) -> 31.98362277 | N102: =IF(MAX(C105:C116)-MIN(C105:C116)<5,AVERAGEIF(C105:C116,">0",N105:N116), IF(FORECAST($C102,N$105:N$116,$C$105:$C$116)<0,0, IF(FORECAST($C102,N$105:N$116,$C$105:$C$116)>100,100, FORECAST($C102,N$105:N$116,$C$105:$C$116)))) -> 8.837041711 | R102: =IF(MAX(C105:C116)-MIN(C105:C116)<5,AVERAGEIF(C105:C116,">0",R105:R116), IF(FORECAST($C102,R$105:R$116,$C$105:$C$116)<0,0, IF(FORECAST($C102,R$105:R$116,$C$105:$C$116)>100,100, FORECAST($C102,R$105:R$116,$C$105:$C$116)))) -> 22.01416727 | S102: =IF(MAX(C105:C116)-MIN(C105:C116)<5,AVERAGEIF(C105:C116,">0",S105:S116), IF(FORECAST($C102,S$105:S$116,$C$105:$C$116)<0,0, IF(FORECAST($C102,S$105:S$116,$C$105:$C$116)>100,100, FORECAST($C102,S$105:S$116,$C$105:$C$116)))) -> 10.69998153 | W102: =IF(MAX(C105:C116)-MIN(C105:C116)<5,AVERAGEIF(C105:C116,">0",W105:W116), IF(FORECAST($C102,W$105:W$116,$C$105:$C$116)<0,0, IF(FORECAST($C102,W$105:W$116,$C$105:$C$116)>100,100, FORECAST($C102,W$105:W$116,$C$105:$C$116)))) -> 12.31626304 | X102: =IF(MAX(C105:C116)-MIN(C105:C116)<5,AVERAGEIF(C105:C116,">0",X105:X116), IF(FORECAST($C102,X$105:X$116,$C$105:$C$116)<0,0, IF(FORECAST($C102,X$105:X$116,$C$105:$C$116)>100,100, FORECAST($C102,X$105:X$116,$C$105:$C$116)))) -> 48.76973747 | AB102: =IF(MAX(C105:C116)-MIN(C105:C116)<5,AVERAGEIF(C105:C116,">0",AB105:AB116), IF(FORECAST($C102,AB$105:AB$116,$C$105:$C$116)<0,0, IF(FORECAST($C102,AB$105:AB$116,$C$105:$C$116)>100,100, FORECAST($C102,AB$105:AB$116,$C$105:$C$116)))) -> 0.2493335308
B104: Survey | C104: Year | D104: Improved | E104: Not shared | H104: Open defecation | I104: Improved | J104: Not shared | M104: Open defecation | N104: Improved | O104: Not shared | R104: Open defecation | S104: Improved | T104: Not shared | W104: Open defecation | X104: Improved | Y104: Not shared | AB104: Open defecation
B105: DHS00 | C105: 2000 | D105: =IF(ISERROR(INDIRECT(CONCATENATE($B105,"!C122"))),"",INDIRECT(CONCATENATE($B105,"!C122"))) -> 0.1688031643 | E105: =IF(ISERROR(INDIRECT(CONCATENATE($B105,"!C129"))),"",INDIRECT(CONCATENATE($B105,"!C129"))) -> N/A | H105: =IF(ISERROR(INDIRECT(CONCATENATE($B105,"!C127"))),"",INDIRECT(CONCATENATE($B105,"!C127"))) -> 94.47575722 | I105: =IF(ISERROR(INDIRECT(CONCATENATE($B105,"!D122"))),"",INDIRECT(CONCATENATE($B105,"!D122"))) -> 0.2491962618 | J105: =IF(ISERROR(INDIRECT(CONCATENATE($B105,"!D129"))),"",INDIRECT(CONCATENATE($B105,"!D129"))) -> N/A | M105: =IF(ISERROR(INDIRECT(CONCATENATE($B105,"!D127"))),"",INDIRECT(CONCATENATE($B105,"!D127"))) -> 94.06739884 | N105: =IF(ISERROR(INDIRECT(CONCATENATE($B105,"!E122"))),"",INDIRECT(CONCATENATE($B105,"!E122"))) -> 0.4949659589 | O105: =IF(ISERROR(INDIRECT(CONCATENATE($B105,"!E129"))),"",INDIRECT(CONCATENATE($B105,"!E129"))) -> N/A | R105: =IF(ISERROR(INDIRECT(CONCATENATE($B105,"!E127"))),"",INDIRECT(CONCATENATE($B105,"!E127"))) -> 91.6485752 | S105: =IF(ISERROR(INDIRECT(CONCATENATE($B105,"!F122"))),"",INDIRECT(CONCATENATE($B105,"!F122"))) -> 0.3231159982 | T105: =IF(ISERROR(INDIRECT(CONCATENATE($B105,"!F129"))),"",INDIRECT(CONCATENATE($B105,"!F129"))) -> N/A | W105: =IF(ISERROR(INDIRECT(CONCATENATE($B105,"!F127"))),"",INDIRECT(CONCATENATE($B105,"!F127"))) -> 88.42041196 | X105: =IF(ISERROR(INDIRECT(CONCATENATE($B105,"!G122"))),"",INDIRECT(CONCATENATE($B105,"!G122"))) -> 24.21754707 | Y105: =IF(ISERROR(INDIRECT(CONCATENATE($B105,"!G129"))),"",INDIRECT(CONCATENATE($B105,"!G129"))) -> N/A | AB105: =IF(ISERROR(INDIRECT(CONCATENATE($B105,"!G2127"))),"",INDIRECT(CONCATENATE($B105,"!G127"))) -> 43.08288899
B106: DHS05 | C106: 2005 | D106: 4.466160674 | E106: 91.32748956 | H106: 82.12073589 | I106: 6.31745994 | J106: 86.57652269 | M106: 72.702146 | N106: 7.966244789 | O106: 81.31406739 | R106: 67.66057271 | S106: 6.009469788 | T106: 80.91351718 | W106: 63.33493771 | X106: 36.23533776 | Y106: 46.85571849 | AB106: 25.00292653
B107: DHS11 | C107: 2011 | D107: 5.668598091 | E107: 73.86051082 | H107: 51.33612552 | I107: 7.358172522 | J107: 82.4752813 | M107: 46.45645199 | N107: 8.775430744 | O107: 73.59030803 | R107: 42.7877215 | S107: 11.79754332 | T107: 74.48674956 | W107: 36.61357617 | X107: 44.65434033 | Y107: 42.73699443 | AB107: 13.55340669
B108: DHS16 | C108: 2016 | D108: 5.170697546 | E108: 67.77812272 | H108: 54.84617674 | I108: 4.089829354 | J108: 75.58052399 | M108: 44.63195509 | N108: 5.80594312 | O108: 74.98365441 | R108: 33.61033683 | S108: 6.460555069 | T108: 73.70828536 | W108: 24.01701643 | X108: 42.65065786 | Y108: 42.62309872 | AB108: 7.267706428
B118: =CONCATENATE("National use of sanitation facilities, ",C99,"–",C100) -> National use of sanitation facilities, 2000–2020 | S118: Data points used for regression
A197: URBAN | D197: Poorest | I197: Poor | N197: Middle | S197: Rich | X197: Richest
D198: Improved | E198: Basic | F198: Limited | G198: Unimproved | H198: Open defecation | I198: Improved | J198: Basic | K198: Limited | L198: Unimproved | M198: Open defecation | N198: Improved | O198: Basic | P198: Limited | Q198: Unimproved | R198: Open defecation | S198: Improved | T198: Basic | U198: Limited | V198: Unimproved | W198: Open defecation | X198: Improved | Y198: Basic | Z198: Limited | AA198: Unimproved | AB198: Open defecation
A199: Forecast period: | C199: 2000 | D199: =IF((D201+H201)>100,D201*100/(D201+H201),D201) -> 14.86531393 | E199: =D199*AVERAGEIF(E205:E216,">0")/100 -> 6.289146361 | F199: =D199*(100-AVERAGEIF(E205:E216,">0"))/100 -> 8.576167567 | G199: =100-(E199+F199+H199) -> 35.74863267 | H199: =IF((D201+H201)>100,H201*100/(D201+H201),H201) -> 49.38605341 | I199: =IF((I201+M201)>100,I201*100/(I201+M201),I201) -> 23.08380438 | J199: =I199*AVERAGEIF(J205:J216,">0")/100 -> 6.596282783 | K199: =I199*(100-AVERAGEIF(J205:J216,">0"))/100 -> 16.48752159 | L199: =100-(J199+K199+M199) -> 45.0809384 | M199: =IF((I201+M201)>100,M201*100/(I201+M201),M201) -> 31.83525722 | N199: =IF((N201+R201)>100,N201*100/(N201+R201),N201) -> 38.27388864 | O199: =N199*AVERAGEIF(O205:O216,">0")/100 -> 10.25640008 | P199: =N199*(100-AVERAGEIF(O205:O216,">0"))/100 -> 28.01748856 | Q199: =100-(O199+P199+R199) -> 38.46688488 | R199: =IF((N201+R201)>100,R201*100/(N201+R201),R201) -> 23.25922648 | S199: =IF((S201+W201)>100,S201*100/(S201+W201),S201) -> 61.74122255 | T199: =S199*AVERAGEIF(T205:T216,">0")/100 -> 20.06568313 | U199: =S199*(100-AVERAGEIF(T205:T216,">0"))/100 -> 41.67553942 | V199: =100-(T199+U199+W199) -> 29.45943951 | W199: =IF((S201+W201)>100,W201*100/(S201+W201),W201) -> 8.799337942 | X199: =IF((X201+AB201)>100,X201*100/(X201+AB201),X201) -> 85.2789572 | Y199: =X199*AVERAGEIF(Y205:Y216,">0")/100 -> 50.36673666 | Z199: =X199*(100-AVERAGEIF(Y205:Y216,">0"))/100 -> 34.91222054 | AA199: =100-(Y199+Z199+AB199) -> 10.96181323 | AB199: =IF((X201+AB201)>100,AB201*100/(X201+AB201),AB201) -> 3.759229563
C200: 2020 | D200: =IF((D202+H202)>100,D202*100/(D202+H202),D202) -> 20.57048292 | E200: =D200*AVERAGEIF(E205:E216,">0")/100 -> 8.702862141 | F200: =D200*(100-AVERAGEIF(E205:E216,">0"))/100 -> 11.86762078 | G200: =100-(E200+F200+H200) -> 57.51828024 | H200: =IF((D202+H202)>100,H202*100/(D202+H202),H202) -> 21.91123684 | I200: =IF((I202+M202)>100,I202*100/(I202+M202),I202) -> 29.01838818 | J200: =I200*AVERAGEIF(J205:J216,">0")/100 -> 8.292112133 | K200: =I200*(100-AVERAGEIF(J205:J216,">0"))/100 -> 20.72627605 | L200: =100-(J200+K200+M200) -> 64.97789981 | M200: =IF((I202+M202)>100,M202*100/(I202+M202),M202) -> 6.003712009 | N200: =IF((N202+R202)>100,N202*100/(N202+R202),N202) -> 51.02784814 | O200: =N200*AVERAGEIF(O205:O216,">0")/100 -> 13.67412731 | P200: =N200*(100-AVERAGEIF(O205:O216,">0"))/100 -> 37.35372084 | Q200: =100-(O200+P200+R200) -> 48.16522896 | R200: =IF((N202+R202)>100,R202*100/(N202+R202),R202) -> 0.8069228934 | S200: =IF((S202+W202)>100,S202*100/(S202+W202),S202) -> 69.17783188 | T200: =S200*AVERAGEIF(T205:T216,">0")/100 -> 22.48255536 | U200: =S200*(100-AVERAGEIF(T205:T216,">0"))/100 -> 46.69527652 | V200: =100-(T200+U200+W200) -> 30.82216812 | W200: =IF((S202+W202)>100,W202*100/(S202+W202),W202) -> 0 | X200: =IF((X202+AB202)>100,X202*100/(X202+AB202),X202) -> 88.47337116 | Y200: =X200*AVERAGEIF(Y205:Y216,">0")/100 -> 52.25339443 | Z200: =X200*(100-AVERAGEIF(Y205:Y216,">0"))/100 -> 36.21997673 | AA200: =100-(Y200+Z200+AB200) -> 11.52662884 | AB200: =IF((X202+AB202)>100,AB202*100/(X202+AB202),AB202) -> 0
A201: Regression period: | C201: =MinRegYear(C199,C205:C216) -> 2000 | D201: =IF(MAX(C205:C216)-MIN(C205:C216)<5,AVERAGEIF(C205:C216,">0",D205:D216), IF(FORECAST($C201,D$205:D$216,$C$205:$C$216)<0,0, IF(FORECAST($C201,D$205:D$216,$C$205:$C$216)>100,100, FORECAST($C201,D$205:D$216,$C$205:$C$216)))) -> 14.86531393 | H201: =IF(MAX(C205:C216)-MIN(C205:C216)<5,AVERAGEIF(C205:C216,">0",H205:H216), IF(FORECAST($C201,H$205:H$216,$C$205:$C$216)<0,0, IF(FORECAST($C201,H$205:H$216,$C$205:$C$216)>100,100, FORECAST($C201,H$205:H$216,$C$205:$C$216)))) -> 49.38605341 | I201: =IF(MAX(C205:C216)-MIN(C205:C216)<5,AVERAGEIF(C205:C216,">0",I205:I216), IF(FORECAST($C201,I$205:I$216,$C$205:$C$216)<0,0, IF(FORECAST($C201,I$205:I$216,$C$205:$C$216)>100,100, FORECAST($C201,I$205:I$216,$C$205:$C$216)))) -> 23.08380438 | M201: =IF(MAX(C205:C216)-MIN(C205:C216)<5,AVERAGEIF(C205:C216,">0",M205:M216), IF(FORECAST($C201,M$205:M$216,$C$205:$C$216)<0,0, IF(FORECAST($C201,M$205:M$216,$C$205:$C$216)>100,100, FORECAST($C201,M$205:M$216,$C$205:$C$216)))) -> 31.83525722 | N201: =IF(MAX(C205:C216)-MIN(C205:C216)<5,AVERAGEIF(C205:C216,">0",N205:N216), IF(FORECAST($C201,N$205:N$216,$C$205:$C$216)<0,0, IF(FORECAST($C201,N$205:N$216,$C$205:$C$216)>100,100, FORECAST($C201,N$205:N$216,$C$205:$C$216)))) -> 38.27388864 | R201: =IF(MAX(C205:C216)-MIN(C205:C216)<5,AVERAGEIF(C205:C216,">0",R205:R216), IF(FORECAST($C201,R$205:R$216,$C$205:$C$216)<0,0, IF(FORECAST($C201,R$205:R$216,$C$205:$C$216)>100,100, FORECAST($C201,R$205:R$216,$C$205:$C$216)))) -> 23.25922648 | S201: =IF(MAX(C205:C216)-MIN(C205:C216)<5,AVERAGEIF(C205:C216,">0",S205:S216), IF(FORECAST($C201,S$205:S$216,$C$205:$C$216)<0,0, IF(FORECAST($C201,S$205:S$216,$C$205:$C$216)>100,100, FORECAST($C201,S$205:S$216,$C$205:$C$216)))) -> 61.74122255 | W201: =IF(MAX(C205:C216)-MIN(C205:C216)<5,AVERAGEIF(C205:C216,">0",W205:W216), IF(FORECAST($C201,W$205:W$216,$C$205:$C$216)<0,0, IF(FORECAST($C201,W$205:W$216,$C$205:$C$216)>100,100, FORECAST($C201,W$205:W$216,$C$205:$C$216)))) -> 8.799337942 | X201: =IF(MAX(C205:C216)-MIN(C205:C216)<5,AVERAGEIF(C205:C216,">0",X205:X216), IF(FORECAST($C201,X$205:X$216,$C$205:$C$216)<0,0, IF(FORECAST($C201,X$205:X$216,$C$205:$C$216)>100,100, FORECAST($C201,X$205:X$216,$C$205:$C$216)))) -> 85.2789572 | AB201: =IF(MAX(C205:C216)-MIN(C205:C216)<5,AVERAGEIF(C205:C216,">0",AB205:AB216), IF(FORECAST($C201,AB$205:AB$216,$C$205:$C$216)<0,0, IF(FORECAST($C201,AB$205:AB$216,$C$205:$C$216)>100,100, FORECAST($C201,AB$205:AB$216,$C$205:$C$216)))) -> 3.759229563
C202: =MaxRegYear(C200,C205:C216) -> 2018 | D202: =IF(MAX(C205:C216)-MIN(C205:C216)<5,AVERAGEIF(C205:C216,">0",D205:D216), IF(FORECAST($C202,D$205:D$216,$C$205:$C$216)<0,0, IF(FORECAST($C202,D$205:D$216,$C$205:$C$216)>100,100, FORECAST($C202,D$205:D$216,$C$205:$C$216)))) -> 20.57048292 | H202: =IF(MAX(C205:C216)-MIN(C205:C216)<5,AVERAGEIF(C205:C216,">0",H205:H216), IF(FORECAST($C202,H$205:H$216,$C$205:$C$216)<0,0, IF(FORECAST($C202,H$205:H$216,$C$205:$C$216)>100,100, FORECAST($C202,H$205:H$216,$C$205:$C$216)))) -> 21.91123684 | I202: =IF(MAX(C205:C216)-MIN(C205:C216)<5,AVERAGEIF(C205:C216,">0",I205:I216), IF(FORECAST($C202,I$205:I$216,$C$205:$C$216)<0,0, IF(FORECAST($C202,I$205:I$216,$C$205:$C$216)>100,100, FORECAST($C202,I$205:I$216,$C$205:$C$216)))) -> 29.01838818 | M202: =IF(MAX(C205:C216)-MIN(C205:C216)<5,AVERAGEIF(C205:C216,">0",M205:M216), IF(FORECAST($C202,M$205:M$216,$C$205:$C$216)<0,0, IF(FORECAST($C202,M$205:M$216,$C$205:$C$216)>100,100, FORECAST($C202,M$205:M$216,$C$205:$C$216)))) -> 6.003712009 | N202: =IF(MAX(C205:C216)-MIN(C205:C216)<5,AVERAGEIF(C205:C216,">0",N205:N216), IF(FORECAST($C202,N$205:N$216,$C$205:$C$216)<0,0, IF(FORECAST($C202,N$205:N$216,$C$205:$C$216)>100,100, FORECAST($C202,N$205:N$216,$C$205:$C$216)))) -> 51.02784814 | R202: =IF(MAX(C205:C216)-MIN(C205:C216)<5,AVERAGEIF(C205:C216,">0",R205:R216), IF(FORECAST($C202,R$205:R$216,$C$205:$C$216)<0,0, IF(FORECAST($C202,R$205:R$216,$C$205:$C$216)>100,100, FORECAST($C202,R$205:R$216,$C$205:$C$216)))) -> 0.8069228934 | S202: =IF(MAX(C205:C216)-MIN(C205:C216)<5,AVERAGEIF(C205:C216,">0",S205:S216), IF(FORECAST($C202,S$205:S$216,$C$205:$C$216)<0,0, IF(FORECAST($C202,S$205:S$216,$C$205:$C$216)>100,100, FORECAST($C202,S$205:S$216,$C$205:$C$216)))) -> 69.17783188 | W202: =IF(MAX(C205:C216)-MIN(C205:C216)<5,AVERAGEIF(C205:C216,">0",W205:W216), IF(FORECAST($C202,W$205:W$216,$C$205:$C$216)<0,0, IF(FORECAST($C202,W$205:W$216,$C$205:$C$216)>100,100, FORECAST($C202,W$205:W$216,$C$205:$C$216)))) -> 0 | X202: =IF(MAX(C205:C216)-MIN(C205:C216)<5,AVERAGEIF(C205:C216,">0",X205:X216), IF(FORECAST($C202,X$205:X$216,$C$205:$C$216)<0,0, IF(FORECAST($C202,X$205:X$216,$C$205:$C$216)>100,100, FORECAST($C202,X$205:X$216,$C$205:$C$216)))) -> 88.47337116 | AB202: =IF(MAX(C205:C216)-MIN(C205:C216)<5,AVERAGEIF(C205:C216,">0",AB205:AB216), IF(FORECAST($C202,AB$205:AB$216,$C$205:$C$216)<0,0, IF(FORECAST($C202,AB$205:AB$216,$C$205:$C$216)>100,100, FORECAST($C202,AB$205:AB$216,$C$205:$C$216)))) -> 0
B204: Survey | C204: Year | D204: Improved | E204: Not shared | H204: Open defecation | I204: Improved | J204: Not shared | M204: Open defecation | N204: Improved | O204: Not shared | R204: Open defecation | S204: Improved | T204: Not shared | W204: Open defecation | X204: Improved | Y204: Not shared | AB204: Open defecation
B205: DHS00 | C205: 2000 | D205: =IF(ISERROR(INDIRECT(CONCATENATE($B205,"!H122"))),"",INDIRECT(CONCATENATE($B205,"!H122"))) -> 11.24552453 | E205: =IF(ISERROR(INDIRECT(CONCATENATE($B205,"!H129"))),"",INDIRECT(CONCATENATE($B205,"!H129"))) -> N/A | H205: =IF(ISERROR(INDIRECT(CONCATENATE($B205,"!H127"))),"",INDIRECT(CONCATENATE($B205,"!H127"))) -> 50.20740898 | I205: =IF(ISERROR(INDIRECT(CONCATENATE($B205,"!I122"))),"",INDIRECT(CONCATENATE($B205,"!I122"))) -> 18.01357296 | J205: =IF(ISERROR(INDIRECT(CONCATENATE($B205,"!I129"))),"",INDIRECT(CONCATENATE($B205,"!I129"))) -> N/A | M205: =IF(ISERROR(INDIRECT(CONCATENATE($B205,"!I127"))),"",INDIRECT(CONCATENATE($B205,"!I127"))) -> 38.90024525 | N205: =IF(ISERROR(INDIRECT(CONCATENATE($B205,"!J122"))),"",INDIRECT(CONCATENATE($B205,"!J122"))) -> 35.04338992 | O205: =IF(ISERROR(INDIRECT(CONCATENATE($B205,"!J129"))),"",INDIRECT(CONCATENATE($B205,"!J129"))) -> N/A | R205: =IF(ISERROR(INDIRECT(CONCATENATE($B205,"!J127"))),"",INDIRECT(CONCATENATE($B205,"!J127"))) -> 29.39636868 | S205: =IF(ISERROR(INDIRECT(CONCATENATE($B205,"!K122"))),"",INDIRECT(CONCATENATE($B205,"!K122"))) -> 60.44102328 | T205: =IF(ISERROR(INDIRECT(CONCATENATE($B205,"!K129"))),"",INDIRECT(CONCATENATE($B205,"!K129"))) -> N/A | W205: =IF(ISERROR(INDIRECT(CONCATENATE($B205,"!K127"))),"",INDIRECT(CONCATENATE($B205,"!K127"))) -> 11.7457495 | X205: =IF(ISERROR(INDIRECT(CONCATENATE($B205,"!L122"))),"",INDIRECT(CONCATENATE($B205,"!L122"))) -> 84.20628264 | Y205: =IF(ISERROR(INDIRECT(CONCATENATE($B205,"!L129"))),"",INDIRECT(CONCATENATE($B205,"!L129"))) -> N/A | AB205: =IF(ISERROR(INDIRECT(CONCATENATE($B205,"!L2127"))),"",INDIRECT(CONCATENATE($B205,"!L127"))) -> 4.967620538
B206: DHS05 | C206: 2005 | D206: 21.7544483 | E206: 50.06787405 | H206: 37.00354699 | I206: 32.7264033 | J206: 30.92647899 | M206: 10.58230152 | N206: 48.30759701 | O206: 23.12610611 | R206: 6.603553465 | S206: 69.82967844 | T206: 38.60449628 | W206: 1.483016258 | X206: 89.06655632 | Y206: 60.96062517 | AB206: 0.8749680239
B207: DHS11 | C207: 2011 | D207: 18.26552872 | E207: 44.80735249 | H207: 40.41889832 | I207: 25.34820748 | J207: 22.49535061 | M207: 24.41190948 | N207: 42.12549887 | O207: 32.99026036 | R207: 12.82114768 | S207: 57.19644642 | T207: 26.56812662 | W207: 2.773135809 | X207: 84.28308147 | Y207: 58.49992285 | AB207: 0.3062906069
B208: DHS16 | C208: 2016 | D208: 18.33827682 | E208: 32.04734755 | H208: 21.07024099 | I208: 26.79740497 | J208: 32.30428395 | M208: 7.523825593 | N208: 50.29277455 | O208: 24.27577903 | R208: 4.300629712 | S208: 72.71838086 | T208: 32.3263363 | W208: 0.7320424054 | X208: 89.23886653 | Y208: 57.72291547 | AB208: 0.2604562144
B218: =CONCATENATE("Urban use of sanitation facilities, ",C199,"–",C200) -> Urban use of sanitation facilities, 2000–2020 | S218: Data points used for regression
A297: RURAL | D297: Poorest | I297: Poor | N297: Middle | S297: Rich | X297: Richest
D298: Improved | E298: Basic | F298: Limited | G298: Unimproved | H298: Open defecation | I298: Improved | J298: Basic | K298: Limited | L298: Unimproved | M298: Open defecation | N298: Improved | O298: Basic | P298: Limited | Q298: Unimproved | R298: Open defecation | S298: Improved | T298: Basic | U298: Limited | V298: Unimproved | W298: Open defecation | X298: Improved | Y298: Basic | Z298: Limited | AA298: Unimproved | AB298: Open defecation
A299: Forecast period: | C299: 2000 | D299: =IF((D301+H301)>100,D301*100/(D301+H301),D301) -> 1.491476206 | E299: =D299*AVERAGEIF(E305:E316,">0")/100 -> 1.145401565 | F299: =D299*(100-AVERAGEIF(E305:E316,">0"))/100 -> 0.3460746412 | G299: =100-(E299+F299+H299) -> 3.113774858 | H299: =IF((D301+H301)>100,H301*100/(D301+H301),H301) -> 95.39474894 | I299: =IF((I301+M301)>100,I301*100/(I301+M301),I301) -> 2.387778177 | J299: =I299*AVERAGEIF(J305:J316,">0")/100 -> 2.016211223 | K299: =I299*(100-AVERAGEIF(J305:J316,">0"))/100 -> 0.371566954 | L299: =100-(J299+K299+M299) -> 6.253059474 | M299: =IF((I301+M301)>100,M301*100/(I301+M301),M301) -> 91.35916235 | N299: =IF((N301+R301)>100,N301*100/(N301+R301),N301) -> 2.988757155 | O299: =N299*AVERAGEIF(O305:O316,">0")/100 -> 2.406897318 | P299: =N299*(100-AVERAGEIF(O305:O316,">0"))/100 -> 0.5818598376 | Q299: =100-(O299+P299+R299) -> 7.869500552 | R299: =IF((N301+R301)>100,R301*100/(N301+R301),R301) -> 89.14174229 | S299: =IF((S301+W301)>100,S301*100/(S301+W301),S301) -> 2.926828037 | T299: =S299*AVERAGEIF(T305:T316,">0")/100 -> 2.308043986 | U299: =S299*(100-AVERAGEIF(T305:T316,">0"))/100 -> 0.6187840501 | V299: =100-(T299+U299+W299) -> 11.05120396 | W299: =IF((S301+W301)>100,W301*100/(S301+W301),W301) -> 86.02196801 | X299: =IF((X301+AB301)>100,X301*100/(X301+AB301),X301) -> 3.967711569 | Y299: =X299*AVERAGEIF(Y305:Y316,">0")/100 -> 2.866207564 | Z299: =X299*(100-AVERAGEIF(Y305:Y316,">0"))/100 -> 1.101504005 | AA299: =100-(Y299+Z299+AB299) -> 16.32010907 | AB299: =IF((X301+AB301)>100,AB301*100/(X301+AB301),AB301) -> 79.71217936
C300: 2020 | D300: =IF((D302+H302)>100,D302*100/(D302+H302),D302) -> 6.519077065 | E300: =D300*AVERAGEIF(E305:E316,">0")/100 -> 5.006423195 | F300: =D300*(100-AVERAGEIF(E305:E316,">0"))/100 -> 1.512653871 | G300: =100-(E300+F300+H300) -> 49.88880231 | H300: =IF((D302+H302)>100,H302*100/(D302+H302),H302) -> 43.59212062 | I300: =IF((I302+M302)>100,I302*100/(I302+M302),I302) -> 6.232409078 | J300: =I300*AVERAGEIF(J305:J316,">0")/100 -> 5.262571394 | K300: =I300*(100-AVERAGEIF(J305:J316,">0"))/100 -> 0.969837684 | L300: =100-(J300+K300+M300) -> 60.3416772 | M300: =IF((I302+M302)>100,M302*100/(I302+M302),M302) -> 33.42591372 | N300: =IF((N302+R302)>100,N302*100/(N302+R302),N302) -> 8.32709604 | O300: =N300*AVERAGEIF(O305:O316,">0")/100 -> 6.705953037 | P300: =N300*(100-AVERAGEIF(O305:O316,">0"))/100 -> 1.621143003 | Q300: =100-(O300+P300+R300) -> 65.89202341 | R300: =IF((N302+R302)>100,R302*100/(N302+R302),R302) -> 25.78088055 | S300: =IF((S302+W302)>100,S302*100/(S302+W302),S302) -> 8.832818369 | T300: =S300*AVERAGEIF(T305:T316,">0")/100 -> 6.965401816 | U300: =S300*(100-AVERAGEIF(T305:T316,">0"))/100 -> 1.867416553 | V300: =100-(T300+U300+W300) -> 73.48656329 | W300: =IF((S302+W302)>100,W302*100/(S302+W302),W302) -> 17.68061834 | X300: =IF((X302+AB302)>100,X302*100/(X302+AB302),X302) -> 14.30288967 | Y300: =X300*AVERAGEIF(Y305:Y316,">0")/100 -> 10.33216499 | Z300: =X300*(100-AVERAGEIF(Y305:Y316,">0"))/100 -> 3.970724681 | AA300: =100-(Y300+Z300+AB300) -> 78.8888339 | AB300: =IF((X302+AB302)>100,AB302*100/(X302+AB302),AB302) -> 6.808276429
A301: Regression period: | C301: =MinRegYear(C299,C305:C316) -> 2000 | D301: =IF(MAX(C305:C316)-MIN(C305:C316)<5,AVERAGEIF(C305:C316,">0",D305:D316), IF(FORECAST($C301,D$305:D$316,$C$305:$C$316)<0,0, IF(FORECAST($C301,D$305:D$316,$C$305:$C$316)>100,100, FORECAST($C301,D$305:D$316,$C$305:$C$316)))) -> 1.491476206 | H301: =IF(MAX(C305:C316)-MIN(C305:C316)<5,AVERAGEIF(C305:C316,">0",H305:H316), IF(FORECAST($C301,H$305:H$316,$C$305:$C$316)<0,0, IF(FORECAST($C301,H$305:H$316,$C$305:$C$316)>100,100, FORECAST($C301,H$305:H$316,$C$305:$C$316)))) -> 95.39474894 | I301: =IF(MAX(C305:C316)-MIN(C305:C316)<5,AVERAGEIF(C305:C316,">0",I305:I316), IF(FORECAST($C301,I$305:I$316,$C$305:$C$316)<0,0, IF(FORECAST($C301,I$305:I$316,$C$305:$C$316)>100,100, FORECAST($C301,I$305:I$316,$C$305:$C$316)))) -> 2.387778177 | M301: =IF(MAX(C305:C316)-MIN(C305:C316)<5,AVERAGEIF(C305:C316,">0",M305:M316), IF(FORECAST($C301,M$305:M$316,$C$305:$C$316)<0,0, IF(FORECAST($C301,M$305:M$316,$C$305:$C$316)>100,100, FORECAST($C301,M$305:M$316,$C$305:$C$316)))) -> 91.35916235 | N301: =IF(MAX(C305:C316)-MIN(C305:C316)<5,AVERAGEIF(C305:C316,">0",N305:N316), IF(FORECAST($C301,N$305:N$316,$C$305:$C$316)<0,0, IF(FORECAST($C301,N$305:N$316,$C$305:$C$316)>100,100, FORECAST($C301,N$305:N$316,$C$305:$C$316)))) -> 2.988757155 | R301: =IF(MAX(C305:C316)-MIN(C305:C316)<5,AVERAGEIF(C305:C316,">0",R305:R316), IF(FORECAST($C301,R$305:R$316,$C$305:$C$316)<0,0, IF(FORECAST($C301,R$305:R$316,$C$305:$C$316)>100,100, FORECAST($C301,R$305:R$316,$C$305:$C$316)))) -> 89.14174229 | S301: =IF(MAX(C305:C316)-MIN(C305:C316)<5,AVERAGEIF(C305:C316,">0",S305:S316), IF(FORECAST($C301,S$305:S$316,$C$305:$C$316)<0,0, IF(FORECAST($C301,S$305:S$316,$C$305:$C$316)>100,100, FORECAST($C301,S$305:S$316,$C$305:$C$316)))) -> 2.926828037 | W301: =IF(MAX(C305:C316)-MIN(C305:C316)<5,AVERAGEIF(C305:C316,">0",W305:W316), IF(FORECAST($C301,W$305:W$316,$C$305:$C$316)<0,0, IF(FORECAST($C301,W$305:W$316,$C$305:$C$316)>100,100, FORECAST($C301,W$305:W$316,$C$305:$C$316)))) -> 86.02196801 | X301: =IF(MAX(C305:C316)-MIN(C305:C316)<5,AVERAGEIF(C305:C316,">0",X305:X316), IF(FORECAST($C301,X$305:X$316,$C$305:$C$316)<0,0, IF(FORECAST($C301,X$305:X$316,$C$305:$C$316)>100,100, FORECAST($C301,X$305:X$316,$C$305:$C$316)))) -> 3.967711569 | AB301: =IF(MAX(C305:C316)-MIN(C305:C316)<5,AVERAGEIF(C305:C316,">0",AB305:AB316), IF(FORECAST($C301,AB$305:AB$316,$C$305:$C$316)<0,0, IF(FORECAST($C301,AB$305:AB$316,$C$305:$C$316)>100,100, FORECAST($C301,AB$305:AB$316,$C$305:$C$316)))) -> 79.71217936
C302: =MaxRegYear(C300,C305:C316) -> 2018 | D302: =IF(MAX(C305:C316)-MIN(C305:C316)<5,AVERAGEIF(C305:C316,">0",D305:D316), IF(FORECAST($C302,D$305:D$316,$C$305:$C$316)<0,0, IF(FORECAST($C302,D$305:D$316,$C$305:$C$316)>100,100, FORECAST($C302,D$305:D$316,$C$305:$C$316)))) -> 6.519077065 | H302: =IF(MAX(C305:C316)-MIN(C305:C316)<5,AVERAGEIF(C305:C316,">0",H305:H316), IF(FORECAST($C302,H$305:H$316,$C$305:$C$316)<0,0, IF(FORECAST($C302,H$305:H$316,$C$305:$C$316)>100,100, FORECAST($C302,H$305:H$316,$C$305:$C$316)))) -> 43.59212062 | I302: =IF(MAX(C305:C316)-MIN(C305:C316)<5,AVERAGEIF(C305:C316,">0",I305:I316), IF(FORECAST($C302,I$305:I$316,$C$305:$C$316)<0,0, IF(FORECAST($C302,I$305:I$316,$C$305:$C$316)>100,100, FORECAST($C302,I$305:I$316,$C$305:$C$316)))) -> 6.232409078 | M302: =IF(MAX(C305:C316)-MIN(C305:C316)<5,AVERAGEIF(C305:C316,">0",M305:M316), IF(FORECAST($C302,M$305:M$316,$C$305:$C$316)<0,0, IF(FORECAST($C302,M$305:M$316,$C$305:$C$316)>100,100, FORECAST($C302,M$305:M$316,$C$305:$C$316)))) -> 33.42591372 | N302: =IF(MAX(C305:C316)-MIN(C305:C316)<5,AVERAGEIF(C305:C316,">0",N305:N316), IF(FORECAST($C302,N$305:N$316,$C$305:$C$316)<0,0, IF(FORECAST($C302,N$305:N$316,$C$305:$C$316)>100,100, FORECAST($C302,N$305:N$316,$C$305:$C$316)))) -> 8.32709604 | R302: =IF(MAX(C305:C316)-MIN(C305:C316)<5,AVERAGEIF(C305:C316,">0",R305:R316), IF(FORECAST($C302,R$305:R$316,$C$305:$C$316)<0,0, IF(FORECAST($C302,R$305:R$316,$C$305:$C$316)>100,100, FORECAST($C302,R$305:R$316,$C$305:$C$316)))) -> 25.78088055 | S302: =IF(MAX(C305:C316)-MIN(C305:C316)<5,AVERAGEIF(C305:C316,">0",S305:S316), IF(FORECAST($C302,S$305:S$316,$C$305:$C$316)<0,0, IF(FORECAST($C302,S$305:S$316,$C$305:$C$316)>100,100, FORECAST($C302,S$305:S$316,$C$305:$C$316)))) -> 8.832818369 | W302: =IF(MAX(C305:C316)-MIN(C305:C316)<5,AVERAGEIF(C305:C316,">0",W305:W316), IF(FORECAST($C302,W$305:W$316,$C$305:$C$316)<0,0, IF(FORECAST($C302,W$305:W$316,$C$305:$C$316)>100,100, FORECAST($C302,W$305:W$316,$C$305:$C$316)))) -> 17.68061834 | X302: =IF(MAX(C305:C316)-MIN(C305:C316)<5,AVERAGEIF(C305:C316,">0",X305:X316), IF(FORECAST($C302,X$305:X$316,$C$305:$C$316)<0,0, IF(FORECAST($C302,X$305:X$316,$C$305:$C$316)>100,100, FORECAST($C302,X$305:X$316,$C$305:$C$316)))) -> 14.30288967 | AB302: =IF(MAX(C305:C316)-MIN(C305:C316)<5,AVERAGEIF(C305:C316,">0",AB305:AB316), IF(FORECAST($C302,AB$305:AB$316,$C$305:$C$316)<0,0, IF(FORECAST($C302,AB$305:AB$316,$C$305:$C$316)>100,100, FORECAST($C302,AB$305:AB$316,$C$305:$C$316)))) -> 6.808276429
B304: Survey | C304: Year | D304: Improved | E304: Not shared | H304: Open defecation | I304: Improved | J304: Not shared | M304: Open defecation | N304: Improved | O304: Not shared | R304: Open defecation | S304: Improved | T304: Not shared | W304: Open defecation | X304: Improved | Y304: Not shared | AB304: Open defecation
B305: DHS00 | C305: 2000 | D305: =IF(ISERROR(INDIRECT(CONCATENATE($B305,"!M122"))),"",INDIRECT(CONCATENATE($B305,"!M122"))) -> 0.07732376758 | E305: =IF(ISERROR(INDIRECT(CONCATENATE($B305,"!M129"))),"",INDIRECT(CONCATENATE($B305,"!M129"))) -> N/A | H305: =IF(ISERROR(INDIRECT(CONCATENATE($B305,"!M127"))),"",INDIRECT(CONCATENATE($B305,"!M127"))) -> 97.32610033 | I305: =IF(ISERROR(INDIRECT(CONCATENATE($B305,"!N122"))),"",INDIRECT(CONCATENATE($B305,"!N122"))) -> 0.2278590572 | J305: =IF(ISERROR(INDIRECT(CONCATENATE($B305,"!N129"))),"",INDIRECT(CONCATENATE($B305,"!N129"))) -> N/A | M305: =IF(ISERROR(INDIRECT(CONCATENATE($B305,"!N127"))),"",INDIRECT(CONCATENATE($B305,"!N127"))) -> 94.87051812 | N305: =IF(ISERROR(INDIRECT(CONCATENATE($B305,"!O122"))),"",INDIRECT(CONCATENATE($B305,"!O122"))) -> 0.4096744042 | O305: =IF(ISERROR(INDIRECT(CONCATENATE($B305,"!O129"))),"",INDIRECT(CONCATENATE($B305,"!O129"))) -> N/A | R305: =IF(ISERROR(INDIRECT(CONCATENATE($B305,"!O127"))),"",INDIRECT(CONCATENATE($B305,"!O127"))) -> 92.37507406 | S305: =IF(ISERROR(INDIRECT(CONCATENATE($B305,"!P122"))),"",INDIRECT(CONCATENATE($B305,"!P122"))) -> 0.3838627923 | T305: =IF(ISERROR(INDIRECT(CONCATENATE($B305,"!P129"))),"",INDIRECT(CONCATENATE($B305,"!P129"))) -> N/A | W305: =IF(ISERROR(INDIRECT(CONCATENATE($B305,"!P127"))),"",INDIRECT(CONCATENATE($B305,"!P127"))) -> 88.81934546 | X305: =IF(ISERROR(INDIRECT(CONCATENATE($B305,"!Q122"))),"",INDIRECT(CONCATENATE($B305,"!Q122"))) -> 1.015443842 | Y305: =IF(ISERROR(INDIRECT(CONCATENATE($B305,"!Q129"))),"",INDIRECT(CONCATENATE($B305,"!Q129"))) -> N/A | AB305: =IF(ISERROR(INDIRECT(CONCATENATE($B305,"!Q2127"))),"",INDIRECT(CONCATENATE($B305,"!Q127"))) -> 84.77417105
B306: DHS05 | C306: 2005 | D306: 4.69281115 | E306: 92.73551595 | H306: 83.52098613 | I306: 5.916888443 | J306: 85.63602489 | M306: 73.95492985 | N306: 6.949820678 | O306: 84.72496186 | R306: 69.83708212 | S306: 7.016391909 | T306: 76.84102962 | W306: 64.21671218 | X306: 8.710860643 | Y306: 77.14200092 | AB306: 54.37931096
B307: DHS11 | C307: 2011 | D307: 5.118672629 | E307: 72.64918137 | H307: 52.02237915 | I307: 6.234470101 | J307: 88.4548171 | M307: 47.6048315 | N307: 9.052118624 | O307: 78.09347656 | R307: 43.82427979 | S307: 9.285708927 | T307: 76.06680746 | W307: 41.51360673 | X307: 15.61192468 | Y307: 68.512879 | AB307: 30.14134618
B308: DHS16 | C308: 2016 | D308: 5.015054362 | E308: 65.0048108 | H308: 56.61596869 | I308: 4.006794487 | J308: 79.22555597 | M308: 46.01392792 | N308: 5.033795154 | O308: 78.77669888 | R308: 37.88900122 | S308: 5.520886887 | T308: 83.66677109 | W308: 28.04247492 | X308: 8.906267068 | Y308: 71.06003351 | AB308: 19.9469507
B318: =CONCATENATE("Rural use of sanitation facilities, ",C299,"–",C300) -> Rural use of sanitation facilities, 2000–2020 | S318: Data points used for regression

Sheet Hygiene
B4: Access to hygiene facilities by wealth quintile (%)
B5: =IF(ISERROR(INDIRECT(CONCATENATE($E$32,"!A2"))),"",INDIRECT(CONCATENATE($E$32,"!A2"))) -> Ethiopia
B7: =CONCATENATE("National ",IF(ISERROR(INDIRECT(CONCATENATE($E$32,"!A2"))),"",INDIRECT(CONCATENATE($E$32,"!A210")))) -> National Access to hygiene facilities | K7: =CONCATENATE("Urban ",IF(ISERROR(INDIRECT(CONCATENATE($E$32,"!A2"))),"",INDIRECT(CONCATENATE($E$32,"!A210")))) -> Urban Access to hygiene facilities | S7: =CONCATENATE("Rural ",IF(ISERROR(INDIRECT(CONCATENATE($E$32,"!A2"))),"",INDIRECT(CONCATENATE($E$32,"!A210")))) -> Rural Access to hygiene facilities
E32: =INDEX(B88:B100,A88) -> DHS16 | G32: =IF(ISERROR(INDIRECT(CONCATENATE($E$32,"!A2"))),"",INDIRECT(CONCATENATE($E$32,"!A2"))) -> Ethiopia | K32: Poorest | N32: Poor | Q32: Middle | T32: Rich | W32: Richest
K33: Basic | L33: Limited | M33: No facility | N33: Basic | O33: Limited | P33: No facility | Q33: Basic | R33: Limited | S33: No facility | T33: Basic | U33: Limited | V33: No facility | W33: Basic | X33: Limited | Y33: No facility
B34: >>> Select Survey : | G34: NATIONAL | J34: =IF(ISERROR(INDIRECT(CONCATENATE(#REF!,"!A2"))),"",INDIRECT(CONCATENATE(#REF!,"!A210"))) ->  | K34: =IF(ISERROR(INDIRECT(CONCATENATE($E$32,"!C222"))),"",INDIRECT(CONCATENATE($E$32,"!C222"))) -> 1.390087156 | L34: =IF(ISERROR(INDIRECT(CONCATENATE($E$32,"!C223"))),"",INDIRECT(CONCATENATE($E$32,"!C223"))) -> 38.97714201 | M34: =IF(ISERROR(INDIRECT(CONCATENATE($E$32,"!C224"))),"",INDIRECT(CONCATENATE($E$32,"!C224"))) -> 59.63277084 | N34: =IF(ISERROR(INDIRECT(CONCATENATE($E$32,"!D222"))),"",INDIRECT(CONCATENATE($E$32,"!D222"))) -> 2.887055461 | O34: =IF(ISERROR(INDIRECT(CONCATENATE($E$32,"!D223"))),"",INDIRECT(CONCATENATE($E$32,"!D223"))) -> 46.58140216 | P34: =IF(ISERROR(INDIRECT(CONCATENATE($E$32,"!D224"))),"",INDIRECT(CONCATENATE($E$32,"!D224"))) -> 50.53154238 | Q34: =IF(ISERROR(INDIRECT(CONCATENATE($E$32,"!E222"))),"",INDIRECT(CONCATENATE($E$32,"!E222"))) -> 4.485754779 | R34: =IF(ISERROR(INDIRECT(CONCATENATE($E$32,"!E223"))),"",INDIRECT(CONCATENATE($E$32,"!E223"))) -> 51.63769209 | S34: =IF(ISERROR(INDIRECT(CONCATENATE($E$32,"!E224"))),"",INDIRECT(CONCATENATE($E$32,"!E224"))) -> 43.87655313 | T34: =IF(ISERROR(INDIRECT(CONCATENATE($E$32,"!F222"))),"",INDIRECT(CONCATENATE($E$32,"!F222"))) -> 5.83733883 | U34: =IF(ISERROR(INDIRECT(CONCATENATE($E$32,"!F223"))),"",INDIRECT(CONCATENATE($E$32,"!F223"))) -> 58.87229296 | V34: =IF(ISERROR(INDIRECT(CONCATENATE($E$32,"!F224"))),"",INDIRECT(CONCATENATE($E$32,"!F224"))) -> 35.29036821 | W34: =IF(ISERROR(INDIRECT(CONCATENATE($E$32,"!G222"))),"",INDIRECT(CONCATENATE($E$32,"!G222"))) -> 20.72858496 | X34: =IF(ISERROR(INDIRECT(CONCATENATE($E$32,"!G223"))),"",INDIRECT(CONCATENATE($E$32,"!G223"))) -> 60.27190675 | Y34: =IF(ISERROR(INDIRECT(CONCATENATE($E$32,"!G224"))),"",INDIRECT(CONCATENATE($E$32,"!G224"))) -> 18.99950828
G37: URBAN | J37: =IF(ISERROR(INDIRECT(CONCATENATE(#REF!,"!A2"))),"",INDIRECT(CONCATENATE(#REF!,"!A210"))) ->  | K37: =IF(ISERROR(INDIRECT(CONCATENATE($E$32,"!H222"))),"",INDIRECT(CONCATENATE($E$32,"!H222"))) -> 5.573743532 | L37: =IF(ISERROR(INDIRECT(CONCATENATE($E$32,"!H223"))),"",INDIRECT(CONCATENATE($E$32,"!H223"))) -> 55.01449187 | M37: =IF(ISERROR(INDIRECT(CONCATENATE($E$32,"!H224"))),"",INDIRECT(CONCATENATE($E$32,"!H224"))) -> 39.4117646 | N37: =IF(ISERROR(INDIRECT(CONCATENATE($E$32,"!I222"))),"",INDIRECT(CONCATENATE($E$32,"!I222"))) -> 14.7090219 | O37: =IF(ISERROR(INDIRECT(CONCATENATE($E$32,"!I223"))),"",INDIRECT(CONCATENATE($E$32,"!I223"))) -> 67.01175599 | P37: =IF(ISERROR(INDIRECT(CONCATENATE($E$32,"!I224"))),"",INDIRECT(CONCATENATE($E$32,"!I224"))) -> 18.27922212 | Q37: =IF(ISERROR(INDIRECT(CONCATENATE($E$32,"!J222"))),"",INDIRECT(CONCATENATE($E$32,"!J222"))) -> 22.78375138 | R37: =IF(ISERROR(INDIRECT(CONCATENATE($E$32,"!J223"))),"",INDIRECT(CONCATENATE($E$32,"!J223"))) -> 63.58702894 | S37: =IF(ISERROR(INDIRECT(CONCATENATE($E$32,"!J224"))),"",INDIRECT(CONCATENATE($E$32,"!J224"))) -> 13.62921968 | T37: =IF(ISERROR(INDIRECT(CONCATENATE($E$32,"!K222"))),"",INDIRECT(CONCATENATE($E$32,"!K222"))) -> 27.39108611 | U37: =IF(ISERROR(INDIRECT(CONCATENATE($E$32,"!K223"))),"",INDIRECT(CONCATENATE($E$32,"!K223"))) -> 56.87980946 | V37: =IF(ISERROR(INDIRECT(CONCATENATE($E$32,"!K224"))),"",INDIRECT(CONCATENATE($E$32,"!K224"))) -> 15.72910443 | W37: =IF(ISERROR(INDIRECT(CONCATENATE($E$32,"!L222"))),"",INDIRECT(CONCATENATE($E$32,"!L222"))) -> 46.48347147 | X37: =IF(ISERROR(INDIRECT(CONCATENATE($E$32,"!L223"))),"",INDIRECT(CONCATENATE($E$32,"!L223"))) -> 43.4543978 | Y37: =IF(ISERROR(INDIRECT(CONCATENATE($E$32,"!L224"))),"",INDIRECT(CONCATENATE($E$32,"!L224"))) -> 10.06213073
G40: RURAL | J40: =IF(ISERROR(INDIRECT(CONCATENATE(#REF!,"!A2"))),"",INDIRECT(CONCATENATE(#REF!,"!A210"))) ->  | K40: =IF(ISERROR(INDIRECT(CONCATENATE($E$32,"!M222"))),"",INDIRECT(CONCATENATE($E$32,"!M222"))) -> 0.8732100683 | L40: =IF(ISERROR(INDIRECT(CONCATENATE($E$32,"!M223"))),"",INDIRECT(CONCATENATE($E$32,"!M223"))) -> 38.24779321 | M40: =IF(ISERROR(INDIRECT(CONCATENATE($E$32,"!M224"))),"",INDIRECT(CONCATENATE($E$32,"!M224"))) -> 60.87899672 | N40: =IF(ISERROR(INDIRECT(CONCATENATE($E$32,"!N222"))),"",INDIRECT(CONCATENATE($E$32,"!N222"))) -> 2.909410586 | O40: =IF(ISERROR(INDIRECT(CONCATENATE($E$32,"!N223"))),"",INDIRECT(CONCATENATE($E$32,"!N223"))) -> 45.25306598 | P40: =IF(ISERROR(INDIRECT(CONCATENATE($E$32,"!N224"))),"",INDIRECT(CONCATENATE($E$32,"!N224"))) -> 51.83752343 | Q40: =IF(ISERROR(INDIRECT(CONCATENATE($E$32,"!O222"))),"",INDIRECT(CONCATENATE($E$32,"!O222"))) -> 3.726264083 | R40: =IF(ISERROR(INDIRECT(CONCATENATE($E$32,"!O223"))),"",INDIRECT(CONCATENATE($E$32,"!O223"))) -> 48.46755209 | S40: =IF(ISERROR(INDIRECT(CONCATENATE($E$32,"!O224"))),"",INDIRECT(CONCATENATE($E$32,"!O224"))) -> 47.80618383 | T40: =IF(ISERROR(INDIRECT(CONCATENATE($E$32,"!P222"))),"",INDIRECT(CONCATENATE($E$32,"!P222"))) -> 5.128191345 | U40: =IF(ISERROR(INDIRECT(CONCATENATE($E$32,"!P223"))),"",INDIRECT(CONCATENATE($E$32,"!P223"))) -> 56.67498563 | V40: =IF(ISERROR(INDIRECT(CONCATENATE($E$32,"!P224"))),"",INDIRECT(CONCATENATE($E$32,"!P224"))) -> 38.19682302 | W40: =IF(ISERROR(INDIRECT(CONCATENATE($E$32,"!Q222"))),"",INDIRECT(CONCATENATE($E$32,"!Q222"))) -> 7.617662558 | X40: =IF(ISERROR(INDIRECT(CONCATENATE($E$32,"!Q223"))),"",INDIRECT(CONCATENATE($E$32,"!Q223"))) -> 62.22978478 | Y40: =IF(ISERROR(INDIRECT(CONCATENATE($E$32,"!Q224"))),"",INDIRECT(CONCATENATE($E$32,"!Q224"))) -> 30.15255266
A88: 4 | B88: DHS00
B89: DHS05
B90: DHS11
B91: DHS16
B92: Template

Sheet DHS00
A2: =A1026 -> Ethiopia
A3: =A1034 -> 2000
A4: Use of drinking water sources
A5: by wealth quintile and sub-national region
A6: Notes:
A7: WHO/UNICEF JMP customised wealth index excludes water,
A8: sanitation and hygiene assets.
A9: Survey used for analysis: | B9: =A1025 -> DHS00
A10: Time to source based on: | B10: DHS05
A11: =B1027 -> 
A14: Use of drinking water sources | C14: NATIONAL wealth index quintile | H14: URBAN wealth index quintile | M14: RURAL wealth index quintile | R14: SUB-REGIONS: | BA14: Raw numbers of respondents: | BB14: Use of drinking water sources | BC14: NATIONAL wealth index quintile | BH14: URBAN wealth index quintile | BM14: RURAL wealth index quintile | BR14: SUB-REGIONS:
A15: Weighted percentage (used in graphs) | C15: Poorest | D15: Poor | E15: Middle | F15: Rich | G15: Richest | H15: Poorest | I15: Poor | J15: Middle | K15: Rich | L15: Richest | M15: Poorest | N15: Poor | O15: Middle | P15: Rich | Q15: Richest | R15: Addis | S15: Affar | T15: Amhara | U15: Ben-Gumz | V15: Dire Dawa | W15: Gambela | X15: Harari | Y15: Oromiya | Z15: SNNP | AA15: Somali | AB15: Tigray | BA15: Water data, raw numbers (weighted) | BC15: Poorest | BD15: Poor | BE15: Middle | BF15: Rich | BG15: Richest | BH15: Poorest | BI15: Poor | BJ15: Middle | BK15: Rich | BL15: Richest | BM15: Poorest | BN15: Poor | BO15: Middle | BP15: Rich | BQ15: Richest | BR15: Addis | BS15: Affar | BT15: Amhara | BU15: Ben-Gumz | BV15: Dire Dawa | BW15: Gambela | BX15: Harari | BY15: Oromiya | BZ15: SNNP | CA15: Somali | CB15: Tigray
A16: Water | B16: Improved | C16: =C58+C59+C60+C63+C64+C67 -> 13.36131556 | D16: 11.56595582 | E16: 13.13811439 | F16: 16.29845621 | G16: 64.22263404 | H16: 59.40010769 | I16: 76.45517211 | J16: 92.22459631 | K16: 98.6224736 | L16: 99.8968373 | M16: 10.58487679 | N16: 10.92339143 | O16: 12.12859241 | P16: 16.18044349 | Q16: 16.96438933 | R16: 98.44092927 | S16: 13.51638077 | T16: 16.96558566 | U16: 25.71547193 | V16: 82.54419131 | W16: 37.23624708 | X16: 60.26252155 | Y16: 21.63783015 | Z16: 19.26597576 | AA16: 20.53553552 | AB16: 38.56940971 | BA16: Water | BB16: Improved | BC16: N/A | BD16: N/A | BE16: N/A | BF16: N/A | BG16: N/A | BH16: N/A | BI16: N/A | BJ16: N/A | BK16: N/A | BL16: N/A | BM16: N/A | BN16: N/A | BO16: N/A | BP16: N/A | BQ16: N/A | BR16: N/A | BS16: N/A | BT16: N/A | BU16: N/A | BV16: N/A | BW16: N/A | BX16: N/A | BY16: N/A | BZ16: N/A | CA16: N/A | CB16: N/A
B17: Not Improved | C17: =100-C16 -> 86.63868444 | D17: =100-D16 -> 88.43404418 | E17: 86.86188561 | F17: 83.70154379 | G17: 35.77736596 | H17: 40.59989231 | I17: 23.54482789 | J17: 7.775403693 | K17: 1.3775264 | L17: 0.103162702 | M17: 89.41512321 | N17: 89.07660857 | O17: 87.87140759 | P17: 83.81955651 | Q17: 83.03561067 | R17: 1.559070731 | S17: 86.48361923 | T17: 83.03441434 | U17: 74.28452807 | V17: 17.45580869 | W17: 62.76375292 | X17: 39.73747845 | Y17: 78.36216985 | Z17: 80.73402424 | AA17: 79.46446448 | AB17: 61.43059029 | BB17: Not Improved | BC17: N/A | BD17: N/A | BE17: N/A | BF17: N/A | BG17: N/A | BH17: N/A | BI17: N/A | BJ17: N/A | BK17: N/A | BL17: N/A | BM17: N/A | BN17: N/A | BO17: N/A | BP17: N/A | BQ17: N/A | BR17: N/A | BS17: N/A | BT17: N/A | BU17: N/A | BV17: N/A | BW17: N/A | BX17: N/A | BY17: N/A | BZ17: N/A | CA17: N/A | CB17: N/A
A18: Water ladder | B18: Basic | C18: =C16*'DHS05'!C23/100 -> 8.898636165 | D18: =D16*'DHS05'!D23/100 -> 7.876415911 | E18: =E16*'DHS05'!E23/100 -> 9.446304247 | F18: =F16*'DHS05'!F23/100 -> 12.07715605 | G18: =G16*'DHS05'!G23/100 -> 58.44259697 | H18: =H16*'DHS05'!H23/100 -> 48.6486882 | I18: =I16*'DHS05'!I23/100 -> 71.2562204 | J18: =J16*'DHS05'!J23/100 -> 86.87556972 | K18: =K16*'DHS05'!K23/100 -> 96.55140165 | L18: =L16*'DHS05'!L23/100 -> 99.39735311 | M18: =M16*'DHS05'!M23/100 -> 6.954264048 | N18: =N16*'DHS05'!N23/100 -> 7.548063481 | O18: =O16*'DHS05'!O23/100 -> 8.550657649 | P18: =P16*'DHS05'!P23/100 -> 11.77936286 | Q18: =Q16*'DHS05'!Q23/100 -> 13.38490318 | R18: =R16*'DHS05'!R23/100 -> 94.89705582 | S18: =S16*'DHS05'!S23/100 -> 6.231051535 | T18: =T16*'DHS05'!T23/100 -> 12.01163464 | U18: =U16*'DHS05'!U23/100 -> 19.13231112 | V18: =V16*'DHS05'!V23/100 -> 63.31139473 | W18: =W16*'DHS05'!W23/100 -> 31.09226631 | X18: =X16*'DHS05'!X23/100 -> 46.04056646 | Y18: =Y16*'DHS05'!Y23/100 -> 16.74768054 | Z18: =Z16*'DHS05'!Z23/100 -> 15.22012085 | AA18: =AA16*'DHS05'!AA23/100 -> 11.93114614 | AB18: =AB16*'DHS05'!AB23/100 -> 25.84150451 | BA18: Water ladder | BB18: Basic | BC18: N/A | BD18: N/A | BE18: N/A | BF18: N/A | BG18: N/A | BH18: N/A | BI18: N/A | BJ18: N/A | BK18: N/A | BL18: N/A | BM18: N/A | BN18: N/A | BO18: N/A | BP18: N/A | BQ18: N/A | BR18: N/A | BS18: N/A | BT18: N/A | BU18: N/A | BV18: N/A | BW18: N/A | BX18: N/A | BY18: N/A | BZ18: N/A | CA18: N/A | CB18: N/A
B19: Limited | C19: =C16*'DHS05'!C22/100 -> 4.462679398 | D19: =D16*'DHS05'!D22/100 -> 3.689539905 | E19: =E16*'DHS05'!E22/100 -> 3.691810144 | F19: =F16*'DHS05'!F22/100 -> 4.22130016 | G19: =G16*'DHS05'!G22/100 ->  | H19: =H16*'DHS05'!H22/100 -> 10.75141949 | I19: =I16*'DHS05'!I22/100 -> 5.198951703 | J19: =J16*'DHS05'!J22/100 -> 5.349026586 | K19: =K16*'DHS05'!K22/100 -> 2.071071946 | L19: =L16*'DHS05'!L22/100 -> 0.4994841865 | M19: =M16*'DHS05'!M22/100 -> 3.630612738 | N19: =N16*'DHS05'!N22/100 -> 3.375327953 | O19: =O16*'DHS05'!O22/100 -> 3.577934761 | P19: =P16*'DHS05'!P22/100 -> 4.40108063 | Q19: =Q16*'DHS05'!Q22/100 -> 3.579486149 | R19: =R16*'DHS05'!R22/100 -> 3.543873454 | S19: =S16*'DHS05'!S22/100 -> 7.285329235 | T19: =T16*'DHS05'!T22/100 -> 4.953951012 | U19: =U16*'DHS05'!U22/100 -> 6.583160814 | V19: =V16*'DHS05'!V22/100 -> 19.23279657 | W19: =W16*'DHS05'!W22/100 -> 6.143980768 | X19: =X16*'DHS05'!X22/100 -> 14.22195509 | Y19: =Y16*'DHS05'!Y22/100 -> 4.890149614 | Z19: =Z16*'DHS05'!Z22/100 -> 4.04585491 | AA19: =AA16*'DHS05'!AA22/100 -> 8.604389383 | AB19: =AB16*'DHS05'!AB22/100 -> 12.7279052 | BB19: Limited | BC19: N/A | BD19: N/A | BE19: N/A | BF19: N/A | BG19: N/A | BH19: N/A | BI19: N/A | BJ19: N/A | BK19: N/A | BL19: N/A | BM19: N/A | BN19: N/A | BO19: N/A | BP19: N/A | BQ19: N/A | BR19: N/A | BS19: N/A | BT19: N/A | BU19: N/A | BV19: N/A | BW19: N/A | BX19: N/A | BY19: N/A | BZ19: N/A | CA19: N/A | CB19: N/A
B20: Unimproved | C20: =100-(C18+C19+C21) -> 49.52008543 | D20: =100-(D18+D19+D21) -> 51.97872531 | E20: 52.6898288 | F20: 47.47419295 | H20: 19.37914109 | I20: 12.32157164 | J20: 3.79849469 | K20: 1.183781634 | L20: 0.09105315061 | M20: 51.26445846 | N20: 53.10570647 | O20: 52.61515 | P20: 50.17179145 | Q20: 46.60692632 | R20: 1.173494099 | S20: 17.30625046 | T20: 53.31288065 | U20: 34.17469506 | V20: 17.11417831 | W20: 24.23036116 | X20: 29.9542433 | Y20: 47.7417469 | Z20: 39.0351646 | AA20: 41.00299536 | AB20: 38.64227744 | BB20: Unimproved | BC20: N/A | BD20: N/A | BE20: N/A | BF20: N/A | BG20: N/A | BH20: N/A | BI20: N/A | BJ20: N/A | BK20: N/A | BL20: N/A | BM20: N/A | BN20: N/A | BO20: N/A | BP20: N/A | BQ20: N/A | BR20: N/A | BS20: N/A | BT20: N/A | BU20: N/A | BV20: N/A | BW20: N/A | BX20: N/A | BY20: N/A | BZ20: N/A | CA20: N/A | CB20: N/A
B21: Surface water | C21: =C65+C66 -> 37.118599 | D21: 36.45531888 | E21: 34.17205681 | F21: 36.22735084 | G21: 14.93626076 | H21: 21.22075121 | I21: 11.22325625 | J21: 3.976909004 | K21: 0.1937447661 | L21: 0.01210955138 | M21: 38.15066475 | N21: 35.97090209 | O21: 35.25625759 | P21: 33.64776506 | Q21: 36.42868435 | R21: 0.3855766324 | S21: 69.17736878 | T21: 29.7215337 | U21: 40.109833 | V21: 0.3416303842 | W21: 38.53339176 | X21: 9.783235149 | Y21: 30.62042295 | Z21: 41.69885964 | AA21: 38.46146912 | AB21: 22.78831285 | BB21: Surface water | BC21: N/A | BD21: N/A | BE21: N/A | BF21: N/A | BG21: N/A | BH21: N/A | BI21: N/A | BJ21: N/A | BK21: N/A | BL21: N/A | BM21: N/A | BN21: N/A | BO21: N/A | BP21: N/A | BQ21: N/A | BR21: N/A | BS21: N/A | BT21: N/A | BU21: N/A | BV21: N/A | BW21: N/A | BX21: N/A | BY21: N/A | BZ21: N/A | CA21: N/A | CB21: N/A
A22: Improved water point at more than 30 minutes | B22: Yes | C22: N/A | D22: N/A | E22: N/A | F22: N/A | G22: N/A | H22: N/A | I22: N/A | J22: N/A | K22: N/A | L22: N/A | M22: N/A | N22: N/A | O22: N/A | P22: N/A | Q22: N/A | R22: N/A | S22: N/A | T22: N/A | U22: N/A | V22: N/A | W22: N/A | X22: N/A | Y22: N/A | Z22: N/A | AA22: N/A | AB22: N/A | BA22: Improved water point at more than 30 minutes | BB22: Yes | BC22: N/A | BD22: N/A | BE22: N/A | BF22: N/A | BG22: N/A | BH22: N/A | BI22: N/A | BJ22: N/A | BK22: N/A | BL22: N/A | BM22: N/A | BN22: N/A | BO22: N/A | BP22: N/A | BQ22: N/A | BR22: N/A | BS22: N/A | BT22: N/A | BU22: N/A | BV22: N/A | BW22: N/A | BX22: N/A | BY22: N/A | BZ22: N/A | CA22: N/A | CB22: N/A
B23: No | C23: N/A | D23: N/A | E23: N/A | F23: N/A | G23: N/A | H23: N/A | I23: N/A | J23: N/A | K23: N/A | L23: N/A | M23: N/A | N23: N/A | O23: N/A | P23: N/A | Q23: N/A | R23: N/A | S23: N/A | T23: N/A | U23: N/A | V23: N/A | W23: N/A | X23: N/A | Y23: N/A | Z23: N/A | AA23: N/A | AB23: N/A | BB23: No | BC23: N/A | BD23: N/A | BE23: N/A | BF23: N/A | BG23: N/A | BH23: N/A | BI23: N/A | BJ23: N/A | BK23: N/A | BL23: N/A | BM23: N/A | BN23: N/A | BO23: N/A | BP23: N/A | BQ23: N/A | BR23: N/A | BS23: N/A | BT23: N/A | BU23: N/A | BV23: N/A | BW23: N/A | BX23: N/A | BY23: N/A | BZ23: N/A | CA23: N/A | CB23: N/A
A24: Manually calculated ratios | B24: Improved wells
B25: Improved springs
B26: Other
C27: NATIONAL wealth index quintile | H27: URBAN wealth index quintile | M27: RURAL wealth index quintile | R27: SUB-REGIONS: | BA27: Raw numbers of respondents: | BB27: Use of drinking water sources | BC27: NATIONAL wealth index quintile | BH27: URBAN wealth index quintile | BM27: RURAL wealth index quintile | BR27: SUB-REGIONS:
A28: Percentage based on weighted population | C28: Poorest | D28: Poor | E28: Middle | F28: Rich | G28: Richest | H28: Poorest | I28: Poor | J28: Middle | K28: Rich | L28: Richest | M28: Poorest | N28: Poor | O28: Middle | P28: Rich | Q28: Richest | R28: Addis | S28: Affar | T28: Amhara | U28: Ben-Gumz | V28: Dire Dawa | W28: Gambela | X28: Harari | Y28: Oromiya | Z28: SNNP | AA28: Somali | AB28: Tigray | BA28: Water data, raw numbers (weighted) | BC28: Poorest | BD28: Poor | BE28: Middle | BF28: Rich | BG28: Richest | BH28: Poorest | BI28: Poor | BJ28: Middle | BK28: Rich | BL28: Richest | BM28: Poorest | BN28: Poor | BO28: Middle | BP28: Rich | BQ28: Richest | BR28: Addis | BS28: Affar | BT28: Amhara | BU28: Ben-Gumz | BV28: Dire Dawa | BW28: Gambela | BX28: Harari | BY28: Oromiya | BZ28: SNNP | CA28: Somali | CB28: Tigray
A29: Piped water | B29: Yes | C29: 6.92414822 | D29: 4.628139985 | E29: 5.399702302 | F29: 6.194766377 | G29: 56.5189331 | H29: 50.36056425 | I29: 74.23140018 | J29: 83.03247524 | K29: 94.20993036 | L29: 99.8740744 | M29: 4.155178491 | N29: 4.275970916 | O29: 4.754675779 | P29: 6.146311272 | Q29: 6.173283252 | R29: 98.44092927 | S29: 10.78780926 | T29: 9.831539147 | U29: 4.008303708 | V29: 80.12064575 | W29: 15.47725497 | X29: 50.39719194 | Y29: 14.50699706 | Z29: 11.50454753 | AA29: 12.27422061 | AB29: 22.15103209 | BA29: Piped water | BB29: Yes | BC29: N/A | BD29: N/A | BE29: N/A | BF29: N/A | BG29: N/A | BH29: N/A | BI29: N/A | BJ29: N/A | BK29: N/A | BL29: N/A | BM29: N/A | BN29: N/A | BO29: N/A | BP29: N/A | BQ29: N/A | BR29: N/A | BS29: N/A | BT29: N/A | BU29: N/A | BV29: N/A | BW29: N/A | BX29: N/A | BY29: N/A | BZ29: N/A | CA29: N/A | CB29: N/A
B30: No | C30: 93.07585178 | D30: 95.37186002 | E30: 94.6002977 | F30: 93.80523362 | G30: 43.4810669 | H30: 49.63943575 | I30: 25.76859982 | J30: 16.96752476 | K30: 5.790069643 | L30: 0.125925596 | M30: 95.84482151 | N30: 95.72402908 | O30: 95.24532422 | P30: 93.85368873 | Q30: 93.82671675 | R30: 1.559070731 | S30: 89.21219074 | T30: 90.16846085 | U30: 95.99169629 | V30: 19.87935425 | W30: 84.52274503 | X30: 49.60280806 | Y30: 85.49300294 | Z30: 88.49545247 | AA30: 87.72577939 | AB30: 77.84896791 | BB30: No | BC30: N/A | BD30: N/A | BE30: N/A | BF30: N/A | BG30: N/A | BH30: N/A | BI30: N/A | BJ30: N/A | BK30: N/A | BL30: N/A | BM30: N/A | BN30: N/A | BO30: N/A | BP30: N/A | BQ30: N/A | BR30: N/A | BS30: N/A | BT30: N/A | BU30: N/A | BV30: N/A | BW30: N/A | BX30: N/A | BY30: N/A | BZ30: N/A | CA30: N/A | CB30: N/A
A31: Piped water on premises | B31: Yes | C31: 0.2618551067 | D31: 0 | E31: 0.001229810672 | F31: 0.03889542202 | G31: 20.93001503 | H31: 3.942443932 | I31: 7.938001826 | J31: 17.95399497 | K31: 40.7300601 | L31: 76.67334659 | M31: 0 | N31: 0 | O31: 0 | P31: 0 | Q31: 0.03832253528 | R31: 63.36197811 | S31: 2.05426748 | T31: 2.464133294 | U31: 0.3732880188 | V31: 30.48978911 | W31: 1.935525688 | X31: 27.24149088 | Y31: 1.929571203 | Z31: 1.175815116 | AA31: 1.713001622 | AB31: 5.930998375 | BA31: Piped water on premises | BB31: Yes | BC31: N/A | BD31: N/A | BE31: N/A | BF31: N/A | BG31: N/A | BH31: N/A | BI31: N/A | BJ31: N/A | BK31: N/A | BL31: N/A | BM31: N/A | BN31: N/A | BO31: N/A | BP31: N/A | BQ31: N/A | BR31: N/A | BS31: N/A | BT31: N/A | BU31: N/A | BV31: N/A | BW31: N/A | BX31: N/A | BY31: N/A | BZ31: N/A | CA31: N/A | CB31: N/A
B32: No | C32: 99.73814489 | D32: 100 | E32: 99.99877019 | F32: 99.96110458 | G32: 79.06998497 | H32: 96.05755607 | I32: 92.06199817 | J32: 82.04600503 | K32: 59.2699399 | L32: 23.32665341 | M32: 100 | N32: 100 | O32: 100 | P32: 100 | Q32: 99.96167746 | R32: 36.63802189 | S32: 97.94573252 | T32: 97.53586671 | U32: 99.62671198 | V32: 69.51021089 | W32: 98.06447431 | X32: 72.75850912 | Y32: 98.0704288 | Z32: 98.82418488 | AA32: 98.28699838 | AB32: 94.06900163 | BB32: No | BC32: N/A | BD32: N/A | BE32: N/A | BF32: N/A | BG32: N/A | BH32: N/A | BI32: N/A | BJ32: N/A | BK32: N/A | BL32: N/A | BM32: N/A | BN32: N/A | BO32: N/A | BP32: N/A | BQ32: N/A | BR32: N/A | BS32: N/A | BT32: N/A | BU32: N/A | BV32: N/A | BW32: N/A | BX32: N/A | BY32: N/A | BZ32: N/A | CA32: N/A | CB32: N/A
A33: Piped water into dwelling | B33: Yes | C33: N/A | D33: N/A | E33: N/A | F33: N/A | G33: N/A | H33: N/A | I33: N/A | J33: N/A | K33: N/A | L33: N/A | M33: N/A | N33: N/A | O33: N/A | P33: N/A | Q33: N/A | R33: N/A | S33: N/A | T33: N/A | U33: N/A | V33: N/A | W33: N/A | X33: N/A | Y33: N/A | Z33: N/A | AA33: N/A | AB33: N/A | BA33: Piped water into dwelling | BB33: Yes | BC33: N/A | BD33: N/A | BE33: N/A | BF33: N/A | BG33: N/A | BH33: N/A | BI33: N/A | BJ33: N/A | BK33: N/A | BL33: N/A | BM33: N/A | BN33: N/A | BO33: N/A | BP33: N/A | BQ33: N/A | BR33: N/A | BS33: N/A | BT33: N/A | BU33: N/A | BV33: N/A | BW33: N/A | BX33: N/A | BY33: N/A | BZ33: N/A | CA33: N/A | CB33: N/A
B34: No | C34: N/A | D34: N/A | E34: N/A | F34: N/A | G34: N/A | H34: N/A | I34: N/A | J34: N/A | K34: N/A | L34: N/A | M34: N/A | N34: N/A | O34: N/A | P34: N/A | Q34: N/A | R34: N/A | S34: N/A | T34: N/A | U34: N/A | V34: N/A | W34: N/A | X34: N/A | Y34: N/A | Z34: N/A | AA34: N/A | AB34: N/A | BB34: No | BC34: N/A | BD34: N/A | BE34: N/A | BF34: N/A | BG34: N/A | BH34: N/A | BI34: N/A | BJ34: N/A | BK34: N/A | BL34: N/A | BM34: N/A | BN34: N/A | BO34: N/A | BP34: N/A | BQ34: N/A | BR34: N/A | BS34: N/A | BT34: N/A | BU34: N/A | BV34: N/A | BW34: N/A | BX34: N/A | BY34: N/A | BZ34: N/A | CA34: N/A | CB34: N/A
A35: Water source on premises | B35: Yes | C35: 0.3731293711 | D35: 0.3346699635 | E35: 0.2047183458 | F35: 0.8459710929 | G35: 21.27113038 | H35: 3.946321594 | I35: 8.726428751 | J35: 17.95663556 | K35: 40.82299306 | L35: 76.74031411 | M35: 0.1278043883 | N35: 0.3050688746 | O35: 0.2401158871 | P35: 0.6525647794 | Q35: 0.6688136782 | R35: 63.44371568 | S35: 2.471462793 | T35: 2.773045288 | U35: 1.231081932 | V35: 31.03238146 | W35: 1.935525688 | X35: 27.27064083 | Y35: 2.28284548 | Z35: 1.761463289 | AA35: 1.732591702 | AB35: 5.930998375 | BA35: Water source on premises | BB35: Yes | BC35: N/A | BD35: N/A | BE35: N/A | BF35: N/A | BG35: N/A | BH35: N/A | BI35: N/A | BJ35: N/A | BK35: N/A | BL35: N/A | BM35: N/A | BN35: N/A | BO35: N/A | BP35: N/A | BQ35: N/A | BR35: N/A | BS35: N/A | BT35: N/A | BU35: N/A | BV35: N/A | BW35: N/A | BX35: N/A | BY35: N/A | BZ35: N/A | CA35: N/A | CB35: N/A
B36: No | C36: 99.62687063 | D36: 99.66533004 | E36: 99.79528165 | F36: 99.15402891 | G36: 78.72886962 | H36: 96.05367841 | I36: 91.27357125 | J36: 82.04336444 | K36: 59.17700694 | L36: 23.25968589 | M36: 99.87219561 | N36: 99.69493113 | O36: 99.75988411 | P36: 99.34743522 | Q36: 99.33118632 | R36: 36.55628432 | S36: 97.52853721 | T36: 97.22695471 | U36: 98.76891807 | V36: 68.96761854 | W36: 98.06447431 | X36: 72.72935917 | Y36: 97.71715452 | Z36: 98.23853671 | AA36: 98.2674083 | AB36: 94.06900163 | BB36: No | BC36: N/A | BD36: N/A | BE36: N/A | BF36: N/A | BG36: N/A | BH36: N/A | BI36: N/A | BJ36: N/A | BK36: N/A | BL36: N/A | BM36: N/A | BN36: N/A | BO36: N/A | BP36: N/A | BQ36: N/A | BR36: N/A | BS36: N/A | BT36: N/A | BU36: N/A | BV36: N/A | BW36: N/A | BX36: N/A | BY36: N/A | BZ36: N/A | CA36: N/A | CB36: N/A
A37: Improved Water source on premises | B37: Yes | C37: N/A | D37: N/A | E37: N/A | F37: N/A | G37: N/A | H37: N/A | I37: N/A | J37: N/A | K37: N/A | L37: N/A | M37: N/A | N37: N/A | O37: N/A | P37: N/A | Q37: N/A | R37: N/A | S37: N/A | T37: N/A | U37: N/A | V37: N/A | W37: N/A | X37: N/A | Y37: N/A | Z37: N/A | AA37: N/A | AB37: N/A | BA37: Improved water source on premises | BB37: Yes | BC37: N/A | BD37: N/A | BE37: N/A | BF37: N/A | BG37: N/A | BH37: N/A | BI37: N/A | BJ37: N/A | BK37: N/A | BL37: N/A | BM37: N/A | BN37: N/A | BO37: N/A | BP37: N/A | BQ37: N/A | BR37: N/A | BS37: N/A | BT37: N/A | BU37: N/A | BV37: N/A | BW37: N/A | BX37: N/A | BY37: N/A | BZ37: N/A | CA37: N/A | CB37: N/A
B38: No | C38: N/A | D38: N/A | E38: N/A | F38: N/A | G38: N/A | H38: N/A | I38: N/A | J38: N/A | K38: N/A | L38: N/A | M38: N/A | N38: N/A | O38: N/A | P38: N/A | Q38: N/A | R38: N/A | S38: N/A | T38: N/A | U38: N/A | V38: N/A | W38: N/A | X38: N/A | Y38: N/A | Z38: N/A | AA38: N/A | AB38: N/A | BB38: No | BC38: N/A | BD38: N/A | BE38: N/A | BF38: N/A | BG38: N/A | BH38: N/A | BI38: N/A | BJ38: N/A | BK38: N/A | BL38: N/A | BM38: N/A | BN38: N/A | BO38: N/A | BP38: N/A | BQ38: N/A | BR38: N/A | BS38: N/A | BT38: N/A | BU38: N/A | BV38: N/A | BW38: N/A | BX38: N/A | BY38: N/A | BZ38: N/A | CA38: N/A | CB38: N/A
A39: Piped water on premises available when needed | B39: Yes | C39: N/A | D39: N/A | E39: N/A | F39: N/A | G39: N/A | H39: N/A | I39: N/A | J39: N/A | K39: N/A | L39: N/A | M39: N/A | N39: N/A | O39: N/A | P39: N/A | Q39: N/A | R39: N/A | S39: N/A | T39: N/A | U39: N/A | V39: N/A | W39: N/A | X39: N/A | Y39: N/A | Z39: N/A | AA39: N/A | AB39: N/A | BA39: Piped water on premises available when needed | BB39: Yes | BC39: N/A | BD39: N/A | BE39: N/A | BF39: N/A | BG39: N/A | BH39: N/A | BI39: N/A | BJ39: N/A | BK39: N/A | BL39: N/A | BM39: N/A | BN39: N/A | BO39: N/A | BP39: N/A | BQ39: N/A | BR39: N/A | BS39: N/A | BT39: N/A | BU39: N/A | BV39: N/A | BW39: N/A | BX39: N/A | BY39: N/A | BZ39: N/A | CA39: N/A | CB39: N/A
B40: No | C40: N/A | D40: N/A | E40: N/A | F40: N/A | G40: N/A | H40: N/A | I40: N/A | J40: N/A | K40: N/A | L40: N/A | M40: N/A | N40: N/A | O40: N/A | P40: N/A | Q40: N/A | R40: N/A | S40: N/A | T40: N/A | U40: N/A | V40: N/A | W40: N/A | X40: N/A | Y40: N/A | Z40: N/A | AA40: N/A | AB40: N/A | BB40: No | BC40: N/A | BD40: N/A | BE40: N/A | BF40: N/A | BG40: N/A | BH40: N/A | BI40: N/A | BJ40: N/A | BK40: N/A | BL40: N/A | BM40: N/A | BN40: N/A | BO40: N/A | BP40: N/A | BQ40: N/A | BR40: N/A | BS40: N/A | BT40: N/A | BU40: N/A | BV40: N/A | BW40: N/A | BX40: N/A | BY40: N/A | BZ40: N/A | CA40: N/A | CB40: N/A
A41: Water point at more than 30 minutes | B41: Yes | C41: 37.22316883 | D41: 33.90962259 | E41: 29.9370454 | F41: 41.1753711 | G41: 23.47945603 | H41: 36.6334949 | I41: 27.29172088 | J41: 23.14881957 | K41: 16.9872177 | L41: 5.447684519 | M41: 36.63103953 | N41: 33.50775686 | O41: 28.90941218 | P41: 36.74721823 | Q41: 39.35643784 | R41: 7.443888467 | S41: 57.96990392 | T41: 31.75003779 | U41: 21.76359234 | V41: 15.1462632 | W41: 22.50415486 | X41: 40.77585654 | Y41: 35.08489234 | Z41: 29.63860229 | AA41: 78.74326978 | AB41: 41.29290931 | BA41: Water point at more than 30 minutes | BB41: Yes | BC41: N/A | BD41: N/A | BE41: N/A | BF41: N/A | BG41: N/A | BH41: N/A | BI41: N/A | BJ41: N/A | BK41: N/A | BL41: N/A | BM41: N/A | BN41: N/A | BO41: N/A | BP41: N/A | BQ41: N/A | BR41: N/A | BS41: N/A | BT41: N/A | BU41: N/A | BV41: N/A | BW41: N/A | BX41: N/A | BY41: N/A | BZ41: N/A | CA41: N/A | CB41: N/A
B42: No | C42: 62.77683117 | D42: 66.09037741 | E42: 70.0629546 | F42: 58.8246289 | G42: 76.52054397 | H42: 63.3665051 | I42: 72.70827912 | J42: 76.85118043 | K42: 83.0127823 | L42: 94.55231548 | M42: 63.36896047 | N42: 66.49224314 | O42: 71.09058782 | P42: 63.25278177 | Q42: 60.64356216 | R42: 92.55611153 | S42: 42.03009608 | T42: 68.24996221 | U42: 78.23640766 | V42: 84.8537368 | W42: 77.49584514 | X42: 59.22414346 | Y42: 64.91510766 | Z42: 70.36139771 | AA42: 21.25673022 | AB42: 58.70709069 | BB42: No | BC42: N/A | BD42: N/A | BE42: N/A | BF42: N/A | BG42: N/A | BH42: N/A | BI42: N/A | BJ42: N/A | BK42: N/A | BL42: N/A | BM42: N/A | BN42: N/A | BO42: N/A | BP42: N/A | BQ42: N/A | BR42: N/A | BS42: N/A | BT42: N/A | BU42: N/A | BV42: N/A | BW42: N/A | BX42: N/A | BY42: N/A | BZ42: N/A | CA42: N/A | CB42: N/A
A43: Water source available when needed | B43: Yes | C43: N/A | D43: N/A | E43: N/A | F43: N/A | G43: N/A | H43: N/A | I43: N/A | J43: N/A | K43: N/A | L43: N/A | M43: N/A | N43: N/A | O43: N/A | P43: N/A | Q43: N/A | R43: N/A | S43: N/A | T43: N/A | U43: N/A | V43: N/A | W43: N/A | X43: N/A | Y43: N/A | Z43: N/A | AA43: N/A | AB43: N/A | BA43: Water source available when needed | BB43: Yes | BC43: N/A | BD43: N/A | BE43: N/A | BF43: N/A | BG43: N/A | BH43: N/A | BI43: N/A | BJ43: N/A | BK43: N/A | BL43: N/A | BM43: N/A | BN43: N/A | BO43: N/A | BP43: N/A | BQ43: N/A | BR43: N/A | BS43: N/A | BT43: N/A | BU43: N/A | BV43: N/A | BW43: N/A | BX43: N/A | BY43: N/A | BZ43: N/A | CA43: N/A | CB43: N/A
B44: No | C44: N/A | D44: N/A | E44: N/A | F44: N/A | G44: N/A | H44: N/A | I44: N/A | J44: N/A | K44: N/A | L44: N/A | M44: N/A | N44: N/A | O44: N/A | P44: N/A | Q44: N/A | R44: N/A | S44: N/A | T44: N/A | U44: N/A | V44: N/A | W44: N/A | X44: N/A | Y44: N/A | Z44: N/A | AA44: N/A | AB44: N/A | BB44: No | BC44: N/A | BD44: N/A | BE44: N/A | BF44: N/A | BG44: N/A | BH44: N/A | BI44: N/A | BJ44: N/A | BK44: N/A | BL44: N/A | BM44: N/A | BN44: N/A | BO44: N/A | BP44: N/A | BQ44: N/A | BR44: N/A | BS44: N/A | BT44: N/A | BU44: N/A | BV44: N/A | BW44: N/A | BX44: N/A | BY44: N/A | BZ44: N/A | CA44: N/A | CB44: N/A
A45: Improved water source available when needed | B45: Yes | C45: N/A | D45: N/A | E45: N/A | F45: N/A | G45: N/A | H45: N/A | I45: N/A | J45: N/A | K45: N/A | L45: N/A | M45: N/A | N45: N/A | O45: N/A | P45: N/A | Q45: N/A | R45: N/A | S45: N/A | T45: N/A | U45: N/A | V45: N/A | W45: N/A | X45: N/A | Y45: N/A | Z45: N/A | AA45: N/A | AB45: N/A | BA45: Improved water source available when needed | BB45: Yes | BC45: N/A | BD45: N/A | BE45: N/A | BF45: N/A | BG45: N/A | BH45: N/A | BI45: N/A | BJ45: N/A | BK45: N/A | BL45: N/A | BM45: N/A | BN45: N/A | BO45: N/A | BP45: N/A | BQ45: N/A | BR45: N/A | BS45: N/A | BT45: N/A | BU45: N/A | BV45: N/A | BW45: N/A | BX45: N/A | BY45: N/A | BZ45: N/A | CA45: N/A | CB45: N/A
B46: No | C46: N/A | D46: N/A | E46: N/A | F46: N/A | G46: N/A | H46: N/A | I46: N/A | J46: N/A | K46: N/A | L46: N/A | M46: N/A | N46: N/A | O46: N/A | P46: N/A | Q46: N/A | R46: N/A | S46: N/A | T46: N/A | U46: N/A | V46: N/A | W46: N/A | X46: N/A | Y46: N/A | Z46: N/A | AA46: N/A | AB46: N/A | BB46: No | BC46: N/A | BD46: N/A | BE46: N/A | BF46: N/A | BG46: N/A | BH46: N/A | BI46: N/A | BJ46: N/A | BK46: N/A | BL46: N/A | BM46: N/A | BN46: N/A | BO46: N/A | BP46: N/A | BQ46: N/A | BR46: N/A | BS46: N/A | BT46: N/A | BU46: N/A | BV46: N/A | BW46: N/A | BX46: N/A | BY46: N/A | BZ46: N/A | CA46: N/A | CB46: N/A
A47: Microbiological quality at point of collection | B47: Not contaminated (No E. coli in 100 mL) | C47: N/A | D47: N/A | E47: N/A | F47: N/A | G47: N/A | H47: N/A | I47: N/A | J47: N/A | K47: N/A | L47: N/A | M47: N/A | N47: N/A | O47: N/A | P47: N/A | Q47: N/A | R47: N/A | S47: N/A | T47: N/A | U47: N/A | V47: N/A | W47: N/A | X47: N/A | Y47: N/A | Z47: N/A | AA47: N/A | AB47: N/A | BA47: Microbiological quality at point of collection | BB47: Not contaminated (No E. coli in 100 mL) | BC47: N/A | BD47: N/A | BE47: N/A | BF47: N/A | BG47: N/A | BH47: N/A | BI47: N/A | BJ47: N/A | BK47: N/A | BL47: N/A | BM47: N/A | BN47: N/A | BO47: N/A | BP47: N/A | BQ47: N/A | BR47: N/A | BS47: N/A | BT47: N/A | BU47: N/A | BV47: N/A | BW47: N/A | BX47: N/A | BY47: N/A | BZ47: N/A | CA47: N/A | CB47: N/A
B48: Contaminated (E. coli detected in 100 mL) | C48: N/A | D48: N/A | E48: N/A | F48: N/A | G48: N/A | H48: N/A | I48: N/A | J48: N/A | K48: N/A | L48: N/A | M48: N/A | N48: N/A | O48: N/A | P48: N/A | Q48: N/A | R48: N/A | S48: N/A | T48: N/A | U48: N/A | V48: N/A | W48: N/A | X48: N/A | Y48: N/A | Z48: N/A | AA48: N/A | AB48: N/A | BB48: Contaminated (E. coli detected in 100 mL) | BC48: N/A | BD48: N/A | BE48: N/A | BF48: N/A | BG48: N/A | BH48: N/A | BI48: N/A | BJ48: N/A | BK48: N/A | BL48: N/A | BM48: N/A | BN48: N/A | BO48: N/A | BP48: N/A | BQ48: N/A | BR48: N/A | BS48: N/A | BT48: N/A | BU48: N/A | BV48: N/A | BW48: N/A | BX48: N/A | BY48: N/A | BZ48: N/A | CA48: N/A | CB48: N/A
B49: Highly contaminated (>100 CFU/100 mL) | C49: N/A | D49: N/A | E49: N/A | F49: N/A | G49: N/A | H49: N/A | I49: N/A | J49: N/A | K49: N/A | L49: N/A | M49: N/A | N49: N/A | O49: N/A | P49: N/A | Q49: N/A | R49: N/A | S49: N/A | T49: N/A | U49: N/A | V49: N/A | W49: N/A | X49: N/A | Y49: N/A | Z49: N/A | AA49: N/A | AB49: N/A | BB49: Highly contaminated (>100 CFU/100 mL) | BC49: N/A | BD49: N/A | BE49: N/A | BF49: N/A | BG49: N/A | BH49: N/A | BI49: N/A | BJ49: N/A | BK49: N/A | BL49: N/A | BM49: N/A | BN49: N/A | BO49: N/A | BP49: N/A | BQ49: N/A | BR49: N/A | BS49: N/A | BT49: N/A | BU49: N/A | BV49: N/A | BW49: N/A | BX49: N/A | BY49: N/A | BZ49: N/A | CA49: N/A | CB49: N/A
A50: Microbiological quality of improved water sources at point of collection | B50: Not contaminated (No E. coli in 100 mL) | C50: N/A | D50: N/A | E50: N/A | F50: N/A | G50: N/A | H50: N/A | I50: N/A | J50: N/A | K50: N/A | L50: N/A | M50: N/A | N50: N/A | O50: N/A | P50: N/A | Q50: N/A | R50: N/A | S50: N/A | T50: N/A | U50: N/A | V50: N/A | W50: N/A | X50: N/A | Y50: N/A | Z50: N/A | AA50: N/A | AB50: N/A | BA50: Microbiological quality of improved water sources at point of collection | BB50: Not contaminated (No E. coli in 100 mL) | BC50: N/A | BD50: N/A | BE50: N/A | BF50: N/A | BG50: N/A | BH50: N/A | BI50: N/A | BJ50: N/A | BK50: N/A | BL50: N/A | BM50: N/A | BN50: N/A | BO50: N/A | BP50: N/A | BQ50: N/A | BR50: N/A | BS50: N/A | BT50: N/A | BU50: N/A | BV50: N/A | BW50: N/A | BX50: N/A | BY50: N/A | BZ50: N/A | CA50: N/A | CB50: N/A
B51: Contaminated (E. coli detected in 100 mL) | C51: N/A | D51: N/A | E51: N/A | F51: N/A | G51: N/A | H51: N/A | I51: N/A | J51: N/A | K51: N/A | L51: N/A | M51: N/A | N51: N/A | O51: N/A | P51: N/A | Q51: N/A | R51: N/A | S51: N/A | T51: N/A | U51: N/A | V51: N/A | W51: N/A | X51: N/A | Y51: N/A | Z51: N/A | AA51: N/A | AB51: N/A | BB51: Contaminated (E. coli detected in 100 mL) | BC51: N/A | BD51: N/A | BE51: N/A | BF51: N/A | BG51: N/A | BH51: N/A | BI51: N/A | BJ51: N/A | BK51: N/A | BL51: N/A | BM51: N/A | BN51: N/A | BO51: N/A | BP51: N/A | BQ51: N/A | BR51: N/A | BS51: N/A | BT51: N/A | BU51: N/A | BV51: N/A | BW51: N/A | BX51: N/A | BY51: N/A | BZ51: N/A | CA51: N/A | CB51: N/A
B52: Highly contaminated (>100 CFU/100 mL) | C52: N/A | D52: N/A | E52: N/A | F52: N/A | G52: N/A | H52: N/A | I52: N/A | J52: N/A | K52: N/A | L52: N/A | M52: N/A | N52: N/A | O52: N/A | P52: N/A | Q52: N/A | R52: N/A | S52: N/A | T52: N/A | U52: N/A | V52: N/A | W52: N/A | X52: N/A | Y52: N/A | Z52: N/A | AA52: N/A | AB52: N/A | BB52: Highly contaminated (>100 CFU/100 mL) | BC52: N/A | BD52: N/A | BE52: N/A | BF52: N/A | BG52: N/A | BH52: N/A | BI52: N/A | BJ52: N/A | BK52: N/A | BL52: N/A | BM52: N/A | BN52: N/A | BO52: N/A | BP52: N/A | BQ52: N/A | BR52: N/A | BS52: N/A | BT52: N/A | BU52: N/A | BV52: N/A | BW52: N/A | BX52: N/A | BY52: N/A | BZ52: N/A | CA52: N/A | CB52: N/A
A53: Microbiological quality of piped on premises at point of collection | B53: Not contaminated (No E. coli in 100 mL) | C53: N/A | D53: N/A | E53: N/A | F53: N/A | G53: N/A | H53: N/A | I53: N/A | J53: N/A | K53: N/A | L53: N/A | M53: N/A | N53: N/A | O53: N/A | P53: N/A | Q53: N/A | R53: N/A | S53: N/A | T53: N/A | U53: N/A | V53: N/A | W53: N/A | X53: N/A | Y53: N/A | Z53: N/A | AA53: N/A | AB53: N/A | BA53: Microbiological quality of piped on premises at point of collection | BB53: Not contaminated (No E. coli in 100 mL) | BC53: N/A | BD53: N/A | BE53: N/A | BF53: N/A | BG53: N/A | BH53: N/A | BI53: N/A | BJ53: N/A | BK53: N/A | BL53: N/A | BM53: N/A | BN53: N/A | BO53: N/A | BP53: N/A | BQ53: N/A | BR53: N/A | BS53: N/A | BT53: N/A | BU53: N/A | BV53: N/A | BW53: N/A | BX53: N/A | BY53: N/A | BZ53: N/A | CA53: N/A | CB53: N/A
B54: Contaminated (E. coli detected in 100 mL) | C54: N/A | D54: N/A | E54: N/A | F54: N/A | G54: N/A | H54: N/A | I54: N/A | J54: N/A | K54: N/A | L54: N/A | M54: N/A | N54: N/A | O54: N/A | P54: N/A | Q54: N/A | R54: N/A | S54: N/A | T54: N/A | U54: N/A | V54: N/A | W54: N/A | X54: N/A | Y54: N/A | Z54: N/A | AA54: N/A | AB54: N/A | BB54: Contaminated (E. coli detected in 100 mL) | BC54: N/A | BD54: N/A | BE54: N/A | BF54: N/A | BG54: N/A | BH54: N/A | BI54: N/A | BJ54: N/A | BK54: N/A | BL54: N/A | BM54: N/A | BN54: N/A | BO54: N/A | BP54: N/A | BQ54: N/A | BR54: N/A | BS54: N/A | BT54: N/A | BU54: N/A | BV54: N/A | BW54: N/A | BX54: N/A | BY54: N/A | BZ54: N/A | CA54: N/A | CB54: N/A
B55: Highly contaminated (>100 CFU/100 mL) | C55: N/A | D55: N/A | E55: N/A | F55: N/A | G55: N/A | H55: N/A | I55: N/A | J55: N/A | K55: N/A | L55: N/A | M55: N/A | N55: N/A | O55: N/A | P55: N/A | Q55: N/A | R55: N/A | S55: N/A | T55: N/A | U55: N/A | V55: N/A | W55: N/A | X55: N/A | Y55: N/A | Z55: N/A | AA55: N/A | AB55: N/A | BB55: Highly contaminated (>100 CFU/100 mL) | BC55: N/A | BD55: N/A | BE55: N/A | BF55: N/A | BG55: N/A | BH55: N/A | BI55: N/A | BJ55: N/A | BK55: N/A | BL55: N/A | BM55: N/A | BN55: N/A | BO55: N/A | BP55: N/A | BQ55: N/A | BR55: N/A | BS55: N/A | BT55: N/A | BU55: N/A | BV55: N/A | BW55: N/A | BX55: N/A | BY55: N/A | BZ55: N/A | CA55: N/A | CB55: N/A
C56: NATIONAL wealth index quintile | H56: URBAN wealth index quintile | M56: RURAL wealth index quintile | R56: SUB-REGIONS: | BA56: Raw numbers of respondents: | BB56: Use of drinking water sources | BC56: NATIONAL wealth index quintile | BH56: URBAN wealth index quintile | BM56: RURAL wealth index quintile | BR56: SUB-REGIONS:
A57: Percentage based on weighted population | C57: Poorest | D57: Poor | E57: Middle | F57: Rich | G57: Richest | H57: Poorest | I57: Poor | J57: Middle | K57: Rich | L57: Richest | M57: Poorest | N57: Poor | O57: Middle | P57: Rich | Q57: Richest | R57: Addis | S57: Affar | T57: Amhara | U57: Ben-Gumz | V57: Dire Dawa | W57: Gambela | X57: Harari | Y57: Oromiya | Z57: SNNP | AA57: Somali | AB57: Tigray | BA57: Water data, raw numbers (weighted) | BC57: Poorest | BD57: Poor | BE57: Middle | BF57: Rich | BG57: Richest | BH57: Poorest | BI57: Poor | BJ57: Middle | BK57: Rich | BL57: Richest | BM57: Poorest | BN57: Poor | BO57: Middle | BP57: Rich | BQ57: Richest | BR57: Addis | BS57: Affar | BT57: Amhara | BU57: Ben-Gumz | BV57: Dire Dawa | BW57: Gambela | BX57: Harari | BY57: Oromiya | BZ57: SNNP | CA57: Somali | CB57: Tigray
A58: Source of drinking water | B58: Piped into dwelling | C58: 0.001337465179 | D58: 0 | E58: 0.001229810672 | F58: 0 | G58: 0.6423196364 | H58: 0.0250302159 | I58: 0 | J58: 0 | K58: 1.811427065 | L58: 2.641602746 | M58: 0 | N58: 0 | O58: 0 | P58: 0 | Q58: 0 | R58: 1.032273524 | S58: 0 | T58: 0.08801471325 | U58: 0 | V58: 0.3599177151 | W58: 0.2151101156 | X58: 0.5444930349 | Y58: 0.1301729243 | Z58: 0 | AA58: 0 | AB58: 0.3173311888
B59: Piped into compound | C59: 0.2605176416 | D59: 0 | E59: 0 | F59: 0.0389052211 | G59: 20.28769539 | H59: 3.917413716 | I59: 7.938001826 | J59: 17.95399497 | K59: 38.91863304 | L59: 74.03174385 | M59: 0 | N59: 0 | O59: 0 | P59: 0 | Q59: 0.03832253528 | R59: 62.32970459 | S59: 2.05426748 | T59: 2.376118581 | U59: 0.3732880188 | V59: 30.12987139 | W59: 1.720415572 | X59: 26.69699784 | Y59: 1.799398279 | Z59: 1.175815116 | AA59: 1.713001622 | AB59: 5.61830243
B60: Piped outside compound | C60: 6.662293113 | D60: 4.628139985 | E60: 5.398472491 | F60: 6.157421829 | G60: 35.58891808 | H60: 46.41812032 | I60: 66.29339836 | J60: 65.07848027 | K60: 53.47987026 | L60: 23.20072781 | M60: 4.155178491 | N60: 4.275970916 | O60: 4.754675779 | P60: 6.148121402 | Q60: 6.134960716 | R60: 35.07895116 | S60: 8.733541776 | T60: 7.367405852 | U60: 3.635015689 | V60: 49.63085664 | W60: 13.54172928 | X60: 23.15570106 | Y60: 12.57742586 | Z60: 10.32873241 | AA60: 10.56121898 | AB60: 16.23271014
B61: Open well | C61: 2.220623072 | D61: 2.439439838 | E61: 2.602032973 | F61: 6.37652384 | G61: 2.466501144 | H61: 2.186164549 | I61: 4.07037778 | J61: 1.493833756 | K61: 0.6186294131 | L61: 0 | M61: 2.287083671 | N61: 1.914109165 | O61: 2.48769002 | P61: 4.862168199 | Q61: 5.856997836 | R61: 0.3352840282 | S61: 8.110819965 | T61: 2.459032347 | U61: 3.393833883 | V61: 0.2345331592 | W61: 5.415812422 | X61: 2.178170455 | Y61: 3.076830119 | Z61: 1.333564775 | AA61: 33.51647989 | AB61: 8.041827614
B62: Open spring | C62: 47.29946236 | D62: 49.49254151 | E62: 50.08582121 | F62: 40.93728986 | G62: 18.3127097 | H62: 17.16237362 | I62: 8.184202229 | J62: 2.276317009 | K62: 0.3170317093 | L62: 0.02164561766 | M62: 48.97737479 | N62: 51.19159731 | O62: 50.07249254 | P62: 45.22114853 | Q62: 40.65087597 | R62: 0.8382100704 | S62: 8.781753423 | T62: 50.8538483 | U62: 30.78086118 | V62: 16.35356446 | W62: 18.81454874 | X62: 27.72244555 | Y62: 44.66491679 | Z62: 37.58028067 | AA62: 5.860274245 | AB62: 30.60044983
B63: Covered well | C63: 2.26992984 | D63: 2.47831774 | E63: 1.770127872 | F63: 5.814574383 | G63: 1.916367175 | H63: 3.536469426 | I63: 0.8390153543 | J63: 4.635724411 | K63: 0.9620094666 | L63: 0.01377488656 | M63: 2.157800371 | N63: 2.277846536 | O63: 1.866900219 | P63: 5.309444109 | Q63: 3.361395664 | R63: 0 | S63: 2.197012948 | T63: 2.142442002 | U63: 15.32055196 | V63: 0.1242139271 | W63: 18.65635088 | X63: 6.171592345 | Y63: 1.775796724 | Z63: 1.53432731 | AA63: 7.434326648 | AB63: 14.53174497
B64: Covered spring | C64: 4.165065173 | D64: 4.459498091 | E64: 5.968284217 | F64: 4.23559427 | G64: 5.787333756 | H64: 5.503074018 | I64: 1.384756566 | J64: 4.556396657 | K64: 3.450533776 | L64: 0.008988007441 | M64: 4.269402769 | N64: 4.369573982 | O64: 5.507016412 | P64: 4.701605584 | Q64: 7.390223272 | R64: 0 | S64: 0.5315585647 | T64: 4.991604507 | U64: 6.386616262 | V64: 2.299331633 | W64: 3.102641226 | X64: 3.693737266 | Y64: 5.355036361 | Z64: 6.22710092 | AA64: 0 | AB64: 1.869320985
B65: River | C65: 32.72580528 | D65: 32.2362162 | E65: 28.69960399 | F65: 31.79804495 | G65: 13.89537406 | H65: 21.10458051 | I65: 11.22325625 | J65: 3.976909004 | K65: 0.1871724547 | L65: 0.01210955138 | M65: 33.3725613 | N65: 31.97086027 | O65: 30.2707201 | P65: 28.09699791 | Q65: 32.9395001 | R65: 0.3855766324 | S65: 66.29662073 | T65: 29.19653684 | U65: 39.76959077 | V65: 0.3416303842 | W65: 37.60036106 | X65: 9.704206319 | Y65: 24.94098778 | Z65: 35.19119149 | AA65: 33.13771777 | AB65: 21.38489415
B66: Pond/lake/dam | C66: 4.392793722 | D66: 4.219102672 | E66: 5.472452814 | F66: 4.429305884 | G66: 1.040886699 | H66: 0.1161707028 | I66: 0 | J66: 0 | K66: 0.006572311402 | L66: 0 | M66: 4.778103453 | N66: 4.000041824 | O66: 4.985537491 | P66: 5.550767149 | Q66: 3.489184242 | R66: 0 | S66: 2.880748048 | T66: 0.5249968574 | U66: 0.3402422313 | V66: 0 | W66: 0.9330307018 | X66: 0.07902883025 | Y66: 5.679435166 | Z66: 6.507668152 | AA66: 5.323751348 | AB66: 1.403418699
B67: Rainwater | C67: 0.002172329617 | D67: 0 | E67: 0 | F67: 0.05196051147 | G67: 0 | H67: 0 | I67: 0 | J67: 0 | K67: 0 | L67: 0 | M67: 0.002495155164 | N67: 0 | O67: 0 | P67: 0.0212723967 | Q67: 0.03948714374 | R67: 0 | S67: 0 | T67: 0 | U67: 0 | V67: 0 | W67: 0 | X67: 0 | Y67: 0 | Z67: 0 | AA67: 0.8269882663 | AB67: 0
B68: Other | C68: 0 | D68: 0.04674396599 | E68: 0.001974622382 | F68: 0.1603792513 | G68: 0.06189435592 | H68: 0.03060292442 | I68: 0.06699163233 | J68: 0.0283439248 | K68: 0.2481205118 | L68: 0.06940753295 | M68: 0 | N68: 0 | O68: 0.05496744145 | P68: 0.0884747224 | Q68: 0.0990525197 | R68: 0 | S68: 0.413677068 | T68: 0 | U68: 0 | V68: 0.5260806926 | W68: 0 | X68: 0.05362729647 | Y68: 0 | Z68: 0.1213191558 | AA68: 1.626241229 | AB68: 0
A108: =A1026 -> Ethiopia
A109: =A1034 -> 2000
A110: Use of sanitation facilities
A111: by wealth quintile and sub-national region
A112: Notes:
A113: WHO/UNICEF JMP customised wealth index excludes water,
A114: sanitation and hygiene assets.
A115: Survey used for analysis: | B115: =A1025 -> DHS00
A116: =B1030 -> Ratio of Improved latrines based on: | B116: DHS05
A117: =B1029 -> Ratio of Shared improved based on: | B117: DHS05
A120: Use of sanitation facilities | C120: NATIONAL wealth index quintile | H120: URBAN wealth index quintile | M120: RURAL wealth index quintile | R120: SUB-REGIONS: | BA120: Raw numbers of respondents: | BB120: Use of sanitation facilities | BC120: NATIONAL wealth index quintile | BH120: URBAN wealth index quintile | BM120: RURAL wealth index quintile | BR120: SUB-REGIONS:
A121: Weighted percentage (used in graphs) | C121: Poorest | D121: Poor | E121: Middle | F121: Rich | G121: Richest | H121: Poorest | I121: Poor | J121: Middle | K121: Rich | L121: Richest | M121: Poorest | N121: Poor | O121: Middle | P121: Rich | Q121: Richest | R121: Addis | S121: Affar | T121: Amhara | U121: Ben-Gumz | V121: Dire Dawa | W121: Gambela | X121: Harari | Y121: Oromiya | Z121: SNNP | AA121: Somali | AB121: Tigray | BA121: Sanitation data, raw numbers (weighted) | BC121: Poorest | BD121: Poor | BE121: Middle | BF121: Rich | BG121: Richest | BH121: Poorest | BI121: Poor | BJ121: Middle | BK121: Rich | BL121: Richest | BM121: Poorest | BN121: Poor | BO121: Middle | BP121: Rich | BQ121: Richest | BR121: Addis | BS121: Affar | BT121: Amhara | BU121: Ben-Gumz | BV121: Dire Dawa | BW121: Gambela | BX121: Harari | BY121: Oromiya | BZ121: SNNP | CA121: Somali | CB121: Tigray
A122: Sanitation | B122: Improved | C122: =C153+C155+C154*'DHS05'!C130/100 -> 0.1688031643 | D122: =D153+D155+D154*'DHS05'!D130/100 -> 0.2491962618 | E122: =E153+E155+E154*'DHS05'!E130/100 -> 0.4949659589 | F122: =F153+F155+F154*'DHS05'!F130/100 -> 0.3231159982 | G122: =G153+G155+G154*'DHS05'!G130/100 -> 24.21754707 | H122: =H153+H155+H154*'DHS05'!H130/100 -> 11.24552453 | I122: =I153+I155+I154*'DHS05'!I130/100 -> 18.01357296 | J122: =J153+J155+J154*'DHS05'!J130/100 -> 35.04338992 | K122: =K153+K155+K154*'DHS05'!K130/100 -> 60.44102328 | L122: =L153+L155+L154*'DHS05'!L130/100 -> 84.20628264 | M122: =M153+M155+M154*'DHS05'!M130/100 -> 0.07732376758 | N122: =N153+N155+N154*'DHS05'!N130/100 -> 0.2278590572 | O122: =O153+O155+O154*'DHS05'!O130/100 -> 0.4096744042 | P122: =P153+P155+P154*'DHS05'!P130/100 -> 0.3838627923 | Q122: =Q153+Q155+Q154*'DHS05'!Q130/100 -> 1.015443842 | R122: =R153+R155+R154*'DHS05'!R130/100 -> 65.87371925 | S122: =S153+S155+S154*'DHS05'!S130/100 -> 5.331931549 | T122: =T153+T155+T154*'DHS05'!T130/100 -> 1.028801469 | U122: =U153+U155+U154*'DHS05'!U130/100 -> 2.131934948 | V122: =V153+V155+V154*'DHS05'!V130/100 -> 52.04689326 | W122: =W153+W155+W154*'DHS05'!W130/100 -> 6.064935907 | X122: =X153+X155+X154*'DHS05'!X130/100 -> 29.69663437 | Y122: =Y153+Y155+Y154*'DHS05'!Y130/100 -> 3.377236198 | Z122: =Z153+Z155+Z154*'DHS05'!Z130/100 -> 0.8282251489 | AA122: =AA153+AA155+AA154*'DHS05'!AA130/100 -> 15.40182023 | AB122: =AB153+AB155+AB154*'DHS05'!AB130/100 -> 6.995545763 | BA122: Sanitation | BB122: Improved | BC122: N/A | BD122: N/A | BE122: N/A | BF122: N/A | BG122: N/A | BH122: N/A | BI122: N/A | BJ122: N/A | BK122: N/A | BL122: N/A | BM122: N/A | BN122: N/A | BO122: N/A | BP122: N/A | BQ122: N/A | BR122: N/A | BS122: N/A | BT122: N/A | BU122: N/A | BV122: N/A | BW122: N/A | BX122: N/A | BY122: N/A | BZ122: N/A | CA122: N/A | CB122: N/A
B123: Not Improved | C123: =100-C122 -> 99.83119684 | D123: =100-D122 -> 99.75080374 | E123: 99.50503404 | F123: 99.676884 | G123: 75.78245293 | H123: 88.75447547 | I123: 81.98642704 | J123: 64.95661008 | K123: 39.55897672 | L123: 15.79371736 | M123: 99.92267623 | N123: 99.77214094 | O123: 99.5903256 | P123: 99.61613721 | Q123: 98.98455616 | R123: 34.12628075 | S123: 94.66806845 | T123: 98.97119853 | U123: 97.86806505 | V123: 47.95310674 | W123: 93.93506409 | X123: 70.30336563 | Y123: 96.6227638 | Z123: 99.17177485 | AA123: 84.59817977 | AB123: 93.00445424 | BB123: Not Improved | BC123: N/A | BD123: N/A | BE123: N/A | BF123: N/A | BG123: N/A | BH123: N/A | BI123: N/A | BJ123: N/A | BK123: N/A | BL123: N/A | BM123: N/A | BN123: N/A | BO123: N/A | BP123: N/A | BQ123: N/A | BR123: N/A | BS123: N/A | BT123: N/A | BU123: N/A | BV123: N/A | BW123: N/A | BX123: N/A | BY123: N/A | BZ123: N/A | CA123: N/A | CB123: N/A
A124: Sanitation ladder | B124: Basic | C124: =C122*'DHS05'!C129/100 -> 0.1541636923 | D124: =D122*'DHS05'!D129/100 -> 0.2157454581 | E124: =E122*'DHS05'!E129/100 -> 0.4024769534 | F124: =F122*'DHS05'!F129/100 -> 0.2614445187 | G124: =G122*'DHS05'!G129/100 -> 11.34730568 | H124: =H122*'DHS05'!H129/100 -> 5.630395056 | I124: =I122*'DHS05'!I129/100 -> 5.570963858 | J124: =J122*'DHS05'!J129/100 -> 8.104171538 | K124: =K122*'DHS05'!K129/100 -> 23.33295258 | L124: =L122*'DHS05'!L129/100 -> 51.33267633 | M124: =M122*'DHS05'!M129/100 -> 0.07170659481 | N124: =N122*'DHS05'!N129/100 -> 0.1951294389 | O124: =O122*'DHS05'!O129/100 -> 0.3470964827 | P124: =P122*'DHS05'!P129/100 -> 0.294964122 | Q124: =Q122*'DHS05'!Q129/100 -> 0.783333698 | R124: =R122*'DHS05'!R129/100 -> 24.24819569 | S124: =S122*'DHS05'!S129/100 -> 3.241306542 | T124: =T122*'DHS05'!T129/100 -> 0.6523637865 | U124: =U122*'DHS05'!U129/100 -> 1.246574771 | V124: =V122*'DHS05'!V129/100 -> 24.79326948 | W124: =W122*'DHS05'!W129/100 -> 3.988566566 | X124: =X122*'DHS05'!X129/100 -> 14.68656519 | Y124: =Y122*'DHS05'!Y129/100 -> 2.246698832 | Z124: =Z122*'DHS05'!Z129/100 -> 0.7023326233 | AA124: =AA122*'DHS05'!AA129/100 -> 7.444086005 | AB124: =AB122*'DHS05'!AB129/100 -> 2.354335364 | BA124: Sanitation ladder | BB124: Basic | BC124: N/A | BD124: N/A | BE124: N/A | BF124: N/A | BG124: N/A | BH124: N/A | BI124: N/A | BJ124: N/A | BK124: N/A | BL124: N/A | BM124: N/A | BN124: N/A | BO124: N/A | BP124: N/A | BQ124: N/A | BR124: N/A | BS124: N/A | BT124: N/A | BU124: N/A | BV124: N/A | BW124: N/A | BX124: N/A | BY124: N/A | BZ124: N/A | CA124: N/A | CB124: N/A
B125: Limited | C125: =C122*'DHS05'!C128/100 -> 0.01463947205 | D125: =D122*'DHS05'!D128/100 -> 0.03345080365 | E125: =E122*'DHS05'!E128/100 -> 0.09248900553 | F125: =F122*'DHS05'!F128/100 -> 0.06167147947 | G125: =G122*'DHS05'!G128/100 -> 12.87024139 | H125: =H122*'DHS05'!H128/100 -> 5.615129471 | I125: =I122*'DHS05'!I128/100 -> 12.44260911 | J125: =J122*'DHS05'!J128/100 -> 26.93921838 | K125: =K122*'DHS05'!K128/100 -> 37.1080707 | L125: =L122*'DHS05'!L128/100 -> 32.87360631 | M125: =M122*'DHS05'!M128/100 -> 0.005617172765 | N125: =N122*'DHS05'!N128/100 -> 0.03272961826 | O125: =O122*'DHS05'!O128/100 -> 0.06257792149 | P125: =P122*'DHS05'!P128/100 -> 0.08889867037 | Q125: =Q122*'DHS05'!Q128/100 -> 0.2321101441 | R125: =R122*'DHS05'!R128/100 -> 41.62552357 | S125: =S122*'DHS05'!S128/100 -> 2.090625007 | T125: =T122*'DHS05'!T128/100 -> 0.3764376829 | U125: =U122*'DHS05'!U128/100 -> 0.8853601772 | V125: =V122*'DHS05'!V128/100 -> 27.25362378 | W125: =W122*'DHS05'!W128/100 -> 2.076369341 | X125: =X122*'DHS05'!X128/100 -> 15.01006918 | Y125: =Y122*'DHS05'!Y128/100 -> 1.130537365 | Z125: =Z122*'DHS05'!Z128/100 -> 0.1258925256 | AA125: =AA122*'DHS05'!AA128/100 -> 7.957734229 | AB125: =AB122*'DHS05'!AB128/100 -> 4.641210399 | BB125: Limited | BC125: N/A | BD125: N/A | BE125: N/A | BF125: N/A | BG125: N/A | BH125: N/A | BI125: N/A | BJ125: N/A | BK125: N/A | BL125: N/A | BM125: N/A | BN125: N/A | BO125: N/A | BP125: N/A | BQ125: N/A | BR125: N/A | BS125: N/A | BT125: N/A | BU125: N/A | BV125: N/A | BW125: N/A | BX125: N/A | BY125: N/A | BZ125: N/A | CA125: N/A | CB125: N/A
B126: Unimproved | C126: =100-(C124+C125+C127) -> 5.355439618 | D126: =100-(D124+D125+D127) -> 5.6834049 | E126: 7.856458843 | F126: 11.25647204 | G126: 32.69956394 | H126: 38.5470665 | I126: 43.08618179 | J126: 35.5602414 | K126: 27.81322722 | L126: 10.82609682 | M126: 2.596575899 | N126: 4.90162282 | O126: 7.21525154 | P126: 10.79679175 | Q126: 14.21038511 | R126: 21.67428658 | S126: 2.107910772 | T126: 4.768278483 | U126: 35.3957089 | V126: 11.41814894 | W126: 25.6229905 | X126: 12.68235157 | Y126: 14.82434812 | Z126: 18.37625137 | AA126: 9.600321629 | AB126: 9.412713406 | BB126: Unimproved | BC126: N/A | BD126: N/A | BE126: N/A | BF126: N/A | BG126: N/A | BH126: N/A | BI126: N/A | BJ126: N/A | BK126: N/A | BL126: N/A | BM126: N/A | BN126: N/A | BO126: N/A | BP126: N/A | BQ126: N/A | BR126: N/A | BS126: N/A | BT126: N/A | BU126: N/A | BV126: N/A | BW126: N/A | BX126: N/A | BY126: N/A | BZ126: N/A | CA126: N/A | CB126: N/A
B127: Open defecation | C127: =C156 -> 94.47575722 | D127: =D156 -> 94.06739884 | E127: 91.6485752 | F127: 88.42041196 | G127: 43.08288899 | H127: 50.20740898 | I127: 38.90024525 | J127: 29.39636868 | K127: 11.7457495 | L127: 4.967620538 | M127: 97.32610033 | N127: 94.87051812 | O127: 92.37507406 | P127: 88.81934546 | Q127: 84.77417105 | R127: 12.45199417 | S127: 92.56015768 | T127: 94.20292005 | U127: 62.47235616 | V127: 36.5349578 | W127: 68.31207359 | X127: 57.62101406 | Y127: 81.79841568 | Z127: 80.79552348 | AA127: 74.99785814 | AB127: 83.59174083 | BB127: Open defecation | BC127: N/A | BD127: N/A | BE127: N/A | BF127: N/A | BG127: N/A | BH127: N/A | BI127: N/A | BJ127: N/A | BK127: N/A | BL127: N/A | BM127: N/A | BN127: N/A | BO127: N/A | BP127: N/A | BQ127: N/A | BR127: N/A | BS127: N/A | BT127: N/A | BU127: N/A | BV127: N/A | BW127: N/A | BX127: N/A | BY127: N/A | BZ127: N/A | CA127: N/A | CB127: N/A
A128: Shared among Improved Sanitation | B128: Yes | C128: N/A | D128: N/A | E128: N/A | F128: N/A | G128: N/A | H128: N/A | I128: N/A | J128: N/A | K128: N/A | L128: N/A | M128: N/A | N128: N/A | O128: N/A | P128: N/A | Q128: N/A | R128: N/A | S128: N/A | T128: N/A | U128: N/A | V128: N/A | W128: N/A | X128: N/A | Y128: N/A | Z128: N/A | AA128: N/A | AB128: N/A | BA128: Shared among improved sanitation facilities | BB128: Yes | BC128: N/A | BD128: N/A | BE128: N/A | BF128: N/A | BG128: N/A | BH128: N/A | BI128: N/A | BJ128: N/A | BK128: N/A | BL128: N/A | BM128: N/A | BN128: N/A | BO128: N/A | BP128: N/A | BQ128: N/A | BR128: N/A | BS128: N/A | BT128: N/A | BU128: N/A | BV128: N/A | BW128: N/A | BX128: N/A | BY128: N/A | BZ128: N/A | CA128: N/A | CB128: N/A
B129: No | C129: N/A | D129: N/A | E129: N/A | F129: N/A | G129: N/A | H129: N/A | I129: N/A | J129: N/A | K129: N/A | L129: N/A | M129: N/A | N129: N/A | O129: N/A | P129: N/A | Q129: N/A | R129: N/A | S129: N/A | T129: N/A | U129: N/A | V129: N/A | W129: N/A | X129: N/A | Y129: N/A | Z129: N/A | AA129: N/A | AB129: N/A | BB129: No | BC129: N/A | BD129: N/A | BE129: N/A | BF129: N/A | BG129: N/A | BH129: N/A | BI129: N/A | BJ129: N/A | BK129: N/A | BL129: N/A | BM129: N/A | BN129: N/A | BO129: N/A | BP129: N/A | BQ129: N/A | BR129: N/A | BS129: N/A | BT129: N/A | BU129: N/A | BV129: N/A | BW129: N/A | BX129: N/A | BY129: N/A | BZ129: N/A | CA129: N/A | CB129: N/A
A130: Manually calculated ratios | B130: Improved latrines
B131: Other
B132: Other
C133: NATIONAL wealth index quintile | H133: URBAN wealth index quintile | M133: RURAL wealth index quintile | R133: SUB-REGIONS: | BA133: Raw numbers of respondents: | BB133: Use of sanitation facilities | BC133: NATIONAL wealth index quintile | BH133: URBAN wealth index quintile | BM133: RURAL wealth index quintile | BR133: SUB-REGIONS:
A134: Percentage based on weighted population | C134: Poorest | D134: Poor | E134: Middle | F134: Rich | G134: Richest | H134: Poorest | I134: Poor | J134: Middle | K134: Rich | L134: Richest | M134: Poorest | N134: Poor | O134: Middle | P134: Rich | Q134: Richest | R134: Addis | S134: Affar | T134: Amhara | U134: Ben-Gumz | V134: Dire Dawa | W134: Gambela | X134: Harari | Y134: Oromiya | Z134: SNNP | AA134: Somali | AB134: Tigray | BA134: Sanitation data, raw numbers (weighted) | BC134: Poorest | BD134: Poor | BE134: Middle | BF134: Rich | BG134: Richest | BH134: Poorest | BI134: Poor | BJ134: Middle | BK134: Rich | BL134: Richest | BM134: Poorest | BN134: Poor | BO134: Middle | BP134: Rich | BQ134: Richest | BR134: Addis | BS134: Affar | BT134: Amhara | BU134: Ben-Gumz | BV134: Dire Dawa | BW134: Gambela | BX134: Harari | BY134: Oromiya | BZ134: SNNP | CA134: Somali | CB134: Tigray
A135: Sanitation type | B135: Sewer connection | C135: N/A | D135: N/A | E135: N/A | F135: N/A | G135: N/A | H135: N/A | I135: N/A | J135: N/A | K135: N/A | L135: N/A | M135: N/A | N135: N/A | O135: N/A | P135: N/A | Q135: N/A | R135: N/A | S135: N/A | T135: N/A | U135: N/A | V135: N/A | W135: N/A | X135: N/A | Y135: N/A | Z135: N/A | AA135: N/A | AB135: N/A | BA135: Sanitation type | BB135: Sewer connection | BC135: N/A | BD135: N/A | BE135: N/A | BF135: N/A | BG135: N/A | BH135: N/A | BI135: N/A | BJ135: N/A | BK135: N/A | BL135: N/A | BM135: N/A | BN135: N/A | BO135: N/A | BP135: N/A | BQ135: N/A | BR135: N/A | BS135: N/A | BT135: N/A | BU135: N/A | BV135: N/A | BW135: N/A | BX135: N/A | BY135: N/A | BZ135: N/A | CA135: N/A | CB135: N/A
B136: Septic tank connection | C136: N/A | D136: N/A | E136: N/A | F136: N/A | G136: N/A | H136: N/A | I136: N/A | J136: N/A | K136: N/A | L136: N/A | M136: N/A | N136: N/A | O136: N/A | P136: N/A | Q136: N/A | R136: N/A | S136: N/A | T136: N/A | U136: N/A | V136: N/A | W136: N/A | X136: N/A | Y136: N/A | Z136: N/A | AA136: N/A | AB136: N/A | BB136: Septic tank connection | BC136: N/A | BD136: N/A | BE136: N/A | BF136: N/A | BG136: N/A | BH136: N/A | BI136: N/A | BJ136: N/A | BK136: N/A | BL136: N/A | BM136: N/A | BN136: N/A | BO136: N/A | BP136: N/A | BQ136: N/A | BR136: N/A | BS136: N/A | BT136: N/A | BU136: N/A | BV136: N/A | BW136: N/A | BX136: N/A | BY136: N/A | BZ136: N/A | CA136: N/A | CB136: N/A
B137: Improved latrines | C137: N/A | D137: N/A | E137: N/A | F137: N/A | G137: N/A | H137: N/A | I137: N/A | J137: N/A | K137: N/A | L137: N/A | M137: N/A | N137: N/A | O137: N/A | P137: N/A | Q137: N/A | R137: N/A | S137: N/A | T137: N/A | U137: N/A | V137: N/A | W137: N/A | X137: N/A | Y137: N/A | Z137: N/A | AA137: N/A | AB137: N/A | BB137: Improved latrines | BC137: N/A | BD137: N/A | BE137: N/A | BF137: N/A | BG137: N/A | BH137: N/A | BI137: N/A | BJ137: N/A | BK137: N/A | BL137: N/A | BM137: N/A | BN137: N/A | BO137: N/A | BP137: N/A | BQ137: N/A | BR137: N/A | BS137: N/A | BT137: N/A | BU137: N/A | BV137: N/A | BW137: N/A | BX137: N/A | BY137: N/A | BZ137: N/A | CA137: N/A | CB137: N/A
B138: Unimproved facilities | C138: N/A | D138: N/A | E138: N/A | F138: N/A | G138: N/A | H138: N/A | I138: N/A | J138: N/A | K138: N/A | L138: N/A | M138: N/A | N138: N/A | O138: N/A | P138: N/A | Q138: N/A | R138: N/A | S138: N/A | T138: N/A | U138: N/A | V138: N/A | W138: N/A | X138: N/A | Y138: N/A | Z138: N/A | AA138: N/A | AB138: N/A | BB138: Unimproved facilities | BC138: N/A | BD138: N/A | BE138: N/A | BF138: N/A | BG138: N/A | BH138: N/A | BI138: N/A | BJ138: N/A | BK138: N/A | BL138: N/A | BM138: N/A | BN138: N/A | BO138: N/A | BP138: N/A | BQ138: N/A | BR138: N/A | BS138: N/A | BT138: N/A | BU138: N/A | BV138: N/A | BW138: N/A | BX138: N/A | BY138: N/A | BZ138: N/A | CA138: N/A | CB138: N/A
B139: Open defecation | C139: 94.47575722 | D139: 94.06421974 | E139: 91.64161333 | F139: 88.40671473 | G139: 43.08288899 | H139: 50.20740898 | I139: 38.90024525 | J139: 29.39636868 | K139: 11.7457495 | L139: 4.967620538 | M139: 97.32610033 | N139: 94.86669009 | O139: 92.36692578 | P139: 88.81934546 | Q139: 84.75880842 | R139: 12.45199417 | S139: 92.56015768 | T139: 94.20292005 | U139: 62.38159367 | V139: 36.5349578 | W139: 68.31207359 | X139: 57.62101406 | Y139: 81.79178317 | Z139: 80.79552348 | AA139: 74.95883934 | AB139: 83.59174083 | BB139: Open defecation | BC139: N/A | BD139: N/A | BE139: N/A | BF139: N/A | BG139: N/A | BH139: N/A | BI139: N/A | BJ139: N/A | BK139: N/A | BL139: N/A | BM139: N/A | BN139: N/A | BO139: N/A | BP139: N/A | BQ139: N/A | BR139: N/A | BS139: N/A | BT139: N/A | BU139: N/A | BV139: N/A | BW139: N/A | BX139: N/A | BY139: N/A | BZ139: N/A | CA139: N/A | CB139: N/A
A140: Septic tank emptying practices | B140: Not emptied/treated and disposed in situ | C140: N/A | D140: N/A | E140: N/A | F140: N/A | G140: N/A | H140: N/A | I140: N/A | J140: N/A | K140: N/A | L140: N/A | M140: N/A | N140: N/A | O140: N/A | P140: N/A | Q140: N/A | R140: N/A | S140: N/A | T140: N/A | U140: N/A | V140: N/A | W140: N/A | X140: N/A | Y140: N/A | Z140: N/A | AA140: N/A | AB140: N/A | BA140: Septic tank emptying practices | BB140: Not emptied/treated and disposed in situ | BC140: N/A | BD140: N/A | BE140: N/A | BF140: N/A | BG140: N/A | BH140: N/A | BI140: N/A | BJ140: N/A | BK140: N/A | BL140: N/A | BM140: N/A | BN140: N/A | BO140: N/A | BP140: N/A | BQ140: N/A | BR140: N/A | BS140: N/A | BT140: N/A | BU140: N/A | BV140: N/A | BW140: N/A | BX140: N/A | BY140: N/A | BZ140: N/A | CA140: N/A | CB140: N/A
B141: Emptied and buried on site | C141: N/A | D141: N/A | E141: N/A | F141: N/A | G141: N/A | H141: N/A | I141: N/A | J141: N/A | K141: N/A | L141: N/A | M141: N/A | N141: N/A | O141: N/A | P141: N/A | Q141: N/A | R141: N/A | S141: N/A | T141: N/A | U141: N/A | V141: N/A | W141: N/A | X141: N/A | Y141: N/A | Z141: N/A | AA141: N/A | AB141: N/A | BB141: Emptied and buried on site | BC141: N/A | BD141: N/A | BE141: N/A | BF141: N/A | BG141: N/A | BH141: N/A | BI141: N/A | BJ141: N/A | BK141: N/A | BL141: N/A | BM141: N/A | BN141: N/A | BO141: N/A | BP141: N/A | BQ141: N/A | BR141: N/A | BS141: N/A | BT141: N/A | BU141: N/A | BV141: N/A | BW141: N/A | BX141: N/A | BY141: N/A | BZ141: N/A | CA141: N/A | CB141: N/A
B142: Emptied and discharged locally | C142: N/A | D142: N/A | E142: N/A | F142: N/A | G142: N/A | H142: N/A | I142: N/A | J142: N/A | K142: N/A | L142: N/A | M142: N/A | N142: N/A | O142: N/A | P142: N/A | Q142: N/A | R142: N/A | S142: N/A | T142: N/A | U142: N/A | V142: N/A | W142: N/A | X142: N/A | Y142: N/A | Z142: N/A | AA142: N/A | AB142: N/A | BB142: Emptied and discharged locally | BC142: N/A | BD142: N/A | BE142: N/A | BF142: N/A | BG142: N/A | BH142: N/A | BI142: N/A | BJ142: N/A | BK142: N/A | BL142: N/A | BM142: N/A | BN142: N/A | BO142: N/A | BP142: N/A | BQ142: N/A | BR142: N/A | BS142: N/A | BT142: N/A | BU142: N/A | BV142: N/A | BW142: N/A | BX142: N/A | BY142: N/A | BZ142: N/A | CA142: N/A | CB142: N/A
B143: Emptied and removed offsite | C143: N/A | D143: N/A | E143: N/A | F143: N/A | G143: N/A | H143: N/A | I143: N/A | J143: N/A | K143: N/A | L143: N/A | M143: N/A | N143: N/A | O143: N/A | P143: N/A | Q143: N/A | R143: N/A | S143: N/A | T143: N/A | U143: N/A | V143: N/A | W143: N/A | X143: N/A | Y143: N/A | Z143: N/A | AA143: N/A | AB143: N/A | BB143: Emptied and removed offsite | BC143: N/A | BD143: N/A | BE143: N/A | BF143: N/A | BG143: N/A | BH143: N/A | BI143: N/A | BJ143: N/A | BK143: N/A | BL143: N/A | BM143: N/A | BN143: N/A | BO143: N/A | BP143: N/A | BQ143: N/A | BR143: N/A | BS143: N/A | BT143: N/A | BU143: N/A | BV143: N/A | BW143: N/A | BX143: N/A | BY143: N/A | BZ143: N/A | CA143: N/A | CB143: N/A
A144: Latrine emptying practices | B144: Not emptied/treated and disposed in situ | C144: N/A | D144: N/A | E144: N/A | F144: N/A | G144: N/A | H144: N/A | I144: N/A | J144: N/A | K144: N/A | L144: N/A | M144: N/A | N144: N/A | O144: N/A | P144: N/A | Q144: N/A | R144: N/A | S144: N/A | T144: N/A | U144: N/A | V144: N/A | W144: N/A | X144: N/A | Y144: N/A | Z144: N/A | AA144: N/A | AB144: N/A | BA144: Latrine emptying practices | BB144: Not emptied/treated and disposed in situ | BC144: N/A | BD144: N/A | BE144: N/A | BF144: N/A | BG144: N/A | BH144: N/A | BI144: N/A | BJ144: N/A | BK144: N/A | BL144: N/A | BM144: N/A | BN144: N/A | BO144: N/A | BP144: N/A | BQ144: N/A | BR144: N/A | BS144: N/A | BT144: N/A | BU144: N/A | BV144: N/A | BW144: N/A | BX144: N/A | BY144: N/A | BZ144: N/A | CA144: N/A | CB144: N/A
B145: Emptied and buried on site | C145: N/A | D145: N/A | E145: N/A | F145: N/A | G145: N/A | H145: N/A | I145: N/A | J145: N/A | K145: N/A | L145: N/A | M145: N/A | N145: N/A | O145: N/A | P145: N/A | Q145: N/A | R145: N/A | S145: N/A | T145: N/A | U145: N/A | V145: N/A | W145: N/A | X145: N/A | Y145: N/A | Z145: N/A | AA145: N/A | AB145: N/A | BB145: Emptied and buried on site | BC145: N/A | BD145: N/A | BE145: N/A | BF145: N/A | BG145: N/A | BH145: N/A | BI145: N/A | BJ145: N/A | BK145: N/A | BL145: N/A | BM145: N/A | BN145: N/A | BO145: N/A | BP145: N/A | BQ145: N/A | BR145: N/A | BS145: N/A | BT145: N/A | BU145: N/A | BV145: N/A | BW145: N/A | BX145: N/A | BY145: N/A | BZ145: N/A | CA145: N/A | CB145: N/A
B146: Emptied and discharged locally | C146: N/A | D146: N/A | E146: N/A | F146: N/A | G146: N/A | H146: N/A | I146: N/A | J146: N/A | K146: N/A | L146: N/A | M146: N/A | N146: N/A | O146: N/A | P146: N/A | Q146: N/A | R146: N/A | S146: N/A | T146: N/A | U146: N/A | V146: N/A | W146: N/A | X146: N/A | Y146: N/A | Z146: N/A | AA146: N/A | AB146: N/A | BB146: Emptied and discharged locally | BC146: N/A | BD146: N/A | BE146: N/A | BF146: N/A | BG146: N/A | BH146: N/A | BI146: N/A | BJ146: N/A | BK146: N/A | BL146: N/A | BM146: N/A | BN146: N/A | BO146: N/A | BP146: N/A | BQ146: N/A | BR146: N/A | BS146: N/A | BT146: N/A | BU146: N/A | BV146: N/A | BW146: N/A | BX146: N/A | BY146: N/A | BZ146: N/A | CA146: N/A | CB146: N/A
B147: Emptied and removed offsite | C147: N/A | D147: N/A | E147: N/A | F147: N/A | G147: N/A | H147: N/A | I147: N/A | J147: N/A | K147: N/A | L147: N/A | M147: N/A | N147: N/A | O147: N/A | P147: N/A | Q147: N/A | R147: N/A | S147: N/A | T147: N/A | U147: N/A | V147: N/A | W147: N/A | X147: N/A | Y147: N/A | Z147: N/A | AA147: N/A | AB147: N/A | BB147: Emptied and removed offsite | BC147: N/A | BD147: N/A | BE147: N/A | BF147: N/A | BG147: N/A | BH147: N/A | BI147: N/A | BJ147: N/A | BK147: N/A | BL147: N/A | BM147: N/A | BN147: N/A | BO147: N/A | BP147: N/A | BQ147: N/A | BR147: N/A | BS147: N/A | BT147: N/A | BU147: N/A | BV147: N/A | BW147: N/A | BX147: N/A | BY147: N/A | BZ147: N/A | CA147: N/A | CB147: N/A
A148: Shared among improved sanitation facilities | B148: Yes | C148: N/A | D148: N/A | E148: N/A | F148: N/A | G148: N/A | H148: N/A | I148: N/A | J148: N/A | K148: N/A | L148: N/A | M148: N/A | N148: N/A | O148: N/A | P148: N/A | Q148: N/A | R148: N/A | S148: N/A | T148: N/A | U148: N/A | V148: N/A | W148: N/A | X148: N/A | Y148: N/A | Z148: N/A | AA148: N/A | AB148: N/A | BA148: Shared among improved sanitation facilities | BB148: Yes | BC148: N/A | BD148: N/A | BE148: N/A | BF148: N/A | BG148: N/A | BH148: N/A | BI148: N/A | BJ148: N/A | BK148: N/A | BL148: N/A | BM148: N/A | BN148: N/A | BO148: N/A | BP148: N/A | BQ148: N/A | BR148: N/A | BS148: N/A | BT148: N/A | BU148: N/A | BV148: N/A | BW148: N/A | BX148: N/A | BY148: N/A | BZ148: N/A | CA148: N/A | CB148: N/A
B149: No | C149: N/A | D149: N/A | E149: N/A | F149: N/A | G149: N/A | H149: N/A | I149: N/A | J149: N/A | K149: N/A | L149: N/A | M149: N/A | N149: N/A | O149: N/A | P149: N/A | Q149: N/A | R149: N/A | S149: N/A | T149: N/A | U149: N/A | V149: N/A | W149: N/A | X149: N/A | Y149: N/A | Z149: N/A | AA149: N/A | AB149: N/A | BB149: No | BC149: N/A | BD149: N/A | BE149: N/A | BF149: N/A | BG149: N/A | BH149: N/A | BI149: N/A | BJ149: N/A | BK149: N/A | BL149: N/A | BM149: N/A | BN149: N/A | BO149: N/A | BP149: N/A | BQ149: N/A | BR149: N/A | BS149: N/A | BT149: N/A | BU149: N/A | BV149: N/A | BW149: N/A | BX149: N/A | BY149: N/A | BZ149: N/A | CA149: N/A | CB149: N/A
B150: DK/missing | C150: N/A | D150: N/A | E150: N/A | F150: N/A | G150: N/A | H150: N/A | I150: N/A | J150: N/A | K150: N/A | L150: N/A | M150: N/A | N150: N/A | O150: N/A | P150: N/A | Q150: N/A | R150: N/A | S150: N/A | T150: N/A | U150: N/A | V150: N/A | W150: N/A | X150: N/A | Y150: N/A | Z150: N/A | AA150: N/A | AB150: N/A | BB150: DK/missing | BC150: N/A | BD150: N/A | BE150: N/A | BF150: N/A | BG150: N/A | BH150: N/A | BI150: N/A | BJ150: N/A | BK150: N/A | BL150: N/A | BM150: N/A | BN150: N/A | BO150: N/A | BP150: N/A | BQ150: N/A | BR150: N/A | BS150: N/A | BT150: N/A | BU150: N/A | BV150: N/A | BW150: N/A | BX150: N/A | BY150: N/A | BZ150: N/A | CA150: N/A | CB150: N/A
A151: Shared among all sanitation facilities | B151: Yes | C151: 2.176969236 | D151: 1.494523866 | E151: 2.071620483 | F151: 3.539855182 | G151: 27.11265409 | H151: 22.61837528 | I151: 24.07093751 | J151: 36.65691088 | K151: 48.17424239 | L151: 55.20789233 | M151: 0.5682910293 | N151: 1.022374652 | O151: 2.34419741 | P151: 2.923191658 | Q151: 4.250704275 | R151: 55.46980773 | S151: 4.362918169 | T151: 2.130164405 | U151: 13.25622373 | V151: 33.71807184 | W151: 17.35047756 | X151: 19.47052147 | Y151: 6.372814926 | Z151: 5.546997914 | AA151: 17.01474888 | AB151: 11.09153525 | BA151: Shared among all sanitation facilities | BB151: Yes | BC151: N/A | BD151: N/A | BE151: N/A | BF151: N/A | BG151: N/A | BH151: N/A | BI151: N/A | BJ151: N/A | BK151: N/A | BL151: N/A | BM151: N/A | BN151: N/A | BO151: N/A | BP151: N/A | BQ151: N/A | BR151: N/A | BS151: N/A | BT151: N/A | BU151: N/A | BV151: N/A | BW151: N/A | BX151: N/A | BY151: N/A | BZ151: N/A | CA151: N/A | CB151: N/A
B152: No | C152: 97.82303076 | D152: 98.50547613 | E152: 97.92837952 | F152: 96.46014482 | G152: 72.88734591 | H152: 77.38162472 | I152: 75.92906249 | J152: 63.34308912 | K152: 51.82575761 | L152: 44.79210767 | M152: 99.43170897 | N152: 98.97762535 | O152: 97.65580259 | P152: 97.07680834 | Q152: 95.74929572 | R152: 44.53019227 | S152: 95.63708183 | T152: 97.8698356 | U152: 86.74377627 | V152: 66.28192816 | W152: 82.64952244 | X152: 80.52947853 | Y152: 93.62718507 | Z152: 94.45300209 | AA152: 82.98525112 | AB152: 88.90846475 | BB152: No | BC152: N/A | BD152: N/A | BE152: N/A | BF152: N/A | BG152: N/A | BH152: N/A | BI152: N/A | BJ152: N/A | BK152: N/A | BL152: N/A | BM152: N/A | BN152: N/A | BO152: N/A | BP152: N/A | BQ152: N/A | BR152: N/A | BS152: N/A | BT152: N/A | BU152: N/A | BV152: N/A | BW152: N/A | BX152: N/A | BY152: N/A | BZ152: N/A | CA152: N/A | CB152: N/A
A153: Type of toilet facility | B153: Flush toilet | C153: 0 | D153: 0 | E153: 0 | F153: 0 | G153: 1.702656526 | H153: 0.001879387173 | I153: 0.5718840438 | J153: 1.178264969 | K153: 0.8003753031 | L153: 9.281609517 | M153: 0 | N153: 0 | O153: 0 | P153: 0 | Q153: 0 | R153: 5.314648698 | S153: 0.327025562 | T153: 0.1272663221 | U153: 0 | V153: 6.252558878 | W153: 0.4439517023 | X153: 1.891206961 | Y153: 0.03981154819 | Z153: 0 | AA153: 0 | AB153: 1.403158559 | BA153: Type of toilet facility | BB153: Flush toilet | BC153: 0 | BD153: 0 | BE153: 0 | BF153: 0 | BG153: 240.527337 | BH153: 0.03839 | BI153: 11.553825 | BJ153: 24.002515 | BK153: 16.305839 | BL153: 188.626768 | BM153: 0 | BN153: 0 | BO153: 0 | BP153: 0 | BQ153: 0 | BR153: 117.059723 | BS153: 2.508935 | BT153: 23.661552 | BU153: 0 | BV153: 18.57134 | BW153: 0.746037 | BX153: 3.204211 | BY153: 10.758205 | BZ153: 0 | CA153: 0 | CB153: 64.017334
B154: Traditional pit latrine | C154: 5.524242782 | D154: 5.932601162 | E154: 8.34230863 | F154: 11.49816962 | G154: 53.84223662 | H154: 49.73812027 | I154: 60.31102274 | J154: 67.17274256 | K154: 85.44675783 | L154: 80.98145961 | M154: 2.673899667 | N154: 5.129481877 | O154: 7.624925944 | P154: 11.08108216 | Q154: 15.18085778 | R154: 76.46888542 | S154: 6.95164972 | T154: 5.556364055 | U154: 37.52764384 | V154: 54.72814486 | W154: 29.74850889 | X154: 38.14477094 | Y154: 18.01895204 | Z154: 19.20447652 | AA154: 25.00214186 | AB154: 14.8978563 | BB154: Traditional pit latrine | BC154: 778.349932 | BD154: 845.274302 | BE154: 1173.684776 | BF154: 1626.223423 | BG154: 7606.072977 | BH154: 1015.994184 | BI154: 1218.469041 | BJ154: 1368.38046 | BK154: 1740.784693 | BL154: 1645.756694 | BM154: 328.001181 | BN154: 612.1286 | BO154: 923.814013 | BP154: 1340.945806 | BQ154: 1835.330738 | BR154: 1684.293178 | BS154: 53.332948 | BT154: 1033.047823 | BU154: 275.676312 | BV154: 162.553445 | BW154: 49.990772 | BX154: 64.627456 | BY154: 4869.229879 | BZ154: 2925.867313 | CA154: 231.290439 | CB154: 679.695845
B155: Improved (ventilated) pit latrine | C155: 0 | D155: 0 | E155: 0.009116171204 | F155: 0.08141841848 | G155: 1.372217863 | H155: 0.0525913627 | I155: 0.2168479637 | J155: 2.252623797 | K155: 2.007117372 | L155: 4.769310335 | M155: 0 | N155: 0 | O155: 0 | P155: 0.09957238125 | Q155: 0.04497117109 | R155: 5.764471713 | S155: 0.1611670385 | T155: 0.1134495753 | U155: 0 | V155: 2.48433847 | W155: 1.495465809 | X155: 2.343008036 | Y155: 0.1428207265 | Z155: 0 | AA155: 0 | AB155: 0.1072443109 | BB155: Improved (ventilated) pit latrine | BC155: 0 | BD155: 0 | BE155: 1.28256 | BF155: 11.515271 | BG155: 193.847616 | BH155: 1.074277 | BI155: 4.380999 | BJ155: 45.888351 | BK155: 40.890483 | BL155: 96.924956 | BM155: 0 | BN155: 0 | BO155: 0 | BP155: 12.04947 | BQ155: 5.436911 | BR155: 126.967463 | BS155: 1.236471 | BT155: 21.092721 | BU155: 0 | BV155: 7.378978 | BW155: 2.51305 | BX155: 3.969683 | BY155: 38.594195 | BZ155: 0 | CA155: 0 | CB155: 4.892886
B156: No facility, bush, field | C156: 94.47575722 | D156: 94.06739884 | E156: 91.6485752 | F156: 88.42041196 | G156: 43.08288899 | H156: 50.20740898 | I156: 38.90024525 | J156: 29.39636868 | K156: 11.7457495 | L156: 4.967620538 | M156: 97.32610033 | N156: 94.87051812 | O156: 92.37507406 | P156: 88.81934546 | Q156: 84.77417105 | R156: 12.45199417 | S156: 92.56015768 | T156: 94.20292005 | U156: 62.47235616 | V156: 36.5349578 | W156: 68.31207359 | X156: 57.62101406 | Y156: 81.79841568 | Z156: 80.79552348 | AA156: 74.99785814 | AB156: 83.59174083 | BB156: No facility, bush, field | BC156: 13311.36268 | BD156: 13402.67999 | BE156: 12894.09709 | BF156: 12505.58565 | BG156: 6086.143857 | BH156: 1025.580284 | BI156: 785.905169 | BJ156: 598.835405 | BK156: 239.293116 | BL156: 100.955142 | BM156: 11938.77102 | BN156: 11321.40805 | BO156: 11191.89727 | BP156: 10748.2218 | BQ156: 10249.00201 | BR156: 274.265915 | BS156: 710.120083 | BT156: 17514.35301 | BU156: 458.918999 | BV156: 108.516071 | BW156: 114.794772 | BX156: 97.625427 | BY156: 22104.24273 | BZ156: 12309.47279 | CA156: 693.792061 | CB156: 3813.767416
BB157: Total | BC157: 14089.71261 | BD157: 14247.9543 | BE157: 14069.06443 | BF157: 14143.32434 | BG157: 14126.59179 | BH157: 2042.687135 | BI157: 2020.309034 | BJ157: 2037.106731 | BK157: 2037.274131 | BL157: 2032.26356 | BM157: 12266.7722 | BN157: 11933.53665 | BO157: 12115.71128 | BP157: 12101.21707 | BQ157: 12089.76966 | BR157: 2202.586279 | BS157: 767.198437 | BT157: 18592.1551 | BU157: 734.595311 | BV157: 297.019834 | BW157: 168.044631 | BX157: 169.426777 | BY157: 27022.82501 | BZ157: 15235.34011 | CA157: 925.0825 | CB157: 4562.373481
A208: =A1026 -> Ethiopia
A209: =A1034 -> 2000
A210: Access to hygiene facilities
A211: by wealth quintile and sub-national region
A212: Notes:
A213: WHO/UNICEF JMP customised wealth index excludes water,
A214: sanitation and hygiene assets.
A215: Survey used for analysis: | B215: =A1025 -> DHS00
A220: Access to handwashing | C220: NATIONAL wealth index quintile | H220: URBAN wealth index quintile | M220: RURAL wealth index quintile | R220: SUB-REGIONS: | BA220: Raw numbers of respondents: | BB220: Access to handwashing | BC220: NATIONAL wealth index quintile | BH220: URBAN wealth index quintile | BM220: RURAL wealth index quintile | BR220: SUB-REGIONS:
A221: Weighted percentage (used in graphs) | C221: Poorest | D221: Poor | E221: Middle | F221: Rich | G221: Richest | H221: Poorest | I221: Poor | J221: Middle | K221: Rich | L221: Richest | M221: Poorest | N221: Poor | O221: Middle | P221: Rich | Q221: Richest | R221: Addis | S221: Affar | T221: Amhara | U221: Ben-Gumz | V221: Dire Dawa | W221: Gambela | X221: Harari | Y221: Oromiya | Z221: SNNP | AA221: Somali | AB221: Tigray | BA221: Hygiene data, raw numbers (weighted) | BC221: Poorest | BD221: Poor | BE221: Middle | BF221: Rich | BG221: Richest | BH221: Poorest | BI221: Poor | BJ221: Middle | BK221: Rich | BL221: Richest | BM221: Poorest | BN221: Poor | BO221: Middle | BP221: Rich | BQ221: Richest | BR221: Addis | BS221: Affar | BT221: Amhara | BU221: Ben-Gumz | BV221: Dire Dawa | BW221: Gambela | BX221: Harari | BY221: Oromiya | BZ221: SNNP | CA221: Somali | CB221: Tigray
A222: Hygiene ladder | B222: Basic | C222: N/A | D222: N/A | E222: N/A | F222: N/A | G222: N/A | H222: N/A | I222: N/A | J222: N/A | K222: N/A | L222: N/A | M222: N/A | N222: N/A | O222: N/A | P222: N/A | Q222: N/A | R222: N/A | S222: N/A | T222: N/A | U222: N/A | V222: N/A | W222: N/A | X222: N/A | Y222: N/A | Z222: N/A | AA222: N/A | AB222: N/A | BA222: Hygiene ladder | BB222: Basic | BC222: N/A | BD222: N/A | BE222: N/A | BF222: N/A | BG222: N/A | BH222: N/A | BI222: N/A | BJ222: N/A | BK222: N/A | BL222: N/A | BM222: N/A | BN222: N/A | BO222: N/A | BP222: N/A | BQ222: N/A | BR222: N/A | BS222: N/A | BT222: N/A | BU222: N/A | BV222: N/A | BW222: N/A | BX222: N/A | BY222: N/A | BZ222: N/A | CA222: N/A | CB222: N/A
B223: Limited | C223: N/A | D223: N/A | E223: N/A | F223: N/A | G223: N/A | H223: N/A | I223: N/A | J223: N/A | K223: N/A | L223: N/A | M223: N/A | N223: N/A | O223: N/A | P223: N/A | Q223: N/A | R223: N/A | S223: N/A | T223: N/A | U223: N/A | V223: N/A | W223: N/A | X223: N/A | Y223: N/A | Z223: N/A | AA223: N/A | AB223: N/A | BB223: Limited | BC223: N/A | BD223: N/A | BE223: N/A | BF223: N/A | BG223: N/A | BH223: N/A | BI223: N/A | BJ223: N/A | BK223: N/A | BL223: N/A | BM223: N/A | BN223: N/A | BO223: N/A | BP223: N/A | BQ223: N/A | BR223: N/A | BS223: N/A | BT223: N/A | BU223: N/A | BV223: N/A | BW223: N/A | BX223: N/A | BY223: N/A | BZ223: N/A | CA223: N/A | CB223: N/A
B224: No facility | C224: N/A | D224: N/A | E224: N/A | F224: N/A | G224: N/A | H224: N/A | I224: N/A | J224: N/A | K224: N/A | L224: N/A | M224: N/A | N224: N/A | O224: N/A | P224: N/A | Q224: N/A | R224: N/A | S224: N/A | T224: N/A | U224: N/A | V224: N/A | W224: N/A | X224: N/A | Y224: N/A | Z224: N/A | AA224: N/A | AB224: N/A | BB224: No facility | BC224: N/A | BD224: N/A | BE224: N/A | BF224: N/A | BG224: N/A | BH224: N/A | BI224: N/A | BJ224: N/A | BK224: N/A | BL224: N/A | BM224: N/A | BN224: N/A | BO224: N/A | BP224: N/A | BQ224: N/A | BR224: N/A | BS224: N/A | BT224: N/A | BU224: N/A | BV224: N/A | BW224: N/A | BX224: N/A | BY224: N/A | BZ224: N/A | CA224: N/A | CB224: N/A
BA225: Observed handwashing place | BB225: Fixed | BC225: N/A | BD225: N/A | BE225: N/A | BF225: N/A | BG225: N/A | BH225: N/A | BI225: N/A | BJ225: N/A | BK225: N/A | BL225: N/A | BM225: N/A | BN225: N/A | BO225: N/A | BP225: N/A | BQ225: N/A | BR225: N/A | BS225: N/A | BT225: N/A | BU225: N/A | BV225: N/A | BW225: N/A | BX225: N/A | BY225: N/A | BZ225: N/A | CA225: N/A | CB225: N/A
BB226: Mobile | BC226: N/A | BD226: N/A | BE226: N/A | BF226: N/A | BG226: N/A | BH226: N/A | BI226: N/A | BJ226: N/A | BK226: N/A | BL226: N/A | BM226: N/A | BN226: N/A | BO226: N/A | BP226: N/A | BQ226: N/A | BR226: N/A | BS226: N/A | BT226: N/A | BU226: N/A | BV226: N/A | BW226: N/A | BX226: N/A | BY226: N/A | BZ226: N/A | CA226: N/A | CB226: N/A
BA227: Water / Soap | BB227: Water and soap | BC227: N/A | BD227: N/A | BE227: N/A | BF227: N/A | BG227: N/A | BH227: N/A | BI227: N/A | BJ227: N/A | BK227: N/A | BL227: N/A | BM227: N/A | BN227: N/A | BO227: N/A | BP227: N/A | BQ227: N/A | BR227: N/A | BS227: N/A | BT227: N/A | BU227: N/A | BV227: N/A | BW227: N/A | BX227: N/A | BY227: N/A | BZ227: N/A | CA227: N/A | CB227: N/A
BB228: Water only | BC228: N/A | BD228: N/A | BE228: N/A | BF228: N/A | BG228: N/A | BH228: N/A | BI228: N/A | BJ228: N/A | BK228: N/A | BL228: N/A | BM228: N/A | BN228: N/A | BO228: N/A | BP228: N/A | BQ228: N/A | BR228: N/A | BS228: N/A | BT228: N/A | BU228: N/A | BV228: N/A | BW228: N/A | BX228: N/A | BY228: N/A | BZ228: N/A | CA228: N/A | CB228: N/A
BB229: Soap only | BC229: N/A | BD229: N/A | BE229: N/A | BF229: N/A | BG229: N/A | BH229: N/A | BI229: N/A | BJ229: N/A | BK229: N/A | BL229: N/A | BM229: N/A | BN229: N/A | BO229: N/A | BP229: N/A | BQ229: N/A | BR229: N/A | BS229: N/A | BT229: N/A | BU229: N/A | BV229: N/A | BW229: N/A | BX229: N/A | BY229: N/A | BZ229: N/A | CA229: N/A | CB229: N/A
BB230: Neither | BC230: N/A | BD230: N/A | BE230: N/A | BF230: N/A | BG230: N/A | BH230: N/A | BI230: N/A | BJ230: N/A | BK230: N/A | BL230: N/A | BM230: N/A | BN230: N/A | BO230: N/A | BP230: N/A | BQ230: N/A | BR230: N/A | BS230: N/A | BT230: N/A | BU230: N/A | BV230: N/A | BW230: N/A | BX230: N/A | BY230: N/A | BZ230: N/A | CA230: N/A | CB230: N/A
BA259: Raw numbers of respondents: | BB259: Menstrual health and hygiene | BC259: NATIONAL wealth index quintile | BH259: URBAN wealth index quintile | BM259: RURAL wealth index quintile | BR259: SUB-REGIONS:
BA260: MHH data, raw numbers (weighted) | BC260: Poorest | BD260: Poor | BE260: Middle | BF260: Rich | BG260: Richest | BH260: Poorest | BI260: Poor | BJ260: Middle | BK260: Rich | BL260: Richest | BM260: Poorest | BN260: Poor | BO260: Middle | BP260: Rich | BQ260: Richest | BR260: Addis | BS260: Affar | BT260: Amhara | BU260: Ben-Gumz | BV260: Dire Dawa | BW260: Gambela | BX260: Harari | BY260: Oromiya | BZ260: SNNP | CA260: Somali | CB260: Tigray
BA261: Private place to wash and change | BB261: Yes | BC261: N/A | BD261: N/A | BE261: N/A | BF261: N/A | BG261: N/A | BH261: N/A | BI261: N/A | BJ261: N/A | BK261: N/A | BL261: N/A | BM261: N/A | BN261: N/A | BO261: N/A | BP261: N/A | BQ261: N/A | BR261: N/A | BS261: N/A | BT261: N/A | BU261: N/A | BV261: N/A | BW261: N/A | BX261: N/A | BY261: N/A | BZ261: N/A | CA261: N/A | CB261: N/A
BB262: No | BC262: N/A | BD262: N/A | BE262: N/A | BF262: N/A | BG262: N/A | BH262: N/A | BI262: N/A | BJ262: N/A | BK262: N/A | BL262: N/A | BM262: N/A | BN262: N/A | BO262: N/A | BP262: N/A | BQ262: N/A | BR262: N/A | BS262: N/A | BT262: N/A | BU262: N/A | BV262: N/A | BW262: N/A | BX262: N/A | BY262: N/A | BZ262: N/A | CA262: N/A | CB262: N/A
BB263: DK/not sure/missing | BC263: N/A | BD263: N/A | BE263: N/A | BF263: N/A | BG263: N/A | BH263: N/A | BI263: N/A | BJ263: N/A | BK263: N/A | BL263: N/A | BM263: N/A | BN263: N/A | BO263: N/A | BP263: N/A | BQ263: N/A | BR263: N/A | BS263: N/A | BT263: N/A | BU263: N/A | BV263: N/A | BW263: N/A | BX263: N/A | BY263: N/A | BZ263: N/A | CA263: N/A | CB263: N/A
BA264: Use of menstrual materials | BB264: Materials reusable | BC264: N/A | BD264: N/A | BE264: N/A | BF264: N/A | BG264: N/A | BH264: N/A | BI264: N/A | BJ264: N/A | BK264: N/A | BL264: N/A | BM264: N/A | BN264: N/A | BO264: N/A | BP264: N/A | BQ264: N/A | BR264: N/A | BS264: N/A | BT264: N/A | BU264: N/A | BV264: N/A | BW264: N/A | BX264: N/A | BY264: N/A | BZ264: N/A | CA264: N/A | CB264: N/A
BB265: Materials not reusable | BC265: N/A | BD265: N/A | BE265: N/A | BF265: N/A | BG265: N/A | BH265: N/A | BI265: N/A | BJ265: N/A | BK265: N/A | BL265: N/A | BM265: N/A | BN265: N/A | BO265: N/A | BP265: N/A | BQ265: N/A | BR265: N/A | BS265: N/A | BT265: N/A | BU265: N/A | BV265: N/A | BW265: N/A | BX265: N/A | BY265: N/A | BZ265: N/A | CA265: N/A | CB265: N/A
BB266: No materials used | BC266: N/A | BD266: N/A | BE266: N/A | BF266: N/A | BG266: N/A | BH266: N/A | BI266: N/A | BJ266: N/A | BK266: N/A | BL266: N/A | BM266: N/A | BN266: N/A | BO266: N/A | BP266: N/A | BQ266: N/A | BR266: N/A | BS266: N/A | BT266: N/A | BU266: N/A | BV266: N/A | BW266: N/A | BX266: N/A | BY266: N/A | BZ266: N/A | CA266: N/A | CB266: N/A
BB267: DK/not sure/missing | BC267: N/A | BD267: N/A | BE267: N/A | BF267: N/A | BG267: N/A | BH267: N/A | BI267: N/A | BJ267: N/A | BK267: N/A | BL267: N/A | BM267: N/A | BN267: N/A | BO267: N/A | BP267: N/A | BQ267: N/A | BR267: N/A | BS267: N/A | BT267: N/A | BU267: N/A | BV267: N/A | BW267: N/A | BX267: N/A | BY267: N/A | BZ267: N/A | CA267: N/A | CB267: N/A
BA268: Use of menstrual materials with private place to wash and change | BB268: Materials reusable | BC268: N/A | BD268: N/A | BE268: N/A | BF268: N/A | BG268: N/A | BH268: N/A | BI268: N/A | BJ268: N/A | BK268: N/A | BL268: N/A | BM268: N/A | BN268: N/A | BO268: N/A | BP268: N/A | BQ268: N/A | BR268: N/A | BS268: N/A | BT268: N/A | BU268: N/A | BV268: N/A | BW268: N/A | BX268: N/A | BY268: N/A | BZ268: N/A | CA268: N/A | CB268: N/A
BB269: Materials not reusable | BC269: N/A | BD269: N/A | BE269: N/A | BF269: N/A | BG269: N/A | BH269: N/A | BI269: N/A | BJ269: N/A | BK269: N/A | BL269: N/A | BM269: N/A | BN269: N/A | BO269: N/A | BP269: N/A | BQ269: N/A | BR269: N/A | BS269: N/A | BT269: N/A | BU269: N/A | BV269: N/A | BW269: N/A | BX269: N/A | BY269: N/A | BZ269: N/A | CA269: N/A | CB269: N/A
BB270: No materials used | BC270: N/A | BD270: N/A | BE270: N/A | BF270: N/A | BG270: N/A | BH270: N/A | BI270: N/A | BJ270: N/A | BK270: N/A | BL270: N/A | BM270: N/A | BN270: N/A | BO270: N/A | BP270: N/A | BQ270: N/A | BR270: N/A | BS270: N/A | BT270: N/A | BU270: N/A | BV270: N/A | BW270: N/A | BX270: N/A | BY270: N/A | BZ270: N/A | CA270: N/A | CB270: N/A
BA271: Awareness of menstruation before menarche | BB271: Yes | BC271: N/A | BD271: N/A | BE271: N/A | BF271: N/A | BG271: N/A | BH271: N/A | BI271: N/A | BJ271: N/A | BK271: N/A | BL271: N/A | BM271: N/A | BN271: N/A | BO271: N/A | BP271: N/A | BQ271: N/A | BR271: N/A | BS271: N/A | BT271: N/A | BU271: N/A | BV271: N/A | BW271: N/A | BX271: N/A | BY271: N/A | BZ271: N/A | CA271: N/A | CB271: N/A
BB272: No | BC272: N/A | BD272: N/A | BE272: N/A | BF272: N/A | BG272: N/A | BH272: N/A | BI272: N/A | BJ272: N/A | BK272: N/A | BL272: N/A | BM272: N/A | BN272: N/A | BO272: N/A | BP272: N/A | BQ272: N/A | BR272: N/A | BS272: N/A | BT272: N/A | BU272: N/A | BV272: N/A | BW272: N/A | BX272: N/A | BY272: N/A | BZ272: N/A | CA272: N/A | CB272: N/A
BB273: DK/not sure/missing | BC273: N/A | BD273: N/A | BE273: N/A | BF273: N/A | BG273: N/A | BH273: N/A | BI273: N/A | BJ273: N/A | BK273: N/A | BL273: N/A | BM273: N/A | BN273: N/A | BO273: N/A | BP273: N/A | BQ273: N/A | BR273: N/A | BS273: N/A | BT273: N/A | BU273: N/A | BV273: N/A | BW273: N/A | BX273: N/A | BY273: N/A | BZ273: N/A | CA273: N/A | CB273: N/A
BA274: Participation in (all) activities during menstruation | BB274: Yes | BC274: N/A | BD274: N/A | BE274: N/A | BF274: N/A | BG274: N/A | BH274: N/A | BI274: N/A | BJ274: N/A | BK274: N/A | BL274: N/A | BM274: N/A | BN274: N/A | BO274: N/A | BP274: N/A | BQ274: N/A | BR274: N/A | BS274: N/A | BT274: N/A | BU274: N/A | BV274: N/A | BW274: N/A | BX274: N/A | BY274: N/A | BZ274: N/A | CA274: N/A | CB274: N/A
BB275: No | BC275: N/A | BD275: N/A | BE275: N/A | BF275: N/A | BG275: N/A | BH275: N/A | BI275: N/A | BJ275: N/A | BK275: N/A | BL275: N/A | BM275: N/A | BN275: N/A | BO275: N/A | BP275: N/A | BQ275: N/A | BR275: N/A | BS275: N/A | BT275: N/A | BU275: N/A | BV275: N/A | BW275: N/A | BX275: N/A | BY275: N/A | BZ275: N/A | CA275: N/A | CB275: N/A
BB276: DK/not sure/missing/no such activity | BC276: N/A | BD276: N/A | BE276: N/A | BF276: N/A | BG276: N/A | BH276: N/A | BI276: N/A | BJ276: N/A | BK276: N/A | BL276: N/A | BM276: N/A | BN276: N/A | BO276: N/A | BP276: N/A | BQ276: N/A | BR276: N/A | BS276: N/A | BT276: N/A | BU276: N/A | BV276: N/A | BW276: N/A | BX276: N/A | BY276: N/A | BZ276: N/A | CA276: N/A | CB276: N/A
BA277: Participation in specific activities during menstruation | BB277: Did not go to school (amongst those usually attending school) | BC277: N/A | BD277: N/A | BE277: N/A | BF277: N/A | BG277: N/A | BH277: N/A | BI277: N/A | BJ277: N/A | BK277: N/A | BL277: N/A | BM277: N/A | BN277: N/A | BO277: N/A | BP277: N/A | BQ277: N/A | BR277: N/A | BS277: N/A | BT277: N/A | BU277: N/A | BV277: N/A | BW277: N/A | BX277: N/A | BY277: N/A | BZ277: N/A | CA277: N/A | CB277: N/A
BB278: Did not go to work (amongst those who usually work) | BC278: N/A | BD278: N/A | BE278: N/A | BF278: N/A | BG278: N/A | BH278: N/A | BI278: N/A | BJ278: N/A | BK278: N/A | BL278: N/A | BM278: N/A | BN278: N/A | BO278: N/A | BP278: N/A | BQ278: N/A | BR278: N/A | BS278: N/A | BT278: N/A | BU278: N/A | BV278: N/A | BW278: N/A | BX278: N/A | BY278: N/A | BZ278: N/A | CA278: N/A | CB278: N/A
BB279: Did not participate in social activities | BC279: N/A | BD279: N/A | BE279: N/A | BF279: N/A | BG279: N/A | BH279: N/A | BI279: N/A | BJ279: N/A | BK279: N/A | BL279: N/A | BM279: N/A | BN279: N/A | BO279: N/A | BP279: N/A | BQ279: N/A | BR279: N/A | BS279: N/A | BT279: N/A | BU279: N/A | BV279: N/A | BW279: N/A | BX279: N/A | BY279: N/A | BZ279: N/A | CA279: N/A | CB279: N/A
BB280: Did not cook food | BC280: N/A | BD280: N/A | BE280: N/A | BF280: N/A | BG280: N/A | BH280: N/A | BI280: N/A | BJ280: N/A | BK280: N/A | BL280: N/A | BM280: N/A | BN280: N/A | BO280: N/A | BP280: N/A | BQ280: N/A | BR280: N/A | BS280: N/A | BT280: N/A | BU280: N/A | BV280: N/A | BW280: N/A | BX280: N/A | BY280: N/A | BZ280: N/A | CA280: N/A | CB280: N/A
BB281: Did not eat with others | BC281: N/A | BD281: N/A | BE281: N/A | BF281: N/A | BG281: N/A | BH281: N/A | BI281: N/A | BJ281: N/A | BK281: N/A | BL281: N/A | BM281: N/A | BN281: N/A | BO281: N/A | BP281: N/A | BQ281: N/A | BR281: N/A | BS281: N/A | BT281: N/A | BU281: N/A | BV281: N/A | BW281: N/A | BX281: N/A | BY281: N/A | BZ281: N/A | CA281: N/A | CB281: N/A
BB282: Did not bathe in regular place | BC282: N/A | BD282: N/A | BE282: N/A | BF282: N/A | BG282: N/A | BH282: N/A | BI282: N/A | BJ282: N/A | BK282: N/A | BL282: N/A | BM282: N/A | BN282: N/A | BO282: N/A | BP282: N/A | BQ282: N/A | BR282: N/A | BS282: N/A | BT282: N/A | BU282: N/A | BV282: N/A | BW282: N/A | BX282: N/A | BY282: N/A | BZ282: N/A | CA282: N/A | CB282: N/A
BB283: Did not participate in other activities | BC283: N/A | BD283: N/A | BE283: N/A | BF283: N/A | BG283: N/A | BH283: N/A | BI283: N/A | BJ283: N/A | BK283: N/A | BL283: N/A | BM283: N/A | BN283: N/A | BO283: N/A | BP283: N/A | BQ283: N/A | BR283: N/A | BS283: N/A | BT283: N/A | BU283: N/A | BV283: N/A | BW283: N/A | BX283: N/A | BY283: N/A | BZ283: N/A | CA283: N/A | CB283: N/A
BB284: DK/not sure/missing/no such activity | BC284: N/A | BD284: N/A | BE284: N/A | BF284: N/A | BG284: N/A | BH284: N/A | BI284: N/A | BJ284: N/A | BK284: N/A | BL284: N/A | BM284: N/A | BN284: N/A | BO284: N/A | BP284: N/A | BQ284: N/A | BR284: N/A | BS284: N/A | BT284: N/A | BU284: N/A | BV284: N/A | BW284: N/A | BX284: N/A | BY284: N/A | BZ284: N/A | CA284: N/A | CB284: N/A
BA339: Raw numbers of respondents: | BB339: Basic water, sanitation and hygiene | BC339: NATIONAL wealth index quintile | BH339: URBAN wealth index quintile | BM339: RURAL wealth index quintile | BR339: SUB-REGIONS:
BA340: WatSan data, raw numbers (weighted) | BC340: Poorest | BD340: Poor | BE340: Middle | BF340: Rich | BG340: Richest | BH340: Poorest | BI340: Poor | BJ340: Middle | BK340: Rich | BL340: Richest | BM340: Poorest | BN340: Poor | BO340: Middle | BP340: Rich | BQ340: Richest | BR340: Addis | BS340: Affar | BT340: Amhara | BU340: Ben-Gumz | BV340: Dire Dawa | BW340: Gambela | BX340: Harari | BY340: Oromiya | BZ340: SNNP | CA340: Somali | CB340: Tigray
BA341: Use of Basic Water Sanitation and Hygiene | BB341: Yes | BC341: N/A | BD341: N/A | BE341: N/A | BF341: N/A | BG341: N/A | BH341: N/A | BI341: N/A | BJ341: N/A | BK341: N/A | BL341: N/A | BM341: N/A | BN341: N/A | BO341: N/A | BP341: N/A | BQ341: N/A | BR341: N/A | BS341: N/A | BT341: N/A | BU341: N/A | BV341: N/A | BW341: N/A | BX341: N/A | BY341: N/A | BZ341: N/A | CA341: N/A | CB341: N/A
BB342: No | BC342: N/A | BD342: N/A | BE342: N/A | BF342: N/A | BG342: N/A | BH342: N/A | BI342: N/A | BJ342: N/A | BK342: N/A | BL342: N/A | BM342: N/A | BN342: N/A | BO342: N/A | BP342: N/A | BQ342: N/A | BR342: N/A | BS342: N/A | BT342: N/A | BU342: N/A | BV342: N/A | BW342: N/A | BX342: N/A | BY342: N/A | BZ342: N/A | CA342: N/A | CB342: N/A
BA343: Use of Basic Water and Sanitation | BB343: Yes | BC343: N/A | BD343: N/A | BE343: N/A | BF343: N/A | BG343: N/A | BH343: N/A | BI343: N/A | BJ343: N/A | BK343: N/A | BL343: N/A | BM343: N/A | BN343: N/A | BO343: N/A | BP343: N/A | BQ343: N/A | BR343: N/A | BS343: N/A | BT343: N/A | BU343: N/A | BV343: N/A | BW343: N/A | BX343: N/A | BY343: N/A | BZ343: N/A | CA343: N/A | CB343: N/A
BB344: No | BC344: N/A | BD344: N/A | BE344: N/A | BF344: N/A | BG344: N/A | BH344: N/A | BI344: N/A | BJ344: N/A | BK344: N/A | BL344: N/A | BM344: N/A | BN344: N/A | BO344: N/A | BP344: N/A | BQ344: N/A | BR344: N/A | BS344: N/A | BT344: N/A | BU344: N/A | BV344: N/A | BW344: N/A | BX344: N/A | BY344: N/A | BZ344: N/A | CA344: N/A | CB344: N/A
BA345: Use of Basic Water and Hygiene | BB345: Yes | BC345: N/A | BD345: N/A | BE345: N/A | BF345: N/A | BG345: N/A | BH345: N/A | BI345: N/A | BJ345: N/A | BK345: N/A | BL345: N/A | BM345: N/A | BN345: N/A | BO345: N/A | BP345: N/A | BQ345: N/A | BR345: N/A | BS345: N/A | BT345: N/A | BU345: N/A | BV345: N/A | BW345: N/A | BX345: N/A | BY345: N/A | BZ345: N/A | CA345: N/A | CB345: N/A
BB346: No | BC346: N/A | BD346: N/A | BE346: N/A | BF346: N/A | BG346: N/A | BH346: N/A | BI346: N/A | BJ346: N/A | BK346: N/A | BL346: N/A | BM346: N/A | BN346: N/A | BO346: N/A | BP346: N/A | BQ346: N/A | BR346: N/A | BS346: N/A | BT346: N/A | BU346: N/A | BV346: N/A | BW346: N/A | BX346: N/A | BY346: N/A | BZ346: N/A | CA346: N/A | CB346: N/A
BA347: Use of Basic Sanitation and Hygiene | BB347: Yes | BC347: N/A | BD347: N/A | BE347: N/A | BF347: N/A | BG347: N/A | BH347: N/A | BI347: N/A | BJ347: N/A | BK347: N/A | BL347: N/A | BM347: N/A | BN347: N/A | BO347: N/A | BP347: N/A | BQ347: N/A | BR347: N/A | BS347: N/A | BT347: N/A | BU347: N/A | BV347: N/A | BW347: N/A | BX347: N/A | BY347: N/A | BZ347: N/A | CA347: N/A | CB347: N/A
BB348: No | BC348: N/A | BD348: N/A | BE348: N/A | BF348: N/A | BG348: N/A | BH348: N/A | BI348: N/A | BJ348: N/A | BK348: N/A | BL348: N/A | BM348: N/A | BN348: N/A | BO348: N/A | BP348: N/A | BQ348: N/A | BR348: N/A | BS348: N/A | BT348: N/A | BU348: N/A | BV348: N/A | BW348: N/A | BX348: N/A | BY348: N/A | BZ348: N/A | CA348: N/A | CB348: N/A
BA349: Use of Basic Water | BB349: Yes | BC349: N/A | BD349: N/A | BE349: N/A | BF349: N/A | BG349: N/A | BH349: N/A | BI349: N/A | BJ349: N/A | BK349: N/A | BL349: N/A | BM349: N/A | BN349: N/A | BO349: N/A | BP349: N/A | BQ349: N/A | BR349: N/A | BS349: N/A | BT349: N/A | BU349: N/A | BV349: N/A | BW349: N/A | BX349: N/A | BY349: N/A | BZ349: N/A | CA349: N/A | CB349: N/A
BB350: No | BC350: N/A | BD350: N/A | BE350: N/A | BF350: N/A | BG350: N/A | BH350: N/A | BI350: N/A | BJ350: N/A | BK350: N/A | BL350: N/A | BM350: N/A | BN350: N/A | BO350: N/A | BP350: N/A | BQ350: N/A | BR350: N/A | BS350: N/A | BT350: N/A | BU350: N/A | BV350: N/A | BW350: N/A | BX350: N/A | BY350: N/A | BZ350: N/A | CA350: N/A | CB350: N/A
BA351: Use of Basic Sanitation | BB351: Yes | BC351: N/A | BD351: N/A | BE351: N/A | BF351: N/A | BG351: N/A | BH351: N/A | BI351: N/A | BJ351: N/A | BK351: N/A | BL351: N/A | BM351: N/A | BN351: N/A | BO351: N/A | BP351: N/A | BQ351: N/A | BR351: N/A | BS351: N/A | BT351: N/A | BU351: N/A | BV351: N/A | BW351: N/A | BX351: N/A | BY351: N/A | BZ351: N/A | CA351: N/A | CB351: N/A
BB352: No | BC352: N/A | BD352: N/A | BE352: N/A | BF352: N/A | BG352: N/A | BH352: N/A | BI352: N/A | BJ352: N/A | BK352: N/A | BL352: N/A | BM352: N/A | BN352: N/A | BO352: N/A | BP352: N/A | BQ352: N/A | BR352: N/A | BS352: N/A | BT352: N/A | BU352: N/A | BV352: N/A | BW352: N/A | BX352: N/A | BY352: N/A | BZ352: N/A | CA352: N/A | CB352: N/A
BA353: Access to Basic Hygiene | BB353: Yes | BC353: N/A | BD353: N/A | BE353: N/A | BF353: N/A | BG353: N/A | BH353: N/A | BI353: N/A | BJ353: N/A | BK353: N/A | BL353: N/A | BM353: N/A | BN353: N/A | BO353: N/A | BP353: N/A | BQ353: N/A | BR353: N/A | BS353: N/A | BT353: N/A | BU353: N/A | BV353: N/A | BW353: N/A | BX353: N/A | BY353: N/A | BZ353: N/A | CA353: N/A | CB353: N/A
BB354: No | BC354: N/A | BD354: N/A | BE354: N/A | BF354: N/A | BG354: N/A | BH354: N/A | BI354: N/A | BJ354: N/A | BK354: N/A | BL354: N/A | BM354: N/A | BN354: N/A | BO354: N/A | BP354: N/A | BQ354: N/A | BR354: N/A | BS354: N/A | BT354: N/A | BU354: N/A | BV354: N/A | BW354: N/A | BX354: N/A | BY354: N/A | BZ354: N/A | CA354: N/A | CB354: N/A
C399: INITIAL (national) Wealth Index | H399: URBAN Wealth Index | M399: RURAL Wealth Index
C400: Component Matrix | H400: Component Matrix | M400: Component Matrix
E401: Component | J401: Component | O401: Component
B402: Note: The INITIAL (national) Wealth Index is based on the first component of the Principal Component Analysis (PCA) which has been obtained at national level. The final national-level (NATIONAL) Wealth Index is based on the URBAN and RURAL specific wealth indexes. Regression procedures are used to establish the relationships between the two sets of scores (urban and rural) and the initial (national) wealth factors. This allows best use of the available information for each area and a better precision of the FINAL (NATIONAL) Wealth Index. For dependency reasons, all WASH variables (contained in the generic MICS and DHS scripts) have been excluded from the sets of asset variables used in the PCAs. The PCA can extracts as many components as there are asset variables in the input. Only the first of the components is used to represent the Wealth Index. The scores represent the weights of the asset variables on the Wealth Index (correlations between the variables and the component). The communalities are the proportion of each variable's variance that can be explained by the component. Proportion of explained variance is the part of the model's total variance that is explained by the component. For more information on the procedure used: The DHS Wealth Index, DHS Comparative Reports No. 6, Shea Oscar Rutstein, Kiersten Johnson, ORC Macro International Inc., 2004. The DHS Wealth Index: Approaches for Rural and Urban Areas, Shea O. Rutstein, ORC Macro International Inc., 2008. MICS Methodological Paper No. 4, Review of options for reporting water, sanitation and hygiene coverage by wealth quintile, UNICEF, 2016. | E402: 1 | J402: 1 | O402: 1
C403: Has electricity | E403: 0.8581169799 | H403: roof31 | J403: 0.7236003524 | M403: roof32 | O403: 0.8142104294
C404: if has dirt, sand, dung as principal floor in dwelling | E404: -0.8244667875 | H404: roof32 | J404: 0.7236003524 | M404: roof31 | O404: 0.8142104294
C405: roof32 | E405: 0.8103892462 | H405: Has electricity | J405: 0.685560915 | M405: roof22 | O405: -0.6591154258
C406: roof31 | E406: 0.8103892462 | H406: if has dirt, sand, dung as principal floor in dwelling | J406: -0.6663754301 | M406: if has cement principal floor | O406: 0.4742299519
C407: if uses kerosene as cooking fuel | E407: 0.7494291102 | H407: if uses wood as cooking fuel | J407: -0.6312155959 | M407: Has electricity | O407: 0.4513119446
C408: Has radio | E408: 0.6744401545 | H408: if uses kerosene as cooking fuel | J408: 0.6172853833 | M408: Own house | O408: -0.4489123902
C409: Household has an electric mitad | E409: 0.669927588 | H409: Household has an electric mitad | J409: 0.5520992956 | M409: Has radio | O409: 0.3787344279
C410: Has television | E410: 0.6499610615 | H410: Has radio | J410: 0.5297567408 | M410: if has dirt, sand, dung as principal floor in dwelling | O410: -0.35805416
C411: if uses wood as cooking fuel | E411: -0.619087177 | H411: roof22 | J411: -0.5070763242 | M411: Household has a kerosene lamp/pressure lamp | O411: 0.3508630791
C412: roof22 | E412: -0.6120957869 | H412: Has television | J412: 0.5068301797 | M412: Crop land | O412: -0.3278998425
C413: Has telephone | E413: 0.5574319998 | H413: Has telephone | J413: 0.4390756801 | M413: if uses kerosene as cooking fuel | O413: 0.3153931753
C414: if has cement principal floor | E414: 0.489018798 | H414: Crop land | J414: -0.4266845021 | M414: Household has a bed/table | O414: 0.1994507757
C415: if has vinyl or asphalt strips as flooring material | E415: 0.4701751313 | H415: Household has a bed/table | J415: 0.4157507206 | M415: Has bicycle | O415: 0.1667821793
C416: Household has a bed/table | E416: 0.4589686097 | H416: roof21 | J416: -0.3586293385 | M416: if uses charcoal for cooking | O416: 0.1620798843
C417: Has car/truck | E417: 0.3100353672 | H417: Cattle/camels | J417: -0.3302549496 | M417: if has bamboo, reed as principal floor in dwelling | O417: 0.1312341175
C418: if has parquet or polished wood floors | E418: 0.2809001946 | H418: if has vinyl or asphalt strips as flooring material | J418: 0.3190782224 | M418: if uses biogas as cooking fuel | O418: 0.1192166244
C419: Number of members per sleeping room | E419: -0.2593867188 | H419: roof25 | J419: -0.2951738833 | M419: Has car/truck | O419: 0.1076748586
C420: if uses charcoal for cooking | E420: 0.2333825942 | H420: Sheep/goats | J420: -0.2939578053 | M420: roof25 | O420: 0.09875101093
C421: Has bicycle | E421: 0.2105235745 | H421: Horse/mule/donkey | J421: -0.2465737818 | M421: Household has an electric mitad | O421: 0.08992378426
C422: if has tiles for main flooring material | E422: 0.2093773775 | H422: Has car/truck | J422: 0.2402415827 | M422: Cash crops | O422: 0.08742474329
C423: roof25 | E423: -0.1443114941 | H423: Own house | J423: -0.2392870209 | M423: if has tiles for main flooring material | O423: 0.08370871934
C424: if has wood, plank principal floor in dwelling | E424: 0.1413410918 | H424: if has cement principal floor | J424: 0.2387118664 | M424: Horse/mule/donkey | O424: 0.07615299595
... 169 more rows

Sheet DHS05
A2: =A1026 -> Ethiopia
A3: =A1034 -> 2005
A4: Use of drinking water sources
A5: by wealth quintile and sub-national region
A6: Notes:
A7: WHO/UNICEF JMP customised wealth index excludes water,
A8: sanitation and hygiene assets.
A9: Survey used for analysis: | B9: =A1025 -> DHS05
A10: =B1028 -> 
A11: =B1027 -> 
A14: Use of drinking water sources | C14: NATIONAL wealth index quintile | H14: URBAN wealth index quintile | M14: RURAL wealth index quintile | R14: SUB-REGIONS: | BA14: Raw numbers of respondents: | BB14: Use of drinking water sources | BC14: NATIONAL wealth index quintile | BH14: URBAN wealth index quintile | BM14: RURAL wealth index quintile | BR14: SUB-REGIONS:
A15: Weighted percentage (used in graphs) | C15: Poorest | D15: Poor | E15: Middle | F15: Rich | G15: Richest | H15: Poorest | I15: Poor | J15: Middle | K15: Rich | L15: Richest | M15: Poorest | N15: Poor | O15: Middle | P15: Rich | Q15: Richest | R15: Addis Abeba | S15: Afar | T15: Amhara | U15: Ben-Gumz | V15: Dire Dawa | W15: Gambela | X15: Harari | Y15: Oromiya | Z15: SNNP | AA15: Somali | AB15: Tigray | BA15: Water data, raw numbers (weighted) | BC15: Poorest | BD15: Poor | BE15: Middle | BF15: Rich | BG15: Richest | BH15: Poorest | BI15: Poor | BJ15: Middle | BK15: Rich | BL15: Richest | BM15: Poorest | BN15: Poor | BO15: Middle | BP15: Rich | BQ15: Richest | BR15: Addis Abeba | BS15: Afar | BT15: Amhara | BU15: Ben-Gumz | BV15: Dire Dawa | BW15: Gambela | BX15: Harari | BY15: Oromiya | BZ15: SNNP | CA15: Somali | CB15: Tigray
A16: Water | B16: Improved | C16: 52.6 | D16: 58.3 | E16: 53.4 | F16: 57 | G16: 79.8 | H16: 77 | I16: 92.3 | J16: 98.8 | K16: 99.6 | L16: 100 | M16: 51.5 | N16: 57.8 | O16: 54.4 | P16: 55.2 | Q16: 59.2 | R16: 99.5 | S16: 39.5 | T16: 60.5 | U16: 57.5 | V16: 92.8 | W16: 56.4 | X16: 83.1 | Y16: 60.2 | Z16: 56.7 | AA16: 32 | AB16: 69.4 | BA16: Water | BB16: Improved | BC16: N/A | BD16: N/A | BE16: N/A | BF16: N/A | BG16: N/A | BH16: N/A | BI16: N/A | BJ16: N/A | BK16: N/A | BL16: N/A | BM16: N/A | BN16: N/A | BO16: N/A | BP16: N/A | BQ16: N/A | BR16: N/A | BS16: N/A | BT16: N/A | BU16: N/A | BV16: N/A | BW16: N/A | BX16: N/A | BY16: N/A | BZ16: N/A | CA16: N/A | CB16: N/A
B17: Not Improved | C17: 47.4 | D17: 41.7 | E17: 46.6 | F17: 43 | G17: 20.2 | H17: 23 | I17: 7.7 | J17: 1.2 | K17: 0.4 | L17: 0 | M17: 48.5 | N17: 42.2 | O17: 45.6 | P17: 44.8 | Q17: 40.8 | R17: 0.5 | S17: 60.5 | T17: 39.5 | U17: 42.5 | V17: 7.2 | W17: 43.6 | X17: 16.9 | Y17: 39.8 | Z17: 43.3 | AA17: 68 | AB17: 30.6 | BB17: Not Improved | BC17: N/A | BD17: N/A | BE17: N/A | BF17: N/A | BG17: N/A | BH17: N/A | BI17: N/A | BJ17: N/A | BK17: N/A | BL17: N/A | BM17: N/A | BN17: N/A | BO17: N/A | BP17: N/A | BQ17: N/A | BR17: N/A | BS17: N/A | BT17: N/A | BU17: N/A | BV17: N/A | BW17: N/A | BX17: N/A | BY17: N/A | BZ17: N/A | CA17: N/A | CB17: N/A
A18: Water ladder | B18: Basic | C18: 35 | D18: 39.7 | E18: 38.4 | F18: 42.3 | G18: 72.6 | H18: 63 | I18: 86 | J18: 93 | K18: 97.5 | L18: 99.4 | M18: 33.8 | N18: 39.9 | O18: 38.3 | P18: 40.2 | Q18: 46.7 | R18: 95.9 | S18: 18.2 | T18: 42.9 | U18: 42.8 | V18: 71.2 | W18: 47.1 | X18: 63.5 | Y18: 46.6 | Z18: 44.8 | AA18: 18.6 | AB18: 46.5 | BA18: Water ladder | BB18: Basic | BC18: N/A | BD18: N/A | BE18: N/A | BF18: N/A | BG18: N/A | BH18: N/A | BI18: N/A | BJ18: N/A | BK18: N/A | BL18: N/A | BM18: N/A | BN18: N/A | BO18: N/A | BP18: N/A | BQ18: N/A | BR18: N/A | BS18: N/A | BT18: N/A | BU18: N/A | BV18: N/A | BW18: N/A | BX18: N/A | BY18: N/A | BZ18: N/A | CA18: N/A | CB18: N/A
B19: Limited | C19: 17.5 | D19: 18.6 | E19: 15 | F19: 14.7 | G19: 7.2 | H19: 13.9 | I19: 6.3 | J19: 5.7 | K19: 2.1 | L19: 0.5 | M19: 17.7 | N19: 17.9 | O19: 16.1 | P19: 15 | Q19: 12.5 | R19: 3.6 | S19: 21.2 | T19: 17.6 | U19: 14.8 | V19: 21.6 | W19: 9.3 | X19: 19.6 | Y19: 13.6 | Z19: 11.9 | AA19: 13.4 | AB19: 22.9 | BB19: Limited | BC19: N/A | BD19: N/A | BE19: N/A | BF19: N/A | BG19: N/A | BH19: N/A | BI19: N/A | BJ19: N/A | BK19: N/A | BL19: N/A | BM19: N/A | BN19: N/A | BO19: N/A | BP19: N/A | BQ19: N/A | BR19: N/A | BS19: N/A | BT19: N/A | BU19: N/A | BV19: N/A | BW19: N/A | BX19: N/A | BY19: N/A | BZ19: N/A | CA19: N/A | CB19: N/A
B20: Unimproved | C20: 15.7 | D20: 12.2 | E20: 14.4 | F20: 14 | G20: 8 | H20: 18.3 | I20: 7.6 | J20: 1.2 | K20: 0.4 | L20: 0 | M20: 16.4 | N20: 11.7 | O20: 15.1 | P20: 14.2 | Q20: 12.1 | R20: 0.2 | S20: 8.6 | T20: 13 | U20: 9 | V20: 0.9 | W20: 14.1 | X20: 10.3 | Y20: 8.8 | Z20: 17.1 | AA20: 32.7 | AB20: 17.8 | BB20: Unimproved | BC20: N/A | BD20: N/A | BE20: N/A | BF20: N/A | BG20: N/A | BH20: N/A | BI20: N/A | BJ20: N/A | BK20: N/A | BL20: N/A | BM20: N/A | BN20: N/A | BO20: N/A | BP20: N/A | BQ20: N/A | BR20: N/A | BS20: N/A | BT20: N/A | BU20: N/A | BV20: N/A | BW20: N/A | BX20: N/A | BY20: N/A | BZ20: N/A | CA20: N/A | CB20: N/A
B21: Surface water | C21: 31.7 | D21: 29.5 | E21: 32.1 | F21: 29 | G21: 12.2 | H21: 4.7 | I21: 0.1 | J21: 0 | K21: 0 | L21: 0 | M21: 32.1 | N21: 30.5 | O21: 30.5 | P21: 30.5 | Q21: 28.7 | R21: 0.4 | S21: 51.9 | T21: 26.5 | U21: 33.5 | V21: 6.4 | W21: 29.5 | X21: 6.7 | Y21: 31 | Z21: 26.1 | AA21: 35.3 | AB21: 12.9 | BB21: Surface water | BC21: N/A | BD21: N/A | BE21: N/A | BF21: N/A | BG21: N/A | BH21: N/A | BI21: N/A | BJ21: N/A | BK21: N/A | BL21: N/A | BM21: N/A | BN21: N/A | BO21: N/A | BP21: N/A | BQ21: N/A | BR21: N/A | BS21: N/A | BT21: N/A | BU21: N/A | BV21: N/A | BW21: N/A | BX21: N/A | BY21: N/A | BZ21: N/A | CA21: N/A | CB21: N/A
A22: Improved water point at more than 30 minutes | B22: Yes | C22: 33.4 | D22: 31.9 | E22: 28.1 | F22: 25.9 | G22: missing | H22: 18.1 | I22: 6.8 | J22: 5.8 | K22: 2.1 | L22: 0.5 | M22: 34.3 | N22: 30.9 | O22: 29.5 | P22: 27.2 | Q22: 21.1 | R22: 3.6 | S22: 53.9 | T22: 29.2 | U22: 25.6 | V22: 23.3 | W22: 16.5 | X22: 23.6 | Y22: 22.6 | Z22: 21 | AA22: 41.9 | AB22: 33 | BA22: Improved water point at more than 30 minutes | BB22: Yes | BC22: N/A | BD22: N/A | BE22: N/A | BF22: N/A | BG22: N/A | BH22: N/A | BI22: N/A | BJ22: N/A | BK22: N/A | BL22: N/A | BM22: N/A | BN22: N/A | BO22: N/A | BP22: N/A | BQ22: N/A | BR22: N/A | BS22: N/A | BT22: N/A | BU22: N/A | BV22: N/A | BW22: N/A | BX22: N/A | BY22: N/A | BZ22: N/A | CA22: N/A | CB22: N/A
B23: No | C23: 66.6 | D23: 68.1 | E23: 71.9 | F23: 74.1 | G23: 91 | H23: 81.9 | I23: 93.2 | J23: 94.2 | K23: 97.9 | L23: 99.5 | M23: 65.7 | N23: 69.1 | O23: 70.5 | P23: 72.8 | Q23: 78.9 | R23: 96.4 | S23: 46.1 | T23: 70.8 | U23: 74.4 | V23: 76.7 | W23: 83.5 | X23: 76.4 | Y23: 77.4 | Z23: 79 | AA23: 58.1 | AB23: 67 | BB23: No | BC23: N/A | BD23: N/A | BE23: N/A | BF23: N/A | BG23: N/A | BH23: N/A | BI23: N/A | BJ23: N/A | BK23: N/A | BL23: N/A | BM23: N/A | BN23: N/A | BO23: N/A | BP23: N/A | BQ23: N/A | BR23: N/A | BS23: N/A | BT23: N/A | BU23: N/A | BV23: N/A | BW23: N/A | BX23: N/A | BY23: N/A | BZ23: N/A | CA23: N/A | CB23: N/A
A24: Manually calculated ratios | B24: Improved wells
B25: Improved springs
B26: Other
C27: NATIONAL wealth index quintile | H27: URBAN wealth index quintile | M27: RURAL wealth index quintile | R27: SUB-REGIONS: | BA27: Raw numbers of respondents: | BB27: Use of drinking water sources | BC27: NATIONAL wealth index quintile | BH27: URBAN wealth index quintile | BM27: RURAL wealth index quintile | BR27: SUB-REGIONS:
A28: Percentage based on weighted population | C28: Poorest | D28: Poor | E28: Middle | F28: Rich | G28: Richest | H28: Poorest | I28: Poor | J28: Middle | K28: Rich | L28: Richest | M28: Poorest | N28: Poor | O28: Middle | P28: Rich | Q28: Richest | R28: Addis Abeba | S28: Afar | T28: Amhara | U28: Ben-Gumz | V28: Dire Dawa | W28: Gambela | X28: Harari | Y28: Oromiya | Z28: SNNP | AA28: Somali | AB28: Tigray | BA28: Water data, raw numbers (weighted) | BC28: Poorest | BD28: Poor | BE28: Middle | BF28: Rich | BG28: Richest | BH28: Poorest | BI28: Poor | BJ28: Middle | BK28: Rich | BL28: Richest | BM28: Poorest | BN28: Poor | BO28: Middle | BP28: Rich | BQ28: Richest | BR28: Addis Abeba | BS28: Afar | BT28: Amhara | BU28: Ben-Gumz | BV28: Dire Dawa | BW28: Gambela | BX28: Harari | BY28: Oromiya | BZ28: SNNP | CA28: Somali | CB28: Tigray
A29: Piped water | B29: Yes | C29: 12.2 | D29: 11.6 | E29: 12.2 | F29: 11.8 | G29: 61.9 | H29: 65.5 | I29: 85.7 | J29: 97 | K29: 99.3 | L29: 99.8 | M29: 10.8 | N29: 11.6 | O29: 11.4 | P29: 11.5 | Q29: 17.8 | R29: 98.6 | S29: 16.6 | T29: 18.4 | U29: 15.9 | V29: 80.2 | W29: 26.3 | X29: 55.4 | Y29: 19.5 | Z29: 17.2 | AA29: 12 | AB29: 28.1 | BA29: Piped water | BB29: Yes | BC29: N/A | BD29: N/A | BE29: N/A | BF29: N/A | BG29: N/A | BH29: N/A | BI29: N/A | BJ29: N/A | BK29: N/A | BL29: N/A | BM29: N/A | BN29: N/A | BO29: N/A | BP29: N/A | BQ29: N/A | BR29: N/A | BS29: N/A | BT29: N/A | BU29: N/A | BV29: N/A | BW29: N/A | BX29: N/A | BY29: N/A | BZ29: N/A | CA29: N/A | CB29: N/A
B30: No | C30: 87.8 | D30: 88.4 | E30: 87.8 | F30: 88.2 | G30: 38.1 | H30: 34.5 | I30: 14.3 | J30: 3 | K30: 0.7 | L30: 0.2 | M30: 89.2 | N30: 88.4 | O30: 88.6 | P30: 88.5 | Q30: 82.2 | R30: 1.4 | S30: 83.4 | T30: 81.6 | U30: 84.1 | V30: 19.8 | W30: 73.7 | X30: 44.6 | Y30: 80.5 | Z30: 82.8 | AA30: 88 | AB30: 71.9 | BB30: No | BC30: N/A | BD30: N/A | BE30: N/A | BF30: N/A | BG30: N/A | BH30: N/A | BI30: N/A | BJ30: N/A | BK30: N/A | BL30: N/A | BM30: N/A | BN30: N/A | BO30: N/A | BP30: N/A | BQ30: N/A | BR30: N/A | BS30: N/A | BT30: N/A | BU30: N/A | BV30: N/A | BW30: N/A | BX30: N/A | BY30: N/A | BZ30: N/A | CA30: N/A | CB30: N/A
A31: Piped water on premises | B31: Yes | C31: 0.2 | D31: 0.1 | E31: 0 | F31: 0 | G31: 30.3 | H31: 9.6 | I31: 27.8 | J31: 45.4 | K31: 68.7 | L31: 93.3 | M31: 0 | N31: 0.1 | O31: 0 | P31: 0 | Q31: 1 | R31: 69.2 | S31: 7.2 | T31: 3.7 | U31: 0.3 | V31: 23.6 | W31: 1.4 | X31: 31.1 | Y31: 3.8 | Z31: 1.9 | AA31: 3.9 | AB31: 10 | BA31: Piped water on premises | BB31: Yes | BC31: N/A | BD31: N/A | BE31: N/A | BF31: N/A | BG31: N/A | BH31: N/A | BI31: N/A | BJ31: N/A | BK31: N/A | BL31: N/A | BM31: N/A | BN31: N/A | BO31: N/A | BP31: N/A | BQ31: N/A | BR31: N/A | BS31: N/A | BT31: N/A | BU31: N/A | BV31: N/A | BW31: N/A | BX31: N/A | BY31: N/A | BZ31: N/A | CA31: N/A | CB31: N/A
B32: No | C32: 99.8 | D32: 99.9 | E32: 100 | F32: 100 | G32: 69.7 | H32: 90.4 | I32: 72.2 | J32: 54.6 | K32: 31.3 | L32: 6.7 | M32: 100 | N32: 99.9 | O32: 100 | P32: 100 | Q32: 99 | R32: 30.8 | S32: 92.8 | T32: 96.3 | U32: 99.7 | V32: 76.4 | W32: 98.6 | X32: 68.9 | Y32: 96.2 | Z32: 98.1 | AA32: 96.1 | AB32: 90 | BB32: No | BC32: N/A | BD32: N/A | BE32: N/A | BF32: N/A | BG32: N/A | BH32: N/A | BI32: N/A | BJ32: N/A | BK32: N/A | BL32: N/A | BM32: N/A | BN32: N/A | BO32: N/A | BP32: N/A | BQ32: N/A | BR32: N/A | BS32: N/A | BT32: N/A | BU32: N/A | BV32: N/A | BW32: N/A | BX32: N/A | BY32: N/A | BZ32: N/A | CA32: N/A | CB32: N/A
A33: Piped water into dwelling | B33: Yes | C33: N/A | D33: N/A | E33: N/A | F33: N/A | G33: N/A | H33: N/A | I33: N/A | J33: N/A | K33: N/A | L33: N/A | M33: N/A | N33: N/A | O33: N/A | P33: N/A | Q33: N/A | R33: N/A | S33: N/A | T33: N/A | U33: N/A | V33: N/A | W33: N/A | X33: N/A | Y33: N/A | Z33: N/A | AA33: N/A | AB33: N/A | BA33: Piped water into dwelling | BB33: Yes | BC33: N/A | BD33: N/A | BE33: N/A | BF33: N/A | BG33: N/A | BH33: N/A | BI33: N/A | BJ33: N/A | BK33: N/A | BL33: N/A | BM33: N/A | BN33: N/A | BO33: N/A | BP33: N/A | BQ33: N/A | BR33: N/A | BS33: N/A | BT33: N/A | BU33: N/A | BV33: N/A | BW33: N/A | BX33: N/A | BY33: N/A | BZ33: N/A | CA33: N/A | CB33: N/A
B34: No | C34: N/A | D34: N/A | E34: N/A | F34: N/A | G34: N/A | H34: N/A | I34: N/A | J34: N/A | K34: N/A | L34: N/A | M34: N/A | N34: N/A | O34: N/A | P34: N/A | Q34: N/A | R34: N/A | S34: N/A | T34: N/A | U34: N/A | V34: N/A | W34: N/A | X34: N/A | Y34: N/A | Z34: N/A | AA34: N/A | AB34: N/A | BB34: No | BC34: N/A | BD34: N/A | BE34: N/A | BF34: N/A | BG34: N/A | BH34: N/A | BI34: N/A | BJ34: N/A | BK34: N/A | BL34: N/A | BM34: N/A | BN34: N/A | BO34: N/A | BP34: N/A | BQ34: N/A | BR34: N/A | BS34: N/A | BT34: N/A | BU34: N/A | BV34: N/A | BW34: N/A | BX34: N/A | BY34: N/A | BZ34: N/A | CA34: N/A | CB34: N/A
A35: Water source on premises | B35: Yes | C35: 1.7 | D35: 1.3 | E35: 0.8 | F35: 2.3 | G35: 31.8 | H35: 10.2 | I35: 29.5 | J35: 46.6 | K35: 69.1 | L35: 93.3 | M35: 1.5 | N35: 1 | O35: 1.4 | P35: 1.3 | Q35: 3.6 | R35: 69.3 | S35: 7.5 | T35: 5.5 | U35: 1.8 | V35: 23.8 | W35: 1.5 | X35: 31.9 | Y35: 4.5 | Z35: 4.2 | AA35: 7.7 | AB35: 10.7 | BA35: Water source on premises | BB35: Yes | BC35: N/A | BD35: N/A | BE35: N/A | BF35: N/A | BG35: N/A | BH35: N/A | BI35: N/A | BJ35: N/A | BK35: N/A | BL35: N/A | BM35: N/A | BN35: N/A | BO35: N/A | BP35: N/A | BQ35: N/A | BR35: N/A | BS35: N/A | BT35: N/A | BU35: N/A | BV35: N/A | BW35: N/A | BX35: N/A | BY35: N/A | BZ35: N/A | CA35: N/A | CB35: N/A
B36: No | C36: 98.3 | D36: 98.7 | E36: 99.2 | F36: 97.7 | G36: 68.2 | H36: 89.8 | I36: 70.5 | J36: 53.4 | K36: 30.9 | L36: 6.7 | M36: 98.5 | N36: 99 | O36: 98.6 | P36: 98.7 | Q36: 96.4 | R36: 30.7 | S36: 92.5 | T36: 94.5 | U36: 98.2 | V36: 76.2 | W36: 98.5 | X36: 68.1 | Y36: 95.5 | Z36: 95.8 | AA36: 92.3 | AB36: 89.3 | BB36: No | BC36: N/A | BD36: N/A | BE36: N/A | BF36: N/A | BG36: N/A | BH36: N/A | BI36: N/A | BJ36: N/A | BK36: N/A | BL36: N/A | BM36: N/A | BN36: N/A | BO36: N/A | BP36: N/A | BQ36: N/A | BR36: N/A | BS36: N/A | BT36: N/A | BU36: N/A | BV36: N/A | BW36: N/A | BX36: N/A | BY36: N/A | BZ36: N/A | CA36: N/A | CB36: N/A
A37: Improved Water source on premises | B37: Yes | C37: 1.2 | D37: 0.7 | E37: 0.4 | F37: 1.3 | G37: 31.3 | H37: 10 | I37: 29.1 | J37: 46.5 | K37: 69.1 | L37: 93.3 | M37: 1.1 | N37: 0.5 | O37: 0.7 | P37: 0.9 | Q37: 2.4 | R37: 69.3 | S37: 7.5 | T37: 4.6 | U37: 0.7 | V37: 23.8 | W37: 1.5 | X37: 31.7 | Y37: 4.3 | Z37: 3.2 | AA37: 7.5 | AB37: 10.4 | BA37: Improved water source on premises | BB37: Yes | BC37: N/A | BD37: N/A | BE37: N/A | BF37: N/A | BG37: N/A | BH37: N/A | BI37: N/A | BJ37: N/A | BK37: N/A | BL37: N/A | BM37: N/A | BN37: N/A | BO37: N/A | BP37: N/A | BQ37: N/A | BR37: N/A | BS37: N/A | BT37: N/A | BU37: N/A | BV37: N/A | BW37: N/A | BX37: N/A | BY37: N/A | BZ37: N/A | CA37: N/A | CB37: N/A
B38: No | C38: 98.8 | D38: 99.3 | E38: 99.6 | F38: 98.7 | G38: 68.7 | H38: 90 | I38: 70.9 | J38: 53.5 | K38: 30.9 | L38: 6.7 | M38: 98.9 | N38: 99.5 | O38: 99.3 | P38: 99.1 | Q38: 97.6 | R38: 30.7 | S38: 92.5 | T38: 95.4 | U38: 99.3 | V38: 76.2 | W38: 98.5 | X38: 68.3 | Y38: 95.7 | Z38: 96.8 | AA38: 92.5 | AB38: 89.6 | BB38: No | BC38: N/A | BD38: N/A | BE38: N/A | BF38: N/A | BG38: N/A | BH38: N/A | BI38: N/A | BJ38: N/A | BK38: N/A | BL38: N/A | BM38: N/A | BN38: N/A | BO38: N/A | BP38: N/A | BQ38: N/A | BR38: N/A | BS38: N/A | BT38: N/A | BU38: N/A | BV38: N/A | BW38: N/A | BX38: N/A | BY38: N/A | BZ38: N/A | CA38: N/A | CB38: N/A
A39: Piped water on premises available when needed | B39: Yes | C39: N/A | D39: N/A | E39: N/A | F39: N/A | G39: N/A | H39: N/A | I39: N/A | J39: N/A | K39: N/A | L39: N/A | M39: N/A | N39: N/A | O39: N/A | P39: N/A | Q39: N/A | R39: N/A | S39: N/A | T39: N/A | U39: N/A | V39: N/A | W39: N/A | X39: N/A | Y39: N/A | Z39: N/A | AA39: N/A | AB39: N/A | BA39: Piped water on premises available when needed | BB39: Yes | BC39: N/A | BD39: N/A | BE39: N/A | BF39: N/A | BG39: N/A | BH39: N/A | BI39: N/A | BJ39: N/A | BK39: N/A | BL39: N/A | BM39: N/A | BN39: N/A | BO39: N/A | BP39: N/A | BQ39: N/A | BR39: N/A | BS39: N/A | BT39: N/A | BU39: N/A | BV39: N/A | BW39: N/A | BX39: N/A | BY39: N/A | BZ39: N/A | CA39: N/A | CB39: N/A
B40: No | C40: N/A | D40: N/A | E40: N/A | F40: N/A | G40: N/A | H40: N/A | I40: N/A | J40: N/A | K40: N/A | L40: N/A | M40: N/A | N40: N/A | O40: N/A | P40: N/A | Q40: N/A | R40: N/A | S40: N/A | T40: N/A | U40: N/A | V40: N/A | W40: N/A | X40: N/A | Y40: N/A | Z40: N/A | AA40: N/A | AB40: N/A | BB40: No | BC40: N/A | BD40: N/A | BE40: N/A | BF40: N/A | BG40: N/A | BH40: N/A | BI40: N/A | BJ40: N/A | BK40: N/A | BL40: N/A | BM40: N/A | BN40: N/A | BO40: N/A | BP40: N/A | BQ40: N/A | BR40: N/A | BS40: N/A | BT40: N/A | BU40: N/A | BV40: N/A | BW40: N/A | BX40: N/A | BY40: N/A | BZ40: N/A | CA40: N/A | CB40: N/A
A41: Water point at more than 30 minutes | B41: Yes | C41: 43 | D41: 33 | E41: 32.3 | F41: 28.5 | G41: 13.7 | H41: 20.5 | I41: 9.1 | J41: 6.9 | K41: 2.1 | L41: 0.5 | M41: 43.7 | N41: 33.3 | O41: 32.5 | P41: 30.9 | Q41: 25.5 | R41: 4 | S41: 72.1 | T41: 30.6 | U41: 30.6 | V41: 25.6 | W41: 18.6 | X41: 28.6 | Y41: 29.1 | Z41: 25 | AA41: 63.7 | AB41: 38.2 | BA41: Water point at more than 30 minutes | BB41: Yes | BC41: N/A | BD41: N/A | BE41: N/A | BF41: N/A | BG41: N/A | BH41: N/A | BI41: N/A | BJ41: N/A | BK41: N/A | BL41: N/A | BM41: N/A | BN41: N/A | BO41: N/A | BP41: N/A | BQ41: N/A | BR41: N/A | BS41: N/A | BT41: N/A | BU41: N/A | BV41: N/A | BW41: N/A | BX41: N/A | BY41: N/A | BZ41: N/A | CA41: N/A | CB41: N/A
B42: No | C42: 57 | D42: 67 | E42: 67.7 | F42: 71.5 | G42: 86.3 | H42: 79.5 | I42: 90.9 | J42: 93.1 | K42: 97.9 | L42: 99.5 | M42: 56.3 | N42: 66.7 | O42: 67.5 | P42: 69.1 | Q42: 74.5 | R42: 96 | S42: 27.9 | T42: 69.4 | U42: 69.4 | V42: 74.4 | W42: 81.4 | X42: 71.4 | Y42: 70.9 | Z42: 75 | AA42: 36.3 | AB42: 61.8 | BB42: No | BC42: N/A | BD42: N/A | BE42: N/A | BF42: N/A | BG42: N/A | BH42: N/A | BI42: N/A | BJ42: N/A | BK42: N/A | BL42: N/A | BM42: N/A | BN42: N/A | BO42: N/A | BP42: N/A | BQ42: N/A | BR42: N/A | BS42: N/A | BT42: N/A | BU42: N/A | BV42: N/A | BW42: N/A | BX42: N/A | BY42: N/A | BZ42: N/A | CA42: N/A | CB42: N/A
A43: Water source available when needed | B43: Yes | C43: N/A | D43: N/A | E43: N/A | F43: N/A | G43: N/A | H43: N/A | I43: N/A | J43: N/A | K43: N/A | L43: N/A | M43: N/A | N43: N/A | O43: N/A | P43: N/A | Q43: N/A | R43: N/A | S43: N/A | T43: N/A | U43: N/A | V43: N/A | W43: N/A | X43: N/A | Y43: N/A | Z43: N/A | AA43: N/A | AB43: N/A | BA43: Water source available when needed | BB43: Yes | BC43: N/A | BD43: N/A | BE43: N/A | BF43: N/A | BG43: N/A | BH43: N/A | BI43: N/A | BJ43: N/A | BK43: N/A | BL43: N/A | BM43: N/A | BN43: N/A | BO43: N/A | BP43: N/A | BQ43: N/A | BR43: N/A | BS43: N/A | BT43: N/A | BU43: N/A | BV43: N/A | BW43: N/A | BX43: N/A | BY43: N/A | BZ43: N/A | CA43: N/A | CB43: N/A
B44: No | C44: N/A | D44: N/A | E44: N/A | F44: N/A | G44: N/A | H44: N/A | I44: N/A | J44: N/A | K44: N/A | L44: N/A | M44: N/A | N44: N/A | O44: N/A | P44: N/A | Q44: N/A | R44: N/A | S44: N/A | T44: N/A | U44: N/A | V44: N/A | W44: N/A | X44: N/A | Y44: N/A | Z44: N/A | AA44: N/A | AB44: N/A | BB44: No | BC44: N/A | BD44: N/A | BE44: N/A | BF44: N/A | BG44: N/A | BH44: N/A | BI44: N/A | BJ44: N/A | BK44: N/A | BL44: N/A | BM44: N/A | BN44: N/A | BO44: N/A | BP44: N/A | BQ44: N/A | BR44: N/A | BS44: N/A | BT44: N/A | BU44: N/A | BV44: N/A | BW44: N/A | BX44: N/A | BY44: N/A | BZ44: N/A | CA44: N/A | CB44: N/A
A45: Improved water source available when needed | B45: Yes | C45: N/A | D45: N/A | E45: N/A | F45: N/A | G45: N/A | H45: N/A | I45: N/A | J45: N/A | K45: N/A | L45: N/A | M45: N/A | N45: N/A | O45: N/A | P45: N/A | Q45: N/A | R45: N/A | S45: N/A | T45: N/A | U45: N/A | V45: N/A | W45: N/A | X45: N/A | Y45: N/A | Z45: N/A | AA45: N/A | AB45: N/A | BA45: Improved water source available when needed | BB45: Yes | BC45: N/A | BD45: N/A | BE45: N/A | BF45: N/A | BG45: N/A | BH45: N/A | BI45: N/A | BJ45: N/A | BK45: N/A | BL45: N/A | BM45: N/A | BN45: N/A | BO45: N/A | BP45: N/A | BQ45: N/A | BR45: N/A | BS45: N/A | BT45: N/A | BU45: N/A | BV45: N/A | BW45: N/A | BX45: N/A | BY45: N/A | BZ45: N/A | CA45: N/A | CB45: N/A
B46: No | C46: N/A | D46: N/A | E46: N/A | F46: N/A | G46: N/A | H46: N/A | I46: N/A | J46: N/A | K46: N/A | L46: N/A | M46: N/A | N46: N/A | O46: N/A | P46: N/A | Q46: N/A | R46: N/A | S46: N/A | T46: N/A | U46: N/A | V46: N/A | W46: N/A | X46: N/A | Y46: N/A | Z46: N/A | AA46: N/A | AB46: N/A | BB46: No | BC46: N/A | BD46: N/A | BE46: N/A | BF46: N/A | BG46: N/A | BH46: N/A | BI46: N/A | BJ46: N/A | BK46: N/A | BL46: N/A | BM46: N/A | BN46: N/A | BO46: N/A | BP46: N/A | BQ46: N/A | BR46: N/A | BS46: N/A | BT46: N/A | BU46: N/A | BV46: N/A | BW46: N/A | BX46: N/A | BY46: N/A | BZ46: N/A | CA46: N/A | CB46: N/A
A47: Microbiological quality at point of collection | B47: Not contaminated (No E. coli in 100 mL) | C47: N/A | D47: N/A | E47: N/A | F47: N/A | G47: N/A | H47: N/A | I47: N/A | J47: N/A | K47: N/A | L47: N/A | M47: N/A | N47: N/A | O47: N/A | P47: N/A | Q47: N/A | R47: N/A | S47: N/A | T47: N/A | U47: N/A | V47: N/A | W47: N/A | X47: N/A | Y47: N/A | Z47: N/A | AA47: N/A | AB47: N/A | BA47: Microbiological quality at point of collection | BB47: Not contaminated (No E. coli in 100 mL) | BC47: N/A | BD47: N/A | BE47: N/A | BF47: N/A | BG47: N/A | BH47: N/A | BI47: N/A | BJ47: N/A | BK47: N/A | BL47: N/A | BM47: N/A | BN47: N/A | BO47: N/A | BP47: N/A | BQ47: N/A | BR47: N/A | BS47: N/A | BT47: N/A | BU47: N/A | BV47: N/A | BW47: N/A | BX47: N/A | BY47: N/A | BZ47: N/A | CA47: N/A | CB47: N/A
B48: Contaminated (E. coli detected in 100 mL) | C48: N/A | D48: N/A | E48: N/A | F48: N/A | G48: N/A | H48: N/A | I48: N/A | J48: N/A | K48: N/A | L48: N/A | M48: N/A | N48: N/A | O48: N/A | P48: N/A | Q48: N/A | R48: N/A | S48: N/A | T48: N/A | U48: N/A | V48: N/A | W48: N/A | X48: N/A | Y48: N/A | Z48: N/A | AA48: N/A | AB48: N/A | BB48: Contaminated (E. coli detected in 100 mL) | BC48: N/A | BD48: N/A | BE48: N/A | BF48: N/A | BG48: N/A | BH48: N/A | BI48: N/A | BJ48: N/A | BK48: N/A | BL48: N/A | BM48: N/A | BN48: N/A | BO48: N/A | BP48: N/A | BQ48: N/A | BR48: N/A | BS48: N/A | BT48: N/A | BU48: N/A | BV48: N/A | BW48: N/A | BX48: N/A | BY48: N/A | BZ48: N/A | CA48: N/A | CB48: N/A
B49: Highly contaminated (>100 CFU/100 mL) | C49: N/A | D49: N/A | E49: N/A | F49: N/A | G49: N/A | H49: N/A | I49: N/A | J49: N/A | K49: N/A | L49: N/A | M49: N/A | N49: N/A | O49: N/A | P49: N/A | Q49: N/A | R49: N/A | S49: N/A | T49: N/A | U49: N/A | V49: N/A | W49: N/A | X49: N/A | Y49: N/A | Z49: N/A | AA49: N/A | AB49: N/A | BB49: Highly contaminated (>100 CFU/100 mL) | BC49: N/A | BD49: N/A | BE49: N/A | BF49: N/A | BG49: N/A | BH49: N/A | BI49: N/A | BJ49: N/A | BK49: N/A | BL49: N/A | BM49: N/A | BN49: N/A | BO49: N/A | BP49: N/A | BQ49: N/A | BR49: N/A | BS49: N/A | BT49: N/A | BU49: N/A | BV49: N/A | BW49: N/A | BX49: N/A | BY49: N/A | BZ49: N/A | CA49: N/A | CB49: N/A
A50: Microbiological quality of improved water sources at point of collection | B50: Not contaminated (No E. coli in 100 mL) | C50: N/A | D50: N/A | E50: N/A | F50: N/A | G50: N/A | H50: N/A | I50: N/A | J50: N/A | K50: N/A | L50: N/A | M50: N/A | N50: N/A | O50: N/A | P50: N/A | Q50: N/A | R50: N/A | S50: N/A | T50: N/A | U50: N/A | V50: N/A | W50: N/A | X50: N/A | Y50: N/A | Z50: N/A | AA50: N/A | AB50: N/A | BA50: Microbiological quality of improved water sources at point of collection | BB50: Not contaminated (No E. coli in 100 mL) | BC50: N/A | BD50: N/A | BE50: N/A | BF50: N/A | BG50: N/A | BH50: N/A | BI50: N/A | BJ50: N/A | BK50: N/A | BL50: N/A | BM50: N/A | BN50: N/A | BO50: N/A | BP50: N/A | BQ50: N/A | BR50: N/A | BS50: N/A | BT50: N/A | BU50: N/A | BV50: N/A | BW50: N/A | BX50: N/A | BY50: N/A | BZ50: N/A | CA50: N/A | CB50: N/A
B51: Contaminated (E. coli detected in 100 mL) | C51: N/A | D51: N/A | E51: N/A | F51: N/A | G51: N/A | H51: N/A | I51: N/A | J51: N/A | K51: N/A | L51: N/A | M51: N/A | N51: N/A | O51: N/A | P51: N/A | Q51: N/A | R51: N/A | S51: N/A | T51: N/A | U51: N/A | V51: N/A | W51: N/A | X51: N/A | Y51: N/A | Z51: N/A | AA51: N/A | AB51: N/A | BB51: Contaminated (E. coli detected in 100 mL) | BC51: N/A | BD51: N/A | BE51: N/A | BF51: N/A | BG51: N/A | BH51: N/A | BI51: N/A | BJ51: N/A | BK51: N/A | BL51: N/A | BM51: N/A | BN51: N/A | BO51: N/A | BP51: N/A | BQ51: N/A | BR51: N/A | BS51: N/A | BT51: N/A | BU51: N/A | BV51: N/A | BW51: N/A | BX51: N/A | BY51: N/A | BZ51: N/A | CA51: N/A | CB51: N/A
B52: Highly contaminated (>100 CFU/100 mL) | C52: N/A | D52: N/A | E52: N/A | F52: N/A | G52: N/A | H52: N/A | I52: N/A | J52: N/A | K52: N/A | L52: N/A | M52: N/A | N52: N/A | O52: N/A | P52: N/A | Q52: N/A | R52: N/A | S52: N/A | T52: N/A | U52: N/A | V52: N/A | W52: N/A | X52: N/A | Y52: N/A | Z52: N/A | AA52: N/A | AB52: N/A | BB52: Highly contaminated (>100 CFU/100 mL) | BC52: N/A | BD52: N/A | BE52: N/A | BF52: N/A | BG52: N/A | BH52: N/A | BI52: N/A | BJ52: N/A | BK52: N/A | BL52: N/A | BM52: N/A | BN52: N/A | BO52: N/A | BP52: N/A | BQ52: N/A | BR52: N/A | BS52: N/A | BT52: N/A | BU52: N/A | BV52: N/A | BW52: N/A | BX52: N/A | BY52: N/A | BZ52: N/A | CA52: N/A | CB52: N/A
A53: Microbiological quality of piped on premises at point of collection | B53: Not contaminated (No E. coli in 100 mL) | C53: N/A | D53: N/A | E53: N/A | F53: N/A | G53: N/A | H53: N/A | I53: N/A | J53: N/A | K53: N/A | L53: N/A | M53: N/A | N53: N/A | O53: N/A | P53: N/A | Q53: N/A | R53: N/A | S53: N/A | T53: N/A | U53: N/A | V53: N/A | W53: N/A | X53: N/A | Y53: N/A | Z53: N/A | AA53: N/A | AB53: N/A | BA53: Microbiological quality of piped on premises at point of collection | BB53: Not contaminated (No E. coli in 100 mL) | BC53: N/A | BD53: N/A | BE53: N/A | BF53: N/A | BG53: N/A | BH53: N/A | BI53: N/A | BJ53: N/A | BK53: N/A | BL53: N/A | BM53: N/A | BN53: N/A | BO53: N/A | BP53: N/A | BQ53: N/A | BR53: N/A | BS53: N/A | BT53: N/A | BU53: N/A | BV53: N/A | BW53: N/A | BX53: N/A | BY53: N/A | BZ53: N/A | CA53: N/A | CB53: N/A
B54: Contaminated (E. coli detected in 100 mL) | C54: N/A | D54: N/A | E54: N/A | F54: N/A | G54: N/A | H54: N/A | I54: N/A | J54: N/A | K54: N/A | L54: N/A | M54: N/A | N54: N/A | O54: N/A | P54: N/A | Q54: N/A | R54: N/A | S54: N/A | T54: N/A | U54: N/A | V54: N/A | W54: N/A | X54: N/A | Y54: N/A | Z54: N/A | AA54: N/A | AB54: N/A | BB54: Contaminated (E. coli detected in 100 mL) | BC54: N/A | BD54: N/A | BE54: N/A | BF54: N/A | BG54: N/A | BH54: N/A | BI54: N/A | BJ54: N/A | BK54: N/A | BL54: N/A | BM54: N/A | BN54: N/A | BO54: N/A | BP54: N/A | BQ54: N/A | BR54: N/A | BS54: N/A | BT54: N/A | BU54: N/A | BV54: N/A | BW54: N/A | BX54: N/A | BY54: N/A | BZ54: N/A | CA54: N/A | CB54: N/A
B55: Highly contaminated (>100 CFU/100 mL) | C55: N/A | D55: N/A | E55: N/A | F55: N/A | G55: N/A | H55: N/A | I55: N/A | J55: N/A | K55: N/A | L55: N/A | M55: N/A | N55: N/A | O55: N/A | P55: N/A | Q55: N/A | R55: N/A | S55: N/A | T55: N/A | U55: N/A | V55: N/A | W55: N/A | X55: N/A | Y55: N/A | Z55: N/A | AA55: N/A | AB55: N/A | BB55: Highly contaminated (>100 CFU/100 mL) | BC55: N/A | BD55: N/A | BE55: N/A | BF55: N/A | BG55: N/A | BH55: N/A | BI55: N/A | BJ55: N/A | BK55: N/A | BL55: N/A | BM55: N/A | BN55: N/A | BO55: N/A | BP55: N/A | BQ55: N/A | BR55: N/A | BS55: N/A | BT55: N/A | BU55: N/A | BV55: N/A | BW55: N/A | BX55: N/A | BY55: N/A | BZ55: N/A | CA55: N/A | CB55: N/A
C56: NATIONAL wealth index quintile | H56: URBAN wealth index quintile | M56: RURAL wealth index quintile | R56: SUB-REGIONS: | BA56: Raw numbers of respondents: | BB56: Use of drinking water sources | BC56: NATIONAL wealth index quintile | BH56: URBAN wealth index quintile | BM56: RURAL wealth index quintile | BR56: SUB-REGIONS:
A57: Percentage based on weighted population | C57: Poorest | D57: Poor | E57: Middle | F57: Rich | G57: Richest | H57: Poorest | I57: Poor | J57: Middle | K57: Rich | L57: Richest | M57: Poorest | N57: Poor | O57: Middle | P57: Rich | Q57: Richest | R57: Addis Abeba | S57: Afar | T57: Amhara | U57: Ben-Gumz | V57: Dire Dawa | W57: Gambela | X57: Harari | Y57: Oromiya | Z57: SNNP | AA57: Somali | AB57: Tigray | BA57: Water data, raw numbers (weighted) | BC57: Poorest | BD57: Poor | BE57: Middle | BF57: Rich | BG57: Richest | BH57: Poorest | BI57: Poor | BJ57: Middle | BK57: Rich | BL57: Richest | BM57: Poorest | BN57: Poor | BO57: Middle | BP57: Rich | BQ57: Richest | BR57: Addis Abeba | BS57: Afar | BT57: Amhara | BU57: Ben-Gumz | BV57: Dire Dawa | BW57: Gambela | BX57: Harari | BY57: Oromiya | BZ57: SNNP | CA57: Somali | CB57: Tigray
A58: Source of drinking water | B58: Piped in dwelling | C58: 0 | D58: 0.1 | E58: 0 | F58: 0 | G58: 1.6 | H58: 0 | I58: 1 | J58: 1.5 | K58: 3.7 | L58: 7 | M58: 0 | N58: 0.1 | O58: 0 | P58: 0 | Q58: 0 | R58: 4.5 | S58: 0.7 | T58: 0.3 | U58: 0 | V58: 1 | W58: 0.2 | X58: 1.1 | Y58: 0.1 | Z58: 0.1 | AA58: 0.1 | AB58: 0.4
B59: Piped into compound | C59: 0.2 | D59: 0 | E59: 0 | F59: 0 | G59: 28.7 | H59: 9.6 | I59: 26.8 | J59: 43.8 | K59: 65 | L59: 86.3 | M59: 0 | N59: 0 | O59: 0 | P59: 0 | Q59: 1 | R59: 64.7 | S59: 6.5 | T59: 3.5 | U59: 0.3 | V59: 22.5 | W59: 1.2 | X59: 30 | Y59: 3.6 | Z59: 1.8 | AA59: 3.8 | AB59: 9.6
B60: Piped outside compound | C60: 12 | D60: 11.6 | E60: 12.1 | F60: 11.8 | G60: 31.7 | H60: 55.8 | I60: 57.9 | J60: 51.6 | K60: 30.5 | L60: 6.5 | M60: 10.8 | N60: 11.5 | O60: 11.4 | P60: 11.5 | Q60: 16.8 | R60: 29.4 | S60: 9.5 | T60: 14.6 | U60: 15.5 | V60: 56.7 | W60: 24.9 | X60: 24.4 | Y60: 15.8 | Z60: 15.3 | AA60: 8 | AB60: 18
B61: Unprotected well | C61: 9.5 | D61: 5.8 | E61: 5.5 | F61: 4.3 | G61: 2.1 | H61: 2.8 | I61: 1.4 | J61: 0.1 | K61: 0 | L61: 0 | M61: 10.2 | N61: 5.5 | O61: 6.2 | P61: 4.1 | Q61: 4.4 | R61: 0 | S61: 7.9 | T61: 5.3 | U61: 4.3 | V61: 0.6 | W61: 3.8 | X61: 1.6 | Y61: 2.7 | Z61: 3.8 | AA61: 30.4 | AB61: 14.6
B62: Unprotected spring | C62: 5.9 | D62: 6.3 | E62: 8.9 | F62: 9.6 | G62: 5.6 | H62: 15 | I62: 6.2 | J62: 1.1 | K62: 0 | L62: 0 | M62: 5.8 | N62: 6 | O62: 8.9 | P62: 10.1 | Q62: 7.3 | R62: 0.1 | S62: 0.8 | T62: 7.7 | U62: 3.6 | V62: 0.3 | W62: 10.3 | X62: 8.7 | Y62: 6 | Z62: 13 | AA62: 1.9 | AB62: 1.9
B63: Tube well or borehole | C63: 0 | D63: 0.2 | E63: 0 | F63: 0.1 | G63: 0.2 | H63: 0.2 | I63: 0 | J63: 0 | K63: 0 | L63: 0 | M63: 0.1 | N63: 0.2 | O63: 0 | P63: 0.1 | Q63: 0.2 | R63: 0 | S63: 0 | T63: 0.1 | U63: 0.1 | V63: 0 | W63: 1.9 | X63: 0 | Y63: 0.1 | Z63: 0.2 | AA63: 0.2 | AB63: 0.1
B64: Protected well | C64: 7.4 | D64: 4.4 | E64: 3.2 | F64: 3.4 | G64: 2.4 | H64: 1.5 | I64: 2.1 | J64: 1.2 | K64: 0.3 | L64: 0 | M64: 8.1 | N64: 3.9 | O64: 3.9 | P64: 3 | Q64: 4 | R64: 0 | S64: 4.5 | T64: 2.7 | U64: 6.4 | V64: 0.2 | W64: 8.1 | X64: 5.8 | Y64: 2 | Z64: 6.1 | AA64: 10.4 | AB64: 13.5
B65: Protected spring | C65: 31.7 | D65: 42 | E65: 38 | F65: 41.6 | G65: 14.9 | H65: 7.3 | I65: 3.9 | J65: 0.3 | K65: 0 | L65: 0 | M65: 31.4 | N65: 42 | O65: 38.9 | P65: 40.4 | Q65: 37.2 | R65: 0.9 | S65: 15.7 | T65: 39.3 | U65: 35.2 | V65: 12.4 | W65: 18.9 | X65: 19.6 | Y65: 38.4 | Z65: 33.2 | AA65: 3.8 | AB65: 27.8
B66: River/dam/lake/pond/stream/canal/irrigation channel | C66: 31.7 | D66: 29.5 | E66: 32.1 | F66: 29 | G66: 12.2 | H66: 4.7 | I66: 0.1 | J66: 0 | K66: 0 | L66: 0 | M66: 32.1 | N66: 30.5 | O66: 30.5 | P66: 30.5 | Q66: 28.7 | R66: 0.4 | S66: 51.9 | T66: 26.5 | U66: 33.5 | V66: 6.4 | W66: 29.5 | X66: 6.6 | Y66: 31 | Z66: 26.1 | AA66: 35.3 | AB66: 12.9
B67: Rainwater | C67: 0.7 | D67: 0.1 | E67: 0 | F67: 0.1 | G67: 0 | H67: 0.1 | I67: 0 | J67: 0 | K67: 0 | L67: 0 | M67: 0.8 | N67: 0.1 | O67: 0 | P67: 0.1 | Q67: 0 | R67: 0 | S67: 0.2 | T67: 0 | U67: 0 | V67: 0 | W67: 0 | X67: 0.1 | Y67: 0.1 | Z67: 0 | AA67: 3.4 | AB67: 0
B68: Tanker truck | C68: 0.4 | D68: 0 | E68: 0.1 | F68: 0.1 | G68: 0.3 | H68: 2.3 | I68: 0.6 | J68: 0.2 | K68: 0 | L68: 0.1 | M68: 0.3 | N68: 0 | O68: 0.1 | P68: 0.1 | Q68: 0.1 | R68: 0 | S68: 2.5 | T68: 0 | U68: 0 | V68: 0 | W68: 1.3 | X68: 2 | Y68: 0.1 | Z68: 0.1 | AA68: 2.2 | AB68: 0
B69: Bottled water | C69: 0 | D69: 0 | E69: 0 | F69: 0 | G69: 0 | H69: 0 | I69: 0 | J69: 0 | K69: 0 | L69: 0 | M69: 0 | N69: 0 | O69: 0 | P69: 0 | Q69: 0 | R69: 0 | S69: 0 | T69: 0 | U69: 0 | V69: 0 | W69: 0 | X69: 0.1 | Y69: 0 | Z69: 0 | AA69: 0 | AB69: 0
B70: Other | C70: 0.3 | D70: 0.1 | E70: 0 | F70: 0.2 | G70: 0.2 | H70: 0.5 | I70: 0 | J70: 0 | K70: 0.3 | L70: 0 | M70: 0.3 | N70: 0.1 | O70: 0 | P70: 0.1 | Q70: 0.3 | R70: 0.1 | S70: 0 | T70: 0 | U70: 1.1 | V70: 0 | W70: 0 | X70: 0 | Y70: 0 | Z70: 0.3 | AA70: 0.5 | AB70: 1.2
A108: =A1026 -> Ethiopia
A109: =A1034 -> 2005
A110: Use of sanitation facilities
A111: by wealth quintile and sub-national region
A112: Notes:
A113: WHO/UNICEF JMP customised wealth index excludes water,
A114: sanitation and hygiene assets.
A115: Survey used for analysis: | B115: =A1025 -> DHS05
A116: =B1030 -> 
A117: =B1029 -> 
A120: Use of sanitation facilities | C120: NATIONAL wealth index quintile | H120: URBAN wealth index quintile | M120: RURAL wealth index quintile | R120: SUB-REGIONS: | BA120: Raw numbers of respondents: | BB120: Use of sanitation facilities | BC120: NATIONAL wealth index quintile | BH120: URBAN wealth index quintile | BM120: RURAL wealth index quintile | BR120: SUB-REGIONS:
A121: Weighted percentage (used in graphs) | C121: Poorest | D121: Poor | E121: Middle | F121: Rich | G121: Richest | H121: Poorest | I121: Poor | J121: Middle | K121: Rich | L121: Richest | M121: Poorest | N121: Poor | O121: Middle | P121: Rich | Q121: Richest | R121: Addis Abeba | S121: Afar | T121: Amhara | U121: Ben-Gumz | V121: Dire Dawa | W121: Gambela | X121: Harari | Y121: Oromiya | Z121: SNNP | AA121: Somali | AB121: Tigray | BA121: Sanitation data, raw numbers (weighted) | BC121: Poorest | BD121: Poor | BE121: Middle | BF121: Rich | BG121: Richest | BH121: Poorest | BI121: Poor | BJ121: Middle | BK121: Rich | BL121: Richest | BM121: Poorest | BN121: Poor | BO121: Middle | BP121: Rich | BQ121: Richest | BR121: Addis Abeba | BS121: Afar | BT121: Amhara | BU121: Ben-Gumz | BV121: Dire Dawa | BW121: Gambela | BX121: Harari | BY121: Oromiya | BZ121: SNNP | CA121: Somali | CB121: Tigray
A122: Sanitation | B122: Improved | C122: 4.466160674 | D122: 6.31745994 | E122: 7.966244789 | F122: 6.009469788 | G122: 36.23533776 | H122: 21.7544483 | I122: 32.7264033 | J122: 48.30759701 | K122: 69.82967844 | L122: 89.06655632 | M122: 4.69281115 | N122: 5.916888443 | O122: 6.949820678 | P122: 7.016391909 | Q122: 8.710860643 | R122: 72.30247074 | S122: 7.462500457 | T122: 7.798045384 | U122: 7.023741712 | V122: 50.50401899 | W122: 6.54029902 | X122: 38.42417272 | Y122: 7.850275283 | Z122: 15.35325898 | AA122: 10.33529435 | AB122: 10.86358667 | BA122: Sanitation | BB122: Improved | BC122: 625.337904 | BD122: 883.811715 | BE122: 1116.114421 | BF122: 840.775595 | BG122: 5071.779942 | BH122: 369.453764 | BI122: 556.372153 | BJ122: 818.933051 | BK122: 1186.243824 | BL122: 1512.534511 | BM122: 576.900172 | BN122: 727.999709 | BO122: 854.780769 | BP122: 863.444703 | BQ122: 1071.156921 | BR122: 1717.259205 | BS122: 55.663812 | BT122: 1351.367588 | BU122: 43.011307 | BV122: 147.437621 | BW122: 13.436558 | BX122: 64.33961 | BY122: 2009.140769 | BZ122: 2354.958261 | CA122: 296.018831 | CB122: 485.186015
B123: Not Improved | C123: 95.53383933 | D123: 93.68254006 | E123: 92.03375521 | F123: 93.99053021 | G123: 63.76466224 | H123: 78.2455517 | I123: 67.2735967 | J123: 51.69240299 | K123: 30.17032156 | L123: 10.93344368 | M123: 95.30718885 | N123: 94.08311156 | O123: 93.05017932 | P123: 92.98360809 | Q123: 91.28913936 | R123: 27.69752926 | S123: 92.53749954 | T123: 92.20195462 | U123: 92.97625829 | V123: 49.49598101 | W123: 93.45970098 | X123: 61.57582728 | Y123: 92.14972472 | Z123: 84.64674102 | AA123: 89.66470565 | AB123: 89.13641333 | BB123: Not Improved | BC123: 13376.35056 | BD123: 13106.17355 | BE123: 12894.43196 | BF123: 13150.06927 | BG123: 8924.998493 | BH123: 1328.836898 | BI123: 1143.699034 | BJ123: 876.31387 | BK123: 512.523592 | BL123: 185.672508 | BM123: 11716.37466 | BN123: 11575.75954 | BO123: 11444.54045 | BP123: 11442.6624 | BQ123: 11225.64089 | BR123: 657.845252 | BS123: 690.249871 | BT123: 15978.20055 | BU123: 569.358976 | BV123: 144.494831 | BW123: 192.006006 | BX123: 103.106051 | BY123: 23584.11165 | BZ123: 12983.53283 | CA123: 2568.135986 | CB123: 3980.981833
A124: Sanitation ladder | B124: Basic | C124: =C122*C129/100 -> 4.078832423 | D124: =D122*D129/100 -> 5.469437139 | E124: =E122*E129/100 -> 6.477677656 | F124: 4.862473369 | G124: 16.97832786 | H124: 10.89198977 | I124: 10.12112424 | J124: 11.17166615 | K124: 26.95739561 | L124: 54.29552955 | M124: 4.351902632 | N124: 5.066988059 | O124: 5.888232918 | P124: 5.391467786 | Q124: 6.719732197 | R124: 26.61462688 | S124: 4.536489512 | T124: 4.94474645 | U124: 4.106888544 | V124: 24.05829962 | W124: 4.301186097 | X124: 19.0027971 | Y124: 5.222378086 | Z124: 13.01952092 | AA124: 4.995306975 | AB124: 3.656115927 | BA124: Sanitation ladder | BB124: Basic | BC124: 571.105409 | BD124: 765.17345 | BE124: 901.012868 | BF124: 667.035124 | BG124: 2370.109991 | BH124: 184.473296 | BI124: 172.066317 | BJ124: 188.019296 | BK124: 456.260337 | BL124: 920.950975 | BM124: 534.991351 | BN124: 623.430012 | BO124: 717.392965 | BP124: 663.4798 | BQ124: 813.372493 | BR124: 629.794323 | BS124: 33.838296 | BT124: 853.152167 | BU124: 25.149365 | BV124: 70.233984 | BW124: 8.836467 | BX124: 31.715689 | BY124: 1325.669496 | BZ124: 1990.172324 | CA124: 142.586457 | CB124: 163.288274
B125: Limited | C125: =C122*C128/100 -> 0.3873282506 | D125: =D122*D128/100 -> 0.8480228014 | E125: =E122*E128/100 -> 1.488567133 | F125: 1.146996419 | G125: 19.25700991 | H125: 10.86245852 | I125: 22.60527906 | J125: 37.13593087 | K125: 42.87228282 | L125: 34.77102677 | M125: 0.3409085176 | N125: 0.8499003832 | O125: 1.061587759 | P125: 1.624924124 | Q125: 1.991128446 | R125: 45.68784386 | S125: 2.926010944 | T125: 2.853298934 | U125: 2.916853168 | V125: 26.44571937 | W125: 2.239112923 | X125: 19.42137562 | Y125: 2.627897197 | Z125: 2.333738056 | AA125: 5.339987376 | AB125: 7.207470743 | BB125: Limited | BC125: 54.232495 | BD125: 118.638265 | BE125: 207.052313 | BF125: 157.345211 | BG125: 2688.205338 | BH125: 183.973137 | BI125: 384.305836 | BJ125: 624.998231 | BK125: 725.623591 | BL125: 589.779882 | BM125: 41.908821 | BN125: 104.569697 | BO125: 129.338564 | BP125: 199.964903 | BQ125: 241.01096 | BR125: 1081.132748 | BS125: 21.825516 | BT125: 492.299897 | BU125: 17.861942 | BV125: 77.203637 | BW125: 4.600091 | BX125: 32.414297 | BY125: 667.076013 | BZ125: 356.736697 | CA125: 152.425043 | CB125: 321.897741
B126: Unimproved | C126: =100-C124-C125-C127 -> 13.41310344 | D126: =100-D124-D125-D127 -> 20.98039406 | E126: =100-E124-E125-E127 -> 24.3731825 | F126: 30.6555925 | G126: 38.7617357 | H126: 41.24200471 | I126: 56.69129519 | J126: 45.08884952 | K126: 28.6873053 | L126: 10.05847566 | M126: 11.78620272 | N126: 20.12818171 | O126: 23.2130972 | P126: 28.76689592 | Q126: 36.9098284 | R126: 23.07467328 | S126: 2.412016619 | T126: 23.51628394 | U126: 32.55083183 | V126: 11.0120087 | W126: 19.10053362 | X126: 16.00386721 | Y126: 18.21838804 | Z126: 50.57963862 | AA126: 4.299004652 | AB126: 10.26909115 | BB126: Unimproved | BC126: 1878.060957 | BD126: 2935.154039 | BE126: 3420.262201 | BF126: 4299.360316 | BG126: 5428.760811 | BH126: 700.781863 | BI126: 963.792375 | BJ126: 764.757968 | BK126: 487.395253 | BL126: 170.829521 | BM126: 1448.910293 | BN126: 2476.523019 | BO126: 2860.674743 | BP126: 3540.085021 | BQ126: 4547.848268 | BR126: 548.340319 | BS126: 17.991562 | BT126: 4079.333566 | BU126: 199.331621 | BV126: 32.147627 | BW126: 39.240626 | BX126: 26.893311 | BY126: 4674.799274 | BZ126: 7760.895507 | CA126: 123.990064 | CB126: 458.634847
B127: Open defecation | C127: 82.12073589 | D127: 72.702146 | E127: 67.66057271 | F127: 63.33493771 | G127: 25.00292653 | H127: 37.00354699 | I127: 10.58230152 | J127: 6.603553465 | K127: 1.483016258 | L127: 0.8749680239 | M127: 83.52098613 | N127: 73.95492985 | O127: 69.83708212 | P127: 64.21671218 | Q127: 54.37931096 | R127: 4.622855981 | S127: 90.12548292 | T127: 68.68567067 | U127: 60.42542646 | V127: 38.48397231 | W127: 74.35916736 | X127: 45.57196007 | Y127: 73.93133667 | Z127: 34.0671024 | AA127: 85.365701 | AB127: 78.86732218 | BB127: Open defecation | BC127: 11498.28961 | BD127: 10171.01951 | BE127: 9474.16976 | BF127: 8850.70895 | BG127: 3496.237682 | BH127: 628.055035 | BI127: 179.906659 | BJ127: 111.555902 | BK127: 25.128339 | BL127: 14.842987 | BM127: 10267.46437 | BN127: 9099.236521 | BO127: 8583.865703 | BP127: 7902.577377 | BQ127: 6677.792624 | BR127: 109.504933 | BS127: 672.258309 | BT127: 11898.86698 | BU127: 370.027355 | BV127: 112.347204 | BW127: 152.76538 | BX127: 76.21274 | BY127: 18909.31238 | BZ127: 5222.637325 | CA127: 2444.145922 | CB127: 3522.346986
A128: Shared among Improved Sanitation | B128: Yes | C128: 8.672510438 | D128: 13.42347731 | E128: 18.68593261 | F128: 19.08648282 | G128: 53.14428151 | H128: 49.93212595 | I128: 69.07352101 | J128: 76.87389389 | K128: 61.39550372 | L128: 39.03937483 | M128: 7.264484054 | N128: 14.36397511 | O128: 15.27503814 | P128: 23.15897038 | Q128: 22.85799908 | R128: 63.18987912 | S128: 39.20952449 | T128: 36.58992469 | U128: 41.52847994 | V128: 52.36359382 | W128: 34.23563535 | X128: 50.54468124 | Y128: 33.4752235 | Z128: 15.20027806 | AA128: 51.66749195 | AB128: 66.34522246 | BA128: Shared among improved sanitation facilities | BB128: Yes | BC128: N/A | BD128: N/A | BE128: N/A | BF128: N/A | BG128: N/A | BH128: N/A | BI128: N/A | BJ128: N/A | BK128: N/A | BL128: N/A | BM128: N/A | BN128: N/A | BO128: N/A | BP128: N/A | BQ128: N/A | BR128: N/A | BS128: N/A | BT128: N/A | BU128: N/A | BV128: N/A | BW128: N/A | BX128: N/A | BY128: N/A | BZ128: N/A | CA128: N/A | CB128: N/A
B129: No | C129: 91.32748956 | D129: 86.57652269 | E129: 81.31406739 | F129: 80.91351718 | G129: 46.85571849 | H129: 50.06787405 | I129: 30.92647899 | J129: 23.12610611 | K129: 38.60449628 | L129: 60.96062517 | M129: 92.73551595 | N129: 85.63602489 | O129: 84.72496186 | P129: 76.84102962 | Q129: 77.14200092 | R129: 36.81012088 | S129: 60.79047551 | T129: 63.41007531 | U129: 58.47152006 | V129: 47.63640618 | W129: 65.76436465 | X129: 49.45531876 | Y129: 66.5247765 | Z129: 84.79972194 | AA129: 48.33250805 | AB129: 33.65477754 | BB129: No | BC129: N/A | BD129: N/A | BE129: N/A | BF129: N/A | BG129: N/A | BH129: N/A | BI129: N/A | BJ129: N/A | BK129: N/A | BL129: N/A | BM129: N/A | BN129: N/A | BO129: N/A | BP129: N/A | BQ129: N/A | BR129: N/A | BS129: N/A | BT129: N/A | BU129: N/A | BV129: N/A | BW129: N/A | BX129: N/A | BY129: N/A | BZ129: N/A | CA129: N/A | CB129: N/A
A130: Manually calculated ratios | B130: Improved latrines | C130: =C159/(C159+C160)*100 -> 3.055679683 | D130: =D159/(D159+D160)*100 -> 4.200455332 | E130: 5.823924878 | F130: 2.102052654 | G130: 39.26782023 | H130: 22.49995319 | I130: 28.56002132 | J130: 47.06150136 | K130: 67.44964007 | L130: 86.63138838 | M130: 2.891797644 | N130: 4.442145671 | O130: 5.372831253 | P130: 2.565547363 | Q130: 6.392739365 | R130: 71.65607102 | S130: 69.67754625 | T130: 14.18347618 | U130: 5.680972024 | V130: 79.13660517 | W130: 13.86798381 | X130: 66.75205734 | Y130: 17.72913272 | Z130: 4.312667144 | AA130: 61.60200321 | AB130: 36.8183367
B131: Other
B132: Other
C133: NATIONAL wealth index quintile | H133: URBAN wealth index quintile | M133: RURAL wealth index quintile | R133: SUB-REGIONS: | BA133: Raw numbers of respondents: | BB133: Use of sanitation facilities | BC133: NATIONAL wealth index quintile | BH133: URBAN wealth index quintile | BM133: RURAL wealth index quintile | BR133: SUB-REGIONS:
A134: Percentage based on weighted population | C134: Poorest | D134: Poor | E134: Middle | F134: Rich | G134: Richest | H134: Poorest | I134: Poor | J134: Middle | K134: Rich | L134: Richest | M134: Poorest | N134: Poor | O134: Middle | P134: Rich | Q134: Richest | R134: Addis Abeba | S134: Afar | T134: Amhara | U134: Ben-Gumz | V134: Dire Dawa | W134: Gambela | X134: Harari | Y134: Oromiya | Z134: SNNP | AA134: Somali | AB134: Tigray | BA134: Sanitation data, raw numbers (weighted) | BC134: Poorest | BD134: Poor | BE134: Middle | BF134: Rich | BG134: Richest | BH134: Poorest | BI134: Poor | BJ134: Middle | BK134: Rich | BL134: Richest | BM134: Poorest | BN134: Poor | BO134: Middle | BP134: Rich | BQ134: Richest | BR134: Addis Abeba | BS134: Afar | BT134: Amhara | BU134: Ben-Gumz | BV134: Dire Dawa | BW134: Gambela | BX134: Harari | BY134: Oromiya | BZ134: SNNP | CA134: Somali | CB134: Tigray
A135: Sanitation type | B135: Sewer connection | C135: 0 | D135: 0 | E135: 0 | F135: 0 | G135: 0.8380529887 | H135: 0 | I135: 0.008252830886 | J135: 0.01795071834 | K135: 0.8367422089 | L135: 5.999568125 | M135: 0 | N135: 0 | O135: 0 | P135: 0 | Q135: 0.006151325016 | R135: 2.17304072 | S135: 0 | T135: 0.06576819406 | U135: 0 | V135: 0.04782202151 | W135: 0 | X135: 0.8222124072 | Y135: 0.1793500538 | Z135: 0 | AA135: 0.2399734106 | AB135: 0 | BA135: Sanitation type | BB135: Sewer connection | BC135: N/A | BD135: N/A | BE135: N/A | BF135: N/A | BG135: N/A | BH135: N/A | BI135: N/A | BJ135: N/A | BK135: N/A | BL135: N/A | BM135: N/A | BN135: N/A | BO135: N/A | BP135: N/A | BQ135: N/A | BR135: N/A | BS135: N/A | BT135: N/A | BU135: N/A | BV135: N/A | BW135: N/A | BX135: N/A | BY135: N/A | BZ135: N/A | CA135: N/A | CB135: N/A
B136: Septic tank connection | C136: 0 | D136: 0.02941375506 | E136: 0 | F136: 0 | G136: 1.096594118 | H136: 0.1326668662 | I136: 0 | J136: 0.3586591384 | K136: 0.5369018098 | L136: 8.010443219 | M136: 0 | N136: 0.03344490019 | O136: 0 | P136: 0 | Q136: 0 | R136: 3.530469565 | S136: 0 | T136: 0.06797673726 | U136: 0 | V136: 1.227670639 | W136: 0 | X136: 0.2938123312 | Y136: 0.1576956275 | Z136: 0.04151678911 | AA136: 0 | AB136: 0.2500349378 | BB136: Septic tank connection | BC136: N/A | BD136: N/A | BE136: N/A | BF136: N/A | BG136: N/A | BH136: N/A | BI136: N/A | BJ136: N/A | BK136: N/A | BL136: N/A | BM136: N/A | BN136: N/A | BO136: N/A | BP136: N/A | BQ136: N/A | BR136: N/A | BS136: N/A | BT136: N/A | BU136: N/A | BV136: N/A | BW136: N/A | BX136: N/A | BY136: N/A | BZ136: N/A | CA136: N/A | CB136: N/A
B137: Improved latrines | C137: 4.466160674 | D137: 6.288046185 | E137: 7.966244789 | F137: 6.009469788 | G137: 34.30069066 | H137: 21.62178143 | I137: 32.71815047 | J137: 47.93098716 | K137: 68.45603442 | L137: 75.05654498 | M137: 4.69281115 | N137: 5.883443542 | O137: 6.949820678 | P137: 7.016391909 | Q137: 8.704709318 | R137: 66.59896045 | S137: 7.462500457 | T137: 7.664300453 | U137: 7.023741712 | V137: 49.22852633 | W137: 6.54029902 | X137: 37.30814798 | Y137: 7.513229602 | Z137: 15.31174219 | AA137: 10.09532094 | AB137: 10.61355173 | BB137: Improved latrines | BC137: N/A | BD137: N/A | BE137: N/A | BF137: N/A | BG137: N/A | BH137: N/A | BI137: N/A | BJ137: N/A | BK137: N/A | BL137: N/A | BM137: N/A | BN137: N/A | BO137: N/A | BP137: N/A | BQ137: N/A | BR137: N/A | BS137: N/A | BT137: N/A | BU137: N/A | BV137: N/A | BW137: N/A | BX137: N/A | BY137: N/A | BZ137: N/A | CA137: N/A | CB137: N/A
B138: Unimproved facilities | C138: 13.41310344 | D138: 20.98039406 | E138: 24.41205437 | F138: 30.72981195 | G138: 38.785788 | H138: 41.26395314 | I138: 56.69129519 | J138: 45.11189246 | K138: 28.69111147 | L138: 10.05940495 | M138: 11.78620272 | N138: 20.12818171 | O138: 23.25880179 | P138: 28.76689592 | Q138: 36.98400459 | R138: 23.08699802 | S138: 2.412016619 | T138: 23.5397301 | U138: 32.55083183 | V138: 11.0120087 | W138: 19.10053362 | X138: 16.06091841 | Y138: 18.2657491 | Z138: 50.59751614 | AA138: 4.329028 | AB138: 10.26909115 | BB138: Unimproved facilities | BC138: N/A | BD138: N/A | BE138: N/A | BF138: N/A | BG138: N/A | BH138: N/A | BI138: N/A | BJ138: N/A | BK138: N/A | BL138: N/A | BM138: N/A | BN138: N/A | BO138: N/A | BP138: N/A | BQ138: N/A | BR138: N/A | BS138: N/A | BT138: N/A | BU138: N/A | BV138: N/A | BW138: N/A | BX138: N/A | BY138: N/A | BZ138: N/A | CA138: N/A | CB138: N/A
B139: Open defecation | C139: 82.12073589 | D139: 72.702146 | E139: 67.62170084 | F139: 63.26071826 | G139: 24.97887423 | H139: 36.98159856 | I139: 10.58230152 | J139: 6.580510521 | K139: 1.479210089 | L139: 0.8740387264 | M139: 83.52098613 | N139: 73.95492985 | O139: 69.79137753 | P139: 64.21671218 | Q139: 54.30513476 | R139: 4.610531241 | S139: 90.12548292 | T139: 68.66222452 | U139: 60.42542646 | V139: 38.48397231 | W139: 74.35916736 | X139: 45.51490886 | Y139: 73.88397562 | Z139: 34.04922488 | AA139: 85.33567765 | AB139: 78.86732218 | BB139: Open defecation | BC139: N/A | BD139: N/A | BE139: N/A | BF139: N/A | BG139: N/A | BH139: N/A | BI139: N/A | BJ139: N/A | BK139: N/A | BL139: N/A | BM139: N/A | BN139: N/A | BO139: N/A | BP139: N/A | BQ139: N/A | BR139: N/A | BS139: N/A | BT139: N/A | BU139: N/A | BV139: N/A | BW139: N/A | BX139: N/A | BY139: N/A | BZ139: N/A | CA139: N/A | CB139: N/A
A140: Septic tank emptying practices | B140: Not emptied/treated and disposed in situ | C140: N/A | D140: N/A | E140: N/A | F140: N/A | G140: N/A | H140: N/A | I140: N/A | J140: N/A | K140: N/A | L140: N/A | M140: N/A | N140: N/A | O140: N/A | P140: N/A | Q140: N/A | R140: N/A | S140: N/A | T140: N/A | U140: N/A | V140: N/A | W140: N/A | X140: N/A | Y140: N/A | Z140: N/A | AA140: N/A | AB140: N/A | BA140: Septic tank emptying practices | BB140: Not emptied/treated and disposed in situ | BC140: N/A | BD140: N/A | BE140: N/A | BF140: N/A | BG140: N/A | BH140: N/A | BI140: N/A | BJ140: N/A | BK140: N/A | BL140: N/A | BM140: N/A | BN140: N/A | BO140: N/A | BP140: N/A | BQ140: N/A | BR140: N/A | BS140: N/A | BT140: N/A | BU140: N/A | BV140: N/A | BW140: N/A | BX140: N/A | BY140: N/A | BZ140: N/A | CA140: N/A | CB140: N/A
B141: Emptied and buried on site | C141: N/A | D141: N/A | E141: N/A | F141: N/A | G141: N/A | H141: N/A | I141: N/A | J141: N/A | K141: N/A | L141: N/A | M141: N/A | N141: N/A | O141: N/A | P141: N/A | Q141: N/A | R141: N/A | S141: N/A | T141: N/A | U141: N/A | V141: N/A | W141: N/A | X141: N/A | Y141: N/A | Z141: N/A | AA141: N/A | AB141: N/A | BB141: Emptied and buried on site | BC141: N/A | BD141: N/A | BE141: N/A | BF141: N/A | BG141: N/A | BH141: N/A | BI141: N/A | BJ141: N/A | BK141: N/A | BL141: N/A | BM141: N/A | BN141: N/A | BO141: N/A | BP141: N/A | BQ141: N/A | BR141: N/A | BS141: N/A | BT141: N/A | BU141: N/A | BV141: N/A | BW141: N/A | BX141: N/A | BY141: N/A | BZ141: N/A | CA141: N/A | CB141: N/A
B142: Emptied and discharged locally | C142: N/A | D142: N/A | E142: N/A | F142: N/A | G142: N/A | H142: N/A | I142: N/A | J142: N/A | K142: N/A | L142: N/A | M142: N/A | N142: N/A | O142: N/A | P142: N/A | Q142: N/A | R142: N/A | S142: N/A | T142: N/A | U142: N/A | V142: N/A | W142: N/A | X142: N/A | Y142: N/A | Z142: N/A | AA142: N/A | AB142: N/A | BB142: Emptied and discharged locally | BC142: N/A | BD142: N/A | BE142: N/A | BF142: N/A | BG142: N/A | BH142: N/A | BI142: N/A | BJ142: N/A | BK142: N/A | BL142: N/A | BM142: N/A | BN142: N/A | BO142: N/A | BP142: N/A | BQ142: N/A | BR142: N/A | BS142: N/A | BT142: N/A | BU142: N/A | BV142: N/A | BW142: N/A | BX142: N/A | BY142: N/A | BZ142: N/A | CA142: N/A | CB142: N/A
B143: Emptied and removed offsite | C143: N/A | D143: N/A | E143: N/A | F143: N/A | G143: N/A | H143: N/A | I143: N/A | J143: N/A | K143: N/A | L143: N/A | M143: N/A | N143: N/A | O143: N/A | P143: N/A | Q143: N/A | R143: N/A | S143: N/A | T143: N/A | U143: N/A | V143: N/A | W143: N/A | X143: N/A | Y143: N/A | Z143: N/A | AA143: N/A | AB143: N/A | BB143: Emptied and removed offsite | BC143: N/A | BD143: N/A | BE143: N/A | BF143: N/A | BG143: N/A | BH143: N/A | BI143: N/A | BJ143: N/A | BK143: N/A | BL143: N/A | BM143: N/A | BN143: N/A | BO143: N/A | BP143: N/A | BQ143: N/A | BR143: N/A | BS143: N/A | BT143: N/A | BU143: N/A | BV143: N/A | BW143: N/A | BX143: N/A | BY143: N/A | BZ143: N/A | CA143: N/A | CB143: N/A
A144: Latrine emptying practices | B144: Not emptied/treated and disposed in situ | C144: N/A | D144: N/A | E144: N/A | F144: N/A | G144: N/A | H144: N/A | I144: N/A | J144: N/A | K144: N/A | L144: N/A | M144: N/A | N144: N/A | O144: N/A | P144: N/A | Q144: N/A | R144: N/A | S144: N/A | T144: N/A | U144: N/A | V144: N/A | W144: N/A | X144: N/A | Y144: N/A | Z144: N/A | AA144: N/A | AB144: N/A | BA144: Latrine emptying practices | BB144: Not emptied/treated and disposed in situ | BC144: N/A | BD144: N/A | BE144: N/A | BF144: N/A | BG144: N/A | BH144: N/A | BI144: N/A | BJ144: N/A | BK144: N/A | BL144: N/A | BM144: N/A | BN144: N/A | BO144: N/A | BP144: N/A | BQ144: N/A | BR144: N/A | BS144: N/A | BT144: N/A | BU144: N/A | BV144: N/A | BW144: N/A | BX144: N/A | BY144: N/A | BZ144: N/A | CA144: N/A | CB144: N/A
B145: Emptied and buried on site | C145: N/A | D145: N/A | E145: N/A | F145: N/A | G145: N/A | H145: N/A | I145: N/A | J145: N/A | K145: N/A | L145: N/A | M145: N/A | N145: N/A | O145: N/A | P145: N/A | Q145: N/A | R145: N/A | S145: N/A | T145: N/A | U145: N/A | V145: N/A | W145: N/A | X145: N/A | Y145: N/A | Z145: N/A | AA145: N/A | AB145: N/A | BB145: Emptied and buried on site | BC145: N/A | BD145: N/A | BE145: N/A | BF145: N/A | BG145: N/A | BH145: N/A | BI145: N/A | BJ145: N/A | BK145: N/A | BL145: N/A | BM145: N/A | BN145: N/A | BO145: N/A | BP145: N/A | BQ145: N/A | BR145: N/A | BS145: N/A | BT145: N/A | BU145: N/A | BV145: N/A | BW145: N/A | BX145: N/A | BY145: N/A | BZ145: N/A | CA145: N/A | CB145: N/A
B146: Emptied and discharged locally | C146: N/A | D146: N/A | E146: N/A | F146: N/A | G146: N/A | H146: N/A | I146: N/A | J146: N/A | K146: N/A | L146: N/A | M146: N/A | N146: N/A | O146: N/A | P146: N/A | Q146: N/A | R146: N/A | S146: N/A | T146: N/A | U146: N/A | V146: N/A | W146: N/A | X146: N/A | Y146: N/A | Z146: N/A | AA146: N/A | AB146: N/A | BB146: Emptied and discharged locally | BC146: N/A | BD146: N/A | BE146: N/A | BF146: N/A | BG146: N/A | BH146: N/A | BI146: N/A | BJ146: N/A | BK146: N/A | BL146: N/A | BM146: N/A | BN146: N/A | BO146: N/A | BP146: N/A | BQ146: N/A | BR146: N/A | BS146: N/A | BT146: N/A | BU146: N/A | BV146: N/A | BW146: N/A | BX146: N/A | BY146: N/A | BZ146: N/A | CA146: N/A | CB146: N/A
B147: Emptied and removed offsite | C147: N/A | D147: N/A | E147: N/A | F147: N/A | G147: N/A | H147: N/A | I147: N/A | J147: N/A | K147: N/A | L147: N/A | M147: N/A | N147: N/A | O147: N/A | P147: N/A | Q147: N/A | R147: N/A | S147: N/A | T147: N/A | U147: N/A | V147: N/A | W147: N/A | X147: N/A | Y147: N/A | Z147: N/A | AA147: N/A | AB147: N/A | BB147: Emptied and removed offsite | BC147: N/A | BD147: N/A | BE147: N/A | BF147: N/A | BG147: N/A | BH147: N/A | BI147: N/A | BJ147: N/A | BK147: N/A | BL147: N/A | BM147: N/A | BN147: N/A | BO147: N/A | BP147: N/A | BQ147: N/A | BR147: N/A | BS147: N/A | BT147: N/A | BU147: N/A | BV147: N/A | BW147: N/A | BX147: N/A | BY147: N/A | BZ147: N/A | CA147: N/A | CB147: N/A
A148: Shared among improved sanitation facilities | B148: Yes | C148: 0.3873282506 | D148: 0.8480228014 | E148: 1.477831823 | F148: 1.124629803 | G148: 19.2058862 | H148: 10.83284158 | I148: 22.60527906 | J148: 36.86768124 | K148: 42.71471092 | L148: 34.72956332 | M148: 0.3409085176 | N148: 0.8499003832 | O148: 1.051591074 | P148: 1.624924124 | Q148: 1.959948953 | R148: 45.51937683 | S148: 2.926010944 | T148: 2.840808802 | U148: 2.916853168 | V148: 26.44571937 | W148: 2.239112923 | X148: 19.3580991 | Y148: 2.606452677 | Z148: 2.325761347 | AA148: 5.321815779 | AB148: 7.207470743 | BA148: Shared among improved sanitation facilities | BB148: Yes | BC148: N/A | BD148: N/A | BE148: N/A | BF148: N/A | BG148: N/A | BH148: N/A | BI148: N/A | BJ148: N/A | BK148: N/A | BL148: N/A | BM148: N/A | BN148: N/A | BO148: N/A | BP148: N/A | BQ148: N/A | BR148: N/A | BS148: N/A | BT148: N/A | BU148: N/A | BV148: N/A | BW148: N/A | BX148: N/A | BY148: N/A | BZ148: N/A | CA148: N/A | CB148: N/A
B149: No | C149: 4.078832423 | D149: 5.469437139 | E149: 6.430961673 | F149: 4.767654353 | G149: 16.93325362 | H149: 10.86229231 | I149: 10.12112424 | J149: 11.09096815 | K149: 26.85831696 | L149: 54.23078369 | M149: 4.351902632 | N149: 5.066988059 | O149: 5.832785017 | P149: 5.391467786 | Q149: 6.614506519 | R149: 26.51648946 | S149: 4.536489512 | T149: 4.923101143 | U149: 4.106888544 | V149: 24.05829962 | W149: 4.301186097 | X149: 18.94088435 | Y149: 5.179761736 | Z149: 12.97502024 | AA149: 4.978308301 | AB149: 3.656115927 | BB149: No | BC149: N/A | BD149: N/A | BE149: N/A | BF149: N/A | BG149: N/A | BH149: N/A | BI149: N/A | BJ149: N/A | BK149: N/A | BL149: N/A | BM149: N/A | BN149: N/A | BO149: N/A | BP149: N/A | BQ149: N/A | BR149: N/A | BS149: N/A | BT149: N/A | BU149: N/A | BV149: N/A | BW149: N/A | BX149: N/A | BY149: N/A | BZ149: N/A | CA149: N/A | CB149: N/A
B150: DK/missing | C150: 95.53383933 | D150: 93.68254006 | E150: 92.0912065 | F150: 94.10771584 | G150: 63.86086018 | H150: 78.30486611 | I150: 67.2735967 | J150: 52.04135062 | K150: 30.42697212 | L150: 11.03965299 | M150: 95.30718885 | N150: 94.08311156 | O150: 93.11562391 | P150: 92.98360809 | Q150: 91.42554453 | R150: 27.96413371 | S150: 92.53749954 | T150: 92.23609005 | U150: 92.97625829 | V150: 49.49598101 | W150: 93.45970098 | X150: 61.70101655 | Y150: 92.21378559 | Z150: 84.69921841 | AA150: 89.69987592 | AB150: 89.13641333 | BB150: DK/missing | BC150: N/A | BD150: N/A | BE150: N/A | BF150: N/A | BG150: N/A | BH150: N/A | BI150: N/A | BJ150: N/A | BK150: N/A | BL150: N/A | BM150: N/A | BN150: N/A | BO150: N/A | BP150: N/A | BQ150: N/A | BR150: N/A | BS150: N/A | BT150: N/A | BU150: N/A | BV150: N/A | BW150: N/A | BX150: N/A | BY150: N/A | BZ150: N/A | CA150: N/A | CB150: N/A
A151: Shared among all sanitation facilities | B151: Yes | C151: 12.23975068 | D151: 16.47654618 | E151: 17.0752584 | F151: 17.16421442 | G151: 41.53511919 | H151: 40.86285991 | I151: 51.6786729 | J151: 59.78503948 | K151: 58.2784352 | L151: 39.98937058 | M151: 11.32361038 | N151: 16.32851511 | O151: 15.826827 | P151: 18.25153055 | Q151: 17.64091615 | R151: 64.68717412 | S151: 37.85942761 | T151: 25.22388528 | U151: 38.06603962 | V151: 55.92108935 | W151: 39.25815966 | X151: 50.07541302 | Y151: 26.53254327 | Z151: 13.30070546 | AA151: 51.40913599 | AB151: 52.63520134 | BA151: Shared among all sanitation facilities | BB151: Yes | BC151: N/A | BD151: N/A | BE151: N/A | BF151: N/A | BG151: N/A | BH151: N/A | BI151: N/A | BJ151: N/A | BK151: N/A | BL151: N/A | BM151: N/A | BN151: N/A | BO151: N/A | BP151: N/A | BQ151: N/A | BR151: N/A | BS151: N/A | BT151: N/A | BU151: N/A | BV151: N/A | BW151: N/A | BX151: N/A | BY151: N/A | BZ151: N/A | CA151: N/A | CB151: N/A
B152: No | C152: 87.240928 | D152: 83.52345382 | E152: 82.74730396 | F152: 82.20130796 | G152: 58.31656086 | H152: 59.04301773 | I152: 48.3213271 | J152: 39.84143286 | K152: 41.35294625 | L152: 59.90348361 | M152: 88.03463739 | N152: 83.67148489 | O152: 83.95653093 | P152: 81.38017962 | Q152: 82.05522572 | R152: 34.95346925 | S152: 61.31189694 | T152: 74.66718727 | U152: 61.93396038 | V152: 44.07891065 | W152: 60.17169597 | X152: 49.69481904 | Y152: 72.97952578 | Z152: 86.55220855 | AA152: 47.63068744 | AB152: 47.0962032 | BB152: No | BC152: N/A | BD152: N/A | BE152: N/A | BF152: N/A | BG152: N/A | BH152: N/A | BI152: N/A | BJ152: N/A | BK152: N/A | BL152: N/A | BM152: N/A | BN152: N/A | BO152: N/A | BP152: N/A | BQ152: N/A | BR152: N/A | BS152: N/A | BT152: N/A | BU152: N/A | BV152: N/A | BW152: N/A | BX152: N/A | BY152: N/A | BZ152: N/A | CA152: N/A | CB152: N/A
A153: Type of toilet facility | B153: Flush to piped sewer system | C153: 0 | D153: 0 | E153: 0 | F153: 0 | G153: 0.8381060059 | H153: 0 | I153: 0.008252830886 | J153: 0.01795071834 | K153: 0.8367422089 | L153: 6.002697814 | M153: 0 | N153: 0 | O153: 0 | P153: 0 | Q153: 0.006151325016 | R153: 2.173851107 | S153: 0 | T153: 0.06576819406 | U153: 0 | V153: 0.04782202151 | W153: 0 | X153: 0.8222124072 | Y153: 0.1794637752 | Z153: 0 | AA153: 0.2404814668 | AB153: 0 | BA153: Type of toilet facility | BB153: Flush to piped sewer system | BC153: 0 | BD153: 0 | BE153: 0 | BF153: 0 | BG153: 117.30042 | BH153: 0 | BI153: 0.140304 | BJ153: 0.304309 | BK153: 14.214304 | BL153: 101.885087 | BM153: 0 | BN153: 0 | BO153: 0 | BP153: 0 | BQ153: 0.756416 | BR153: 51.611987 | BS153: 0 | BT153: 11.397344 | BU153: 0 | BV153: 0.139608 | BW153: 0 | BX153: 1.376759 | BY153: 45.901512 | BZ153: 0 | CA153: 6.87321 | CB153: 0
B154: Flush to septic tank | C154: 0 | D154: 0.02941829745 | E154: 0 | F154: 0 | G154: 1.096663491 | H154: 0.1326668662 | I154: 0 | J154: 0.3586591384 | K154: 0.5369018098 | L154: 8.014621887 | M154: 0 | N154: 0.03345077309 | O154: 0 | P154: 0 | Q154: 0 | R154: 3.531786175 | S154: 0 | T154: 0.06797673726 | U154: 0 | V154: 1.227670639 | W154: 0 | X154: 0.2938123312 | Y154: 0.1577956183 | Z154: 0.04153528351 | AA154: 0 | AB154: 0.2502980723 | BB154: Flush to septic tank | BC154: 0 | BD154: 4.11498 | BE154: 0 | BF154: 0 | BG154: 153.487849 | BH154: 2.253069 | BI154: 0 | BJ154: 6.080158 | BK154: 9.120713 | BL154: 136.033909 | BM154: 0 | BN154: 4.11498 | BO154: 0 | BP154: 0 | BQ154: 0 | BR154: 83.85234 | BS154: 0 | BT154: 11.780075 | BU154: 0 | BV154: 3.583969 | BW154: 0 | BX154: 0.491976 | BY154: 40.35944 | BZ154: 6.368049 | CA154: 0 | CB154: 11.16698
B155: Flush to pit latrine | C155: 0.3871651974 | D155: 0.8217099731 | E155: 1.259511415 | F155: 1.785019536 | G155: 3.644554021 | H155: 4.196603596 | I155: 3.47751738 | J155: 4.618156684 | K155: 3.430614954 | L155: 5.708030028 | M155: 0.4236888531 | N155: 0.9290115383 | O155: 0.936981643 | P155: 1.590603125 | Q155: 2.148697604 | R155: 4.559347345 | S155: 0.0864863987 | T155: 0.1615860348 | U155: 1.818462344 | V155: 0.1062396448 | W155: 0.05271449007 | X155: 0.2070331342 | Y155: 0.8942801421 | Z155: 4.177446907 | AA155: 0.2665640392 | AB155: 1.781286259 | BB155: Flush to pit latrine | BC155: 54.147617 | BD155: 114.939354 | BE155: 176.464431 | BF155: 249.449824 | BG155: 510.087882 | BH155: 71.270527 | BI155: 59.120271 | BJ155: 78.289159 | BK155: 58.278169 | BL155: 96.883627 | BM155: 52.017334 | BN155: 114.283275 | BO155: 115.242382 | BP155: 195.483364 | BQ155: 264.221 | BR155: 108.248893 | BS155: 0.644586 | BT155: 28.002162 | BU155: 11.135723 | BV155: 0.310148 | BW155: 0.108298 | BX155: 0.346668 | BY155: 228.730342 | BZ155: 640.472012 | CA155: 7.618677 | CB155: 79.471599
B156: Flush to somewhere else | C156: 0 | D156: 0 | E156: 0 | F156: 0 | G156: 0.1336917478 | H156: 0 | I156: 0.04957757101 | J156: 0 | K156: 0.8169133614 | L156: 0.2351376418 | M156: 0 | N156: 0 | O156: 0 | P156: 0 | Q156: 0 | R156: 0.4510112503 | S156: 0 | T156: 0 | U156: 0 | V156: 0 | W156: 0 | X156: 0 | Y156: 0 | Z156: 0 | AA156: 0 | AB156: 0.1793882795 | BB156: Flush to somewhere else | BC156: 0 | BD156: 0 | BE156: 0 | BF156: 0 | BG156: 18.711354 | BH156: 0 | BI156: 0.842854 | BJ156: 0 | BK156: 13.877458 | BL156: 3.991042 | BM156: 0 | BN156: 0 | BO156: 0 | BP156: 0 | BQ156: 0 | BR156: 10.707995 | BS156: 0 | BT156: 0 | BU156: 0 | BV156: 0 | BW156: 0 | BX156: 0 | BY156: 0 | BZ156: 0 | CA156: 0 | CB156: 8.003359
B157: Flush, don't know where | C157: 0.2333999015 | D157: 0.1473381303 | E157: 0.1310008868 | F157: 0.02091627903 | G157: 0.2190040961 | H157: 0 | I157: 0.1617158164 | J157: 0.7297920938 | K157: 0.1255766375 | L157: 0.5660478227 | M157: 0.2658781534 | N157: 0.1675343168 | O157: 0.1492272596 | P157: 0.02248091843 | Q157: 0.03211976045 | R157: 0.4046657793 | S157: 0 | T157: 0 | U157: 0.02614300603 | V157: 0 | W157: 0 | X157: 0 | Y157: 0 | Z157: 0.4221661868 | AA157: 0.6982287286 | AB157: 0.2405366541 | BB157: Flush, don't know where | BC157: 32.642522 | BD157: 20.6094 | BE157: 18.35394 | BF157: 2.922972 | BG157: 30.651579 | BH157: 0 | BI157: 2.749284 | BJ157: 12.371778 | BK157: 2.133255 | BL157: 9.607652 | BM157: 32.642522 | BN157: 20.6094 | BO157: 18.35394 | BP157: 2.76288 | BQ157: 3.949702 | BR157: 9.607652 | BS157: 0 | BT157: 0 | BU157: 0.160092 | BV157: 0 | BW157: 0 | BX157: 0 | BY157: 0 | BZ157: 64.72509 | CA157: 19.956102 | CB157: 10.731477
B158: Ventilated improved pit latrine (VIP) | C158: 0.3131336443 | D158: 0.3052471249 | E158: 0.4418756508 | F158: 0.6452739475 | G158: 2.750995834 | H158: 1.114429021 | I158: 2.236978915 | J158: 1.835862706 | K158: 6.074835968 | L158: 7.9679305 | M158: 0.3134271292 | N158: 0.3449642902 | O158: 0.3437775163 | P158: 0.7347010981 | Q158: 0.6797808281 | R158: 7.251194845 | S158: 1.248384753 | T158: 0.4711708068 | U158: 0.1743660706 | V158: 3.509192942 | W158: 0.7952577928 | X158: 2.703659189 | Y158: 0.4346721402 | Z158: 0.8525037646 | AA158: 2.028115021 | AB158: 0.9675744879 | BB158: Ventilated improved pit latrine (VIP) | BC158: 43.793814 | BD158: 42.697434 | BE158: 61.909193 | BF158: 90.174628 | BG158: 385.026434 | BH158: 18.926244 | BI158: 38.030234 | BJ158: 31.122406 | BK158: 103.197334 | BL158: 135.241406 | BM158: 38.480228 | BN158: 42.436124 | BO158: 42.282301 | BP158: 90.293952 | BQ158: 83.591274 | BR158: 172.159249 | BS158: 9.304253 | BT158: 81.651866 | BU158: 1.067766 | BV158: 10.244473 | BW158: 1.633798 | BX158: 4.52716 | BY158: 111.176244 | BZ158: 130.70299 | CA158: 57.965633 | CB158: 43.168071
B159: Pit latrine with slab | C159: 0.4155164754 | D159: 0.9188419496 | E159: 1.503817983 | F159: 0.6581006297 | G159: 24.80279992 | H159: 11.87787541 | I159: 22.52788777 | J159: 39.4383871 | K159: 56.73846525 | L159: 60.18156623 | M159: 0.3453232903 | N159: 0.9309294516 | O159: 1.3158643 | P159: 0.7543526013 | Q159: 2.52575602 | R159: 53.26671895 | S159: 5.358893887 | T159: 3.890570092 | U159: 1.960583871 | V159: 39.7498124 | W159: 3.075347619 | X159: 31.88560556 | Y159: 3.923419462 | Z159: 2.270887267 | AA159: 6.387590241 | AB159: 5.824621089 | BB159: Pit latrine with slab | BC159: 58.112731 | BD159: 128.526005 | BE159: 210.693116 | BF159: 91.967109 | BG159: 3471.373343 | BH159: 201.720849 | BI159: 382.990129 | BJ159: 668.578043 | BK159: 963.85456 | BL159: 1021.474727 | BM159: 42.396199 | BN159: 114.519209 | BO159: 161.842377 | BP159: 92.7091 | BQ159: 310.587111 | BR159: 1264.668586 | BS159: 39.940014 | BT159: 674.218995 | BU159: 12.006033 | BV159: 116.042602 | BW159: 6.318073 | BX159: 53.391063 | BY159: 1003.494356 | BZ159: 348.164745 | CA159: 182.563961 | CB159: 259.863876
B160: Pit latrine without slab / open pit | C160: 13.18265213 | D160: 20.95597583 | E160: 24.31756561 | F160: 30.64942292 | G160: 38.36036975 | H160: 40.91279182 | I160: 56.35121219 | J160: 44.36341684 | K160: 27.38127978 | L160: 9.286980166 | M160: 11.59615162 | N160: 20.02582254 | O160: 23.17521383 | P160: 28.64883099 | Q160: 36.98400459 | R160: 21.0699258 | S160: 2.332097222 | T160: 23.5397301 | U160: 32.55083183 | V160: 10.47955025 | W160: 19.10053362 | X160: 15.88161965 | Y160: 18.2063684 | Z160: 50.38532736 | AA160: 3.981537235 | AB160: 9.995270878 | BB160: Pit latrine without slab / open pit | BC160: 1843.681208 | BD160: 2931.28525 | BE160: 3407.023809 | BF160: 4283.142564 | BG160: 5368.876314 | BH160: 694.818123 | BI160: 958.010722 | BJ160: 752.069458 | BK160: 465.144259 | BL160: 157.629921 | BM160: 1423.688369 | BN160: 2463.496405 | BO160: 2850.393991 | BP160: 3520.909629 | BQ160: 4547.848268 | BR160: 500.246191 | BS160: 17.381198 | BT160: 4079.333566 | BU160: 199.331621 | BV160: 30.593208 | BW160: 39.240626 | BX160: 26.593083 | BY160: 4656.649159 | BZ160: 7724.90775 | CA160: 113.796468 | CB160: 445.936275
B161: Composting toilet | C161: 3.122063232 | D161: 4.095880076 | E161: 4.630038853 | F161: 2.90713347 | G161: 2.885506729 | H161: 4.432873399 | I161: 4.314050586 | J161: 1.308788574 | K161: 2.08654161 | L161: 0.6721238304 | M161: 3.350619513 | N161: 3.512037074 | O161: 4.203969959 | P161: 3.923513006 | Q161: 3.318355105 | R161: 1.141870126 | S161: 0.7748468111 | T161: 3.140973519 | U161: 3.044186421 | V161: 5.863281346 | W161: 2.616979118 | X161: 2.511850098 | Y161: 2.265621807 | Z161: 7.595558955 | AA161: 0.7361960687 | AB161: 1.810702847 | BB161: Composting toilet | BC161: 436.64122 | BD161: 572.924542 | BE161: 648.693741 | BF161: 406.261062 | BG161: 403.852435 | BH161: 75.283075 | BI161: 73.341931 | BJ161: 22.187198 | BK161: 35.445489 | BL161: 11.408103 | BM161: 411.363889 | BN161: 432.036721 | BO161: 517.059769 | BP161: 482.195407 | BQ161: 408.051418 | BR161: 27.110498 | BS161: 5.774959 | BT161: 544.317146 | BU161: 18.641693 | BV161: 17.116821 | BW161: 5.376389 | BX161: 4.205984 | BY161: 579.478875 | BZ161: 1164.525375 | CA161: 21.041248 | CB161: 80.784012
B162: Bucket toilet | C162: 0 | D162: 0 | E162: 0 | F162: 0 | G162: 0.06224522426 | H162: 0 | I162: 0.02246923558 | J162: 0.3154644868 | K162: 0.07801421122 | L162: 0.0976008314 | M162: 0 | N162: 0 | O162: 0 | P162: 0 | Q162: 0 | R162: 0.3669322348 | S162: 0 | T162: 0 | U162: 0 | V162: 0 | W162: 0 | X162: 0 | Y162: 0 | Z162: 0 | AA162: 0 | AB162: 0 | BB162: Bucket toilet | BC162: 0 | BD162: 0 | BE162: 0 | BF162: 0 | BG162: 8.711775 | BH162: 0 | BI162: 0.381993 | BJ162: 5.347902 | BK162: 1.32528 | BL162: 1.6566 | BM162: 0 | BN162: 0 | BO162: 0 | BP162: 0 | BQ162: 0 | BR162: 8.711775 | BS162: 0 | BT162: 0 | BU162: 0 | BV162: 0 | BW162: 0 | BX162: 0 | BY162: 0 | BZ162: 0 | CA162: 0 | CB162: 0
B163: Hanging toilet / hanging latrine | C163: 0.1312313183 | D163: 0 | E163: 0.05649058776 | F163: 0 | G163: 0.1623518268 | H163: 0.2890645347 | I163: 0.124971708 | J163: 0.2459626352 | K163: 0.3210696149 | L163: 0.357323207 | M163: 0.07490069038 | N163: 0.07444418346 | O163: 0.06435021788 | P163: 0 | Q163: 0 | R163: 0.9444099123 | S163: 0 | T163: 0 | U163: 0 | V163: 0 | W163: 0 | X163: 0.1792987637 | Y163: 0 | Z163: 0.1515994418 | AA163: 0.1058567563 | AB163: 0 | BB163: Hanging toilet / hanging latrine | BC163: 18.353569 | BD163: 0 | BE163: 7.91464 | BF163: 0 | BG163: 22.722588 | BH163: 4.909156 | BI163: 2.124608 | BJ163: 4.169674 | BK163: 5.454226 | BL163: 6.064924 | BM163: 9.195744 | BN163: 9.157825 | BO163: 7.91464 | BP163: 0 | BQ163: 0 | BR163: 22.42236 | BS163: 0 | BT163: 0 | BU163: 0 | BV163: 0 | BW163: 0 | BX163: 0.300228 | BY163: 0 | BZ163: 23.242713 | CA163: 3.025496 | CB163: 0
B164: No facility / bush / field | C164: 82.2148381 | D164: 72.71337346 | E164: 67.62170084 | F164: 63.33413322 | G164: 24.98045445 | H164: 36.98159856 | I164: 10.58230152 | J164: 6.580510521 | K164: 1.479210089 | L164: 0.8744946708 | M164: 83.63001075 | N164: 73.96791628 | O164: 69.79137753 | P164: 64.30145262 | Q164: 54.30513476 | R164: 4.612250636 | S164: 90.19929093 | T164: 68.66222452 | U164: 60.42542646 | V164: 38.48397231 | W164: 74.35916736 | X164: 45.51490886 | Y164: 73.93082358 | Z164: 34.06439272 | AA164: 85.51634481 | AB164: 78.95032143 | BB164: No facility / bush / field | BC164: 11498.28961 | BD164: 10171.01951 | BE164: 9474.16976 | BF164: 8850.70895 | BG164: 3496.237682 | BH164: 628.055035 | BI164: 179.906659 | BJ164: 111.555902 | BK164: 25.128339 | BL164: 14.842987 | BM164: 10267.46437 | BN164: 9099.236521 | BO164: 8583.865703 | BP164: 7902.577377 | BQ164: 6677.792624 | BR164: 109.504933 | BS164: 672.258309 | BT164: 11898.86698 | BU164: 370.027355 | BV164: 112.347204 | BW164: 152.76538 | BX164: 76.21274 | BY164: 18909.31238 | BZ164: 5222.637325 | CA164: 2444.145922 | CB164: 3522.346986
B165: OTHER | C165: 0 | D165: 0.01221516559 | E165: 0.03799817548 | F165: 0 | G165: 0.06325689962 | H165: 0.06209679083 | I165: 0.1430644798 | J165: 0.1870485037 | K165: 0.09383450524 | L165: 0.0354453745 | M165: 0 | N165: 0.01388954384 | O165: 0.01923774458 | P165: 0.02406563571 | Q165: 0 | R165: 0.2260358416 | S165: 0 | T165: 0 | U165: 0 | V165: 0.5324584469 | W165: 0 | X165: 0 | Y165: 0.007555070496 | Z165: 0.03858212018 | AA165: 0.03908563399 | AB165: 0 | BB165: OTHER | BC165: 0 | BD165: 1.708636 | BE165: 5.323752 | BF165: 0 | BG165: 8.853368 | BH165: 1.054584 | BI165: 2.432198 | BJ165: 3.170934 | BK165: 1.59403 | BL165: 0.601622 | BM165: 0 | BN165: 1.708636 | BO165: 2.366112 | BP165: 2.95764 | BQ165: 0 | BR165: 5.366586 | BS165: 0 | BT165: 0 | BU165: 0 | BV165: 1.554419 | BW165: 0 | BX165: 0 | BY165: 1.932363 | BZ165: 5.91528 | CA165: 1.117108 | CB165: 0
BB166: Total | BC166: 13985.66229 | BD166: 13987.82512 | BE166: 14010.54638 | BF166: 13974.62711 | BG166: 13995.89302 | BH166: 1698.290662 | BI166: 1700.071187 | BJ166: 1695.246921 | BK166: 1698.767416 | BL166: 1697.321607 | BM166: 12277.24865 | BN166: 12301.5991 | BO166: 12299.32121 | BP166: 12289.88935 | BQ166: 12296.79781 | BR166: 2374.219045 | BS166: 745.303319 | BT166: 17329.56814 | BU166: 612.370283 | BV166: 291.932452 | BW166: 205.442564 | BX166: 167.445661 | BY166: 25577.03467 | BZ166: 15331.66133 | CA166: 2858.103825 | CB166: 4461.472635
A208: =A1026 -> Ethiopia
A209: =A1034 -> 2005
A210: Access to hygiene facilities
A211: by wealth quintile and sub-national region
A212: Notes:
A213: WHO/UNICEF JMP customised wealth index excludes water,
A214: sanitation and hygiene assets.
A215: Survey used for analysis: | B215: =A1025 -> DHS05
A220: Access to handwashing | C220: NATIONAL wealth index quintile | H220: URBAN wealth index quintile | M220: RURAL wealth index quintile | R220: SUB-REGIONS: | BA220: Raw numbers of respondents: | BB220: Access to handwashing | BC220: NATIONAL wealth index quintile | BH220: URBAN wealth index quintile | BM220: RURAL wealth index quintile | BR220: SUB-REGIONS:
A221: Weighted percentage (used in graphs) | C221: Poorest | D221: Poor | E221: Middle | F221: Rich | G221: Richest | H221: Poorest | I221: Poor | J221: Middle | K221: Rich | L221: Richest | M221: Poorest | N221: Poor | O221: Middle | P221: Rich | Q221: Richest | R221: Addis Abeba | S221: Afar | T221: Amhara | U221: Ben-Gumz | V221: Dire Dawa | W221: Gambela | X221: Harari | Y221: Oromiya | Z221: SNNP | AA221: Somali | AB221: Tigray | BA221: Hygiene data, raw numbers (weighted) | BC221: Poorest | BD221: Poor | BE221: Middle | BF221: Rich | BG221: Richest | BH221: Poorest | BI221: Poor | BJ221: Middle | BK221: Rich | BL221: Richest | BM221: Poorest | BN221: Poor | BO221: Middle | BP221: Rich | BQ221: Richest | BR221: Addis Abeba | BS221: Afar | BT221: Amhara | BU221: Ben-Gumz | BV221: Dire Dawa | BW221: Gambela | BX221: Harari | BY221: Oromiya | BZ221: SNNP | CA221: Somali | CB221: Tigray
A222: Hygiene ladder | B222: Basic | C222: N/A | D222: N/A | E222: N/A | F222: N/A | G222: N/A | H222: N/A | I222: N/A | J222: N/A | K222: N/A | L222: N/A | M222: N/A | N222: N/A | O222: N/A | P222: N/A | Q222: N/A | R222: N/A | S222: N/A | T222: N/A | U222: N/A | V222: N/A | W222: N/A | X222: N/A | Y222: N/A | Z222: N/A | AA222: N/A | AB222: N/A | BA222: Hygiene ladder | BB222: Basic | BC222: N/A | BD222: N/A | BE222: N/A | BF222: N/A | BG222: N/A | BH222: N/A | BI222: N/A | BJ222: N/A | BK222: N/A | BL222: N/A | BM222: N/A | BN222: N/A | BO222: N/A | BP222: N/A | BQ222: N/A | BR222: N/A | BS222: N/A | BT222: N/A | BU222: N/A | BV222: N/A | BW222: N/A | BX222: N/A | BY222: N/A | BZ222: N/A | CA222: N/A | CB222: N/A
B223: Limited | C223: N/A | D223: N/A | E223: N/A | F223: N/A | G223: N/A | H223: N/A | I223: N/A | J223: N/A | K223: N/A | L223: N/A | M223: N/A | N223: N/A | O223: N/A | P223: N/A | Q223: N/A | R223: N/A | S223: N/A | T223: N/A | U223: N/A | V223: N/A | W223: N/A | X223: N/A | Y223: N/A | Z223: N/A | AA223: N/A | AB223: N/A | BB223: Limited | BC223: N/A | BD223: N/A | BE223: N/A | BF223: N/A | BG223: N/A | BH223: N/A | BI223: N/A | BJ223: N/A | BK223: N/A | BL223: N/A | BM223: N/A | BN223: N/A | BO223: N/A | BP223: N/A | BQ223: N/A | BR223: N/A | BS223: N/A | BT223: N/A | BU223: N/A | BV223: N/A | BW223: N/A | BX223: N/A | BY223: N/A | BZ223: N/A | CA223: N/A | CB223: N/A
B224: No facility | C224: N/A | D224: N/A | E224: N/A | F224: N/A | G224: N/A | H224: N/A | I224: N/A | J224: N/A | K224: N/A | L224: N/A | M224: N/A | N224: N/A | O224: N/A | P224: N/A | Q224: N/A | R224: N/A | S224: N/A | T224: N/A | U224: N/A | V224: N/A | W224: N/A | X224: N/A | Y224: N/A | Z224: N/A | AA224: N/A | AB224: N/A | BB224: No facility | BC224: N/A | BD224: N/A | BE224: N/A | BF224: N/A | BG224: N/A | BH224: N/A | BI224: N/A | BJ224: N/A | BK224: N/A | BL224: N/A | BM224: N/A | BN224: N/A | BO224: N/A | BP224: N/A | BQ224: N/A | BR224: N/A | BS224: N/A | BT224: N/A | BU224: N/A | BV224: N/A | BW224: N/A | BX224: N/A | BY224: N/A | BZ224: N/A | CA224: N/A | CB224: N/A
BA225: Observed handwashing place | BB225: Fixed | BC225: N/A | BD225: N/A | BE225: N/A | BF225: N/A | BG225: N/A | BH225: N/A | BI225: N/A | BJ225: N/A | BK225: N/A | BL225: N/A | BM225: N/A | BN225: N/A | BO225: N/A | BP225: N/A | BQ225: N/A | BR225: N/A | BS225: N/A | BT225: N/A | BU225: N/A | BV225: N/A | BW225: N/A | BX225: N/A | BY225: N/A | BZ225: N/A | CA225: N/A | CB225: N/A
BB226: Mobile | BC226: N/A | BD226: N/A | BE226: N/A | BF226: N/A | BG226: N/A | BH226: N/A | BI226: N/A | BJ226: N/A | BK226: N/A | BL226: N/A | BM226: N/A | BN226: N/A | BO226: N/A | BP226: N/A | BQ226: N/A | BR226: N/A | BS226: N/A | BT226: N/A | BU226: N/A | BV226: N/A | BW226: N/A | BX226: N/A | BY226: N/A | BZ226: N/A | CA226: N/A | CB226: N/A
BA227: Water / Soap | BB227: Water and soap | BC227: N/A | BD227: N/A | BE227: N/A | BF227: N/A | BG227: N/A | BH227: N/A | BI227: N/A | BJ227: N/A | BK227: N/A | BL227: N/A | BM227: N/A | BN227: N/A | BO227: N/A | BP227: N/A | BQ227: N/A | BR227: N/A | BS227: N/A | BT227: N/A | BU227: N/A | BV227: N/A | BW227: N/A | BX227: N/A | BY227: N/A | BZ227: N/A | CA227: N/A | CB227: N/A
BB228: Water only | BC228: N/A | BD228: N/A | BE228: N/A | BF228: N/A | BG228: N/A | BH228: N/A | BI228: N/A | BJ228: N/A | BK228: N/A | BL228: N/A | BM228: N/A | BN228: N/A | BO228: N/A | BP228: N/A | BQ228: N/A | BR228: N/A | BS228: N/A | BT228: N/A | BU228: N/A | BV228: N/A | BW228: N/A | BX228: N/A | BY228: N/A | BZ228: N/A | CA228: N/A | CB228: N/A
BB229: Soap only | BC229: N/A | BD229: N/A | BE229: N/A | BF229: N/A | BG229: N/A | BH229: N/A | BI229: N/A | BJ229: N/A | BK229: N/A | BL229: N/A | BM229: N/A | BN229: N/A | BO229: N/A | BP229: N/A | BQ229: N/A | BR229: N/A | BS229: N/A | BT229: N/A | BU229: N/A | BV229: N/A | BW229: N/A | BX229: N/A | BY229: N/A | BZ229: N/A | CA229: N/A | CB229: N/A
BB230: Neither | BC230: N/A | BD230: N/A | BE230: N/A | BF230: N/A | BG230: N/A | BH230: N/A | BI230: N/A | BJ230: N/A | BK230: N/A | BL230: N/A | BM230: N/A | BN230: N/A | BO230: N/A | BP230: N/A | BQ230: N/A | BR230: N/A | BS230: N/A | BT230: N/A | BU230: N/A | BV230: N/A | BW230: N/A | BX230: N/A | BY230: N/A | BZ230: N/A | CA230: N/A | CB230: N/A
BA259: Raw numbers of respondents: | BB259: Menstrual health and hygiene | BC259: NATIONAL wealth index quintile | BH259: URBAN wealth index quintile | BM259: RURAL wealth index quintile | BR259: SUB-REGIONS:
BA260: MHH data, raw numbers (weighted) | BC260: Poorest | BD260: Poor | BE260: Middle | BF260: Rich | BG260: Richest | BH260: Poorest | BI260: Poor | BJ260: Middle | BK260: Rich | BL260: Richest | BM260: Poorest | BN260: Poor | BO260: Middle | BP260: Rich | BQ260: Richest | BR260: Addis Abeba | BS260: Afar | BT260: Amhara | BU260: Ben-Gumz | BV260: Dire Dawa | BW260: Gambela | BX260: Harari | BY260: Oromiya | BZ260: SNNP | CA260: Somali | CB260: Tigray
BA261: Private place to wash and change | BB261: Yes | BC261: N/A | BD261: N/A | BE261: N/A | BF261: N/A | BG261: N/A | BH261: N/A | BI261: N/A | BJ261: N/A | BK261: N/A | BL261: N/A | BM261: N/A | BN261: N/A | BO261: N/A | BP261: N/A | BQ261: N/A | BR261: N/A | BS261: N/A | BT261: N/A | BU261: N/A | BV261: N/A | BW261: N/A | BX261: N/A | BY261: N/A | BZ261: N/A | CA261: N/A | CB261: N/A
BB262: No | BC262: N/A | BD262: N/A | BE262: N/A | BF262: N/A | BG262: N/A | BH262: N/A | BI262: N/A | BJ262: N/A | BK262: N/A | BL262: N/A | BM262: N/A | BN262: N/A | BO262: N/A | BP262: N/A | BQ262: N/A | BR262: N/A | BS262: N/A | BT262: N/A | BU262: N/A | BV262: N/A | BW262: N/A | BX262: N/A | BY262: N/A | BZ262: N/A | CA262: N/A | CB262: N/A
BB263: DK/not sure/missing | BC263: N/A | BD263: N/A | BE263: N/A | BF263: N/A | BG263: N/A | BH263: N/A | BI263: N/A | BJ263: N/A | BK263: N/A | BL263: N/A | BM263: N/A | BN263: N/A | BO263: N/A | BP263: N/A | BQ263: N/A | BR263: N/A | BS263: N/A | BT263: N/A | BU263: N/A | BV263: N/A | BW263: N/A | BX263: N/A | BY263: N/A | BZ263: N/A | CA263: N/A | CB263: N/A
BA264: Use of menstrual materials | BB264: Materials reusable | BC264: N/A | BD264: N/A | BE264: N/A | BF264: N/A | BG264: N/A | BH264: N/A | BI264: N/A | BJ264: N/A | BK264: N/A | BL264: N/A | BM264: N/A | BN264: N/A | BO264: N/A | BP264: N/A | BQ264: N/A | BR264: N/A | BS264: N/A | BT264: N/A | BU264: N/A | BV264: N/A | BW264: N/A | BX264: N/A | BY264: N/A | BZ264: N/A | CA264: N/A | CB264: N/A
BB265: Materials not reusable | BC265: N/A | BD265: N/A | BE265: N/A | BF265: N/A | BG265: N/A | BH265: N/A | BI265: N/A | BJ265: N/A | BK265: N/A | BL265: N/A | BM265: N/A | BN265: N/A | BO265: N/A | BP265: N/A | BQ265: N/A | BR265: N/A | BS265: N/A | BT265: N/A | BU265: N/A | BV265: N/A | BW265: N/A | BX265: N/A | BY265: N/A | BZ265: N/A | CA265: N/A | CB265: N/A
BB266: No materials used | BC266: N/A | BD266: N/A | BE266: N/A | BF266: N/A | BG266: N/A | BH266: N/A | BI266: N/A | BJ266: N/A | BK266: N/A | BL266: N/A | BM266: N/A | BN266: N/A | BO266: N/A | BP266: N/A | BQ266: N/A | BR266: N/A | BS266: N/A | BT266: N/A | BU266: N/A | BV266: N/A | BW266: N/A | BX266: N/A | BY266: N/A | BZ266: N/A | CA266: N/A | CB266: N/A
BB267: DK/not sure/missing | BC267: N/A | BD267: N/A | BE267: N/A | BF267: N/A | BG267: N/A | BH267: N/A | BI267: N/A | BJ267: N/A | BK267: N/A | BL267: N/A | BM267: N/A | BN267: N/A | BO267: N/A | BP267: N/A | BQ267: N/A | BR267: N/A | BS267: N/A | BT267: N/A | BU267: N/A | BV267: N/A | BW267: N/A | BX267: N/A | BY267: N/A | BZ267: N/A | CA267: N/A | CB267: N/A
BA268: Use of menstrual materials with private place to wash and change | BB268: Materials reusable | BC268: N/A | BD268: N/A | BE268: N/A | BF268: N/A | BG268: N/A | BH268: N/A | BI268: N/A | BJ268: N/A | BK268: N/A | BL268: N/A | BM268: N/A | BN268: N/A | BO268: N/A | BP268: N/A | BQ268: N/A | BR268: N/A | BS268: N/A | BT268: N/A | BU268: N/A | BV268: N/A | BW268: N/A | BX268: N/A | BY268: N/A | BZ268: N/A | CA268: N/A | CB268: N/A
BB269: Materials not reusable | BC269: N/A | BD269: N/A | BE269: N/A | BF269: N/A | BG269: N/A | BH269: N/A | BI269: N/A | BJ269: N/A | BK269: N/A | BL269: N/A | BM269: N/A | BN269: N/A | BO269: N/A | BP269: N/A | BQ269: N/A | BR269: N/A | BS269: N/A | BT269: N/A | BU269: N/A | BV269: N/A | BW269: N/A | BX269: N/A | BY269: N/A | BZ269: N/A | CA269: N/A | CB269: N/A
BB270: No materials used | BC270: N/A | BD270: N/A | BE270: N/A | BF270: N/A | BG270: N/A | BH270: N/A | BI270: N/A | BJ270: N/A | BK270: N/A | BL270: N/A | BM270: N/A | BN270: N/A | BO270: N/A | BP270: N/A | BQ270: N/A | BR270: N/A | BS270: N/A | BT270: N/A | BU270: N/A | BV270: N/A | BW270: N/A | BX270: N/A | BY270: N/A | BZ270: N/A | CA270: N/A | CB270: N/A
BA271: Awareness of menstruation before menarche | BB271: Yes | BC271: N/A | BD271: N/A | BE271: N/A | BF271: N/A | BG271: N/A | BH271: N/A | BI271: N/A | BJ271: N/A | BK271: N/A | BL271: N/A | BM271: N/A | BN271: N/A | BO271: N/A | BP271: N/A | BQ271: N/A | BR271: N/A | BS271: N/A | BT271: N/A | BU271: N/A | BV271: N/A | BW271: N/A | BX271: N/A | BY271: N/A | BZ271: N/A | CA271: N/A | CB271: N/A
BB272: No | BC272: N/A | BD272: N/A | BE272: N/A | BF272: N/A | BG272: N/A | BH272: N/A | BI272: N/A | BJ272: N/A | BK272: N/A | BL272: N/A | BM272: N/A | BN272: N/A | BO272: N/A | BP272: N/A | BQ272: N/A | BR272: N/A | BS272: N/A | BT272: N/A | BU272: N/A | BV272: N/A | BW272: N/A | BX272: N/A | BY272: N/A | BZ272: N/A | CA272: N/A | CB272: N/A
BB273: DK/not sure/missing | BC273: N/A | BD273: N/A | BE273: N/A | BF273: N/A | BG273: N/A | BH273: N/A | BI273: N/A | BJ273: N/A | BK273: N/A | BL273: N/A | BM273: N/A | BN273: N/A | BO273: N/A | BP273: N/A | BQ273: N/A | BR273: N/A | BS273: N/A | BT273: N/A | BU273: N/A | BV273: N/A | BW273: N/A | BX273: N/A | BY273: N/A | BZ273: N/A | CA273: N/A | CB273: N/A
BA274: Participation in (all) activities during menstruation | BB274: Yes | BC274: N/A | BD274: N/A | BE274: N/A | BF274: N/A | BG274: N/A | BH274: N/A | BI274: N/A | BJ274: N/A | BK274: N/A | BL274: N/A | BM274: N/A | BN274: N/A | BO274: N/A | BP274: N/A | BQ274: N/A | BR274: N/A | BS274: N/A | BT274: N/A | BU274: N/A | BV274: N/A | BW274: N/A | BX274: N/A | BY274: N/A | BZ274: N/A | CA274: N/A | CB274: N/A
BB275: No | BC275: N/A | BD275: N/A | BE275: N/A | BF275: N/A | BG275: N/A | BH275: N/A | BI275: N/A | BJ275: N/A | BK275: N/A | BL275: N/A | BM275: N/A | BN275: N/A | BO275: N/A | BP275: N/A | BQ275: N/A | BR275: N/A | BS275: N/A | BT275: N/A | BU275: N/A | BV275: N/A | BW275: N/A | BX275: N/A | BY275: N/A | BZ275: N/A | CA275: N/A | CB275: N/A
BB276: DK/not sure/missing/no such activity | BC276: N/A | BD276: N/A | BE276: N/A | BF276: N/A | BG276: N/A | BH276: N/A | BI276: N/A | BJ276: N/A | BK276: N/A | BL276: N/A | BM276: N/A | BN276: N/A | BO276: N/A | BP276: N/A | BQ276: N/A | BR276: N/A | BS276: N/A | BT276: N/A | BU276: N/A | BV276: N/A | BW276: N/A | BX276: N/A | BY276: N/A | BZ276: N/A | CA276: N/A | CB276: N/A
BA277: Participation in specific activities during menstruation | BB277: Did not go to school (amongst those usually attending school) | BC277: N/A | BD277: N/A | BE277: N/A | BF277: N/A | BG277: N/A | BH277: N/A | BI277: N/A | BJ277: N/A | BK277: N/A | BL277: N/A | BM277: N/A | BN277: N/A | BO277: N/A | BP277: N/A | BQ277: N/A | BR277: N/A | BS277: N/A | BT277: N/A | BU277: N/A | BV277: N/A | BW277: N/A | BX277: N/A | BY277: N/A | BZ277: N/A | CA277: N/A | CB277: N/A
BB278: Did not go to work (amongst those who usually work) | BC278: N/A | BD278: N/A | BE278: N/A | BF278: N/A | BG278: N/A | BH278: N/A | BI278: N/A | BJ278: N/A | BK278: N/A | BL278: N/A | BM278: N/A | BN278: N/A | BO278: N/A | BP278: N/A | BQ278: N/A | BR278: N/A | BS278: N/A | BT278: N/A | BU278: N/A | BV278: N/A | BW278: N/A | BX278: N/A | BY278: N/A | BZ278: N/A | CA278: N/A | CB278: N/A
BB279: Did not participate in social activities | BC279: N/A | BD279: N/A | BE279: N/A | BF279: N/A | BG279: N/A | BH279: N/A | BI279: N/A | BJ279: N/A | BK279: N/A | BL279: N/A | BM279: N/A | BN279: N/A | BO279: N/A | BP279: N/A | BQ279: N/A | BR279: N/A | BS279: N/A | BT279: N/A | BU279: N/A | BV279: N/A | BW279: N/A | BX279: N/A | BY279: N/A | BZ279: N/A | CA279: N/A | CB279: N/A
BB280: Did not cook food | BC280: N/A | BD280: N/A | BE280: N/A | BF280: N/A | BG280: N/A | BH280: N/A | BI280: N/A | BJ280: N/A | BK280: N/A | BL280: N/A | BM280: N/A | BN280: N/A | BO280: N/A | BP280: N/A | BQ280: N/A | BR280: N/A | BS280: N/A | BT280: N/A | BU280: N/A | BV280: N/A | BW280: N/A | BX280: N/A | BY280: N/A | BZ280: N/A | CA280: N/A | CB280: N/A
BB281: Did not eat with others | BC281: N/A | BD281: N/A | BE281: N/A | BF281: N/A | BG281: N/A | BH281: N/A | BI281: N/A | BJ281: N/A | BK281: N/A | BL281: N/A | BM281: N/A | BN281: N/A | BO281: N/A | BP281: N/A | BQ281: N/A | BR281: N/A | BS281: N/A | BT281: N/A | BU281: N/A | BV281: N/A | BW281: N/A | BX281: N/A | BY281: N/A | BZ281: N/A | CA281: N/A | CB281: N/A
BB282: Did not bathe in regular place | BC282: N/A | BD282: N/A | BE282: N/A | BF282: N/A | BG282: N/A | BH282: N/A | BI282: N/A | BJ282: N/A | BK282: N/A | BL282: N/A | BM282: N/A | BN282: N/A | BO282: N/A | BP282: N/A | BQ282: N/A | BR282: N/A | BS282: N/A | BT282: N/A | BU282: N/A | BV282: N/A | BW282: N/A | BX282: N/A | BY282: N/A | BZ282: N/A | CA282: N/A | CB282: N/A
BB283: Did not participate in other activities | BC283: N/A | BD283: N/A | BE283: N/A | BF283: N/A | BG283: N/A | BH283: N/A | BI283: N/A | BJ283: N/A | BK283: N/A | BL283: N/A | BM283: N/A | BN283: N/A | BO283: N/A | BP283: N/A | BQ283: N/A | BR283: N/A | BS283: N/A | BT283: N/A | BU283: N/A | BV283: N/A | BW283: N/A | BX283: N/A | BY283: N/A | BZ283: N/A | CA283: N/A | CB283: N/A
BB284: DK/not sure/missing/no such activity | BC284: N/A | BD284: N/A | BE284: N/A | BF284: N/A | BG284: N/A | BH284: N/A | BI284: N/A | BJ284: N/A | BK284: N/A | BL284: N/A | BM284: N/A | BN284: N/A | BO284: N/A | BP284: N/A | BQ284: N/A | BR284: N/A | BS284: N/A | BT284: N/A | BU284: N/A | BV284: N/A | BW284: N/A | BX284: N/A | BY284: N/A | BZ284: N/A | CA284: N/A | CB284: N/A
BA339: Raw numbers of respondents: | BB339: Basic water, sanitation and hygiene | BC339: NATIONAL wealth index quintile | BH339: URBAN wealth index quintile | BM339: RURAL wealth index quintile | BR339: SUB-REGIONS:
BA340: WatSan data, raw numbers (weighted) | BC340: Poorest | BD340: Poor | BE340: Middle | BF340: Rich | BG340: Richest | BH340: Poorest | BI340: Poor | BJ340: Middle | BK340: Rich | BL340: Richest | BM340: Poorest | BN340: Poor | BO340: Middle | BP340: Rich | BQ340: Richest | BR340: Addis Abeba | BS340: Afar | BT340: Amhara | BU340: Ben-Gumz | BV340: Dire Dawa | BW340: Gambela | BX340: Harari | BY340: Oromiya | BZ340: SNNP | CA340: Somali | CB340: Tigray
BA341: Use of Basic Water Sanitation and Hygiene | BB341: Yes | BC341: N/A | BD341: N/A | BE341: N/A | BF341: N/A | BG341: N/A | BH341: N/A | BI341: N/A | BJ341: N/A | BK341: N/A | BL341: N/A | BM341: N/A | BN341: N/A | BO341: N/A | BP341: N/A | BQ341: N/A | BR341: N/A | BS341: N/A | BT341: N/A | BU341: N/A | BV341: N/A | BW341: N/A | BX341: N/A | BY341: N/A | BZ341: N/A | CA341: N/A | CB341: N/A
BB342: No | BC342: N/A | BD342: N/A | BE342: N/A | BF342: N/A | BG342: N/A | BH342: N/A | BI342: N/A | BJ342: N/A | BK342: N/A | BL342: N/A | BM342: N/A | BN342: N/A | BO342: N/A | BP342: N/A | BQ342: N/A | BR342: N/A | BS342: N/A | BT342: N/A | BU342: N/A | BV342: N/A | BW342: N/A | BX342: N/A | BY342: N/A | BZ342: N/A | CA342: N/A | CB342: N/A
BA343: Use of Basic Water and Sanitation | BB343: Yes | BC343: N/A | BD343: N/A | BE343: N/A | BF343: N/A | BG343: N/A | BH343: N/A | BI343: N/A | BJ343: N/A | BK343: N/A | BL343: N/A | BM343: N/A | BN343: N/A | BO343: N/A | BP343: N/A | BQ343: N/A | BR343: N/A | BS343: N/A | BT343: N/A | BU343: N/A | BV343: N/A | BW343: N/A | BX343: N/A | BY343: N/A | BZ343: N/A | CA343: N/A | CB343: N/A
BB344: No | BC344: N/A | BD344: N/A | BE344: N/A | BF344: N/A | BG344: N/A | BH344: N/A | BI344: N/A | BJ344: N/A | BK344: N/A | BL344: N/A | BM344: N/A | BN344: N/A | BO344: N/A | BP344: N/A | BQ344: N/A | BR344: N/A | BS344: N/A | BT344: N/A | BU344: N/A | BV344: N/A | BW344: N/A | BX344: N/A | BY344: N/A | BZ344: N/A | CA344: N/A | CB344: N/A
BA345: Use of Basic Water and Hygiene | BB345: Yes | BC345: N/A | BD345: N/A | BE345: N/A | BF345: N/A | BG345: N/A | BH345: N/A | BI345: N/A | BJ345: N/A | BK345: N/A | BL345: N/A | BM345: N/A | BN345: N/A | BO345: N/A | BP345: N/A | BQ345: N/A | BR345: N/A | BS345: N/A | BT345: N/A | BU345: N/A | BV345: N/A | BW345: N/A | BX345: N/A | BY345: N/A | BZ345: N/A | CA345: N/A | CB345: N/A
BB346: No | BC346: N/A | BD346: N/A | BE346: N/A | BF346: N/A | BG346: N/A | BH346: N/A | BI346: N/A | BJ346: N/A | BK346: N/A | BL346: N/A | BM346: N/A | BN346: N/A | BO346: N/A | BP346: N/A | BQ346: N/A | BR346: N/A | BS346: N/A | BT346: N/A | BU346: N/A | BV346: N/A | BW346: N/A | BX346: N/A | BY346: N/A | BZ346: N/A | CA346: N/A | CB346: N/A
BA347: Use of Basic Sanitation and Hygiene | BB347: Yes | BC347: N/A | BD347: N/A | BE347: N/A | BF347: N/A | BG347: N/A | BH347: N/A | BI347: N/A | BJ347: N/A | BK347: N/A | BL347: N/A | BM347: N/A | BN347: N/A | BO347: N/A | BP347: N/A | BQ347: N/A | BR347: N/A | BS347: N/A | BT347: N/A | BU347: N/A | BV347: N/A | BW347: N/A | BX347: N/A | BY347: N/A | BZ347: N/A | CA347: N/A | CB347: N/A
BB348: No | BC348: N/A | BD348: N/A | BE348: N/A | BF348: N/A | BG348: N/A | BH348: N/A | BI348: N/A | BJ348: N/A | BK348: N/A | BL348: N/A | BM348: N/A | BN348: N/A | BO348: N/A | BP348: N/A | BQ348: N/A | BR348: N/A | BS348: N/A | BT348: N/A | BU348: N/A | BV348: N/A | BW348: N/A | BX348: N/A | BY348: N/A | BZ348: N/A | CA348: N/A | CB348: N/A
BA349: Use of Basic Water | BB349: Yes | BC349: N/A | BD349: N/A | BE349: N/A | BF349: N/A | BG349: N/A | BH349: N/A | BI349: N/A | BJ349: N/A | BK349: N/A | BL349: N/A | BM349: N/A | BN349: N/A | BO349: N/A | BP349: N/A | BQ349: N/A | BR349: N/A | BS349: N/A | BT349: N/A | BU349: N/A | BV349: N/A | BW349: N/A | BX349: N/A | BY349: N/A | BZ349: N/A | CA349: N/A | CB349: N/A
BB350: No | BC350: N/A | BD350: N/A | BE350: N/A | BF350: N/A | BG350: N/A | BH350: N/A | BI350: N/A | BJ350: N/A | BK350: N/A | BL350: N/A | BM350: N/A | BN350: N/A | BO350: N/A | BP350: N/A | BQ350: N/A | BR350: N/A | BS350: N/A | BT350: N/A | BU350: N/A | BV350: N/A | BW350: N/A | BX350: N/A | BY350: N/A | BZ350: N/A | CA350: N/A | CB350: N/A
BA351: Use of Basic Sanitation | BB351: Yes | BC351: N/A | BD351: N/A | BE351: N/A | BF351: N/A | BG351: N/A | BH351: N/A | BI351: N/A | BJ351: N/A | BK351: N/A | BL351: N/A | BM351: N/A | BN351: N/A | BO351: N/A | BP351: N/A | BQ351: N/A | BR351: N/A | BS351: N/A | BT351: N/A | BU351: N/A | BV351: N/A | BW351: N/A | BX351: N/A | BY351: N/A | BZ351: N/A | CA351: N/A | CB351: N/A
BB352: No | BC352: N/A | BD352: N/A | BE352: N/A | BF352: N/A | BG352: N/A | BH352: N/A | BI352: N/A | BJ352: N/A | BK352: N/A | BL352: N/A | BM352: N/A | BN352: N/A | BO352: N/A | BP352: N/A | BQ352: N/A | BR352: N/A | BS352: N/A | BT352: N/A | BU352: N/A | BV352: N/A | BW352: N/A | BX352: N/A | BY352: N/A | BZ352: N/A | CA352: N/A | CB352: N/A
BA353: Access to Basic Hygiene | BB353: Yes | BC353: N/A | BD353: N/A | BE353: N/A | BF353: N/A | BG353: N/A | BH353: N/A | BI353: N/A | BJ353: N/A | BK353: N/A | BL353: N/A | BM353: N/A | BN353: N/A | BO353: N/A | BP353: N/A | BQ353: N/A | BR353: N/A | BS353: N/A | BT353: N/A | BU353: N/A | BV353: N/A | BW353: N/A | BX353: N/A | BY353: N/A | BZ353: N/A | CA353: N/A | CB353: N/A
BB354: No | BC354: N/A | BD354: N/A | BE354: N/A | BF354: N/A | BG354: N/A | BH354: N/A | BI354: N/A | BJ354: N/A | BK354: N/A | BL354: N/A | BM354: N/A | BN354: N/A | BO354: N/A | BP354: N/A | BQ354: N/A | BR354: N/A | BS354: N/A | BT354: N/A | BU354: N/A | BV354: N/A | BW354: N/A | BX354: N/A | BY354: N/A | BZ354: N/A | CA354: N/A | CB354: N/A
C399: INITIAL (national) Wealth Index | H399: URBAN Wealth Index | M399: RURAL Wealth Index
C400: Component Matrix | H400: Component Matrix | M400: Component Matrix
E401: Component | J401: Component | O401: Component
B402: Note: The INITIAL (national) Wealth Index is based on the first component of the Principal Component Analysis (PCA) which has been obtained at national level. The final national-level (NATIONAL) Wealth Index is based on the URBAN and RURAL specific wealth indexes. Regression procedures are used to establish the relationships between the two sets of scores (urban and rural) and the initial (national) wealth factors. This allows best use of the available information for each area and a better precision of the FINAL (NATIONAL) Wealth Index. For dependency reasons, all WASH variables (contained in the generic MICS and DHS scripts) have been excluded from the sets of asset variables used in the PCAs. The PCA can extracts as many components as there are asset variables in the input. Only the first of the components is used to represent the Wealth Index. The scores represent the weights of the asset variables on the Wealth Index (correlations between the variables and the component). The communalities are the proportion of each variable's variance that can be explained by the component. Proportion of explained variance is the part of the model's total variance that is explained by the component. For more information on the procedure used: The DHS Wealth Index, DHS Comparative Reports No. 6, Shea Oscar Rutstein, Kiersten Johnson, ORC Macro International Inc., 2004. The DHS Wealth Index: Approaches for Rural and Urban Areas, Shea O. Rutstein, ORC Macro International Inc., 2008. MICS Methodological Paper No. 4, Review of options for reporting water, sanitation and hygiene coverage by wealth quintile, UNICEF, 2016. | E402: 1 | J402: 1 | O402: 1
C403: if household has electric | E403: 0.822791077 | H403: if household has tv | J403: 0.687996041 | M403: if household has windows with glass in them | O403: 0.5442069557
C404: if household has tv | E404: 0.7851314057 | H404: if household has a mitad | J404: 0.6220159544 | M404: if household has tv | O404: 0.5273749462
C405: if uses wood, straw for cooking fuel | E405: -0.6998490505 | H405: if floor is earth/mud/sand | J405: -0.60713792 | M405: if floor is of cement | O405: 0.4471733537
C406: if roof made of corrugated iron | E406: 0.6918217465 | H406: if household has windows with glass in them | J406: 0.6011080191 | M406: if uses kerosene for cooking | O406: 0.4401858274
C407: if uses kerosene for cooking | E407: 0.6799397474 | H407: if household has radio | J407: 0.5502696693 | M407: if household has electric | O407: 0.4225986953
C408: if household has a mitad | E408: 0.6564458122 | H408: if uses wood, straw for cooking fuel | J408: -0.5416693148 | M408: if dwelling has brick/cemt block walls | O408: 0.4130943835
C409: if household has windows with glass in them | E409: 0.6365862346 | H409: if household has electric | J409: 0.5289674749 | M409: if hh has a cellular phone | O409: 0.408465866
C410: if household has radio | E410: 0.6101299518 | H410: if household has fridge | J410: 0.5255828654 | M410: if roof made of corrugated iron | O410: 0.4007202972
C411: if floor is earth/mud/sand | E411: -0.6038615595 | H411: if household has a watch | J411: 0.5247518528 | M411: if household has a table | O411: 0.3871979048
C412: if household has a table | E412: 0.5900430242 | H412: if uses kerosene for cooking | J412: 0.5210034152 | M412: if household has fridge | O412: 0.3813417787
C413: if household has fridge | E413: 0.5762216953 | H413: if hh has a cellular phone | J413: 0.5184885234 | M413: if household has a mitad | O413: 0.3761594531
... 255 more rows

Sheet DHS11
A2: =A1026 -> Ethiopia
A3: =A1034 -> 2011
A4: Use of drinking water sources
A5: by wealth quintile and sub-national region
A6: Notes:
A7: WHO/UNICEF JMP customised wealth index excludes water,
A8: sanitation and hygiene assets.
A9: Survey used for analysis: | B9: =A1025 -> DHS11
A10: =B1028 -> 
A11: =B1027 -> 
A14: Use of drinking water sources | C14: NATIONAL wealth index quintile | H14: URBAN wealth index quintile | M14: RURAL wealth index quintile | R14: SUB-REGIONS: | BA14: Raw numbers of respondents: | BB14: Use of drinking water sources | BC14: NATIONAL wealth index quintile | BH14: URBAN wealth index quintile | BM14: RURAL wealth index quintile | BR14: SUB-REGIONS:
A15: Weighted percentage (used in graphs) | C15: Poorest | D15: Poor | E15: Middle | F15: Rich | G15: Richest | H15: Poorest | I15: Poor | J15: Middle | K15: Rich | L15: Richest | M15: Poorest | N15: Poor | O15: Middle | P15: Rich | Q15: Richest | R15: Addis Ababa | S15: Affar | T15: Amhara | U15: Benishangul-Gumuz | V15: Dire Dawa | W15: Gambela | X15: Harari | Y15: Oromiya | Z15: SNNP | AA15: Somali | AB15: Tigray | BA15: Water data, raw numbers (weighted) | BC15: Poorest | BD15: Poor | BE15: Middle | BF15: Rich | BG15: Richest | BH15: Poorest | BI15: Poor | BJ15: Middle | BK15: Rich | BL15: Richest | BM15: Poorest | BN15: Poor | BO15: Middle | BP15: Rich | BQ15: Richest | BR15: Addis Ababa | BS15: Affar | BT15: Amhara | BU15: Benishangul-Gumuz | BV15: Dire Dawa | BW15: Gambela | BX15: Harari | BY15: Oromiya | BZ15: SNNP | CA15: Somali | CB15: Tigray
A16: Water | B16: Improved | C16: 33.6 | D16: 40.7 | E16: 44.3 | F16: 50.5 | G16: 89.2 | H16: 84.5 | I16: 93.2 | J16: 96.7 | K16: 99.8 | L16: 100 | M16: 32.5 | N16: 37.2 | O16: 44.4 | P16: 42.7 | Q16: 53.8 | R16: 100 | S16: 42.7 | T16: 53.4 | U16: 54.8 | V16: 83.9 | W16: 60.7 | X16: 86 | Y16: 45.6 | Z16: 45.2 | AA16: 61.9 | AB16: 66.1 | BA16: Water | BB16: Improved | BC16: N/A | BD16: N/A | BE16: N/A | BF16: N/A | BG16: N/A | BH16: N/A | BI16: N/A | BJ16: N/A | BK16: N/A | BL16: N/A | BM16: N/A | BN16: N/A | BO16: N/A | BP16: N/A | BQ16: N/A | BR16: N/A | BS16: N/A | BT16: N/A | BU16: N/A | BV16: N/A | BW16: N/A | BX16: N/A | BY16: N/A | BZ16: N/A | CA16: N/A | CB16: N/A
B17: Not Improved | C17: 66.4 | D17: 59.3 | E17: 55.7 | F17: 49.5 | G17: 10.8 | H17: 15.5 | I17: 6.8 | J17: 3.3 | K17: 0.2 | L17: 0 | M17: 67.5 | N17: 62.8 | O17: 55.6 | P17: 57.3 | Q17: 46.2 | R17: 0 | S17: 57.3 | T17: 46.6 | U17: 45.2 | V17: 16.1 | W17: 39.3 | X17: 14 | Y17: 54.4 | Z17: 54.8 | AA17: 38.1 | AB17: 33.9 | BB17: Not Improved | BC17: N/A | BD17: N/A | BE17: N/A | BF17: N/A | BG17: N/A | BH17: N/A | BI17: N/A | BJ17: N/A | BK17: N/A | BL17: N/A | BM17: N/A | BN17: N/A | BO17: N/A | BP17: N/A | BQ17: N/A | BR17: N/A | BS17: N/A | BT17: N/A | BU17: N/A | BV17: N/A | BW17: N/A | BX17: N/A | BY17: N/A | BZ17: N/A | CA17: N/A | CB17: N/A
A18: Water ladder | B18: Basic | C18: 16.4 | D18: 20.8 | E18: 23.6 | F18: 30.3 | G18: 76.3 | H18: 59.7 | I18: 81.1 | J18: 88.8 | K18: 95.6 | L18: 98 | M18: 15.5 | N18: 19.5 | O18: 22.1 | P18: 24.1 | Q18: 29.7 | R18: 94.5 | S18: 26.6 | T18: 38.9 | U18: 47.6 | V18: 66.7 | W18: 50.2 | X18: 62 | Y18: 25.8 | Z18: 24.6 | AA18: 33.7 | AB18: 45 | BA18: Water ladder | BB18: Basic | BC18: N/A | BD18: N/A | BE18: N/A | BF18: N/A | BG18: N/A | BH18: N/A | BI18: N/A | BJ18: N/A | BK18: N/A | BL18: N/A | BM18: N/A | BN18: N/A | BO18: N/A | BP18: N/A | BQ18: N/A | BR18: N/A | BS18: N/A | BT18: N/A | BU18: N/A | BV18: N/A | BW18: N/A | BX18: N/A | BY18: N/A | BZ18: N/A | CA18: N/A | CB18: N/A
B19: Limited | C19: 17.1 | D19: 19.9 | E19: 20.7 | F19: 20.2 | G19: 12.9 | H19: 24.7 | I19: 12.1 | J19: 7.9 | K19: 4.3 | L19: 2 | M19: 17 | N19: 17.6 | O19: 22.3 | P19: 18.5 | Q19: 24 | R19: 5.5 | S19: 16 | T19: 14.5 | U19: 7.2 | V19: 17.1 | W19: 10.5 | X19: 24 | Y19: 19.8 | Z19: 20.6 | AA19: 28.2 | AB19: 21.2 | BB19: Limited | BC19: N/A | BD19: N/A | BE19: N/A | BF19: N/A | BG19: N/A | BH19: N/A | BI19: N/A | BJ19: N/A | BK19: N/A | BL19: N/A | BM19: N/A | BN19: N/A | BO19: N/A | BP19: N/A | BQ19: N/A | BR19: N/A | BS19: N/A | BT19: N/A | BU19: N/A | BV19: N/A | BW19: N/A | BX19: N/A | BY19: N/A | BZ19: N/A | CA19: N/A | CB19: N/A
B20: Unimproved | C20: 44.5 | D20: 37.8 | E20: 35.6 | F20: 29.8 | G20: 7.2 | H20: 10.9 | I20: 6.1 | J20: 2.5 | K20: 0.1 | L20: 0 | M20: 44.9 | N20: 41.5 | O20: 33.4 | P20: 36.2 | Q20: 28.9 | R20: 0 | S20: 13.7 | T20: 28 | U20: 21.8 | V20: 13.2 | W20: 25.2 | X20: 10.9 | Y20: 37.7 | Z20: 34.3 | AA20: 21.6 | AB20: 19.9 | BB20: Unimproved | BC20: N/A | BD20: N/A | BE20: N/A | BF20: N/A | BG20: N/A | BH20: N/A | BI20: N/A | BJ20: N/A | BK20: N/A | BL20: N/A | BM20: N/A | BN20: N/A | BO20: N/A | BP20: N/A | BQ20: N/A | BR20: N/A | BS20: N/A | BT20: N/A | BU20: N/A | BV20: N/A | BW20: N/A | BX20: N/A | BY20: N/A | BZ20: N/A | CA20: N/A | CB20: N/A
B21: Surface water | C21: 22 | D21: 21.5 | E21: 20.1 | F21: 19.7 | G21: 3.6 | H21: 4.6 | I21: 0.7 | J21: 0.7 | K21: 0.1 | L21: 0 | M21: 22.5 | N21: 21.3 | O21: 22.2 | P21: 21.2 | Q21: 17.4 | R21: 0 | S21: 43.7 | T21: 18.6 | U21: 23.5 | V21: 2.9 | W21: 14.1 | X21: 3.1 | Y21: 16.7 | Z21: 20.5 | AA21: 16.5 | AB21: 14 | BB21: Surface water | BC21: N/A | BD21: N/A | BE21: N/A | BF21: N/A | BG21: N/A | BH21: N/A | BI21: N/A | BJ21: N/A | BK21: N/A | BL21: N/A | BM21: N/A | BN21: N/A | BO21: N/A | BP21: N/A | BQ21: N/A | BR21: N/A | BS21: N/A | BT21: N/A | BU21: N/A | BV21: N/A | BW21: N/A | BX21: N/A | BY21: N/A | BZ21: N/A | CA21: N/A | CB21: N/A
A22: Improved water point at more than 30 minutes | B22: Yes | C22: 50.9 | D22: 48.8 | E22: 46.7 | F22: 40.1 | G22: 14.5 | H22: 29.3 | I22: 13 | J22: 8.2 | K22: 4.3 | L22: 2 | M22: 52.4 | N22: 47.5 | O22: 50.2 | P22: 43.4 | Q22: 44.7 | R22: 5.5 | S22: 37.6 | T22: 27.1 | U22: 13.1 | V22: 20.4 | W22: 17.4 | X22: 27.9 | Y22: 43.4 | Z22: 45.7 | AA22: 45.5 | AB22: 32 | BA22: Improved water point at more than 30 minutes | BB22: Yes | BC22: N/A | BD22: N/A | BE22: N/A | BF22: N/A | BG22: N/A | BH22: N/A | BI22: N/A | BJ22: N/A | BK22: N/A | BL22: N/A | BM22: N/A | BN22: N/A | BO22: N/A | BP22: N/A | BQ22: N/A | BR22: N/A | BS22: N/A | BT22: N/A | BU22: N/A | BV22: N/A | BW22: N/A | BX22: N/A | BY22: N/A | BZ22: N/A | CA22: N/A | CB22: N/A
